Workbook

Sheet ACS_Notes (hidden)
A1: NOTES:
A4: Data are based on a sample and are subject to sampling variability. The degree of uncertainty for an estimate arising from sampling variability is represented through the use of a margin of error. The value shown here is the 90 percent margin of error. The margin of error can be interpreted roughly as providing a 90 percent probability that the interval defined by the estimate minus the margin of error and the estimate plus the margin of error (the lower and upper confidence bounds) contains the true value. In addition to sampling variability, the ACS estimates are subject to nonsampling error (for a discussion of nonsampling variability, see Accuracy of the Data). The effect of nonsampling error is not represented in these tables.
A8: In addition to sampling variability, the ACS estimates are subject to nonsampling error (for a discussion of nonsampling variability, see Accuracy of the Data. The link is located at the end of this worksheet.). The effect of nonsampling error is not represented in these tables.
A11: While the 2005-2009 American Community Survey (ACS) data generally reflect the November 2008 Office of Management and Budget (OMB) definitions of metropolitan and micropolitan statistical areas; in certain instances the names, codes, and boundaries of the principal cities shown in ACS tables may differ from the OMB definitions due to differences in the effective dates of the geographic entities.
A15: Estimates of urban and rural population, housing units, and characteristics reflect boundaries of urban areas defined based on Census 2000 data. Boundaries for urban areas have not been updated since Census 2000. As a result, data for urban and rural areas from the ACS do not necessarily reflect the results of ongoing urbanization.
A17: Explanation of Symbols:
A19: 1. An '**' entry in the margin of error column indicates that either no sample observations or too few sample observations were available to compute a standard error and thus the margin of error. A statistical test is not appropriate.
A21: 2. An '-' entry in the estimate column indicates that either no sample observations or too few sample observations were available to compute an estimate, or a ratio of medians cannot be calculated because one or both of the median estimates falls in the lowest interval or upper interval of an open-ended distribution.
A23: 3. An '-' following a median estimate means the median falls in the lowest interval of an open-ended distribution.
A24: 4. An '+' following a median estimate means the median falls in the upper interval of an open-ended distribution.
A25: 5. An '***' entry in the margin of error column indicates that the median falls in the lowest interval or upper interval of an open-ended distribution. A statistical test is not appropriate.
A26: 6. An '*****' entry in the margin of error column indicates that the estimate is controlled. A statistical test for sampling variability is not appropriate.
A28: Accuracy of Data

Sheet StartInstruction
A1: Demographic Profiles for Municipalities in Merrimack County
A3: To view or print a Demographic Profile follow the steps below
A6: Step 1. | C6: Select the municipality you wish to
C7: Profile from the drop down box below.
A12: Step 2. | C12: Click one of the profile topic buttons below to review or print
C13: the information for the selected geography.
C14: Don't forget to adjust the axis on charts as necessary.
N28: Updated: | P28: 2024-07-18
N30: Next Update: | P30: Spring 2024 Annual Employment Date

Sheet ACS_B08303 (hidden)
B1: B08303: TRAVEL TIME TO WORK
B2: Universe: Workers 16 years and over who did not work at home
B3: Data Set: 2008-2010 American Community Survey 3-Year Estimates
C5: Allenstown | E5: Andover | G5: Boscawen | I5: Bow | K5: Bradford | M5: Canterbury | O5: Chichester | Q5: Concord | S5: Danbury | U5: Dunbarton | W5: Epsom | Y5: Franklin | AA5: Henniker | AC5: Hill | AE5: Hooksett | AG5: Hopkinton | AI5: Loudon | AK5: Newbury | AM5: New London | AO5: Northfield | AQ5: Pembroke | AS5: Pittsfield | AU5: Salisbury | AW5: Sutton | AY5: Warner | BA5: Webster | BC5: Wilmot
C6: Esitimate | D6: Margin Of Error | E6: Esitimate | F6: Margin Of Error | G6: Esitimate | H6: Margin Of Error | I6: Esitimate | J6: Margin Of Error | K6: Esitimate | L6: Margin Of Error | M6: Esitimate | N6: Margin Of Error | O6: Esitimate | P6: Margin Of Error | Q6: Esitimate | R6: Margin Of Error | S6: Esitimate | T6: Margin Of Error | U6: Esitimate | V6: Margin Of Error | W6: Esitimate | X6: Margin Of Error | Y6: Esitimate | Z6: Margin Of Error | AA6: Esitimate | AB6: Margin Of Error | AC6: Esitimate | AD6: Margin Of Error | AE6: Esitimate | AF6: Margin Of Error | AG6: Esitimate | AH6: Margin Of Error | AI6: Esitimate | AJ6: Margin Of Error | AK6: Esitimate | AL6: Margin Of Error | AM6: Esitimate | AN6: Margin Of Error | AO6: Esitimate | AP6: Margin Of Error | AQ6: Esitimate | AR6: Margin Of Error | AS6: Esitimate | AT6: Margin Of Error | AU6: Esitimate | AV6: Margin Of Error | AW6: Esitimate | AX6: Margin Of Error | AY6: Esitimate | AZ6: Margin Of Error | BA6: Esitimate | BB6: Margin Of Error | BC6: Esitimate
B7: Population Older than 16 not working at hom | C7: 2372 | D7: 301 | E7: 958 | F7: 177 | G7: 1632 | H7: 257 | I7: 3696 | J7: 307 | K7: 728 | L7: 120 | M7: 996 | N7: 155 | O7: 1261 | P7: 145 | Q7: 18923 | R7: 759 | S7: 633 | T7: 122 | U7: 1521 | V7: 117 | W7: 2208 | X7: 200 | Y7: 4096 | Z7: 379 | AA7: 2663 | AB7: 307 | AC7: 474 | AD7: 141 | AE7: 7294 | AF7: 391 | AG7: 2431 | AH7: 340 | AI7: 2393 | AJ7: 356 | AK7: 776 | AL7: 135 | AM7: 1250 | AN7: 247 | AO7: 2716 | AP7: 224 | AQ7: 3394 | AR7: 336 | AS7: 2033 | AT7: 234 | AU7: 570 | AV7: 136 | AW7: 1157 | AX7: 297 | AY7: 1269 | AZ7: 133 | BA7: 1053 | BB7: 163 | BC7: 771 | BD7: 139
B8: Less than 5 minutes | C8: 42 | D8: 39 | E8: 43 | F8: 31 | G8: 10 | H8: 15 | I8: 43 | J8: 45 | K8: 77 | L8: 44 | M8: 27 | N8: 30 | O8: 3 | P8: 5 | Q8: 857 | R8: 215 | S8: 0 | T8: 12 | U8: 2 | V8: 5 | W8: 70 | X8: 56 | Y8: 64 | Z8: 51 | AA8: 328 | AB8: 223 | AC8: 0 | AD8: 12 | AE8: 38 | AF8: 37 | AG8: 143 | AH8: 109 | AI8: 45 | AJ8: 63 | AK8: 60 | AL8: 40 | AM8: 44 | AN8: 37 | AO8: 58 | AP8: 44 | AQ8: 54 | AR8: 56 | AS8: 151 | AT8: 87 | AU8: 15 | AV8: 15 | AW8: 40 | AX8: 66 | AY8: 6 | AZ8: 8 | BA8: 15 | BB8: 14 | BC8: 31 | BD8: 20
B9: 5 to 9 minutes | C9: 387 | D9: 296 | E9: 116 | F9: 49 | G9: 120 | H9: 84 | I9: 210 | J9: 78 | K9: 17 | L9: 20 | M9: 23 | N9: 18 | O9: 84 | P9: 33 | Q9: 3070 | R9: 363 | S9: 27 | T9: 22 | U9: 19 | V9: 16 | W9: 116 | X9: 63 | Y9: 516 | Z9: 176 | AA9: 316 | AB9: 161 | AC9: 8 | AD9: 8 | AE9: 365 | AF9: 192 | AG9: 170 | AH9: 91 | AI9: 133 | AJ9: 97 | AK9: 23 | AL9: 22 | AM9: 305 | AN9: 155 | AO9: 279 | AP9: 99 | AQ9: 172 | AR9: 101 | AS9: 293 | AT9: 181 | AU9: 19 | AV9: 16 | AW9: 51 | AX9: 28 | AY9: 93 | AZ9: 50 | BA9: 44 | BB9: 43 | BC9: 14 | BD9: 10
B10: 10 to 14 minutes | C10: 232 | D10: 117 | E10: 69 | F10: 40 | G10: 10 | H10: 15 | I10: 420 | J10: 117 | K10: 43 | L10: 19 | M10: 94 | N10: 52 | O10: 121 | P10: 56 | Q10: 2924 | R10: 376 | S10: 25 | T10: 17 | U10: 71 | V10: 38 | W10: 108 | X10: 65 | Y10: 463 | Z10: 203 | AA10: 351 | AB10: 203 | AC10: 25 | AD10: 20 | AE10: 1071 | AF10: 280 | AG10: 351 | AH10: 147 | AI10: 221 | AJ10: 133 | AK10: 78 | AL10: 42 | AM10: 122 | AN10: 75 | AO10: 596 | AP10: 192 | AQ10: 554 | AR10: 195 | AS10: 163 | AT10: 132 | AU10: 12 | AV10: 12 | AW10: 112 | AX10: 48 | AY10: 77 | AZ10: 40 | BA10: 57 | BB10: 27 | BC10: 125 | BD10: 37
B11: 15 to 19 minutes | C11: 285 | D11: 122 | E11: 65 | F11: 31 | G11: 244 | H11: 90 | I11: 721 | J11: 162 | K11: 39 | L11: 34 | M11: 141 | N11: 46 | O11: 177 | P11: 52 | Q11: 3168 | R11: 403 | S11: 43 | T11: 24 | U11: 127 | V11: 48 | W11: 213 | X11: 112 | Y11: 247 | Z11: 118 | AA11: 108 | AB11: 71 | AC11: 69 | AD11: 36 | AE11: 1446 | AF11: 319 | AG11: 238 | AH11: 135 | AI11: 443 | AJ11: 210 | AK11: 65 | AL11: 36 | AM11: 66 | AN11: 47 | AO11: 207 | AP11: 93 | AQ11: 526 | AR11: 234 | AS11: 284 | AT11: 144 | AU11: 148 | AV11: 97 | AW11: 150 | AX11: 138 | AY11: 69 | AZ11: 47 | BA11: 125 | BB11: 67 | BC11: 124 | BD11: 53
B12: 20 to 24 minutes | C12: 399 | D12: 146 | E12: 94 | F12: 39 | G12: 416 | H12: 135 | I12: 623 | J12: 195 | K12: 61 | L12: 34 | M12: 191 | N12: 53 | O12: 184 | P12: 73 | Q12: 2142 | R12: 303 | S12: 76 | T12: 43 | U12: 422 | V12: 107 | W12: 340 | X12: 129 | Y12: 459 | Z12: 207 | AA12: 486 | AB12: 217 | AC12: 76 | AD12: 38 | AE12: 1600 | AF12: 278 | AG12: 403 | AH12: 196 | AI12: 209 | AJ12: 133 | AK12: 120 | AL12: 59 | AM12: 75 | AN12: 42 | AO12: 317 | AP12: 127 | AQ12: 636 | AR12: 232 | AS12: 127 | AT12: 63 | AU12: 40 | AV12: 21 | AW12: 124 | AX12: 68 | AY12: 167 | AZ12: 74 | BA12: 166 | BB12: 46 | BC12: 21 | BD12: 11
B13: 25 to 29 minutes | C13: 210 | D13: 148 | E13: 85 | F13: 63 | G13: 137 | H13: 86 | I13: 423 | J13: 141 | K13: 49 | L13: 42 | M13: 67 | N13: 33 | O13: 52 | P13: 30 | Q13: 1198 | R13: 258 | S13: 38 | T13: 23 | U13: 206 | V13: 78 | W13: 115 | X13: 59 | Y13: 404 | Z13: 274 | AA13: 136 | AB13: 97 | AC13: 62 | AD13: 52 | AE13: 450 | AF13: 157 | AG13: 261 | AH13: 174 | AI13: 248 | AJ13: 158 | AK13: 47 | AL13: 28 | AM13: 43 | AN13: 39 | AO13: 384 | AP13: 148 | AQ13: 167 | AR13: 96 | AS13: 138 | AT13: 82 | AU13: 56 | AV13: 31 | AW13: 11 | AX13: 16 | AY13: 136 | AZ13: 52 | BA13: 107 | BB13: 34 | BC13: 45 | BD13: 27
B14: 30 to 34 minutes | C14: 364 | D14: 100 | E14: 70 | F14: 56 | G14: 281 | H14: 157 | I14: 601 | J14: 161 | K14: 138 | L14: 46 | M14: 65 | N14: 36 | O14: 331 | P14: 81 | Q14: 2019 | R14: 362 | S14: 46 | T14: 32 | U14: 255 | V14: 94 | W14: 532 | X14: 228 | Y14: 696 | Z14: 162 | AA14: 386 | AB14: 175 | AC14: 53 | AD14: 42 | AE14: 803 | AF14: 229 | AG14: 541 | AH14: 215 | AI14: 352 | AJ14: 185 | AK14: 74 | AL14: 40 | AM14: 220 | AN14: 101 | AO14: 384 | AP14: 126 | AQ14: 312 | AR14: 149 | AS14: 154 | AT14: 77 | AU14: 85 | AV14: 29 | AW14: 206 | AX14: 96 | AY14: 194 | AZ14: 58 | BA14: 231 | BB14: 63 | BC14: 89 | BD14: 87
B15: 35 to 39 minutes | C15: 9 | D15: 13 | E15: 55 | F15: 28 | G15: 45 | H15: 35 | I15: 235 | J15: 104 | K15: 18 | L15: 18 | M15: 40 | N15: 38 | O15: 39 | P15: 33 | Q15: 531 | R15: 153 | S15: 42 | T15: 23 | U15: 71 | V15: 37 | W15: 86 | X15: 54 | Y15: 133 | Z15: 81 | AA15: 148 | AB15: 104 | AC15: 10 | AD15: 9 | AE15: 339 | AF15: 158 | AG15: 40 | AH15: 57 | AI15: 86 | AJ15: 87 | AK15: 43 | AL15: 27 | AM15: 85 | AN15: 65 | AO15: 64 | AP15: 50 | AQ15: 39 | AR15: 51 | AS15: 61 | AT15: 45 | AU15: 73 | AV15: 40 | AW15: 96 | AX15: 55 | AY15: 106 | AZ15: 50 | BA15: 54 | BB15: 25 | BC15: 59 | BD15: 28
B16: 40 to 44 minutes | C16: 86 | D16: 72 | E16: 56 | F16: 37 | G16: 75 | H16: 60 | I16: 68 | J16: 43 | K16: 49 | L16: 22 | M16: 78 | N16: 58 | O16: 40 | P16: 28 | Q16: 632 | R16: 155 | S16: 87 | T16: 40 | U16: 56 | V16: 36 | W16: 73 | X16: 49 | Y16: 274 | Z16: 139 | AA16: 42 | AB16: 41 | AC16: 22 | AD16: 12 | AE16: 164 | AF16: 92 | AG16: 62 | AH16: 69 | AI16: 117 | AJ16: 96 | AK16: 70 | AL16: 39 | AM16: 67 | AN16: 47 | AO16: 172 | AP16: 106 | AQ16: 234 | AR16: 145 | AS16: 155 | AT16: 87 | AU16: 28 | AV16: 15 | AW16: 72 | AX16: 37 | AY16: 107 | AZ16: 69 | BA16: 74 | BB16: 59 | BC16: 44 | BD16: 44
B17: 45 to 59 minutes | C17: 235 | D17: 96 | E17: 156 | F17: 90 | G17: 96 | H17: 67 | I17: 156 | J17: 76 | K17: 136 | L17: 55 | M17: 148 | N17: 63 | O17: 105 | P17: 44 | Q17: 1155 | R17: 242 | S17: 156 | T17: 48 | U17: 81 | V17: 38 | W17: 378 | X17: 114 | Y17: 425 | Z17: 159 | AA17: 137 | AB17: 88 | AC17: 76 | AD17: 45 | AE17: 378 | AF17: 130 | AG17: 155 | AH17: 102 | AI17: 341 | AJ17: 143 | AK17: 89 | AL17: 41 | AM17: 102 | AN17: 54 | AO17: 115 | AP17: 100 | AQ17: 360 | AR17: 129 | AS17: 286 | AT17: 124 | AU17: 35 | AV17: 22 | AW17: 211 | AX17: 113 | AY17: 144 | AZ17: 59 | BA17: 104 | BB17: 31 | BC17: 145 | BD17: 58
B18: 60 to 89 minutes | C18: 101 | D18: 56 | E18: 41 | F18: 23 | G18: 52 | H18: 39 | I18: 124 | J18: 70 | K18: 81 | L18: 48 | M18: 102 | N18: 56 | O18: 69 | P18: 34 | Q18: 880 | R18: 180 | S18: 69 | T18: 31 | U18: 114 | V18: 76 | W18: 141 | X18: 75 | Y18: 290 | Z18: 122 | AA18: 186 | AB18: 95 | AC18: 50 | AD18: 23 | AE18: 473 | AF18: 172 | AG18: 67 | AH18: 65 | AI18: 50 | AJ18: 49 | AK18: 72 | AL18: 34 | AM18: 97 | AN18: 52 | AO18: 93 | AP18: 64 | AQ18: 198 | AR18: 111 | AS18: 186 | AT18: 91 | AU18: 20 | AV18: 14 | AW18: 67 | AX18: 34 | AY18: 142 | AZ18: 70 | BA18: 57 | BB18: 36 | BC18: 50 | BD18: 23
B19: 90 or more minutes | C19: 22 | D19: 21 | E19: 108 | F19: 59 | G19: 146 | H19: 87 | I19: 72 | J19: 47 | K19: 20 | L19: 13 | M19: 20 | N19: 22 | O19: 56 | P19: 64 | Q19: 347 | R19: 143 | S19: 24 | T19: 21 | U19: 97 | V19: 53 | W19: 36 | X19: 33 | Y19: 125 | Z19: 94 | AA19: 39 | AB19: 38 | AC19: 23 | AD19: 15 | AE19: 167 | AF19: 124 | AG19: 0 | AH19: 17 | AI19: 148 | AJ19: 115 | AK19: 35 | AL19: 32 | AM19: 24 | AN19: 22 | AO19: 47 | AP19: 40 | AQ19: 142 | AR19: 94 | AS19: 35 | AT19: 31 | AU19: 39 | AV19: 32 | AW19: 17 | AX19: 12 | AY19: 28 | AZ19: 27 | BA19: 19 | BB19: 15 | BC19: 24 | BD19: 17

Sheet EmploymentAndWages (hidden)
B2: =CntyDataLink!A35 -> Allenstown
B4: EMPLOYMENT CHARACTERISTICS
B29: Annual Average Covered Private Employment
E30: Source: NH Department of Employment Security, Covered Private Employment by location of employment
C31: 2011 | D31: =C31+1 -> 2012 | E31: =D31+1 -> 2013 | F31: 2014 | G31: 2015 | H31: 2016 | I31: 2017 | J31: 2018 | K31: 2019 | L31: 2020 | M31: 2021 | N31: Total Change
B32: Goods Producing | C32: =IF((CntyDataLink!$CG$25)="n",NA(),IF(VALUE(CntyDataLink!$CG$25)="",NA(),VALUE(CntyDataLink!$CG$25))) -> 147 | D32: =IF((CntyDataLink!$CO$25)="n",NA(),IF(VALUE(CntyDataLink!$CO$25)="",NA(),VALUE(CntyDataLink!$CO$25))) -> 157 | E32: =IF((CntyDataLink!$CW$25)="n",NA(),IF(VALUE(CntyDataLink!$CW$25)="",NA(),VALUE(CntyDataLink!$CW$25))) -> 197 | F32: =IF((CntyDataLink!$DE$25)="n",NA(),IF(VALUE(CntyDataLink!$DE$25)="",NA(),VALUE(CntyDataLink!$DE$25))) -> 182 | G32: =IF((CntyDataLink!$DM$25)="n",NA(),IF(VALUE(CntyDataLink!$DM$25)="",NA(),VALUE(CntyDataLink!$DM$25))) -> 170 | H32: =IF((CntyDataLink!$DU$25)="n",NA(),IF(VALUE(CntyDataLink!$DU$25)="",NA(),VALUE(CntyDataLink!$DU$25))) -> 127 | I32: =IF((CntyDataLink!$EC$25)="n",NA(),IF(VALUE(CntyDataLink!$EC$25)="",NA(),VALUE(CntyDataLink!$EC$25))) -> 126 | J32: =IF((CntyDataLink!$EK$25)="n",NA(),IF(VALUE(CntyDataLink!$EK$25)="",NA(),VALUE(CntyDataLink!$EK$25))) -> 114 | K32: =IF((CntyDataLink!$ET$25)="n",NA(),IF(VALUE(CntyDataLink!$ET$25)="",NA(),VALUE(CntyDataLink!$ET$25))) -> 117 | L32: =IF((CntyDataLink!$FD$25)="n",NA(),IF(VALUE(CntyDataLink!$FD$25)="",NA(),VALUE(CntyDataLink!$FD$25))) -> 120 | M32: =IF((CntyDataLink!$FN$25)="n",NA(),IF(VALUE(CntyDataLink!$FN$25)="",NA(),VALUE(CntyDataLink!$FN$25))) -> 123 | N32: =$M32-C32 -> -24
B33: Service Providing | C33: =IF((CntyDataLink!$CH$25)="n",NA(),IF(VALUE(CntyDataLink!$CH$25)="",NA(),VALUE(CntyDataLink!$CH$25))) -> 341 | D33: =IF((CntyDataLink!$CP$25)="n",NA(),IF(VALUE(CntyDataLink!$CP$25)="",NA(),VALUE(CntyDataLink!$CP$25))) -> 372 | E33: =IF((CntyDataLink!$CX$25)="n",NA(),IF(VALUE(CntyDataLink!$CX$25)="",NA(),VALUE(CntyDataLink!$CX$25))) -> 379 | F33: =IF((CntyDataLink!$DF$25)="n",NA(),IF(VALUE(CntyDataLink!$DF$25)="",NA(),VALUE(CntyDataLink!$DF$25))) -> 373 | G33: =IF((CntyDataLink!$DN$25)="n",NA(),IF(VALUE(CntyDataLink!$DN$25)="",NA(),VALUE(CntyDataLink!$DN$25))) -> 310 | H33: =IF((CntyDataLink!$DV$25)="n",NA(),IF(VALUE(CntyDataLink!$DV$25)="",NA(),VALUE(CntyDataLink!$DV$25))) -> 320 | I33: =IF((CntyDataLink!$ED$25)="n",NA(),IF(VALUE(CntyDataLink!$ED$25)="",NA(),VALUE(CntyDataLink!$ED$25))) -> 264 | J33: =IF((CntyDataLink!$EL$25)="n",NA(),IF(VALUE(CntyDataLink!$EL$25)="",NA(),VALUE(CntyDataLink!$EL$25))) -> 256 | K33: =IF((CntyDataLink!$EU$25)="n",NA(),IF(VALUE(CntyDataLink!$EU$25)="",NA(),VALUE(CntyDataLink!$EU$25))) -> 277 | L33: =IF((CntyDataLink!$FE$25)="n",NA(),IF(VALUE(CntyDataLink!$FE$25)="",NA(),VALUE(CntyDataLink!$FE$25))) -> 271 | M33: =IF((CntyDataLink!$FO$25)="n",NA(),IF(VALUE(CntyDataLink!$FO$25)="",NA(),VALUE(CntyDataLink!$FO$25))) -> 337 | N33: =$M33-C33 -> -4
B34: Total Private Emp | C34: =IF((CntyDataLink!$CF$25)="n",NA(),IF(VALUE(CntyDataLink!$CF$25)="",NA(),VALUE(CntyDataLink!$CF$25))) -> 487 | D34: =IF((CntyDataLink!$CN$25)="n",NA(),IF(VALUE(CntyDataLink!$CN$25)="",NA(),VALUE(CntyDataLink!$CN$25))) -> 528 | E34: =IF((CntyDataLink!$CV$25)="n",NA(),IF(VALUE(CntyDataLink!$CV$25)="",NA(),VALUE(CntyDataLink!$CV$25))) -> 576 | F34: =IF((CntyDataLink!$DD$25)="n",NA(),IF(VALUE(CntyDataLink!$DD$25)="",NA(),VALUE(CntyDataLink!$DD$25))) -> 555 | G34: =IF((CntyDataLink!$DL$25)="n",NA(),IF(VALUE(CntyDataLink!$DL$25)="",NA(),VALUE(CntyDataLink!$DL$25))) -> 480 | H34: =IF((CntyDataLink!$DT$25)="n",NA(),IF(VALUE(CntyDataLink!$DT$25)="",NA(),VALUE(CntyDataLink!$DT$25))) -> 447 | I34: =IF((CntyDataLink!$EB$25)="n",NA(),IF(VALUE(CntyDataLink!$EB$25)="",NA(),VALUE(CntyDataLink!$EB$25))) -> 390 | J34: =IF((CntyDataLink!$EJ$25)="n",NA(),IF(VALUE(CntyDataLink!$EJ$25)="",NA(),VALUE(CntyDataLink!$EJ$25))) -> 370 | K34: =IF((CntyDataLink!$ER$25)="n",NA(),IF(VALUE(CntyDataLink!$ER$25)="",NA(),VALUE(CntyDataLink!$ER$25))) -> 394 | L34: =IF((CntyDataLink!$FB$25)="n",NA(),IF(VALUE(CntyDataLink!$FB$25)="",NA(),VALUE(CntyDataLink!$FB$25))) -> 391 | M34: =IF((CntyDataLink!$FL$25)="n",NA(),IF(VALUE(CntyDataLink!$FL$25)="",NA(),VALUE(CntyDataLink!$FL$25))) -> 460 | N34: =$M34-C34 -> -27
B36: % Change from prior Year | D36: 11-12 | E36: 12-13 | F36: 13-14 | G36: 14-15 | H36: 15-16 | I36: 16-17 | J36: 17-18 | K36: 18-19 | L36: 19-20 | M36: 20-21 | N36: Total % Change
B37: Goods Producing | D37: =(D32-C32)/C32 -> 0.06802721088 | E37: 0.2547770701 | F37: -0.07614213198 | G37: -0.06593406593 | H37: -0.2529411765 | I37: =(I32-H32)/H32 -> -0.007874015748 | J37: -0.09523809524 | K37: 0.02631578947 | L37: 0.02564102564 | M37: 0.025 | N37: =N32/C32 -> -0.1632653061
B38: Service Providing | D38: 0.09090909091 | E38: 0.0188172043 | F38: -0.01583113456 | G38: =(G33-F33)/F33 -> -0.1689008043 | H38: 0.03225806452 | I38: -0.175 | J38: -0.0303030303 | K38: 0.08203125 | L38: -0.02166064982 | M38: 0.2435424354 | N38: =N33/C33 -> -0.01173020528
B39: Total Private Emp | D39: 0.0841889117 | E39: 0.09090909091 | F39: -0.03645833333 | G39: -0.1351351351 | H39: -0.06875 | I39: -0.1275167785 | J39: -0.05128205128 | K39: 0.06486486486 | L39: -0.007614213198 | M39: 0.1764705882 | N39: =N34/C34 -> -0.05544147844
B42: EMPLOYMENT CHARACTERISTICS
B67: Covered Private Employment Average Wages | G67: Source: NH Department of Employment Security, Covered Private Employment
C69: 2011 | D69: =C69+1 -> 2012 | E69: =D69+1 -> 2013 | F69: =E69+1 -> 2014 | G69: 2015 | H69: 2016 | I69: 2017 | J69: 2018 | K69: 2019 | L69: 2020 | M69: 2021 | N69: Total $ Change
B70: Goods Producing | C70: =IF((CntyDataLink!$CK$25)="n",NA(),IF(VALUE(CntyDataLink!$CK$25)="",NA(),VALUE(CntyDataLink!$CK$25))) -> 628.24 | D70: =IF((CntyDataLink!$CS$25)="n",NA(),IF(VALUE(CntyDataLink!$CS$25)="",NA(),VALUE(CntyDataLink!$CS$25))) -> 653.44 | E70: =IF((CntyDataLink!$DA$25)="n",NA(),IF(VALUE(CntyDataLink!$DA$25)="",NA(),VALUE(CntyDataLink!$DA$25))) -> 655.93 | F70: =IF((CntyDataLink!$DI$25)="n",NA(),IF(VALUE(CntyDataLink!$DI$25)="",NA(),VALUE(CntyDataLink!$DI$25))) -> 730.28 | G70: =IF((CntyDataLink!$DQ$25)="n",NA(),IF(VALUE(CntyDataLink!$DQ$25)="",NA(),VALUE(CntyDataLink!$DQ$25))) -> 809.33 | H70: =IF((CntyDataLink!$DY$25)="n",NA(),IF(VALUE(CntyDataLink!$DY$25)="",NA(),VALUE(CntyDataLink!$DY$25))) -> 998.41 | I70: =IF((CntyDataLink!$EG$25)="n",NA(),IF(VALUE(CntyDataLink!$EG$25)="",NA(),VALUE(CntyDataLink!$EG$25))) -> 985.01 | J70: =IF((CntyDataLink!$EO$25)="n",NA(),IF(VALUE(CntyDataLink!$EO$25)="",NA(),VALUE(CntyDataLink!$EO$25))) -> 1084.36 | K70: =IF((CntyDataLink!$EY$25)="n",NA(),IF(VALUE(CntyDataLink!$EY$25)="",NA(),VALUE(CntyDataLink!$EY$25))) -> 1054.58 | L70: =IF((CntyDataLink!$FI$25)="n",NA(),IF(VALUE(CntyDataLink!$FI$25)="",NA(),VALUE(CntyDataLink!$FI$25))) -> 1133.03 | M70: =IF((CntyDataLink!$FI$25)="n",NA(),IF(VALUE(CntyDataLink!$FI$25)="",NA(),VALUE(CntyDataLink!$FI$25))) -> 1133.03 | N70: =M70-C70 -> 504.79
B71: Service Providing | C71: =IF((CntyDataLink!$CL$25)="n",NA(),IF(VALUE(CntyDataLink!$CL$25)="",NA(),VALUE(CntyDataLink!$CL$25))) -> 656.56 | D71: =IF((CntyDataLink!$CT$25)="n",NA(),IF(VALUE(CntyDataLink!$CT$25)="",NA(),VALUE(CntyDataLink!$CT$25))) -> 663.82 | E71: =IF((CntyDataLink!$DB$25)="n",NA(),IF(VALUE(CntyDataLink!$DB$25)="",NA(),VALUE(CntyDataLink!$DB$25))) -> 687.74 | F71: =IF((CntyDataLink!$DJ$25)="n",NA(),IF(VALUE(CntyDataLink!$DJ$25)="",NA(),VALUE(CntyDataLink!$DJ$25))) -> 679.41 | G71: =IF((CntyDataLink!$DR$25)="n",NA(),IF(VALUE(CntyDataLink!$DR$25)="",NA(),VALUE(CntyDataLink!$DR$25))) -> 651.65 | H71: =IF((CntyDataLink!$DZ$25)="n",NA(),IF(VALUE(CntyDataLink!$DZ$25)="",NA(),VALUE(CntyDataLink!$DZ$25))) -> 662.94 | I71: =IF((CntyDataLink!EE$25)="n",NA(),IF(VALUE(CntyDataLink!$EE$25)="",NA(),VALUE(CntyDataLink!$EE$25))) -> 787.98 | J71: =IF((CntyDataLink!EM$25)="n",NA(),IF(VALUE(CntyDataLink!$EM$25)="",NA(),VALUE(CntyDataLink!$EM$25))) -> 881.97 | K71: =IF((CntyDataLink!EX$25)="n",NA(),IF(VALUE(CntyDataLink!$EX$25)="",NA(),VALUE(CntyDataLink!$EZ$25))) -> 744.63 | L71: =IF((CntyDataLink!FI$25)="n",NA(),IF(VALUE(CntyDataLink!$FI$25)="",NA(),VALUE(CntyDataLink!$FI$25))) -> 1133.03 | M71: =IF((CntyDataLink!FJ$25)="n",NA(),IF(VALUE(CntyDataLink!$FJ$25)="",NA(),VALUE(CntyDataLink!$FJ$25))) -> 859.35 | N71: =M71-C71 -> 202.79
B72: Total Private Emp | C72: =IF((CntyDataLink!$CJ$25)="n",NA(),IF(VALUE(CntyDataLink!$CJ$25)="",NA(),VALUE(CntyDataLink!$CJ$25))) -> 648.05 | D72: =IF((CntyDataLink!$CR$25)="n",NA(),IF(VALUE(CntyDataLink!$CR$25)="",NA(),VALUE(CntyDataLink!$CR$25))) -> 660.75 | E72: =IF((CntyDataLink!$CZ$25)="n",NA(),IF(VALUE(CntyDataLink!$CZ$25)="",NA(),VALUE(CntyDataLink!$CZ$25))) -> 676.87 | F72: =IF((CntyDataLink!$DH$25)="n",NA(),IF(VALUE(CntyDataLink!$DH$25)="",NA(),VALUE(CntyDataLink!$DH$25))) -> 696.05 | G72: =IF((CntyDataLink!$DP$25)="n",NA(),IF(VALUE(CntyDataLink!$DP$25)="",NA(),VALUE(CntyDataLink!$DP$25))) -> 707.52 | H72: =IF((CntyDataLink!$DX$25)="n",NA(),IF(VALUE(CntyDataLink!$DX$25)="",NA(),VALUE(CntyDataLink!$DX$25))) -> 758.48 | I72: =IF((CntyDataLink!$EF$25)="n",NA(),IF(VALUE(CntyDataLink!$EF$25)="",NA(),VALUE(CntyDataLink!$EF$25))) -> 810.13 | J72: =IF((CntyDataLink!$EN$25)="n",NA(),IF(VALUE(CntyDataLink!$EN$25)="",NA(),VALUE(CntyDataLink!$EN$25))) -> 877.59 | K72: =IF((CntyDataLink!$EW$25)="n",NA(),IF(VALUE(CntyDataLink!$EW$25)="",NA(),VALUE(CntyDataLink!$EW$25))) -> 836.77 | L72: =IF((CntyDataLink!$FG$25)="n",NA(),IF(VALUE(CntyDataLink!$FG$25)="",NA(),VALUE(CntyDataLink!$FG$25))) -> 943.55 | M72: =IF((CntyDataLink!$FG$25)="n",NA(),IF(VALUE(CntyDataLink!$FG$25)="",NA(),VALUE(CntyDataLink!$FG$25))) -> 943.55 | N72: =M72-C72 -> 295.5
B74: % Change from prior Year | D74: =D36 -> 11-12 | E74: 12-13 | F74: 13-14 | G74: 14-15 | H74: 15-16 | I74: 16-17 | J74: 17-18 | K74: 18-19 | L74: 19-20 | M74: 20-21 | N74: Total % Change
B75: Goods Producing | D75: =(D70-C70)/C70 -> 0.04011205909 | E75: 0.003810602351 | F75: 0.11335051 | G75: 0.1082461522 | H75: 0.2336253444 | I75: -0.01342133993 | J75: 0.1008619202 | K75: -0.0274632041 | L75: 0.07438980447 | M75: 0 | N75: =N70/C70 -> 0.8034986629
B76: Service Providing | D76: 0.01105763373 | E76: 0.0360338646 | F76: -0.0121121354 | G76: -0.04085898059 | H76: 0.01732525129 | I76: 0.1886143542 | J76: 0.1192796771 | K76: -0.1557195823 | L76: 0.5216013322 | M76: -0.2415470023 | N76: =N71/C71 -> 0.3088674302
B77: Total Private Emp | D77: 0.0195972533 | E77: 0.02439651911 | F77: 0.02833631273 | G77: 0.01647870124 | H77: 0.07202623247 | I77: 0.06809671976 | J77: 0.0832705862 | K77: -0.04651374788 | L77: 0.1276097374 | M77: 0 | N77: =N72/C72 -> 0.4559833346
B80: LABOR FORCE AND UNEMPLOYMENT CHARACTERISTICS
B110: Annual Average Labor Force and Unemployment | G110: Source: NH Department of Employment Security, Local Area Unemployment Statistics
C111: 2011 | D111: =C111+1 -> 2012 | E111: =D111+1 -> 2013 | F111: 2014 | G111: 2015 | H111: 2016 | I111: 2017 | J111: 2018 | K111: 2019 | L111: 2020 | M111: 2021 | N111: Total Change
B112: Civilian Labor Force | C112: =CntyDataLink!$CH$30 ->  | D112: =CntyDataLink!$CL$30 ->  | E112: =CntyDataLink!$CP$30 ->  | F112: =CntyDataLink!$CT$30 ->  | G112: =CntyDataLink!$CX$30 ->  | H112: =CntyDataLink!$DB$30 ->  | I112: =CntyDataLink!$DF$30 ->  | J112: =CntyDataLink!$DJ$30 ->  | K112: =CntyDataLink!$DN$30 ->  | L112: =CntyDataLink!$DR$30 ->  | M112: =CntyDataLink!$DV$30 ->  | N112: =$M112-$C112 -> 
B113: Employed Labor Force | C113: =CntyDataLink!$CI$30 ->  | D113: =CntyDataLink!$CM$30 ->  | E113: =CntyDataLink!$CQ$30 ->  | F113: =CntyDataLink!$CU$30 ->  | G113: =CntyDataLink!$CY$30 ->  | H113: =CntyDataLink!$DC$30 ->  | I113: =CntyDataLink!$DG$30 ->  | J113: =CntyDataLink!$DK$30 ->  | K113: =CntyDataLink!$DO$30 ->  | L113: =CntyDataLink!$DS$30 ->  | M113: =CntyDataLink!$DW$30 ->  | N113: =$M113-C113 -> 
B114: Unemployed Labor Force | C114: =CntyDataLink!$CJ$30 ->  | D114: =CntyDataLink!$CN$30 ->  | E114: =CntyDataLink!$CR$30 ->  | F114: =CntyDataLink!$CV$30 ->  | G114: =CntyDataLink!$CZ$30 ->  | H114: =CntyDataLink!$DD$30 ->  | I114: =CntyDataLink!$DH$30 ->  | J114: =CntyDataLink!$DL$30 ->  | K114: =CntyDataLink!$DP$30 ->  | L114: =CntyDataLink!$DT$30 ->  | M114: =CntyDataLink!$DX$30 ->  | N114: =$M114-C114 -> 
B115: Unemployment Rate | C115: =CntyDataLink!$CK$30 ->  | D115: =CntyDataLink!$CO$30 ->  | E115: =CntyDataLink!$CS$30 ->  | F115: =CntyDataLink!$CW$30 ->  | G115: =CntyDataLink!$DA$30 ->  | H115: =CntyDataLink!$DE$30 ->  | I115: =CntyDataLink!$DI$30 ->  | J115: =CntyDataLink!$DM$30 ->  | K115: =CntyDataLink!$DQ$30 ->  | L115: =CntyDataLink!$DU$30 ->  | M115: =CntyDataLink!$DY$30 -> 

Sheet PopulationCharacteristics (hidden)
B2: =CntyDataLink!$A35 -> Allenstown
G3: Land Area: | I3: =((CntyDataLink!F35*10.764)/43560)/640 -> 20.52590482 | K3: Water Area: | L3: =((CntyDataLink!G35*10.764)/43560)/640 -> 0.1072569835
B4: POPULATION CHARACTERISTICS
B19: Population | C19: ="Source: US Census; Office of Planning and Development, NH BEA; "& L20&", "&P20&", and "&S20&" American Community Survey Table B01001" -> Source: US Census; Office of Planning and Development, NH BEA; 2008-2012, 2013-2017, and 2018-2022 American Community Survey Table B01001 | N19: Population by Age | P19: ="Source: "& L20&", "&P20&", and "&S20&" American Community Survey Tables B01001 and B01002" -> Source: 2008-2012, 2013-2017, and 2018-2022 American Community Survey Tables B01001 and B01002
L20: 2008-2012 | P20: 2013-2017 | S20: 2018-2022
C21: 1990 | D21: 2000 | E21: 2010 | F21: 2020 | G21: 2018-2022 | H21: 2025 | I21: 2030 | L21: Estimate | N21: Margin of Error | O21: Percent Change | P21: Estimate | Q21: Margin of Error | R21: Percent Change | S21: Estimate | T21: Margin of Error | V21: Percent Change | W21: Statistically Significant Change
C22: =CntyDataLink!$F$20 -> 4649 | D22: =CntyDataLink!$G$20 -> 4843 | E22: =CntyDataLink!$H$20 -> 4322 | F22: =CntyDataLink!$I$20 -> 4707 | G22: =CntyDataLink!$B$132 -> 4697 | H22: =CntyDataLink!$J$20 -> 4883 | I22: =CntyDataLink!$K$20 -> 5031 | K22: Under 15 yrs. | L22: =CntyDataLinkPrior10YearEstimate!$D$132 -> 741 | N22: =CntyDataLinkPrior10YearEstimate!$E$132 -> 208.8324687 | O22: =L22/SUM($L$22:$L$29) -> 0.1697983501 | P22: =CntyDataLinkPrior5YearEstimates!$D$132 -> 683 | Q22: =CntyDataLinkPrior5YearEstimates!$E$132 -> 150.9403856 | R22: =P22/SUM($P$22:$P$29) -> 0.1582850521 | S22: =CntyDataLink!$D$132 -> 775 | T22: =CntyDataLink!$E$132 -> 167.901757 | U22: =S22/SUM($S$22:$S$29) -> 0.1649989355 | V22: =(S22-P22)/P22 -> 0.1346998536 | W22: =StatisticallySignificantCalcs!$A3 -> Y
K23: 15 to 24 yrs. | L23: =CntyDataLinkPrior10YearEstimate!$F$132 -> 613 | N23: =CntyDataLinkPrior10YearEstimate!$G$132 -> 165.3511415 | O23: =L23/SUM($L$22:$L$29) -> 0.140467461 | P23: =CntyDataLinkPrior5YearEstimates!$F$132 -> 535 | Q23: =CntyDataLinkPrior5YearEstimates!$G$132 -> 147.651617 | R23: 0.123986095 | S23: =CntyDataLink!$F$132 -> 868 | T23: =CntyDataLink!$G$132 -> 256.0253894 | U23: 0.1847988077 | V23: 0.6224299065 | W23: =StatisticallySignificantCalcs!$A4 -> Y
B24: Percent Change | K24: 25 to 34 yrs. | L24: =CntyDataLinkPrior10YearEstimate!$H$132 -> 591 | N24: =CntyDataLinkPrior10YearEstimate!$I$132 -> 155.1322017 | O24: =L24/SUM($L$22:$L$29) -> 0.1354262145 | P24: =CntyDataLinkPrior5YearEstimates!$H$132 -> 495 | Q24: =CntyDataLinkPrior5YearEstimates!$I$132 -> 112.8981842 | R24: 0.1147161066 | S24: =CntyDataLink!$H$132 -> 550 | T24: =CntyDataLink!$I$132 -> 153.6782353 | U24: 0.1170960187 | V24: 0.1111111111 | W24: =StatisticallySignificantCalcs!$A5 -> Y
D25: =C21&"-2020" -> 1990-2020 | E25: =D21&"-2020" -> 2000-2020 | F25: =E21&"-2020" -> 2010-2020 | G25: =F21&"-2030" -> 2020-2030 | H25: =G21&"-"&H21 -> 2018-2022-2025 | I25: =H21&"-"&I21 -> 2025-2030 | K25: 35 to 44 yrs. | L25: =CntyDataLinkPrior10YearEstimate!$J$132 -> 730 | N25: =CntyDataLinkPrior10YearEstimate!$K$132 -> 184.5372591 | O25: 0.1672777269 | P25: =CntyDataLinkPrior5YearEstimates!$J$132 -> 563 | Q25: =CntyDataLinkPrior5YearEstimates!$K$132 -> 106.7286278 | R25: 0.1304750869 | S25: =CntyDataLink!$J$132 -> 615 | T25: =CntyDataLink!$K$132 -> 156.6716311 | U25: 0.1309346391 | V25: 0.09236234458 | W25: =StatisticallySignificantCalcs!$A6 -> Y
D26: =(D22-C22)/C22 -> 0.04172940417 | E26: -0.1075779476 | F26: 0.08907913003 | G26: -0.002124495432 | H26: 0.03959974452 | I26: 0.03030923613 | K26: 45 to 54 yrs. | L26: =CntyDataLinkPrior10YearEstimate!$L$132 -> 788 | N26: =CntyDataLinkPrior10YearEstimate!$M$132 -> 161.3257574 | O26: 0.180568286 | P26: =CntyDataLinkPrior5YearEstimates!$L$132 -> 760 | Q26: =CntyDataLinkPrior5YearEstimates!$M$132 -> 150.6087647 | R26: 0.1761297798 | S26: =CntyDataLink!$L$132 -> 599 | T26: =CntyDataLink!$M$132 -> 169.3339895 | U26: 0.1275282095 | V26: -0.2118421053 | W26: =StatisticallySignificantCalcs!$A7 -> Y
K27: 55 to 64 yrs. | L27: =CntyDataLinkPrior10YearEstimate!$N$132 -> 408 | N27: =CntyDataLinkPrior10YearEstimate!$O$132 -> 123.1259518 | O27: 0.09349220898 | P27: =CntyDataLinkPrior5YearEstimates!$N$132 -> 687 | Q27: =CntyDataLinkPrior5YearEstimates!$O$132 -> 146.3181465 | R27: 0.159212051 | S27: =CntyDataLink!$N$132 -> 715 | T27: =CntyDataLink!$O$132 -> 170.6399719 | U27: 0.1522248244 | V27: 0.04075691412 | W27: =StatisticallySignificantCalcs!$A8 -> Y
K28: 65 to 74 yrs. | L28: =CntyDataLinkPrior10YearEstimate!$P$132 -> 237 | N28: =CntyDataLinkPrior10YearEstimate!$Q$132 -> 76.40026178 | O28: 0.05430797434 | P28: =CntyDataLinkPrior5YearEstimates!$P$132 -> 331 | Q28: =CntyDataLinkPrior5YearEstimates!$Q$132 -> 91.54780172 | R28: 0.07670915411 | S28: =CntyDataLink!$P$132 -> 432 | T28: =CntyDataLink!$Q$132 -> 148.2936276 | U28: 0.09197360017 | V28: 0.3051359517 | W28: =StatisticallySignificantCalcs!$A9 -> Y
K29: Over 74 yrs. | L29: =CntyDataLinkPrior10YearEstimate!$R$132 -> 256 | N29: =CntyDataLinkPrior10YearEstimate!$S$132 -> 93.39700209 | O29: 0.05866177819 | P29: =CntyDataLinkPrior5YearEstimates!$R$132 -> 261 | Q29: =CntyDataLinkPrior5YearEstimates!$S$132 -> 93.42376571 | R29: 0.06048667439 | S29: =CntyDataLink!$R$132 -> 143 | T29: =CntyDataLink!$S$132 -> 72.02777242 | U29: 0.03044496487 | V29: -0.4521072797 | W29: =StatisticallySignificantCalcs!$A10 -> Y
K30: Median Age (years) | L30: =CntyDataLinkPrior10YearEstimate!$AX$132 -> 38.5 | N30: =CntyDataLinkPrior10YearEstimate!$AY$132 -> 2.3 | P30: =CntyDataLinkPrior5YearEstimates!$AX132 -> 43.8 | Q30: =CntyDataLinkPrior5YearEstimates!$AY$132 -> 2.2 | S30: =CntyDataLink!$AX$132 -> 37.2 | T30: =CntyDataLink!$AY$132 -> 4.1
B32: Population By Race | M32: Statistically Significant Change
M33: =IF(L36="","-",StatisticallySignificantCalcs!A20) -> N
C34: =L20 -> 2008-2012 | F34: =P20 -> 2013-2017 | I34: =S20 -> 2018-2022 | L34: Statistically Significant Change
C35: Estimate | D35: Margin of Error | F35: Estimate | G35: Margin of Error | I35: Estimate | J35: Margin of Error | L35: 2012-2022 | M35: 2017-2022
B36: White | C36: =CntyDataLinkPrior10YearEstimate!$AL$132 -> 4052 | D36: =CntyDataLinkPrior10YearEstimate!$AM$132 -> 179 | E36: =IF(C$36="-","-",VALUE(C36/$C$41)) -> 0.9285059578 | F36: =CntyDataLinkPrior5YearEstimates!$AL$132 -> 4093 | G36: =CntyDataLinkPrior5YearEstimates!$AM$132 -> 142 | H36: =IF(F$36="-","-",VALUE(F36/$F$41)) -> 0.9485515643 | I36: =CntyDataLink!$AL$132 -> 4093 | J36: =CntyDataLink!$AM$132 -> 142 | K36: =IF(I$36="-","-",VALUE(I36/$I$41)) -> 0.8714072812 | L36: =StatisticallySignificantCalcs!A20 -> N | M36: =StatisticallySignificantCalcs!J20 -> N
B37: Black | C37: =CntyDataLinkPrior10YearEstimate!$AN132 -> 12 | D37: =CntyDataLinkPrior10YearEstimate!$AO$132 -> 14 | E37: =IF(C$37="-","-",VALUE(C37/$C$41)) -> 0.002749770852 | F37: =CntyDataLinkPrior5YearEstimates!$AN132 -> 15 | G37: =CntyDataLinkPrior5YearEstimates!$AO$132 -> 18 | H37: =IF(F$37="-","-",VALUE(F37/$F$41)) -> 0.003476245655 | I37: =CntyDataLink!$AN$132 -> 15 | J37: =CntyDataLink!$AO$132 -> 18 | K37: =IF(I$37="-","-",VALUE(I37/$I$41)) -> 0.003193527784 | L37: =StatisticallySignificantCalcs!A21 -> N | M37: =StatisticallySignificantCalcs!J21 -> N
B38: American Indian | C38: =CntyDataLinkPrior10YearEstimate!$AP$132 -> 19 | D38: =CntyDataLinkPrior10YearEstimate!$AQ$132 -> 31 | E38: =IF(C$38="-","-",VALUE(C38/$C$41)) -> 0.00435380385 | F38: =CntyDataLinkPrior5YearEstimates!$AP$132 -> 0 | G38: =CntyDataLinkPrior5YearEstimates!$AQ$132 -> 11 | H38: =IF(F$38="-","-",VALUE(F38/$F$41)) -> 0 | I38: =CntyDataLink!$AP$132 -> 0 | J38: =CntyDataLink!$AQ$132 -> 11 | K38: =IF(I$38="-","-",VALUE(I38/$I$41)) -> 0 | L38: =StatisticallySignificantCalcs!A22 -> N | M38: =StatisticallySignificantCalcs!J22 -> N
B39: Asian &Pacific Is. | C39: =CntyDataLinkPrior10YearEstimate!$AR$132 -> 76 | D39: =CntyDataLinkPrior10YearEstimate!$AS$132 -> 118.1058847 | E39: =IF(C$39="-","-",VALUE(C39/$C$41)) -> 0.0174152154 | F39: =CntyDataLinkPrior5YearEstimates!$AR$132 -> 14 | G39: =CntyDataLinkPrior5YearEstimates!$AS$132 -> 24.59674775 | H39: =IF(F$39="-","-",VALUE(F39/$F$41)) -> 0.003244495944 | I39: =CntyDataLink!$AR$132 -> 14 | J39: =CntyDataLink!$AS$132 -> 24.59674775 | K39: =IF(I$39="-","-",VALUE(I39/$I$41)) -> 0.002980625931 | L39: =StatisticallySignificantCalcs!A23 -> N | M39: =StatisticallySignificantCalcs!J23 -> N
B40: Other* | C40: =CntyDataLinkPrior10YearEstimate!$AT$132 -> 40 | D40: =CntyDataLinkPrior10YearEstimate!$AU$132 -> 91.54780172 | E40: =IF(C$40="-","-",VALUE(C40/$C$41)) -> 0.009165902841 | F40: =CntyDataLinkPrior5YearEstimates!$AT$132 -> 50 | G40: =CntyDataLinkPrior5YearEstimates!$AU$132 -> 47.29693436 | H40: =IF(F$40="-","-",VALUE(F40/$F$41)) -> 0.01158748552 | I40: =CntyDataLink!$AT$132 -> 50 | J40: =CntyDataLink!$AU$132 -> 47.29693436 | K40: =IF(I$40="-","-",VALUE(I40/$I$41)) -> 0.01064509261 | L40: =StatisticallySignificantCalcs!A24 -> N | M40: =StatisticallySignificantCalcs!J24 -> N
B41: Total Population | C41: =CntyDataLinkPrior10YearEstimate!$B$132 -> 4364 | D41: =CntyDataLinkPrior10YearEstimate!$C$132 -> 28 | F41: =CntyDataLinkPrior5YearEstimates!$B$132 -> 4315 | G41: =CntyDataLinkPrior5YearEstimates!$C$132 -> 21 | I41: =CntyDataLink!$B$132 -> 4697 | J41: =CntyDataLink!$C$132 -> 20
B42: Hispanic | C42: =CntyDataLinkPrior10YearEstimate!$AV$132 -> 238 | D42: =CntyDataLinkPrior10YearEstimate!$AW$132 -> 149 | E42: =IF(C$42="-","-",VALUE(C42/$C$41)) -> 0.05453712191 | F42: =CntyDataLinkPrior5YearEstimates!$AV132 -> 192 | G42: =CntyDataLinkPrior5YearEstimates!$AW$132 -> 131 | H42: =IF(F$42="-","-",VALUE(F42/$F$41)) -> 0.04449594438 | I42: =CntyDataLink!$AV$132 -> 192 | J42: =CntyDataLink!$AW$132 -> 131 | K42: =IF(I$42="-","-",VALUE(I42/$I$41)) -> 0.04087715563 | L42: =StatisticallySignificantCalcs!A26 -> Y | M42: =StatisticallySignificantCalcs!J26 -> Y
B44: * | C44: Other includes population of 2 or more races
B46: ="Source: "& L20&", "&P20&", and "&S20&" American Community Survey Table B03002" -> Source: 2008-2012, 2013-2017, and 2018-2022 American Community Survey Table B03002
C48: Households and Families
D49: =C34 -> 2008-2012 | G49: =F34 -> 2013-2017 | J49: =I34 -> 2018-2022 | N49: Percent Change | P49: Percent Change
D50: Estimate | E50: Margin of Error | G50: Estimate | H50: Margin of Error | J50: Estimate | K50: Margin of Error | N50: =L35 -> 2012-2022 | P50: =M35 -> 2017-2022
C51: Total Households | D51: =CntyDataLinkPrior10YearEstimate!$T$132 -> 4324 | E51: =CntyDataLinkPrior10YearEstimate!$U$132 -> 44 | G51: =CntyDataLinkPrior5YearEstimates!$T$132 -> 1744 | H51: =CntyDataLinkPrior5YearEstimates!$U$132 -> 113 | J51: =CntyDataLink!$T$132 -> 1812 | K51: =CntyDataLink!$U$132 -> 193 | N51: =(J51-D51)/D51 -> -0.5809435708 | P51: =(J51-G51)/G51 -> 0.03899082569
C52: Persons per Household | D52: =CntyDataLinkPrior10YearEstimate!$BD$132 -> 2.49078341 | E52: =CntyDataLinkPrior10YearEstimate!$BE$132 -> 0.17 | G52: =CntyDataLinkPrior5YearEstimates!$BD$132 -> 2.46043578 | H52: =CntyDataLinkPrior5YearEstimates!$BE$132 -> 0.16 | J52: =CntyDataLink!$BD$132 -> 2.566225166 | K52: =CntyDataLink!$BE$132 -> 0.27 | N52: 0.03028836434 | P52: 0.04299619873
C53: Family Households | D53: =CntyDataLinkPrior10YearEstimate!$V$132 -> 3712 | E53: =CntyDataLinkPrior10YearEstimate!$U$132 -> 44 | G53: =CntyDataLinkPrior5YearEstimates!$V$132 -> 1121 | H53: =CntyDataLinkPrior5YearEstimates!$U$132 -> 113 | J53: =CntyDataLink!$V$132 -> 1077 | K53: =CntyDataLink!$U$132 -> 193 | N53: -0.7098599138 | P53: -0.03925066905
C54: Persons per Family Household | D54: =CntyDataLinkPrior10YearEstimate!$BF$132 -> 3.04511895 | E54: =CntyDataLinkPrior10YearEstimate!$BG$132 -> 0.278849591 | G54: =CntyDataLinkPrior5YearEstimates!$BF$132 -> 3.123104371 | H54: =CntyDataLinkPrior5YearEstimates!$BG$132 -> 0.474476873 | J54: =CntyDataLink!$BF$132 -> 3.48189415 | K54: =CntyDataLink!$BG$132 -> 0.474476873 | N54: 0.1434345284 | P54: 0.1148824172
C55: Married-Couple Family Hh | D55: =CntyDataLinkPrior10YearEstimate!$X$132 -> 2669 | E55: =CntyDataLinkPrior10YearEstimate!$Y$132 -> 353 | G55: =CntyDataLinkPrior5YearEstimates!$X$132 -> 850 | H55: =CntyDataLinkPrior5YearEstimates!$Y$132 -> 105 | J55: =CntyDataLink!$X$132 -> 775 | K55: =CntyDataLink!$Y$132 -> 132 | N55: -0.7096290746 | P55: -0.08823529412
C56: Single-Parent Family Hh | D56: =CntyDataLinkPrior10YearEstimate!$Z$132 -> 2669 | E56: =CntyDataLinkPrior10YearEstimate!$AA$132 -> 353 | G56: =CntyDataLinkPrior5YearEstimates!$Z$132 -> 271 | H56: =CntyDataLinkPrior5YearEstimates!$AA$132 -> 80 | J56: =CntyDataLink!$Z$132 -> 302 | K56: =CntyDataLink!$AA$132 -> 127 | N56: -0.8868490071 | P56: 0.1143911439
C57: Non-Family Households* | D57: =CntyDataLinkPrior10YearEstimate!$AF$132 -> 179 | E57: =CntyDataLinkPrior10YearEstimate!$AG$132 -> 123 | G57: =CntyDataLinkPrior5YearEstimates!$AF$132 -> 623 | H57: =CntyDataLinkPrior5YearEstimates!$AG$132 -> 136 | J57: =CntyDataLink!$AF$132 -> 735 | K57: =CntyDataLink!$AG$132 -> 209 | N57: 3.106145251 | P57: 0.1797752809
C58: Persons per Non-Family Hh | D58: =CntyDataLinkPrior10YearEstimate!$BH$132 -> 1.183752418 | E58: =CntyDataLinkPrior10YearEstimate!$BI$132 -> 0.4830845386 | G58: =CntyDataLinkPrior5YearEstimates!$BH$132 -> 1.268057785 | H58: =CntyDataLinkPrior5YearEstimates!$BI$132 -> 0.4858023334 | J58: =CntyDataLink!$BH$132 -> 1.224489796 | K58: =CntyDataLink!$BI$132 -> 0.4858023334 | N58: 0.03441376551 | P58: -0.03435804702
B61: As a result of changes in the American Community Survey, direct comparisons between the data should be made with caution.
B63: ="Source: "&L20&", "&P20&", and "&S20&" American Community Survey Table B11001" -> Source: 2008-2012, 2013-2017, and 2018-2022 American Community Survey Table B11001
B64: POPULATION CHARACTERISTICS

Sheet SchoolEnrolEduAttain (hidden)
C2: =CntyDataLink!A50 -> Allenstown
C3: SOCIAL CHARACTERISTICS
C21: School Enrollment | F21: 2008-2012 | I21: 2013-2017 | L21: 2018-2022 | P21: Statistically Significant Change
F22: Estimate | G22: Margin of Error | H22: Percent of Population | I22: Estimate | J22: Margin of Error | K22: Percent of Population | L22: Estimate | M22: Margin of Error | N22: Percent of Population | P22: 2012-2022 | Q22: 2017-2022
C23: Population 3 years and over | F23: =CntyDataLinkPrior10YearEstimate!$B$140 -> 4304 | G23: =CntyDataLinkPrior10YearEstimate!$C$140 -> 49 | I23: =CntyDataLinkPrior5YearEstimates!$B$140 -> 4209 | J23: =CntyDataLinkPrior5YearEstimates!$C$140 -> 54 | L23: =CntyDataLink!$B$140 -> 4535 | M23: =CntyDataLink!$C$140 -> 81 | P23: =StatisticallySignificantCalcs!$A$45 -> Y | Q23: =StatisticallySignificantCalcs!$J$45 -> Y
C24: Population 3 years & over enrolled in school | F24: =CntyDataLinkPrior10YearEstimate!$D$140 -> 912 | G24: =CntyDataLinkPrior10YearEstimate!$E$140 -> 152 | H24: =F24/$F$23 -> 0.2118959108 | I24: =CntyDataLinkPrior5YearEstimates!$D$140 -> 917 | J24: =CntyDataLinkPrior5YearEstimates!$E$140 -> 188 | K24: =I24/$I$23 -> 0.2178664766 | L24: =CntyDataLink!$D$140 -> 1052 | M24: =CntyDataLink!$E$140 -> 223 | N24: =L24/$L$23 -> 0.2319735391 | P24: =StatisticallySignificantCalcs!$A$46 -> N | Q24: =StatisticallySignificantCalcs!$J$46 -> N
C25: Preprimary (Nursery, Preschool, Kindergarten) | F25: =CntyDataLinkPrior10YearEstimate!$F$140 -> 62 | G25: =CntyDataLinkPrior10YearEstimate!$G$140 -> 43.41658669 | H25: 0.01440520446 | I25: =CntyDataLinkPrior5YearEstimates!$F$140 -> 84 | J25: =CntyDataLinkPrior5YearEstimates!$G$140 -> 62.17716623 | K25: =I25/$I$23 -> 0.0199572345 | L25: =CntyDataLink!$F$140 -> 158 | M25: =CntyDataLink!$G$140 -> 76.05918748 | N25: 0.0348401323 | P25: =StatisticallySignificantCalcs!$A$47 -> Y | Q25: =StatisticallySignificantCalcs!$J$47 -> N
C26: Nursery school and Preschool | F26: =CntyDataLinkPrior10YearEstimate!$H$140 -> 20 | G26: =CntyDataLinkPrior10YearEstimate!$I$140 -> 21 | H26: 0.004646840149 | I26: =CntyDataLinkPrior5YearEstimates!$H$140 -> 51 | J26: =CntyDataLinkPrior5YearEstimates!$I$140 -> 55 | K26: 0.01211689237 | L26: =CntyDataLink!$H$140 -> 35 | M26: =CntyDataLink!$I$140 -> 32 | N26: 0.007717750827 | P26: =StatisticallySignificantCalcs!$A$48 -> N | Q26: =StatisticallySignificantCalcs!$J$48 -> N
C27: Kindergarten | F27: =CntyDataLinkPrior10YearEstimate!$J$140 -> 42 | G27: =CntyDataLinkPrior10YearEstimate!$K$140 -> 38 | H27: 0.009758364312 | I27: =CntyDataLinkPrior5YearEstimates!$J$140 -> 33 | J27: =CntyDataLinkPrior5YearEstimates!$K$140 -> 29 | K27: 0.007840342124 | L27: =CntyDataLink!$J$140 -> 123 | M27: =CntyDataLink!$K$140 -> 69 | N27: 0.02712238148 | P27: =StatisticallySignificantCalcs!$A$49 -> Y | Q27: =StatisticallySignificantCalcs!$J$49 -> Y
C28: Elementary through High school | F28: =CntyDataLinkPrior10YearEstimate!$P$140 -> 662 | G28: =CntyDataLinkPrior10YearEstimate!$Q$140 -> 225.0710999 | H28: 0.1538104089 | I28: =CntyDataLinkPrior5YearEstimates!$P$140 -> 536 | J28: =CntyDataLinkPrior5YearEstimates!$Q$140 -> 125.6741819 | K28: 0.127346163 | L28: =CntyDataLink!$P$140 -> 772 | M28: =CntyDataLink!$Q$140 -> 186.2202996 | N28: 0.1702315325 | P28: =StatisticallySignificantCalcs!$A$50 -> N | Q28: =StatisticallySignificantCalcs!$J$50 -> Y
C29: Elementary school (grades 1-8) | F29: =CntyDataLinkPrior10YearEstimate!$L$140 -> 407 | G29: =CntyDataLinkPrior10YearEstimate!$M$140 -> 167.8004768 | H29: 0.09456319703 | I29: =CntyDataLinkPrior5YearEstimates!$L$140 -> 384 | J29: =CntyDataLinkPrior5YearEstimates!$M$140 -> 112.0044642 | K29: 0.09123307199 | L29: =CntyDataLink!$L$140 -> 372 | M29: =CntyDataLink!$M$140 -> 96.9381246 | N29: 0.08202866593 | P29: =StatisticallySignificantCalcs!$A$51 -> N | Q29: =StatisticallySignificantCalcs!$J$51 -> N
C30: High school (grades 9-12) | F30: =CntyDataLinkPrior10YearEstimate!$N$140 -> 255 | G30: =CntyDataLinkPrior10YearEstimate!$O$140 -> 150 | H30: 0.0592472119 | I30: =CntyDataLinkPrior5YearEstimates!$N$140 -> 152 | J30: =CntyDataLinkPrior5YearEstimates!$O$140 -> 57 | K30: 0.036113091 | L30: =CntyDataLink!$N$140 -> 400 | M30: =CntyDataLink!$O$140 -> 159 | N30: 0.08820286659 | P30: =StatisticallySignificantCalcs!$A$52 -> N | Q30: =StatisticallySignificantCalcs!$J$52 -> Y
C31: College or Graduate School | F31: =CntyDataLinkPrior10YearEstimate!$R$140 -> 188 | G31: =CntyDataLinkPrior10YearEstimate!$S$140 -> 87.658428 | H31: 0.0436802974 | I31: =CntyDataLinkPrior5YearEstimates!$R$140 -> 297 | J31: =CntyDataLinkPrior5YearEstimates!$S$140 -> 140.2462121 | K31: 0.07056307912 | L31: =CntyDataLink!$R$140 -> 122 | M31: =CntyDataLink!$S$140 -> 73.430239 | N31: 0.02690187431 | P31: =StatisticallySignificantCalcs!$A$53 -> N | Q31: =StatisticallySignificantCalcs!$J$53 -> Y
C33: ="Source: "&F21&", "& I21&" and "&L21&" American Community Survey Table B14001" -> Source: 2008-2012, 2013-2017 and 2018-2022 American Community Survey Table B14001
C50: Educational Attainment | F50: =F21 -> 2008-2012 | I50: =I21 -> 2013-2017 | L50: =L21 -> 2018-2022 | P50: Statistically Significant Change
F51: Estimate | G51: Margin of Error | H51: Percent of Population | I51: Estimate | J51: Margin of Error | K51: Percent of Population | L51: Estimate | M51: Margin of Error | N51: Percent of Population | P51: =P22 -> 2012-2022 | Q51: 2017-2022
C52: Population 25 years and over | F52: =CntyDataLinkPrior10YearEstimate!$V$140 -> 3010 | G52: =CntyDataLinkPrior10YearEstimate!$W$140 -> 158 | I52: =CntyDataLinkPrior5YearEstimates!$V$140 -> 3097 | J52: =CntyDataLinkPrior5YearEstimates!$W$140 -> 166 | L52: =CntyDataLink!$V$140 -> 3054 | M52: =CntyDataLink!$W$140 -> 293 | P52: =StatisticallySignificantCalcs!A54 -> N | Q52: =StatisticallySignificantCalcs!$J$54 -> N
C53: Less than 9th Grade | F53: =CntyDataLinkPrior10YearEstimate!$X$140 -> 90 | G53: =CntyDataLinkPrior10YearEstimate!$Y$140 -> 61.3514466 | H53: =F53/$F$52 -> 0.02990033223 | I53: =CntyDataLinkPrior5YearEstimates!$X$140 -> 43 | J53: =CntyDataLinkPrior5YearEstimates!$Y$140 -> 54.82700065 | K53: =I53/$I$52 -> 0.01388440426 | L53: =CntyDataLink!$X$140 -> 42 | M53: =CntyDataLink!$Y$140 -> 56.74504384 | N53: =L53/$L$52 -> 0.0137524558 | P53: =StatisticallySignificantCalcs!A55 -> N | Q53: =StatisticallySignificantCalcs!$J$55 -> N
C54: 9th to 12th Grade, no Diploma | F54: =CntyDataLinkPrior10YearEstimate!$Z$140 -> 263 | G54: =CntyDataLinkPrior10YearEstimate!$AA$140 -> 115.5032467 | H54: =F54/$F$52 -> 0.08737541528 | I54: =CntyDataLinkPrior5YearEstimates!$Z$140 -> 256 | J54: =CntyDataLinkPrior5YearEstimates!$AA$140 -> 89.82761268 | K54: 0.08266063933 | L54: =CntyDataLink!$Z$140 -> 317 | M54: =CntyDataLink!$AA$140 -> 139.9785698 | N54: 0.1037982973 | P54: =StatisticallySignificantCalcs!A56 -> N | Q54: =StatisticallySignificantCalcs!$J$56 -> N
C55: High School Graduate | F55: =CntyDataLinkPrior10YearEstimate!$AB$140 -> 1336 | G55: =CntyDataLinkPrior10YearEstimate!$AC$140 -> 206.5526567 | H55: 0.4438538206 | I55: =CntyDataLinkPrior5YearEstimates!$AB$140 -> 1405 | J55: =CntyDataLinkPrior5YearEstimates!$AC$140 -> 166.7123271 | K55: 0.4536648369 | L55: =CntyDataLink!$AB$140 -> 1032 | M55: =CntyDataLink!$AC$140 -> 235.5185768 | N55: 0.3379174853 | P55: =StatisticallySignificantCalcs!A57 -> Y | Q55: =StatisticallySignificantCalcs!$J$57 -> Y
C56: Some College, No Degree | F56: =CntyDataLinkPrior10YearEstimate!$AD$140 -> 646 | G56: =CntyDataLinkPrior10YearEstimate!$AE$140 -> 146.959178 | H56: 0.2146179402 | I56: =CntyDataLinkPrior5YearEstimates!$AD$140 -> 612 | J56: =CntyDataLinkPrior5YearEstimates!$AE$140 -> 150.1232827 | K56: 0.1976105909 | L56: =CntyDataLink!$AD$140 -> 523 | M56: =CntyDataLink!$AE$140 -> 145.9965753 | N56: 0.1712508186 | P56: =StatisticallySignificantCalcs!A58 -> N | Q56: =StatisticallySignificantCalcs!$J$58 -> N
C57: Associate Degree | F57: =CntyDataLinkPrior10YearEstimate!$AF$140 -> 289 | G57: =CntyDataLinkPrior10YearEstimate!$AG$140 -> 105.5888252 | H57: 0.09601328904 | I57: =CntyDataLinkPrior5YearEstimates!$AF$140 -> 332 | J57: =CntyDataLinkPrior5YearEstimates!$AG$140 -> 108.3005078 | K57: 0.1072005166 | L57: =CntyDataLink!$AF$140 -> 554 | M57: =CntyDataLink!$AG$140 -> 178.66449 | N57: 0.1814014407 | P57: =StatisticallySignificantCalcs!A59 -> Y | Q57: =StatisticallySignificantCalcs!$J$59 -> Y
C58: Bachelor's Degree | F58: =CntyDataLinkPrior10YearEstimate!$AH$140 -> 279 | G58: =CntyDataLinkPrior10YearEstimate!$AI$140 -> 129.8075499 | H58: 0.0926910299 | I58: =CntyDataLinkPrior5YearEstimates!$AH$140 -> 323 | J58: =CntyDataLinkPrior5YearEstimates!$AI$140 -> 84.95881355 | K58: 0.1042944785 | L58: =CntyDataLink!$AH$140 -> 408 | M58: =CntyDataLink!$AI$140 -> 125.2078272 | N58: 0.1335952849 | P58: =StatisticallySignificantCalcs!A60 -> N | Q58: =StatisticallySignificantCalcs!$J$60 -> N
C59: Graduate or Professional Degree | F59: =CntyDataLinkPrior10YearEstimate!$AJ$140 -> 37 | G59: =CntyDataLinkPrior10YearEstimate!$AK$140 -> 36.53765181 | H59: 0.0122923588 | I59: =CntyDataLinkPrior5YearEstimates!$AJ$140 -> 114 | J59: =CntyDataLinkPrior5YearEstimates!$AK$140 -> 56.35601121 | K59: 0.03680981595 | L59: =CntyDataLink!$AJ$140 -> 178 | M59: =CntyDataLink!$AK$140 -> 75.41883054 | N59: 0.05828421742 | P59: =StatisticallySignificantCalcs!A61 -> N | Q59: =StatisticallySignificantCalcs!$J$61 -> N
C61: Percent of High School Graduate or Higher | H61: =SUM(F55:F59)/F52 -> 0.8594684385 | K61: =SUM(I55:I59)/I52 -> 0.8995802389 | N61: =SUM(L55:L59)/L52 -> 0.8824492469
C62: Percent of Bachelor's Degree or Higher | H62: =SUM(F58:F59)/F52 -> 0.1049833887 | K62: =SUM(I58:I59)/I52 -> 0.1411042945 | N62: =SUM(L58:L59)/L52 -> 0.1918795023
C64: ="Source: "&F21&", "&I21&" and "&L21&" American Community Survey Table B15002" -> Source: 2008-2012, 2013-2017 and 2018-2022 American Community Survey Table B15002 | H64: Data from the American Community Survey are estimates
C66: As a result of changes in the American Community Survey, direct comparisons between the data should be made with caution.
C67: be made with caution.

Sheet HousingCharacteristics (hidden)
B2: =CntyDataLink!$A35 -> Allenstown
B4: HOUSING CHARACTERISTICS
D27: ="Source: "& " "&D69&", "&G69&" and "&J69& " American Community Survey Table B25004; B25024; B25032" -> Source: 2008-2012, 2013-2017 and 2018-2022 American Community Survey Table B25004; B25024; B25032
B28: Units by Tenure & Vacancy
C30: 2008-2012 | F30: 2013-2017 | I30: 2018-2022 | L30: Percent Change | O30: Statistically Significant Change
C31: Estimate | D31: Margin of Error | E31: % | F31: Estimate | G31: Margin of Error | H31: % | I31: Estimate | J31: Margin of Error | K31: % | L31: 2012-2022 | M31: 2017-2022 | O31: =L31 -> 2012-2022 | P31: 2017-2022
B32: Total Units | C32: =CntyDataLinkPrior10YearEstimate!$B$108 -> 1763 | D32: =CntyDataLinkPrior5YearEstimates!$C$108 -> 132 | F32: =CntyDataLinkPrior5YearEstimates!$B$108 -> 1769 | G32: =CntyDataLinkPrior5YearEstimates!$C$108 -> 132 | I32: =CntyDataLink!$B$108 -> 1881 | J32: =CntyDataLink!$C$108 -> 198 | L32: =IF(I32="-","-",(I32-C32)/C32) -> 0.06693136699 | M32: =IF(I32="-","-",(I32-F32)/F32) -> 0.06331260599 | O32: =StatisticallySignificantCalcs!$A62 -> N | P32: =StatisticallySignificantCalcs!$J62 -> N
B33: Occupied Units | C33: =CntyDataLinkPrior10YearEstimate!$D$108 -> 1693 | D33: =CntyDataLinkPrior5YearEstimates!$E$108 -> 118 | E33: =ROUND(C33/C32,2)*100&"% of Total" -> 96% of Total | F33: =CntyDataLinkPrior5YearEstimates!$D$108 -> 1690 | G33: =CntyDataLinkPrior5YearEstimates!$E$108 -> 118 | H33: =ROUND(F33/F32,2)*100&"% of Total" -> 96% of Total | I33: =CntyDataLink!$D$108 -> 1812 | J33: =CntyDataLink!$E$108 -> 193 | K33: =ROUND(I33/I32,2)*100&"% of Total" -> 96% of Total | L33: =IF(I33="-","-",(I33-C33)/C33) -> 0.07028942705 | M33: 0.07218934911 | O33: =StatisticallySignificantCalcs!$A63 -> N | P33: =StatisticallySignificantCalcs!$J63 -> N
B34: Owner Occupied | C34: =CntyDataLinkPrior10YearEstimate!$F$108 -> 1072 | D34: =CntyDataLinkPrior5YearEstimates!$G$108 -> 125 | E34: =ROUND(C34/C33,2)*100&"% of Occ." -> 63% of Occ. | F34: =CntyDataLinkPrior5YearEstimates!$F$108 -> 1223 | G34: =CntyDataLinkPrior5YearEstimates!$G$108 -> 125 | H34: =ROUND(F34/F33,2)*100&"% of Occ." -> 72% of Occ. | I34: =CntyDataLink!$F$108 -> 1439 | J34: =CntyDataLink!$G$108 -> 167 | K34: =ROUND(I34/I33,2)*100&"% of Occ." -> 79% of Occ. | L34: =IF(I34="-","-",(I34-C34)/C34) -> 0.3423507463 | M34: 0.1766148814 | O34: =StatisticallySignificantCalcs!$A64 -> Y | P34: =StatisticallySignificantCalcs!$J64 -> Y
B35: Renter Occupied | C35: =CntyDataLinkPrior10YearEstimate!$H$108 -> 621 | D35: =CntyDataLinkPrior5YearEstimates!$I$108 -> 107 | E35: =ROUND(C35/C33,2)*100&"% of Occ." -> 37% of Occ. | F35: =CntyDataLinkPrior5YearEstimates!$H$108 -> 467 | G35: =CntyDataLinkPrior5YearEstimates!$I$108 -> 107 | H35: =ROUND(F35/F33,2)*100&"% of Occ." -> 28% of Occ. | I35: =CntyDataLink!$H$108 -> 373 | J35: =CntyDataLink!$I$108 -> 153 | K35: =ROUND(I35/I33,2)*100&"% of Occ." -> 21% of Occ. | L35: =IF(I35="-","-",(I35-C35)/C35) -> -0.3993558776 | M35: -0.2012847966 | O35: =StatisticallySignificantCalcs!$A65 -> Y | P35: =StatisticallySignificantCalcs!$J65 -> N
B36: Vacant Units | C36: =CntyDataLinkPrior10YearEstimate!$J$108 -> 70 | D36: =CntyDataLinkPrior5YearEstimates!$K$108 -> 71 | E36: =ROUND(C36/C32,2)*100&"% of Total" -> 4% of Total | F36: =CntyDataLinkPrior5YearEstimates!$J$108 -> 79 | G36: =CntyDataLinkPrior5YearEstimates!$K$108 -> 71 | H36: =ROUND(F36/F32,2)*100&"% of Total" -> 4% of Total | I36: =CntyDataLink!$J$108 -> 69 | J36: =CntyDataLink!$K$108 -> 71 | K36: =ROUND(I36/I32,2)*100&"% of Total" -> 4% of Total | L36: =IF(I36="-",I36,VALUE((I36-C36)/C36)) -> -0.01428571429 | M36: -0.1265822785 | O36: =StatisticallySignificantCalcs!$A66 -> N | P36: =StatisticallySignificantCalcs!$J66 -> N
B37: Vacant For Sale | C37: =CntyDataLinkPrior10YearEstimate!$P$108 -> 36 | D37: =CntyDataLinkPrior5YearEstimates!$Q$108 -> 48 | E37: =ROUND(C37/(C$36),3)*100&"% Vac." -> 51.4% Vac. | F37: =CntyDataLinkPrior5YearEstimates!$P$108 -> 30 | G37: =CntyDataLinkPrior5YearEstimates!$Q$108 -> 48 | H37: =ROUND(F37/(F$36),3)*100&"% Vac." -> 38% Vac. | I37: =CntyDataLink!$P$108 -> 0 | J37: =CntyDataLink!$Q$108 -> 12 | K37: =ROUND(I37/(I$36),3)*100&"% Vac." -> 0% Vac. | L37: =IF(I37="-",I37,VALUE((I37-C37)/C37)) -> -1 | M37: -1 | O37: =StatisticallySignificantCalcs!$A67 -> N | P37: =StatisticallySignificantCalcs!$J67 -> N
B38: Vacant For Rent | C38: =CntyDataLinkPrior10YearEstimate!$L$108 -> 0 | D38: =CntyDataLinkPrior5YearEstimates!$M$108 -> 11 | E38: =ROUND(C38/(C$36),3)*100&"% Vac." -> 0% Vac. | F38: =CntyDataLinkPrior5YearEstimates!$L$108 -> 0 | G38: =CntyDataLinkPrior5YearEstimates!$M$108 -> 11 | H38: =ROUND(F38/(F$36),3)*100&"% Vac." -> 0% Vac. | I38: =CntyDataLink!$L$108 -> 0 | J38: =CntyDataLink!$M$108 -> 12 | K38: =ROUND(I38/(I$36),3)*100&"% Vac." -> 0% Vac. | L38: =IF(I38="-",I38,VALUE((I38-C38)/C38)) ->  | O38: =StatisticallySignificantCalcs!$A68 -> N | P38: =StatisticallySignificantCalcs!$J68 -> N
B39: Vacant Seasonal | C39: =CntyDataLinkPrior10YearEstimate!$T$108 -> 0 | D39: =CntyDataLinkPrior5YearEstimates!$U$108 -> 11 | E39: =ROUND(C39/(C$36),3)*100&"% Vac." -> 0% Vac. | F39: =CntyDataLinkPrior5YearEstimates!$T$108 -> 0 | G39: =CntyDataLinkPrior5YearEstimates!$U$108 -> 11 | H39: =ROUND(F39/(F$36),3)*100&"% Vac." -> 0% Vac. | I39: =CntyDataLink!$T$108 -> 0 | J39: =CntyDataLink!$U$108 -> 12 | K39: =ROUND(I39/(I$36),3)*100&"% Vac." -> 0% Vac. | L39: =IF(I39="-",I39,VALUE((I39-C39)/C39)) ->  | O39: =StatisticallySignificantCalcs!$A69 -> N | P39: =StatisticallySignificantCalcs!$J69 -> N
B41: Data from the American Community Survey are estimates
B44: HOUSING CHARACTERISTICS
D65: ="Source: "& " "&D69&", "&G69&" and "&J69& " American Community Survey Table B25024; B25032" -> Source: 2008-2012, 2013-2017 and 2018-2022 American Community Survey Table B25024; B25032
C67: Units by Type
D69: =C30 -> 2008-2012 | G69: =F30 -> 2013-2017 | J69: =I30 -> 2018-2022 | M69: Percent Change | O69: Statistically Significant Change
D70: Estimate | E70: Margin of Error | F70: % of Total | G70: Estimate | H70: Margin of Error | I70: % of Total | J70: Estimate | K70: Margin of Error | L70: % of Total | M70: =O31 -> 2012-2022 | N70: 2017-2022 | O70: =O31 -> 2012-2022 | P70: 2017-2022
C71: Total Units | D71: =CntyDataLinkPrior10YearEstimate!$B$108 -> 1763 | E71: =CntyDataLinkPrior10YearEstimate!$C$108 -> 147 | G71: =CntyDataLinkPrior5YearEstimates!$B$108 -> 1769 | H71: =CntyDataLinkPrior5YearEstimates!$C$108 -> 132 | J71: =CntyDataLink!$B$108 -> 1881 | K71: =CntyDataLink!$C$108 -> 198 | O71: =StatisticallySignificantCalcs!$A70 -> N | P71: =StatisticallySignificantCalcs!$J70 -> N
C72: Single Family Units | D72: =CntyDataLinkPrior10YearEstimate!$AT$108 -> 755 | E72: =CntyDataLinkPrior10YearEstimate!$AU$108 -> 157 | F72: =IF(D72="-","-",($D$72/$D$71)) -> 0.4282473057 | G72: =CntyDataLinkPrior5YearEstimates!$AT$108 -> 788 | H72: =CntyDataLinkPrior5YearEstimates!$AU$108 -> 117 | I72: =IF(G72="-","-",($G$72/$G$71)) -> 0.4454494064 | J72: =CntyDataLink!$AT$108 -> 1241 | K72: =CntyDataLink!$AU$108 -> 204.6191584 | L72: =IF(J72="-","-",($J$72/$J$71)) -> 0.6597554492 | M72: =IF(J72="-","-",($J72-$D72)/$D72) -> 0.6437086093 | N72: =IF(J72="-","-",($J72-$G72)/$G72) -> 0.5748730964 | O72: =StatisticallySignificantCalcs!$A71 -> Y | P72: =StatisticallySignificantCalcs!$J71 -> Y
C73: SF Owner Occ. | D73: =CntyDataLinkPrior10YearEstimate!$AF$108 -> 615 | E73: =CntyDataLinkPrior10YearEstimate!$AG$108 -> 142 | G73: =CntyDataLinkPrior5YearEstimates!$AF$108 -> 649 | H73: =CntyDataLinkPrior5YearEstimates!$AG$108 -> 98 | J73: =CntyDataLink!$AF$108 -> 672 | K73: =CntyDataLink!$AG$108 -> 127 | O73: =StatisticallySignificantCalcs!$A72 -> N | P73: =StatisticallySignificantCalcs!$J72 -> N
C74: SF Renter Occ. | D74: =CntyDataLinkPrior10YearEstimate!$AN$108 -> 104 | E74: =CntyDataLinkPrior10YearEstimate!$AO$108 -> 76 | G74: =CntyDataLinkPrior5YearEstimates!$AN$108 -> 90 | H74: =CntyDataLinkPrior5YearEstimates!$AO$108 -> 56 | J74: =CntyDataLink!$AN$108 -> 29 | K74: =CntyDataLink!$AO$108 -> 33 | O74: =StatisticallySignificantCalcs!$A73 -> N | P74: =StatisticallySignificantCalcs!$J73 -> N
C75: Multi-family Units | D75: =CntyDataLinkPrior10YearEstimate!$AV$108 -> 648 | E75: =CntyDataLinkPrior10YearEstimate!$AW$108 -> 192.9818644 | F75: =IF(D75="-","-",$D$75/$D$71) -> 0.3675553035 | G75: =CntyDataLinkPrior5YearEstimates!$AV$108 -> 490 | H75: =CntyDataLinkPrior5YearEstimates!$AW$108 -> 127.3224254 | I75: =IF(G75="-","-",$G$75/$G$71) -> 0.2769926512 | J75: =CntyDataLink!$AV$108 -> 640 | K75: =CntyDataLink!$AW$108 -> 160.449369 | L75: =IF(J75="-","-",$J$75/$J$71) -> 0.3402445508 | M75: =IF(J75="-","-",($J75-$D75)/$D75) -> -0.01234567901 | N75: =IF(J75="-","-",($J75-$G75)/$G75) -> 0.306122449 | O75: =StatisticallySignificantCalcs!$A74 -> N | P75: =StatisticallySignificantCalcs!$J74 -> N
C76: MF Owner Occ. | D76: =CntyDataLinkPrior10YearEstimate!$AH$108 -> 167 | E76: =CntyDataLinkPrior10YearEstimate!$AI$108 -> 163.2237728 | G76: =CntyDataLinkPrior5YearEstimates!$AH$108 -> 124 | H76: =CntyDataLinkPrior5YearEstimates!$AI$108 -> 60.09991681 | J76: =CntyDataLink!$AH$108 -> 166 | K76: =CntyDataLink!$AI$108 -> 84.10707461 | O76: =StatisticallySignificantCalcs!$A75 -> N | P76: =StatisticallySignificantCalcs!$J75 -> N
C77: MF Renter Occ. | D77: =CntyDataLinkPrior10YearEstimate!$AP$108 -> 447 | E77: =CntyDataLinkPrior10YearEstimate!$AQ$108 -> 186.2149296 | G77: =CntyDataLinkPrior5YearEstimates!$AP$108 -> 366 | H77: =CntyDataLinkPrior5YearEstimates!$AQ$108 -> 118.4694053 | J77: =CntyDataLink!$AP$108 -> 344 | K77: =CntyDataLink!$AQ$108 -> 141.3329403 | O77: =StatisticallySignificantCalcs!$A76 -> N | P77: =StatisticallySignificantCalcs!$J76 -> N
C78: Mobile Home & Other | D78: =CntyDataLinkPrior10YearEstimate!$AX$108 -> 360 | E78: =CntyDataLinkPrior10YearEstimate!$AY$108 -> 134.3167897 | F78: =IF(D78="-","-",($D$78/$D$71)) -> 0.2041973908 | G78: =CntyDataLinkPrior5YearEstimates!$AX$108 -> 491 | H78: =CntyDataLinkPrior5YearEstimates!$AY$108 -> 101.5972441 | I78: =IF(G78="-","-",($G$78/$G$71)) -> 0.2775579423 | J78: =CntyDataLink!$AX$108 -> 0 | K78: =CntyDataLink!$AY$108 -> 0 | L78: =IF(J78="-","-",($J$78/$J$71)) -> 0 | M78: =IF(J78="-","-",($J78-$D78)/$D78) -> -1 | N78: =IF(J78="-","-",($J78-$G78)/$G78) -> -1 | O78: =StatisticallySignificantCalcs!$A77 -> Y | P78: =StatisticallySignificantCalcs!$J77 -> Y
B80: Data from the American Community Survey are estimates
B83: Units by Number of Bedrooms
D84: ="Source: "& " "&D69&", "&G69&" and "&J69& " American Community Survey Table B25041" -> Source: 2008-2012, 2013-2017 and 2018-2022 American Community Survey Table B25041
C86: =D69 -> 2008-2012 | G86: =G69 -> 2013-2017 | K86: =J69 -> 2018-2022 | O86: Statistically Significant Change
B87: Bedrooms | C87: Estimate | D87: Margin of Error | E87: % of Total | G87: Estimate | H87: Margin of Error | I87: % of Total | K87: Estimate | L87: Margin of Error | M87: % of Total | O87: =O70 -> 2012-2022 | P87: =P70 -> 2017-2022
B88: No Bedrooms | C88: =CntyDataLinkPrior10YearEstimate!$BR$108 -> 147 | D88: =CntyDataLinkPrior10YearEstimate!$BS$108 -> 87 | E88: =C88/SUM($C$88:$C$92) -> 0.08338060125 | G88: =CntyDataLinkPrior5YearEstimates!$BR$108 -> 16 | H88: =CntyDataLinkPrior5YearEstimates!$BS$108 -> 15 | I88: =G88/SUM($G$88:$G$92) -> 0.009044657999 | K88: =CntyDataLink!$BT$108 -> 93 | L88: =CntyDataLink!$BU$108 -> 92 | M88: =K88/SUM($K$88:$K$92) -> 0.04944178628 | O88: =StatisticallySignificantCalcs!$A78 -> N | P88: =StatisticallySignificantCalcs!$J78 -> N
B89: 1 Bedroom | C89: =CntyDataLinkPrior10YearEstimate!$BT$108 -> 268 | D89: =CntyDataLinkPrior10YearEstimate!$BU$108 -> 105 | E89: =C89/SUM($C$88:$C$92) -> 0.1520136132 | G89: =CntyDataLinkPrior5YearEstimates!$BT$108 -> 279 | H89: =CntyDataLinkPrior5YearEstimates!$BU$108 -> 103 | I89: =G89/SUM($G$88:$G$92) -> 0.1577162239 | K89: =CntyDataLink!$BV$108 -> 197 | L89: =CntyDataLink!$BW$108 -> 108 | M89: =K89/SUM($K$88:$K$92) -> 0.1047315258 | O89: =StatisticallySignificantCalcs!$A79 -> N | P89: =StatisticallySignificantCalcs!$J79 -> N
B90: 2 Bedrooms | C90: =CntyDataLinkPrior10YearEstimate!$BV$108 -> 506 | D90: =CntyDataLinkPrior10YearEstimate!$BW$108 -> 139 | E90: =C90/SUM($C$88:$C$92) -> 0.2870107771 | G90: =CntyDataLinkPrior5YearEstimates!$BV$108 -> 571 | H90: =CntyDataLinkPrior5YearEstimates!$BW$108 -> 127 | I90: =G90/SUM($G$88:$G$92) -> 0.3227812323 | K90: =CntyDataLink!$BX$108 -> 618 | L90: =CntyDataLink!$BY$108 -> 147 | M90: =K90/SUM($K$88:$K$92) -> 0.3285486443 | O90: =StatisticallySignificantCalcs!$A80 -> Y | P90: =StatisticallySignificantCalcs!$J80 -> N
B91: 3 Bedrooms | C91: =CntyDataLinkPrior10YearEstimate!$BX$108 -> 659 | D91: =CntyDataLinkPrior10YearEstimate!$BY$108 -> 141 | E91: =C91/SUM($C$88:$C$92) -> 0.3737946682 | G91: =CntyDataLinkPrior5YearEstimates!$BX$108 -> 669 | H91: =CntyDataLinkPrior5YearEstimates!$BY$108 -> 120 | I91: =G91/SUM($G$88:$G$92) -> 0.3781797626 | K91: =CntyDataLink!$BZ$108 -> 834 | L91: =CntyDataLink!$CA$108 -> 149 | M91: =K91/SUM($K$88:$K$92) -> 0.4433811802 | O91: =StatisticallySignificantCalcs!$A81 -> Y | P91: =StatisticallySignificantCalcs!$J81 -> N
B92: 4+ Bedrooms | C92: =CntyDataLinkPrior10YearEstimate!$BZ$108 -> 183 | D92: =CntyDataLinkPrior10YearEstimate!$CA$108 -> 92.47702417 | E92: =C92/SUM($C$88:$C$92) -> 0.1038003403 | G92: =CntyDataLinkPrior5YearEstimates!$BZ$108 -> 234 | H92: =CntyDataLinkPrior5YearEstimates!$CA$108 -> 80.77747211 | I92: =G92/SUM($G$88:$G$92) -> 0.1322781232 | K92: =CntyDataLink!$CB$108 -> 139 | L92: =CntyDataLink!$CC$108 -> 72.1734023 | M92: =K92/SUM($K$88:$K$92) -> 0.07389686337 | O92: =StatisticallySignificantCalcs!$A82 -> N | P92: =StatisticallySignificantCalcs!$J82 -> N
B95: Data from the American Community Survey are estimates
B97: Units by Year Built
B98: ="Source: "&K86& " American Community Survey Table B25034" -> Source: 2018-2022 American Community Survey Table B25034
D100: Year Built | G100: Units | I100: % of Total | K100: Margin of Error
F101: 2020 or later | G101: =CntyDataLink!$AZ$108 -> 0 | I101: =G101/SUM($G$101:$G$110) -> 0 | K101: =CntyDataLink!$BA$108 -> 12
F102: 2010 through 2019 | G102: =CntyDataLink!$BB$108 -> 148 | I102: 0.07868155237 | K102: =CntyDataLink!$BC$108 -> 76
F103: 2000 through 2009 | G103: =CntyDataLink!$BD$108 -> 251 | I103: 0.1334396598 | K103: =CntyDataLink!$BE$108 -> 105
F104: 1990 through 1999 | G104: =CntyDataLink!$BF$108 -> 181 | I104: 0.09622541201 | K104: =CntyDataLink!$BG$108 -> 94
F105: 1980 through 1989 | G105: =CntyDataLink!$BH$108 -> 276 | I105: 0.1467304625 | K105: =CntyDataLink!$BI$108 -> 139
F106: 1970 through 1979 | G106: =CntyDataLink!$BJ$108 -> 351 | I106: 0.1866028708 | K106: =CntyDataLink!$BK$108 -> 117
F107: 1960 through 1969 | G107: =CntyDataLink!$BL$108 -> 136 | I107: 0.07230196704 | K107: =CntyDataLink!$BM$108 -> 64
F108: 1950 through 1959 | G108: =CntyDataLink!$BN$108 -> 94 | I108: 0.04997341839 | K108: =CntyDataLink!$BO$108 -> 54
F109: 1940 through 1949 | G109: =CntyDataLink!$BP$108 -> 76 | I109: 0.0404040404 | K109: =CntyDataLink!$BQ$108 -> 66
F110: 1939 and earlier | G110: =CntyDataLink!$BR$108 -> 368 | I110: 0.1956406167 | K110: =CntyDataLink!$BS$108 -> 155
B112: Data from the American Community Survey are estimates

Sheet CntyDataLink (hidden)
A1: 1 | B1: =A1+1 -> 2 | C1: =B1+1 -> 3 | D1: 4 | E1: 5 | F1: 6 | G1: 7 | H1: 8 | I1: 9 | J1: 10 | K1: 11 | L1: 12 | M1: 13 | N1: 14 | O1: 15 | P1: =O1+1 -> 16 | Q1: 17 | R1: 18 | S1: 19 | T1: 20 | U1: 21 | V1: 22 | W1: 23 | X1: 24 | Y1: 25 | Z1: 26 | AA1: 27 | AB1: 28 | AC1: 29 | AD1: 30 | AE1: 31 | AF1: 32 | AG1: 33 | AH1: 34 | AI1: 35 | AJ1: 36 | AK1: 37 | AL1: 38 | AM1: 39 | AN1: 40 | AO1: 41 | AP1: 42 | AQ1: 43 | AR1: 44 | AS1: 45 | AT1: 46 | AU1: 47 | AV1: 48 | AW1: 49 | AX1: 50 | AY1: 51 | AZ1: 52 | BA1: 53 | BB1: 54 | BC1: 55 | BD1: 56 | BE1: 57 | BF1: 58 | BG1: 59 | BH1: 60 | BI1: 61 | BJ1: 62 | BK1: 63 | BL1: 64 | BM1: 65 | BN1: 66 | BO1: =BN1+1 -> 67 | BP1: 68 | BQ1: 69 | BR1: 70 | BS1: 71 | BT1: 72 | BU1: 73 | BV1: 74 | BW1: 75 | BX1: 76 | BY1: 77 | BZ1: 78 | CA1: 79 | CB1: 80 | CC1: 81 | CD1: 82 | CE1: 83 | CF1: 84 | CG1: 85 | CH1: 86 | CI1: 87 | CJ1: 88 | CK1: 89 | CL1: 90 | CM1: 91 | CN1: 92 | CO1: 93 | CP1: 94 | CQ1: 95 | CR1: 96 | CS1: 97 | CT1: 98 | CU1: 99 | CV1: 100 | CW1: 101 | CX1: 102 | CY1: 103 | CZ1: 104 | DA1: 105 | DB1: 106 | DC1: 107 | DD1: 108 | DE1: 109 | DF1: 110 | DG1: 111 | DH1: 112 | DI1: 113 | DJ1: 114 | DK1: 115 | DL1: 116 | DM1: 117 | DN1: 118 | DO1: 119 | DP1: 120 | DQ1: 121 | DR1: 122 | DS1: 123 | DT1: 124 | DU1: 125 | DV1: 126 | DW1: 127 | DX1: 128 | DY1: 129 | DZ1: 130 | EA1: =DZ1+1 -> 131 | EB1: 132 | EC1: 133 | ED1: 134 | EE1: 135 | EF1: 136 | EG1: 137 | EH1: 138 | EI1: 139 | EJ1: 140 | EK1: 141 | EL1: 142 | EM1: 143 | EN1: 144 | EO1: 145 | EP1: 146 | EQ1: 147 | ER1: 148 | ES1: 149 | ET1: 150 | EU1: 151 | EV1: 152 | EW1: 153 | EX1: 154 | EY1: 155 | EZ1: 156 | FA1: 157 | FB1: 158 | FC1: 159 | FD1: 160 | FE1: 161 | FF1: 162 | FG1: 163 | FH1: 164 | FI1: 165 | FJ1: 166 | FK1: 167 | FL1: 168 | FM1: 169 | FN1: 170 | FO1: 171 | FP1: 172 | FQ1: 173 | FR1: 174 | FS1: 175 | FT1: 176 | FU1: 177 | FV1: 178 | FW1: 179 | FX1: 180 | FY1: 181 | FZ1: 182 | GA1: 183 | GB1: 184 | GC1: 185 | GD1: 186 | GE1: 187 | GF1: 188 | GG1: 189 | GH1: 190 | GI1: 191 | GJ1: 192 | GK1: 193 | GL1: 194 | GM1: =GL1+1 -> 195 | GN1: 196 | GO1: 197 | GP1: 198 | GQ1: 199 | GR1: 200 | GS1: 201 | GT1: 202 | GU1: 203 | GV1: 204 | GW1: 205 | GX1: 206 | GY1: 207 | GZ1: 208 | HA1: 209 | HB1: 210 | HC1: 211 | HD1: 212 | HE1: 213 | HF1: 214 | HG1: 215 | HH1: 216 | HI1: 217 | HJ1: 218 | HK1: 219 | HL1: 220 | HM1: 221 | HN1: 222 | HO1: 223 | HP1: 224 | HQ1: 225 | HR1: 226 | HS1: 227 | HT1: 228 | HU1: 229 | HV1: 230 | HW1: 231 | HX1: 232 | HY1: 233 | HZ1: 234 | IA1: 235 | IB1: 236 | IC1: 237 | ID1: 238 | IE1: 239 | IF1: 240 | IG1: 241 | IH1: 242 | II1: 243 | IJ1: 244 | IK1: 245 | IL1: 246 | IM1: 247 | IN1: 248 | IO1: 249 | IP1: 250 | IQ1: 251 | IR1: 252 | IS1: 253 | IT1: 254 | IU1: 255
A3: Census 1990 Data - Query Name: DPCnty90Census
A4: TownName | B4: Cnty_Code | C4: Census_Cnty_Code | D4: LandAcres | E4: WaterAcres | F4: HousingUnits90Cen | G4: Persons90Cen | H4: Families90Cen | I4: Households90cen | J4: MalePop90cen | K4: FemalePop90cen | L4: WhitePop | M4: BlackPop | N4: AmerIndianPop | O4: AsianPIPop | P4: OtherRacePop | Q4: HispanicOrPop | R4: AgeUnder15_90cen | S4: Age15to24_90cen | T4: Age25to34_90cen | U4: Age35to44_90cen | V4: Age45to54_90cen | W4: Age55to64_90cen | X4: Age65to74_90cen | Y4: Age75andOver_90cen | Z4: PersonsInHH90cen | AA4: PersonsInFamHH90cen | AB4: PersonsInGC | AC4: PersonsPerHH90cen | AD4: PersonsPerFam90Cen | AE4: SinglePersonHH90cen | AF4: MarriedCoupleHH90cen | AG4: SingleParentHH90cen | AH4: NonFamilyHH90cen | AI4: TotalHousingUnits | AJ4: OccupiedHousingUnits | AK4: VacantHousingUnits | AL4: OwnerOccHU | AM4: RenterOccHU | AN4: VacantForRent90 | AO4: VacantForSale90 | AP4: VacantSeasonalRec | AQ4: SingFamHU90cen | AR4: MultiFamHU90cen | AS4: MobileHom90cen | AT4: SingFamOwnHU90cen | AU4: MultiFamOwnHU90cen | AV4: MobileHomOwnHU90cen | AW4: SingFamRntrHU90cen | AX4: MultiFamRntrHU90cen | AY4: MobileHomRntrHU90cen | AZ4: HU<5yrs90cen | BA4: HU5to20yrs90cen | BB4: HU20to50yrs90cen | BC4: HU>50yrs90cen | BD4: Units0Bedroom90cen | BE4: Units1Bedroom90cen | BF4: Units2Bedroom90cen | BG4: Units3Bedroom90cen | BH4: Units4+Bedroom90cen | BI4: HI<5K | BJ4: HI5Kto10K | BK4: HI10Kto15K | BL4: HI15Kto25K | BM4: HI25Kto35K | BN4: HI35Kto50K | BO4: HI50Kto75K | BP4: HI75Kto100K | BQ4: HI>100K | BR4: MedHI | BS4: HH<25HI<5K | BT4: HH<25HI5Kto10K | BU4: HH<25HI10Kto15K | BV4: HH<25HI15Kto25K | BW4: HH<25HI25Kto35K | BX4: HH<25HI35Kto50K | BY4: HH<25HI50Kto75K | BZ4: HH<25HI75Kto100K | CA4: HH<25HI>100K | CB4: HH25to34HI<5K | CC4: HH25to34HI5Kto10K | CD4: HH25to34HI10Kto15K | CE4: HH25to34HI15Kto25K | CF4: HH25to34HI25Kto35K | CG4: HH25to34HI35Kto50K | CH4: HH25to34HI50Kto75K | CI4: HH25to34HI75Kto100K | CJ4: HH25to34HI>100K | CK4: HH35to44HI<5K | CL4: HH35to44HI5Kto10K | CM4: HH35to44HI10Kto15K | CN4: HH35to44HI15Kto25K | CO4: HH35to44HI25Kto35K | CP4: HH35to44HI35Kto50K | CQ4: HH35to44HI50Kto75K | CR4: HH35to44HI75Kto100K | CS4: HH35to44HI>100K | CT4: HH45to54HI<5K | CU4: HH45to54HI5Kto10K | CV4: HH45to54HI10Kto15K | CW4: HH45to54HI15Kto25K | CX4: HH45to54HI25Kto35K | CY4: HH45to54HI35Kto50K | CZ4: HH45to54HI50Kto75K | DA4: HH45to54HI75Kto100K | DB4: HH45to54HI>100K | DC4: HH55to64HI<5K | DD4: HH55to64HI5Kto10K | DE4: HH55to64HI10Kto15K | DF4: HH55to64HI15Kto25K | DG4: HH55to64HI25Kto35K | DH4: HH55to64HI35Kto50K | DI4: HH55to64HI50Kto75K | DJ4: HH55to64HI75Kto100K | DK4: HH55to64HI>100K | DL4: HH65to74HI<5K | DM4: HH65to74HI5Kto10K | DN4: HH65to74HI10Kto15K | DO4: HH65to74HI15Kto25K | DP4: HH65to74HI25Kto35K | DQ4: HH65to74HI35Kto50K | DR4: HH65to74HI50Kto75K | DS4: HH65to74HI75Kto100K | DT4: HH65to74HI>100K | DU4: HH>75HI<5K | DV4: HH>75HI5Kto10K | DW4: HH>75HI10Kto15K | DX4: HH>75HI15Kto25K | DY4: HH>75HI25Kto35K | DZ4: HH>75HI35Kto50K | EA4: HH>75HI50Kto75K | EB4: HH>75HI75Kto100K | EC4: HH>75HI>100K | ED4: SchoolEnrollment1thru12 | EE4: Pop25andOver | EF4: HSGradorHigher | EG4: CollGradorHigher | EH4: NativePop | EI4: ForeignBornPop | EJ4: BornStateOfRes | EK4: NativePop2 | EL4: ForeignBornPop2 | EM4: DroveAlone | EN4: CarPooled | EO4: PublicTranspt | EP4: Walked | EQ4: OtherMeans | ER4: WorkedAtHome | ES4: HHInc<10K | ET4: HHInc10to15K | EU4: HHInc15to25K | EV4: HHInc25to35K | EW4: HHInc35to50K | EX4: HHInc50to75K | EY4: HHInc75to100K | EZ4: HHInc100to150K | FA4: HHInc>150K
A5: =VLOOKUP(DropDownList!$A$47,CntyQuery!$A$4:$FI$46,A1) -> Allenstown | B5: =VLOOKUP(DropDownList!$A$47,CntyQuery!$A$4:$FA$46,B1) -> 13005 | C5: =VLOOKUP(DropDownList!$A$47,CntyQuery!$A$4:$FA$46,C1) -> 00660 | D5: =VLOOKUP(DropDownList!$A$47,CntyQuery!$A$4:$FA$46,D1) -> 13097.95 | E5: =VLOOKUP(DropDownList!$A$47,CntyQuery!$A$4:$FA$46,E1) -> 69.48 | F5: =VLOOKUP(DropDownList!$A$47,CntyQuery!$A$4:$FA$46,F1) -> 1868 | G5: =VLOOKUP(DropDownList!$A$47,CntyQuery!$A$4:$FA$46,G1) -> 4649 | H5: =VLOOKUP(DropDownList!$A$47,CntyQuery!$A$4:$FA$46,H1) -> 1253 | I5: =VLOOKUP(DropDownList!$A$47,CntyQuery!$A$4:$FA$46,I1) -> 1762 | J5: =VLOOKUP(DropDownList!$A$47,CntyQuery!$A$4:$FA$46,J1) -> 2301 | K5: =VLOOKUP(DropDownList!$A$47,CntyQuery!$A$4:$FA$46,K1) -> 2348 | L5: =VLOOKUP(DropDownList!$A$47,CntyQuery!$A$4:$FA$46,L1) -> 4587 | M5: =VLOOKUP(DropDownList!$A$47,CntyQuery!$A$4:$FA$46,M1) -> 24 | N5: =VLOOKUP(DropDownList!$A$47,CntyQuery!$A$4:$FA$46,N1) -> 9 | O5: =VLOOKUP(DropDownList!$A$47,CntyQuery!$A$4:$FA$46,O1) -> 24 | P5: =VLOOKUP(DropDownList!$A$47,CntyQuery!$A$4:$FA$46,P1) -> 5 | Q5: =VLOOKUP(DropDownList!$A$47,CntyQuery!$A$4:$FA$46,Q1) -> 25 | R5: =VLOOKUP(DropDownList!$A$47,CntyQuery!$A$4:$FA$46,R1) -> 1104 | S5: =VLOOKUP(DropDownList!$A$47,CntyQuery!$A$4:$FA$46,S1) -> 557 | T5: =VLOOKUP(DropDownList!$A$47,CntyQuery!$A$4:$FA$46,T1) -> 1093 | U5: =VLOOKUP(DropDownList!$A$47,CntyQuery!$A$4:$FA$46,U1) -> 692 | V5: =VLOOKUP(DropDownList!$A$47,CntyQuery!$A$4:$FA$46,V1) -> 426 | W5: =VLOOKUP(DropDownList!$A$47,CntyQuery!$A$4:$FA$46,W1) -> 360 | X5: =VLOOKUP(DropDownList!$A$47,CntyQuery!$A$4:$FA$46,X1) -> 238 | Y5: =VLOOKUP(DropDownList!$A$47,CntyQuery!$A$4:$FA$46,Y1) -> 179 | Z5: =VLOOKUP(DropDownList!$A$47,CntyQuery!$A$4:$FA$46,Z1) -> 4649 | AA5: =VLOOKUP(DropDownList!$A$47,CntyQuery!$A$4:$FA$46,AA1) -> 3987 | AB5: =VLOOKUP(DropDownList!$A$47,CntyQuery!$A$4:$FA$46,AB1) -> 0 | AC5: =VLOOKUP(DropDownList!$A$47,CntyQuery!$A$4:$FA$46,AC1) -> 2.638479001 | AD5: =VLOOKUP(DropDownList!$A$47,CntyQuery!$A$4:$FA$46,AD1) -> 3.181963288 | AE5: =VLOOKUP(DropDownList!$A$47,CntyQuery!$A$4:$FA$46,AE1) -> 399 | AF5: =VLOOKUP(DropDownList!$A$47,CntyQuery!$A$4:$FA$46,AF1) -> 1035 | AG5: =VLOOKUP(DropDownList!$A$47,CntyQuery!$A$4:$FA$46,AG1) -> 218 | AH5: =VLOOKUP(DropDownList!$A$47,CntyQuery!$A$4:$FA$46,AH1) -> 110 | AI5: =VLOOKUP(DropDownList!$A$47,CntyQuery!$A$4:$FA$46,AI1) -> 1868 | AJ5: =VLOOKUP(DropDownList!$A$47,CntyQuery!$A$4:$FA$46,AJ1) -> 1762 | AK5: =VLOOKUP(DropDownList!$A$47,CntyQuery!$A$4:$FA$46,AK1) -> 106 | AL5: =VLOOKUP(DropDownList!$A$47,CntyQuery!$A$4:$FA$46,AL1) -> 1305 | AM5: =VLOOKUP(DropDownList!$A$47,CntyQuery!$A$4:$FA$46,AM1) -> 457 | AN5: =VLOOKUP(DropDownList!$A$47,CntyQuery!$A$4:$FA$46,AN1) -> 33 | AO5: =VLOOKUP(DropDownList!$A$47,CntyQuery!$A$4:$FA$46,AO1) -> 46 | AP5: =VLOOKUP(DropDownList!$A$47,CntyQuery!$A$4:$FA$46,AP1) -> 8 | AQ5: =VLOOKUP(DropDownList!$A$47,CntyQuery!$A$4:$FA$46,AQ1) -> 701 | AR5: =VLOOKUP(DropDownList!$A$47,CntyQuery!$A$4:$FA$46,AR1) -> 542 | AS5: =VLOOKUP(DropDownList!$A$47,CntyQuery!$A$4:$FA$46,AS1) -> 625 | AT5: =VLOOKUP(DropDownList!$A$47,CntyQuery!$A$4:$FA$46,AT1) -> 645 | AU5: =VLOOKUP(DropDownList!$A$47,CntyQuery!$A$4:$FA$46,AU1) -> 113 | AV5: =VLOOKUP(DropDownList!$A$47,CntyQuery!$A$4:$FA$46,AV1) -> 625 | AW5: =VLOOKUP(DropDownList!$A$47,CntyQuery!$A$4:$FA$46,AW1) -> 38 | AX5: =VLOOKUP(DropDownList!$A$47,CntyQuery!$A$4:$FA$46,AX1) -> 392 | AY5: =VLOOKUP(DropDownList!$A$47,CntyQuery!$A$4:$FA$46,AY1) -> 27 | AZ5: =VLOOKUP(DropDownList!$A$47,CntyQuery!$A$4:$FA$46,AZ1) -> 339 | BA5: =VLOOKUP(DropDownList!$A$47,CntyQuery!$A$4:$FA$46,BA1) -> 843 | BB5: =VLOOKUP(DropDownList!$A$47,CntyQuery!$A$4:$FA$46,BB1) -> 426 | BC5: =VLOOKUP(DropDownList!$A$47,CntyQuery!$A$4:$FA$46,BC1) -> 296 | BD5: =VLOOKUP(DropDownList!$A$47,CntyQuery!$A$4:$FA$46,BD1) -> 62 | BE5: =VLOOKUP(DropDownList!$A$47,CntyQuery!$A$4:$FA$46,BE1) -> 274 | BF5: =VLOOKUP(DropDownList!$A$47,CntyQuery!$A$4:$FA$46,BF1) -> 707 | BG5: =VLOOKUP(DropDownList!$A$47,CntyQuery!$A$4:$FA$46,BG1) -> 638 | BH5: =VLOOKUP(DropDownList!$A$47,CntyQuery!$A$4:$FA$46,BH1) -> 223 | BI5: =VLOOKUP(DropDownList!$A$47,CntyQuery!$A$4:$FA$46,BI1) -> 87 | BJ5: =VLOOKUP(DropDownList!$A$47,CntyQuery!$A$4:$FA$46,BJ1) -> 118 | BK5: =VLOOKUP(DropDownList!$A$47,CntyQuery!$A$4:$FA$46,BK1) -> 115 | BL5: =VLOOKUP(DropDownList!$A$47,CntyQuery!$A$4:$FA$46,BL1) -> 304 | BM5: =VLOOKUP(DropDownList!$A$47,CntyQuery!$A$4:$FA$46,BM1) -> 326 | BN5: =VLOOKUP(DropDownList!$A$47,CntyQuery!$A$4:$FA$46,BN1) -> 489 | BO5: =VLOOKUP(DropDownList!$A$47,CntyQuery!$A$4:$FA$46,BO1) -> 271 | BP5: =VLOOKUP(DropDownList!$A$47,CntyQuery!$A$4:$FA$46,BP1) -> 21 | BQ5: =VLOOKUP(DropDownList!$A$47,CntyQuery!$A$4:$FA$46,BQ1) -> 49 | BR5: =VLOOKUP(DropDownList!$A$47,CntyQuery!$A$4:$FA$46,BR1) -> 33469 | BS5: =VLOOKUP(DropDownList!$A$47,CntyQuery!$A$4:$FA$46,BS1) -> 18 | BT5: =VLOOKUP(DropDownList!$A$47,CntyQuery!$A$4:$FA$46,BT1) -> 0 | BU5: =VLOOKUP(DropDownList!$A$47,CntyQuery!$A$4:$FA$46,BU1) -> 0 | BV5: =VLOOKUP(DropDownList!$A$47,CntyQuery!$A$4:$FA$46,BV1) -> 17 | BW5: =VLOOKUP(DropDownList!$A$47,CntyQuery!$A$4:$FA$46,BW1) -> 18 | BX5: =VLOOKUP(DropDownList!$A$47,CntyQuery!$A$4:$FA$46,BX1) -> 29 | BY5: =VLOOKUP(DropDownList!$A$47,CntyQuery!$A$4:$FA$46,BY1) -> 8 | BZ5: =VLOOKUP(DropDownList!$A$47,CntyQuery!$A$4:$FA$46,BZ1) -> 0 | CA5: =VLOOKUP(DropDownList!$A$47,CntyQuery!$A$4:$FA$46,CA1) -> 0 | CB5: =VLOOKUP(DropDownList!$A$47,CntyQuery!$A$4:$FA$46,CB1) -> 4 | CC5: =VLOOKUP(DropDownList!$A$47,CntyQuery!$A$4:$FA$46,CC1) -> 12 | CD5: =VLOOKUP(DropDownList!$A$47,CntyQuery!$A$4:$FA$46,CD1) -> 14 | CE5: =VLOOKUP(DropDownList!$A$47,CntyQuery!$A$4:$FA$46,CE1) -> 76 | CF5: =VLOOKUP(DropDownList!$A$47,CntyQuery!$A$4:$FA$46,CF1) -> 117 | CG5: =VLOOKUP(DropDownList!$A$47,CntyQuery!$A$4:$FA$46,CG1) -> 189 | CH5: =VLOOKUP(DropDownList!$A$47,CntyQuery!$A$4:$FA$46,CH1) -> 71 | CI5: =VLOOKUP(DropDownList!$A$47,CntyQuery!$A$4:$FA$46,CI1) -> 7 | CJ5: =VLOOKUP(DropDownList!$A$47,CntyQuery!$A$4:$FA$46,CJ1) -> 13 | CK5: =VLOOKUP(DropDownList!$A$47,CntyQuery!$A$4:$FA$46,CK1) -> 13 | CL5: =VLOOKUP(DropDownList!$A$47,CntyQuery!$A$4:$FA$46,CL1) -> 9 | CM5: =VLOOKUP(DropDownList!$A$47,CntyQuery!$A$4:$FA$46,CM1) -> 14 | CN5: =VLOOKUP(DropDownList!$A$47,CntyQuery!$A$4:$FA$46,CN1) -> 69 | CO5: =VLOOKUP(DropDownList!$A$47,CntyQuery!$A$4:$FA$46,CO1) -> 82 | CP5: =VLOOKUP(DropDownList!$A$47,CntyQuery!$A$4:$FA$46,CP1) -> 148 | CQ5: =VLOOKUP(DropDownList!$A$47,CntyQuery!$A$4:$FA$46,CQ1) -> 96 | CR5: =VLOOKUP(DropDownList!$A$47,CntyQuery!$A$4:$FA$46,CR1) -> 0 | CS5: =VLOOKUP(DropDownList!$A$47,CntyQuery!$A$4:$FA$46,CS1) -> 9 | CT5: =VLOOKUP(DropDownList!$A$47,CntyQuery!$A$4:$FA$46,CT1) -> 14 | CU5: =VLOOKUP(DropDownList!$A$47,CntyQuery!$A$4:$FA$46,CU1) -> 12 | CV5: =VLOOKUP(DropDownList!$A$47,CntyQuery!$A$4:$FA$46,CV1) -> 6 | CW5: =VLOOKUP(DropDownList!$A$47,CntyQuery!$A$4:$FA$46,CW1) -> 33 | CX5: =VLOOKUP(DropDownList!$A$47,CntyQuery!$A$4:$FA$46,CX1) -> 22 | CY5: =VLOOKUP(DropDownList!$A$47,CntyQuery!$A$4:$FA$46,CY1) -> 53 | CZ5: =VLOOKUP(DropDownList!$A$47,CntyQuery!$A$4:$FA$46,CZ1) -> 76 | DA5: =VLOOKUP(DropDownList!$A$47,CntyQuery!$A$4:$FA$46,DA1) -> 12 | DB5: =VLOOKUP(DropDownList!$A$47,CntyQuery!$A$4:$FA$46,DB1) -> 27 | DC5: =VLOOKUP(DropDownList!$A$47,CntyQuery!$A$4:$FA$46,DC1) -> 24 | DD5: =VLOOKUP(DropDownList!$A$47,CntyQuery!$A$4:$FA$46,DD1) -> 0 | DE5: =VLOOKUP(DropDownList!$A$47,CntyQuery!$A$4:$FA$46,DE1) -> 26 | DF5: =VLOOKUP(DropDownList!$A$47,CntyQuery!$A$4:$FA$46,DF1) -> 48 | DG5: =VLOOKUP(DropDownList!$A$47,CntyQuery!$A$4:$FA$46,DG1) -> 33 | DH5: =VLOOKUP(DropDownList!$A$47,CntyQuery!$A$4:$FA$46,DH1) -> 59 | DI5: =VLOOKUP(DropDownList!$A$47,CntyQuery!$A$4:$FA$46,DI1) -> 20 | DJ5: =VLOOKUP(DropDownList!$A$47,CntyQuery!$A$4:$FA$46,DJ1) -> 2 | DK5: =VLOOKUP(DropDownList!$A$47,CntyQuery!$A$4:$FA$46,DK1) -> 0 | DL5: =VLOOKUP(DropDownList!$A$47,CntyQuery!$A$4:$FA$46,DL1) -> 7 | DM5: =VLOOKUP(DropDownList!$A$47,CntyQuery!$A$4:$FA$46,DM1) -> 44 | DN5: =VLOOKUP(DropDownList!$A$47,CntyQuery!$A$4:$FA$46,DN1) -> 37 | DO5: =VLOOKUP(DropDownList!$A$47,CntyQuery!$A$4:$FA$46,DO1) -> 35 | DP5: =VLOOKUP(DropDownList!$A$47,CntyQuery!$A$4:$FA$46,DP1) -> 42 | DQ5: =VLOOKUP(DropDownList!$A$47,CntyQuery!$A$4:$FA$46,DQ1) -> 6 | DR5: =VLOOKUP(DropDownList!$A$47,CntyQuery!$A$4:$FA$46,DR1) -> 0 | DS5: =VLOOKUP(DropDownList!$A$47,CntyQuery!$A$4:$FA$46,DS1) -> 0 | DT5: =VLOOKUP(DropDownList!$A$47,CntyQuery!$A$4:$FA$46,DT1) -> 0 | DU5: =VLOOKUP(DropDownList!$A$47,CntyQuery!$A$4:$FA$46,DU1) -> 7 | DV5: =VLOOKUP(DropDownList!$A$47,CntyQuery!$A$4:$FA$46,DV1) -> 41 | DW5: =VLOOKUP(DropDownList!$A$47,CntyQuery!$A$4:$FA$46,DW1) -> 18 | DX5: =VLOOKUP(DropDownList!$A$47,CntyQuery!$A$4:$FA$46,DX1) -> 26 | DY5: =VLOOKUP(DropDownList!$A$47,CntyQuery!$A$4:$FA$46,DY1) -> 12 | DZ5: =VLOOKUP(DropDownList!$A$47,CntyQuery!$A$4:$FA$46,DZ1) -> 5 | EA5: =VLOOKUP(DropDownList!$A$47,CntyQuery!$A$4:$FA$46,EA1) -> 0 | EB5: =VLOOKUP(DropDownList!$A$47,CntyQuery!$A$4:$FA$46,EB1) -> 0 | EC5: =VLOOKUP(DropDownList!$A$47,CntyQuery!$A$4:$FA$46,EC1) -> 0 | ED5: =VLOOKUP(DropDownList!$A$47,CntyQuery!$A$4:$FA$46,ED1) -> 774 | EE5: =VLOOKUP(DropDownList!$A$47,CntyQuery!$A$4:$FA$46,EE1) -> 2967 | EF5: =VLOOKUP(DropDownList!$A$47,CntyQuery!$A$4:$FA$46,EF1) -> 2088 | EG5: =VLOOKUP(DropDownList!$A$47,CntyQuery!$A$4:$FA$46,EG1) -> 243 | EH5: =VLOOKUP(DropDownList!$A$47,CntyQuery!$A$4:$FA$46,EH1) -> 4618 | EI5: =VLOOKUP(DropDownList!$A$47,CntyQuery!$A$4:$FA$46,EI1) -> 94 | EJ5: =VLOOKUP(DropDownList!$A$47,CntyQuery!$A$4:$FA$46,EJ1) -> 2913 | EK5: =VLOOKUP(DropDownList!$A$47,CntyQuery!$A$4:$FA$46,EK1) -> 4618 | EL5: =VLOOKUP(DropDownList!$A$47,CntyQuery!$A$4:$FA$46,EL1) -> 94 | EM5: =VLOOKUP(DropDownList!$A$47,CntyQuery!$A$4:$FA$46,EM1) -> 1908 | EN5: =VLOOKUP(DropDownList!$A$47,CntyQuery!$A$4:$FA$46,EN1) -> 399 | EO5: =VLOOKUP(DropDownList!$A$47,CntyQuery!$A$4:$FA$46,EO1) -> 6 | EP5: =VLOOKUP(DropDownList!$A$47,CntyQuery!$A$4:$FA$46,EP1) -> 15 | EQ5: =VLOOKUP(DropDownList!$A$47,CntyQuery!$A$4:$FA$46,EQ1) -> 20 | ER5: =VLOOKUP(DropDownList!$A$47,CntyQuery!$A$4:$FA$46,ER1) -> 31 | ES5: =VLOOKUP(DropDownList!$A$47,CntyQuery!$A$4:$FA$46,ES1) -> 205 | ET5: =VLOOKUP(DropDownList!$A$47,CntyQuery!$A$4:$FA$46,ET1) -> 115 | EU5: =VLOOKUP(DropDownList!$A$47,CntyQuery!$A$4:$FA$46,EU1) -> 304 | EV5: =VLOOKUP(DropDownList!$A$47,CntyQuery!$A$4:$FA$46,EV1) -> 326 | EW5: =VLOOKUP(DropDownList!$A$47,CntyQuery!$A$4:$FA$46,EW1) -> 489 | EX5: =VLOOKUP(DropDownList!$A$47,CntyQuery!$A$4:$FA$46,EX1) -> 271 | EY5: =VLOOKUP(DropDownList!$A$47,CntyQuery!$A$4:$FA$46,EY1) -> 21 | EZ5: =VLOOKUP(DropDownList!$A$47,CntyQuery!$A$4:$FA$46,EZ1) -> 33 | FA5: =VLOOKUP(DropDownList!$A$47,CntyQuery!$A$4:$FA$46,FA1) -> 16
A8: Census 1990 Data - Query Name: TownSTF1Qry1
A9: NAME | B9: COUSUBFP | C9: Census_Cnty_Code | D9: FIPS | E9: LandAcres | F9: WaterAcres | G9: HousingUnits90Cen | H9: P01Persons90Cen | I9: P02Families90Cen | J9: P03Households90cen | K9: P05MalePop90cen | L9: P05FemalePop90cen | M9: P06WhitePop | N9: P06BlackPop | O9: P06AmerIndianPop | P9: P06AsianPIPop | Q9: P06OtherRacePop | R9: P08HispanicOrPop | S9: P11AgeUnder15_90cen | T9: P11Age15to24_90cen | U9: P11Age25to34_90cen | V9: P11Age35to44_90cen | W9: P11Age45to54_90cen | X9: P11Age55to64_90cen | Y9: P11Age65to74_90cen | Z9: P11Age75andOver_90cen | AA9: P15PersonsInHH90cen | AB9: P15PersonsInFamHH90cen | AC9: P15PersonsInGC | AD9: PersonsPerHH90cen | AE9: PersonsPerFam90Cen | AF9: P16SinglePersonHH90cen | AG9: P16MarriedCoupleHH90cen | AH9: P16SingleParentHH90cen | AI9: P16NonFamilyHH90cen | AJ9: H01TotalHousingUnits | AK9: H02OccupiedHousingUnits | AL9: H02VacantHousingUnits | AM9: H03OwnerOccHU | AN9: H03RenterOccHU | AO9: H05VacantForRent90 | AP9: H05VacantForSale90 | AQ9: H05VacantSeasonalRec | AR9: H23OOHUVal<15k | AS9: H23OOHUVal15to19k | AT9: H23OOHUVal20to24k | AU9: H23OOHUVal25to29k | AV9: H23OOHUVal30to34k | AW9: H23OOHUVal35to39k | AX9: H23OOHUVal40to44k | AY9: H23OOHUVal45to49k | AZ9: H23OOHUVal50to59k | BA9: H23OOHUVal60to74k | BB9: H23OOHUVal75to99k | BC9: H23OOHUVal100to124k | BD9: H23OOHUVal125to149k | BE9: H23OOHUVal150to174k | BF9: H23OOHUVal175to199k | BG9: H23OOHUVal200to249k | BH9: H23OOHUVal250to299k | BI9: H23OOHUVal300to399k | BJ9: H23OOHUVal400to499k | BK9: H23OOHUVal500kOrMore | BL9: H23BOOHUMedVal | BM9: H41SingFamHU90cen | BN9: H41MultiFamHU90cen | BO9: H41MobileHom90cen | BP9: H43SingFamOwnHU90cen | BQ9: H43MultiFamOwnHU90cen | BR9: H43MobileHomOwnHU90cen | BS9: H43SingFamRntrHU90cen | BT9: H43MultiFamRntrHU90cen | BU9: H43MobileHomRntrHU90cen | BV9: H41HU1UnitDet | BW9: H41HU1UnitAtt | BX9: H41HU2Unit | BY9: H41HU3to4Unit | BZ9: H41HU5to9Unit | CA9: H41HU10to19Unit | CB9: H41HU20to49Unit | CC9: H41HU50PlusUnit | CD9: H41HUMobilH | CE9: H41HUOther
A10: =VLOOKUP(DropDownList!$B$47,CntyQuery!$A$51:$CE$93,A$1) -> Allenstown | B10: =VLOOKUP(DropDownList!$B$47,CntyQuery!$A$51:$CE$93,B$1) -> 701 | C10: =VLOOKUP(DropDownList!$B$47,CntyQuery!$A$51:$CE$93,C$1) -> 13005 | D10: =VLOOKUP(DropDownList!$B$47,CntyQuery!$A$51:$CE$93,D$1) -> 00660 | E10: =VLOOKUP(DropDownList!$B$47,CntyQuery!$A$51:$CE$93,E$1) -> 13097.95 | F10: =VLOOKUP(DropDownList!$B$47,CntyQuery!$A$51:$CE$93,F$1) -> 69.48 | G10: =VLOOKUP(DropDownList!$B$47,CntyQuery!$A$51:$CE$93,G$1) -> 1868 | H10: =VLOOKUP(DropDownList!$B$47,CntyQuery!$A$51:$CE$93,H$1) -> 4649 | I10: =VLOOKUP(DropDownList!$B$47,CntyQuery!$A$51:$CE$93,I$1) -> 1253 | J10: =VLOOKUP(DropDownList!$B$47,CntyQuery!$A$51:$CE$93,J$1) -> 1762 | K10: =VLOOKUP(DropDownList!$B$47,CntyQuery!$A$51:$CE$93,K$1) -> 2301 | L10: =VLOOKUP(DropDownList!$B$47,CntyQuery!$A$51:$CE$93,L$1) -> 2348 | M10: =VLOOKUP(DropDownList!$B$47,CntyQuery!$A$51:$CE$93,M$1) -> 4587 | N10: =VLOOKUP(DropDownList!$B$47,CntyQuery!$A$51:$CE$93,N$1) -> 24 | O10: =VLOOKUP(DropDownList!$B$47,CntyQuery!$A$51:$CE$93,O$1) -> 9 | P10: =VLOOKUP(DropDownList!$B$47,CntyQuery!$A$51:$CE$93,P$1) -> 24 | Q10: =VLOOKUP(DropDownList!$B$47,CntyQuery!$A$51:$CE$93,Q$1) -> 5 | R10: =VLOOKUP(DropDownList!$B$47,CntyQuery!$A$51:$CE$93,R$1) -> 25 | S10: =VLOOKUP(DropDownList!$B$47,CntyQuery!$A$51:$CE$93,S$1) -> 1104 | T10: =VLOOKUP(DropDownList!$B$47,CntyQuery!$A$51:$CE$93,T$1) -> 557 | U10: =VLOOKUP(DropDownList!$B$47,CntyQuery!$A$51:$CE$93,U$1) -> 1093 | V10: =VLOOKUP(DropDownList!$B$47,CntyQuery!$A$51:$CE$93,V$1) -> 692 | W10: =VLOOKUP(DropDownList!$B$47,CntyQuery!$A$51:$CE$93,W$1) -> 426 | X10: =VLOOKUP(DropDownList!$B$47,CntyQuery!$A$51:$CE$93,X$1) -> 360 | Y10: =VLOOKUP(DropDownList!$B$47,CntyQuery!$A$51:$CE$93,Y$1) -> 238 | Z10: =VLOOKUP(DropDownList!$B$47,CntyQuery!$A$51:$CE$93,Z$1) -> 179 | AA10: =VLOOKUP(DropDownList!$B$47,CntyQuery!$A$51:$CE$93,AA$1) -> 4649 | AB10: =VLOOKUP(DropDownList!$B$47,CntyQuery!$A$51:$CE$93,AB$1) -> 3987 | AC10: =VLOOKUP(DropDownList!$B$47,CntyQuery!$A$51:$CE$93,AC$1) -> 0 | AD10: =VLOOKUP(DropDownList!$B$47,CntyQuery!$A$51:$CE$93,AD$1) -> 2.638479001 | AE10: =VLOOKUP(DropDownList!$B$47,CntyQuery!$A$51:$CE$93,AE$1) -> 3.181963288 | AF10: =VLOOKUP(DropDownList!$B$47,CntyQuery!$A$51:$CE$93,AF$1) -> 399 | AG10: =VLOOKUP(DropDownList!$B$47,CntyQuery!$A$51:$CE$93,AG$1) -> 1035 | AH10: =VLOOKUP(DropDownList!$B$47,CntyQuery!$A$51:$CE$93,AH$1) -> 218 | AI10: =VLOOKUP(DropDownList!$B$47,CntyQuery!$A$51:$CE$93,AI$1) -> 110 | AJ10: =VLOOKUP(DropDownList!$B$47,CntyQuery!$A$51:$CE$93,AJ$1) -> 1868 | AK10: =VLOOKUP(DropDownList!$B$47,CntyQuery!$A$51:$CE$93,AK$1) -> 1762 | AL10: =VLOOKUP(DropDownList!$B$47,CntyQuery!$A$51:$CE$93,AL$1) -> 106 | AM10: =VLOOKUP(DropDownList!$B$47,CntyQuery!$A$51:$CE$93,AM$1) -> 1305 | AN10: =VLOOKUP(DropDownList!$B$47,CntyQuery!$A$51:$CE$93,AN$1) -> 457 | AO10: =VLOOKUP(DropDownList!$B$47,CntyQuery!$A$51:$CE$93,AO$1) -> 33 | AP10: =VLOOKUP(DropDownList!$B$47,CntyQuery!$A$51:$CE$93,AP$1) -> 46 | AQ10: =VLOOKUP(DropDownList!$B$47,CntyQuery!$A$51:$CE$93,AQ$1) -> 8 | AR10: =VLOOKUP(DropDownList!$B$47,CntyQuery!$A$51:$CE$93,AR$1) -> 1 | AS10: =VLOOKUP(DropDownList!$B$47,CntyQuery!$A$51:$CE$93,AS$1) -> 1 | AT10: =VLOOKUP(DropDownList!$B$47,CntyQuery!$A$51:$CE$93,AT$1) -> 0 | AU10: =VLOOKUP(DropDownList!$B$47,CntyQuery!$A$51:$CE$93,AU$1) -> 0 | AV10: =VLOOKUP(DropDownList!$B$47,CntyQuery!$A$51:$CE$93,AV$1) -> 3 | AW10: =VLOOKUP(DropDownList!$B$47,CntyQuery!$A$51:$CE$93,AW$1) -> 1 | AX10: =VLOOKUP(DropDownList!$B$47,CntyQuery!$A$51:$CE$93,AX$1) -> 2 | AY10: =VLOOKUP(DropDownList!$B$47,CntyQuery!$A$51:$CE$93,AY$1) -> 1 | AZ10: =VLOOKUP(DropDownList!$B$47,CntyQuery!$A$51:$CE$93,AZ$1) -> 5 | BA10: =VLOOKUP(DropDownList!$B$47,CntyQuery!$A$51:$CE$93,BA$1) -> 30 | BB10: =VLOOKUP(DropDownList!$B$47,CntyQuery!$A$51:$CE$93,BB$1) -> 200 | BC10: =VLOOKUP(DropDownList!$B$47,CntyQuery!$A$51:$CE$93,BC$1) -> 200 | BD10: =VLOOKUP(DropDownList!$B$47,CntyQuery!$A$51:$CE$93,BD$1) -> 107 | BE10: =VLOOKUP(DropDownList!$B$47,CntyQuery!$A$51:$CE$93,BE$1) -> 32 | BF10: =VLOOKUP(DropDownList!$B$47,CntyQuery!$A$51:$CE$93,BF$1) -> 12 | BG10: =VLOOKUP(DropDownList!$B$47,CntyQuery!$A$51:$CE$93,BG$1) -> 7 | BH10: =VLOOKUP(DropDownList!$B$47,CntyQuery!$A$51:$CE$93,BH$1) -> 4 | BI10: =VLOOKUP(DropDownList!$B$47,CntyQuery!$A$51:$CE$93,BI$1) -> 1 | BJ10: =VLOOKUP(DropDownList!$B$47,CntyQuery!$A$51:$CE$93,BJ$1) -> 0 | BK10: =VLOOKUP(DropDownList!$B$47,CntyQuery!$A$51:$CE$93,BK$1) -> 0 | BL10: =VLOOKUP(DropDownList!$B$47,CntyQuery!$A$51:$CE$93,BL$1) -> 107400 | BM10: =VLOOKUP(DropDownList!$B$47,CntyQuery!$A$51:$CE$93,BM$1) -> 701 | BN10: =VLOOKUP(DropDownList!$B$47,CntyQuery!$A$51:$CE$93,BN$1) -> 542 | BO10: =VLOOKUP(DropDownList!$B$47,CntyQuery!$A$51:$CE$93,BO$1) -> 625 | BP10: =VLOOKUP(DropDownList!$B$47,CntyQuery!$A$51:$CE$93,BP$1) -> 645 | BQ10: =VLOOKUP(DropDownList!$B$47,CntyQuery!$A$51:$CE$93,BQ$1) -> 113 | BR10: =VLOOKUP(DropDownList!$B$47,CntyQuery!$A$51:$CE$93,BR$1) -> 547 | BS10: =VLOOKUP(DropDownList!$B$47,CntyQuery!$A$51:$CE$93,BS$1) -> 38 | BT10: =VLOOKUP(DropDownList!$B$47,CntyQuery!$A$51:$CE$93,BT$1) -> 392 | BU10: =VLOOKUP(DropDownList!$B$47,CntyQuery!$A$51:$CE$93,BU$1) -> 27 | BV10: =VLOOKUP(DropDownList!$B$47,CntyQuery!$A$51:$CE$93,BV$1) -> 701 | BW10: =VLOOKUP(DropDownList!$B$47,CntyQuery!$A$51:$CE$93,BW$1) -> 42 | BX10: =VLOOKUP(DropDownList!$B$47,CntyQuery!$A$51:$CE$93,BX$1) -> 185 | BY10: =VLOOKUP(DropDownList!$B$47,CntyQuery!$A$51:$CE$93,BY$1) -> 106 | BZ10: =VLOOKUP(DropDownList!$B$47,CntyQuery!$A$51:$CE$93,BZ$1) -> 158 | CA10: =VLOOKUP(DropDownList!$B$47,CntyQuery!$A$51:$CE$93,CA$1) -> 10 | CB10: =VLOOKUP(DropDownList!$B$47,CntyQuery!$A$51:$CE$93,CB$1) -> 41 | CC10: =VLOOKUP(DropDownList!$B$47,CntyQuery!$A$51:$CE$93,CC$1) -> 0 | CD10: =VLOOKUP(DropDownList!$B$47,CntyQuery!$A$51:$CE$93,CD$1) -> 610 | CE10: =VLOOKUP(DropDownList!$B$47,CntyQuery!$A$51:$CE$93,CE$1) -> 15
A13: Census 1990 Data - Query Name: TownSTF3Qry1
A14: NAME | B14: FIPS | C14: COUSUBFP | D14: LandAcres | E14: WaterAcres | F14: HousingUnits90Cen | G14: P01Persons90Cen | H14: P02Families90Cen | I14: P03Households90cen | J14: H25HU<5yrs90cen | K14: H25HU5to20yrs90cen | L14: H25HU20to50yrs90cen | M14: H25HU>50yrs90cen | N14: H31Units0Bedroom90cen | O14: H31Units1Bedroom90cen | P14: H31Units2Bedroom90cen | Q14: H31Units3Bedroom90cen | R14: H31Units4Bedroom90cen | S14: H31Units5+Bedroom90cen | T14: P80HI<5K | U14: P80HI5Kto10K | V14: P80HI10Kto15K | W14: P80HI15Kto25K | X14: P80HI25Kto35K | Y14: P80HI35Kto50K | Z14: P80HI50Kto75K | AA14: P80HI75Kto100K | AB14: P80HI>100K | AC14: P80AMedHI | AD14: P86HH<25HI<5K | AE14: P86HH<25HI5Kto10K | AF14: P86HH<25HI10Kto15K | AG14: P86HH<25HI15Kto25K | AH14: P86HH<25HI25Kto35K | AI14: P86HH<25HI35Kto50K | AJ14: P86HH<25HI50Kto75K | AK14: P86HH<25HI75Kto100K | AL14: P86HH<25HI>100K | AM14: P86HH25to34HI<5K | AN14: P86HH25to34HI5Kto10K | AO14: P86HH25to34HI10Kto15K | AP14: P86HH25to34HI15Kto25K | AQ14: P86HH25to34HI25Kto35K | AR14: P86HH25to34HI35Kto50K | AS14: P86HH25to34HI50Kto75K | AT14: P86HH25to34HI75Kto100K | AU14: P86HH25to34HI>100K | AV14: P86HH35to44HI<5K | AW14: P86HH35to44HI5Kto10K | AX14: P86HH35to44HI10Kto15K | AY14: P86HH35to44HI15Kto25K | AZ14: P86HH35to44HI25Kto35K | BA14: P86HH35to44HI35Kto50K | BB14: P86HH35to44HI50Kto75K | BC14: P86HH35to44HI75Kto100K | BD14: P86HH35to44HI>100K | BE14: P86HH45to54HI<5K | BF14: P86HH45to54HI5Kto10K | BG14: P86HH45to54HI10Kto15K | BH14: P86HH45to54HI15Kto25K | BI14: P86HH45to54HI25Kto35K | BJ14: P86HH45to54HI35Kto50K | BK14: P86HH45to54HI50Kto75K | BL14: P86HH45to54HI75Kto100K | BM14: P86HH45to54HI>100K | BN14: P86HH55to64HI<5K | BO14: P86HH55to64HI5Kto10K | BP14: P86HH55to64HI10Kto15K | BQ14: P86HH55to64HI15Kto25K | BR14: P86HH55to64HI25Kto35K | BS14: P86HH55to64HI35Kto50K | BT14: P86HH55to64HI50Kto75K | BU14: P86HH55to64HI75Kto100K | BV14: P86HH55to64HI>100K | BW14: P86HH65to74HI<5K | BX14: P86HH65to74HI5Kto10K | BY14: P86HH65to74HI10Kto15K | BZ14: P86HH65to74HI15Kto25K | CA14: P86HH65to74HI25Kto35K | CB14: P86HH65to74HI35Kto50K | CC14: P86HH65to74HI50Kto75K | CD14: P86HH65to74HI75Kto100K | CE14: P86HH65to74HI>100K | CF14: P86HH>75HI<5K | CG14: P86HH>75HI5Kto10K | CH14: P86HH>75HI10Kto15K | CI14: P86HH>75HI15Kto25K | CJ14: P86HH>75HI25Kto35K | CK14: P86HH>75HI35Kto50K | CL14: P86HH>75HI50Kto75K | CM14: P86HH>75HI75Kto100K | CN14: P86HH>75HI>100K | CO14: P54SchlEnrlPrePrim | CP14: P54SchlEnrlElemThrHS | CQ14: P54SchlEnrlCollege | CR14: P54NotEnrlInSch | CS14: P57Pop25andOver | CT14: P57LessThan9thGrade | CU14: P579thto12thNoDip | CV14: P57HSGrad | CW14: P57SomeCollege | CX14: P57AssocDeg | CY14: P57BachelDeg | CZ14: P57GradorProfDeg | DA14: P57HSGradorHigher | DB14: P57CollGradorHigher | DC14: P42NativePop | DD14: P42ForeignBornPop | DE14: P42BornStateOfRes | DF14: P37NativePop2 | DG14: P37ForeignBornPop2 | DH14: P49DroveAlone | DI14: P49CarPooled | DJ14: P49PublicTranspt | DK14: P49Walked | DL14: P49OtherMeans | DM14: P49WorkedAtHome | DN14: P80HHInc<10K | DO14: P80HHInc10to15K | DP14: P80HHInc15to25K | DQ14: P80HHInc25to35K | DR14: P80HHInc35to50K | DS14: P80HHInc50to75K | DT14: P80HHInc75to100K | DU14: P80HHInc100to150K | DV14: P80HHInc>150K | DW14: H25YearStBlt89to90 | DX14: H25YearStBlt85to88 | DY14: H25YearStBlt80to84 | DZ14: H25YearStBlt70to79 | EA14: H25YearStBlt60to69 | EB14: H25YearStBlt50to59 | EC14: H25YearStBlt40to49 | ED14: H25YearStBlt39earlier | EE14: P107FamInc<10K | EF14: P107FamInc10to15K | EG14: P107FamInc15to25K | EH14: P107FamInc25to35K | EI14: P107FamInc35to50K | EJ14: P107FamInc50to75K | EK14: P107FamInc75to100K | EL14: P107FamInc100to150K | EM14: P107FamInc>150K | EN14: P107AMedFamInc | EO14: P110NonFamInc<10K | EP14: P110NonFamInc10to15K | EQ14: P110NonFamInc15to25K | ER14: P110NonFamInc25to35K | ES14: P110NonFamInc35to50K | ET14: P110NonFamInc50to75K | EU14: P110NonFamInc75to100K | EV14: P110NonFamInc100to150K | EW14: P110NonFamInc>150K | EX14: P110AMedNonFamInc | EY14: H16HU1Room | EZ14: H16HU2Room | FA14: H16HU3Room | FB14: H16HU4Room | FC14: H16HU5Room | FD14: H16HU6Room | FE14: H16HU7Room | FF14: H16HU8Room | FG14: H16HU9+Room | FH14: H43GrossRnt<100 | FI14: H43GrossRnt100to149 | FJ14: H43GrossRnt150to199 | FK14: H43GrossRnt200to249 | FL14: H43GrossRnt250to299 | FM14: H43GrossRnt300to349 | FN14: H43GrossRnt350to399 | FO14: H43GrossRnt400to449 | FP14: H43GrossRnt450to499 | FQ14: H43GrossRnt500to549 | FR14: H43GrossRnt550to599 | FS14: H43GrossRnt600to649 | FT14: H43GrossRnt650to699 | FU14: H43GrossRnt700to749 | FV14: H43GrossRnt750to999 | FW14: H43GrossRnt1000Plus | FX14: H43NoCashRent | FY14: H43MedGrossRent | FZ14: H51GrossRnt<20PctHHInc | GA14: H51GrossRnt20to24PctHHInc | GB14: H51GrossRnt25to29PctHHInc | GC14: H51GrossRnt30to34PctHHInc | GD14: H51GrossRnt35PctOrMoreHHInc | GE14: H51GrossRntAsPctHHIncNotComp | GF14: H52HUwMtgMoOwnCst<200 | GG14: H52HUwMtgMoOwnCst200to299 | GH14: H52HUwMtgMoOwnCst300to399 | GI14: H52HUwMtgMoOwnCst400to499 | GJ14: H52HUwMtgMoOwnCst500to599 | GK14: H52HUwMtgMoOwnCst600to699 | GL14: H52HUwMtgMoOwnCst700to799 | GM14: H52HUwMtgMoOwnCst800to899 | GN14: H52HUwMtgMoOwnCst900to999 | GO14: H52HUwMtgMoOwnCst1000to1249 | GP14: H52HUwMtgMoOwnCst1250to1499 | GQ14: H52HUwMtgMoOwnCst1500to1999 | GR14: H52HUwMtgMoOwnCst2000More | GS14: H52HUwNoMtgMoOwnCst<100 | GT14: H52HUwNoMtgMoOwnCst100to149 | GU14: H52HUwNoMtgMoOwnCst150to199 | GV14: H52HUwNoMtgMoOwnCst200to249 | GW14: H52HUwNoMtgMoOwnCst250to299 | GX14: H52HUwNoMtgMoOwnCst300to349 | GY14: H52HUwNoMtgMoOwnCst350to399 | GZ14: H52HUwNoMtgMoOwnCst400More | HA14: H52AMedMoOwnCstWMortg | HB14: H52AMedMoOwnCstWNoMortg | HC14: H58HUwMtgMOC<20pHHInc | HD14: H58HUwMtgMOC20to24pHHInc | HE14: H58HUwMtgMOC25to29pHHInc | HF14: H58HUwMtgMOC30to34pHHInc | HG14: H58wMtgMOC>35pHHInc | HH14: H58HUwMtgMOCNotComp | HI14: H58HUwNoMtgMOC<20pHHInc | HJ14: H58HUwNoMtgMOC20to24pHHInc | HK14: H58HUwNoMtgMOC25to29pHHInc | HL14: H58HUwNoMtgMOC30to34pHHInc | HM14: H58wNoMtgMOC>35pHHInc | HN14: H58HUwNoMtgMOCNotComp | HO14: H61OOHUVal<15k | HP14: H61OOHUVal15to19k | HQ14: H61OOHUVal20to24k | HR14: H61OOHUVal25to29k | HS14: H61OOHUVal30to34k | HT14: H61OOHUVal35to39k | HU14: H61OOHUVal40to44k | HV14: H61OOHUVal45to49k | HW14: H61OOHUVal50to59k | HX14: H61OOHUVal60to74k | HY14: H61OOHUVal75to99k | HZ14: H61OOHUVal100to124k | IA14: H61OOHUVal125to149k | IB14: H61OOHUVal150to174k | IC14: H61OOHUVal175to199k | ID14: H61OOHUVal200to249k | IE14: H61OOHUVal250to299k | IF14: H61OOHUVal300to399k | IG14: H61OOHUVal400to499k | IH14: H61OOHUVal500kOrMore | II14: H61aOOHUMedVal
A18: Other Demo Data - Query Name: QryAllTowns-ACSDemographicSheet
A19: TOWN_NAME | B19: FIPS | C19: TOWNCNTY | D19: COUSUB | E19: POP80 | F19: POP90CDCEN | G19: POP2000CEN | H19: POP2010CEN | I19: POP2020CEN | J19: POP2025-Proj | K19: POP2030-Proj | L19: POP2035-Proj | M19: SF80 | N19: MF80 | O19: MH80 | P19: SF81 | Q19: MF81 | R19: MH81 | S19: SF82 | T19: MF82 | U19: MH82 | V19: SF83 | W19: MF83 | X19: MH83 | Y19: SF84_OSP | Z19: MF84_OSP | AA19: MH84_OSP | AB19: SF85_OSP | AC19: MF85_OSP | AD19: MH85_OSP | AE19: SF86_OSP | AF19: MF86_OSP | AG19: MH86_OSP | AH19: SF87_OSP | AI19: MF87_OSP | AJ19: MH87_OSP | AK19: SF88_OSP | AL19: MF88_OSP | AM19: MH88_OSP | AN19: SF89_OSP | AO19: MF89_OSP | AP19: MH89_OSP | AQ19: SF90_OSP | AR19: MF90_OSP | AS19: MH90_OSP | AT19: SF91_OSP | AU19: MF91_OSP | AV19: MH91_OSP | AW19: SF92_OSP | AX19: MF92_OSP | AY19: MH92_OSP | AZ19: SF93_OSP | BA19: MF93_OSP | BB19: MH93_OSP | BC19: SF94_OSP | BD19: MF94_OSP | BE19: MH94_OSP | BF19: SF95_OSP | BG19: MF95_OSP | BH19: MH95_OSP | BI19: SF96_OSP | BJ19: MF96_OSP | BK19: MH96_OSP | BL19: SF97_OSP | BM19: MF97_OSP | BN19: MH97_OSP | BO19: SF98_OSP | BP19: MF98_OSP | BQ19: MH98_OSP | BR19: SF99_OSP | BS19: MF99_OSP | BT19: MH99_OSP | BU19: SF00_OSP | BV19: MF00_OSP | BW19: MH00_OSP | BX19: SF01_OSP | BY19: MF01_OSP | BZ19: MH01_OSP | CA19: SF02_OSP | CB19: MF02_OSP | CC19: MH02_OSP | CD19: SF03_OSP | CE19: MF03_OSP | CF19: MH03_OSP | CG19: SF04_OSP | CH19: MF04_OSP | CI19: MH04_OSP | CJ19: SF05_OSP | CK19: MF05_OSP | CL19: MH05_OSP | CM19: SF06_OSP | CN19: MF06_OSP | CO19: MH06_OSP | CP19: SF07_OSP | CQ19: MF07_OSP | CR19: MH07_OSP | CS19: SF08_OSP | CT19: MF08_OSP | CU19: MH08_OSP | CV19: SF09_OSP | CW19: MF09_OSP | CX19: MH09_OSP | CY19: SF10_OSP | CZ19: MF10_OSP | DA19: MH10_OSP | DB19: SF11_OSP | DC19: MF11_OSP | DD19: MH11_OSP | DE19: SF12_OSP | DF19: MF12_OSP | DG19: MH12_OSP | DH19: SF13_OSP | DI19: MF13_OSP | DJ19: MH13_OSP | DK19: SF14_OSP | DL19: MF14_OSP | DM19: MH14_OSP | DN19: SF15_OSP | DO19: MF15_OSP | DP19: MH15_OSP | DQ19: SF16_OSP | DR19: MF16_OSP | DS19: MH16_OSP | DT19: SF17_OSP | DU19: MF17_OSP | DV19: MH17_OSP | DW19: SF18_OSP | DX19: MF18_OSP | DY19: MH18_OSP | DZ19: SF19_OSP | EA19: MF19_OSP | EB19: MH19_OSP | EC19: SF20_OSP | ED19: MF20_OSP | EE19: MH20_OSP | EF19: SF20 Census_OSP | EG19: MF20 Census OSP | EH19: MH20 Census_OSP | EI19: SF21_OSP | EJ19: MF21_OSP | EK19: MH21_OSP | EL19: COMMENTS | EM19: CNTY_CODE
A20: =VLOOKUP(DropDownList!$B$47,CntyQuery!$A$118:$FZ$144,A$1) -> Allenstown | B20: =VLOOKUP(DropDownList!$B$47,CntyQuery!$A$118:$FZ$144,B$1) -> 13005 | C20: =VLOOKUP(DropDownList!$B$47,CntyQuery!$A$118:$FZ$144,C$1) -> 701 | D20: =VLOOKUP(DropDownList!$B$47,CntyQuery!$A$118:$FZ$144,D$1) -> 00660 | E20: =VLOOKUP(DropDownList!$B$47,CntyQuery!$A$118:$FZ$144,E$1) -> 4398 | F20: =VLOOKUP(DropDownList!$B$47,CntyQuery!$A$118:$FZ$144,F$1) -> 4649 | G20: =VLOOKUP(DropDownList!$B$47,CntyQuery!$A$118:$FZ$144,G$1) -> 4843 | H20: =VLOOKUP(DropDownList!$B$47,CntyQuery!$A$118:$FZ$144,H$1) -> 4322 | I20: =VLOOKUP(DropDownList!$B$47,CntyQuery!$A$118:$FZ$144,I$1) -> 4707 | J20: =VLOOKUP(DropDownList!$B$47,CntyQuery!$A$118:$FZ$144,J$1) -> 4883 | K20: =VLOOKUP(DropDownList!$B$47,CntyQuery!$A$118:$FZ$144,K$1) -> 5031 | L20: =VLOOKUP(DropDownList!$B$47,CntyQuery!$A$118:$FZ$144,L$1) -> 5131 | M20: =VLOOKUP(DropDownList!$B$47,CntyQuery!$A$118:$FZ$144,M$1) -> 4 | N20: =VLOOKUP(DropDownList!$B$47,CntyQuery!$A$118:$FZ$144,N$1) -> 0 | O20: =VLOOKUP(DropDownList!$B$47,CntyQuery!$A$118:$FZ$144,O$1) -> 0 | P20: =VLOOKUP(DropDownList!$B$47,CntyQuery!$A$118:$FZ$144,P$1) -> 2 | Q20: =VLOOKUP(DropDownList!$B$47,CntyQuery!$A$118:$FZ$144,Q$1) -> 0 | R20: =VLOOKUP(DropDownList!$B$47,CntyQuery!$A$118:$FZ$144,R$1) -> 0 | S20: =VLOOKUP(DropDownList!$B$47,CntyQuery!$A$118:$FZ$144,S$1) -> 2 | T20: =VLOOKUP(DropDownList!$B$47,CntyQuery!$A$118:$FZ$144,T$1) -> 0 | U20: =VLOOKUP(DropDownList!$B$47,CntyQuery!$A$118:$FZ$144,U$1) -> 2 | V20: =VLOOKUP(DropDownList!$B$47,CntyQuery!$A$118:$FZ$144,V$1) -> 3 | W20: =VLOOKUP(DropDownList!$B$47,CntyQuery!$A$118:$FZ$144,W$1) -> 0 | X20: =VLOOKUP(DropDownList!$B$47,CntyQuery!$A$118:$FZ$144,X$1) -> 0 | Y20: =VLOOKUP(DropDownList!$B$47,CntyQuery!$A$118:$FZ$144,Y$1) -> 2 | Z20: =VLOOKUP(DropDownList!$B$47,CntyQuery!$A$118:$FZ$144,Z$1) -> 74 | AA20: =VLOOKUP(DropDownList!$B$47,CntyQuery!$A$118:$FZ$144,AA$1) -> 3 | AB20: =VLOOKUP(DropDownList!$B$47,CntyQuery!$A$118:$FZ$144,AB$1) -> 24 | AC20: =VLOOKUP(DropDownList!$B$47,CntyQuery!$A$118:$FZ$144,AC$1) -> 76 | AD20: =VLOOKUP(DropDownList!$B$47,CntyQuery!$A$118:$FZ$144,AD$1) -> 3 | AE20: =VLOOKUP(DropDownList!$B$47,CntyQuery!$A$118:$FZ$144,AE$1) -> 52 | AF20: =VLOOKUP(DropDownList!$B$47,CntyQuery!$A$118:$FZ$144,AF$1) -> 35 | AG20: =VLOOKUP(DropDownList!$B$47,CntyQuery!$A$118:$FZ$144,AG$1) -> 0 | AH20: =VLOOKUP(DropDownList!$B$47,CntyQuery!$A$118:$FZ$144,AH$1) -> 11 | AI20: =VLOOKUP(DropDownList!$B$47,CntyQuery!$A$118:$FZ$144,AI$1) -> 2 | AJ20: =VLOOKUP(DropDownList!$B$47,CntyQuery!$A$118:$FZ$144,AJ$1) -> 0 | AK20: =VLOOKUP(DropDownList!$B$47,CntyQuery!$A$118:$FZ$144,AK$1) -> 29 | AL20: =VLOOKUP(DropDownList!$B$47,CntyQuery!$A$118:$FZ$144,AL$1) -> 7 | AM20: =VLOOKUP(DropDownList!$B$47,CntyQuery!$A$118:$FZ$144,AM$1) -> 17 | AN20: =VLOOKUP(DropDownList!$B$47,CntyQuery!$A$118:$FZ$144,AN$1) -> 13 | AO20: =VLOOKUP(DropDownList!$B$47,CntyQuery!$A$118:$FZ$144,AO$1) -> 1 | AP20: =VLOOKUP(DropDownList!$B$47,CntyQuery!$A$118:$FZ$144,AP$1) -> 0 | AQ20: =VLOOKUP(DropDownList!$B$47,CntyQuery!$A$118:$FZ$144,AQ$1) -> 3 | AR20: =VLOOKUP(DropDownList!$B$47,CntyQuery!$A$118:$FZ$144,AR$1) -> 1 | AS20: =VLOOKUP(DropDownList!$B$47,CntyQuery!$A$118:$FZ$144,AS$1) -> 0 | AT20: =VLOOKUP(DropDownList!$B$47,CntyQuery!$A$118:$FZ$144,AT$1) -> 4 | AU20: =VLOOKUP(DropDownList!$B$47,CntyQuery!$A$118:$FZ$144,AU$1) -> 0 | AV20: =VLOOKUP(DropDownList!$B$47,CntyQuery!$A$118:$FZ$144,AV$1) -> 0 | AW20: =VLOOKUP(DropDownList!$B$47,CntyQuery!$A$118:$FZ$144,AW$1) -> 4 | AX20: =VLOOKUP(DropDownList!$B$47,CntyQuery!$A$118:$FZ$144,AX$1) -> 0 | AY20: =VLOOKUP(DropDownList!$B$47,CntyQuery!$A$118:$FZ$144,AY$1) -> 0 | AZ20: =VLOOKUP(DropDownList!$B$47,CntyQuery!$A$118:$FZ$144,AZ$1) -> 17 | BA20: =VLOOKUP(DropDownList!$B$47,CntyQuery!$A$118:$FZ$144,BA$1) -> 0 | BB20: =VLOOKUP(DropDownList!$B$47,CntyQuery!$A$118:$FZ$144,BB$1) -> 2 | BC20: =VLOOKUP(DropDownList!$B$47,CntyQuery!$A$118:$FZ$144,BC$1) -> 6 | BD20: =VLOOKUP(DropDownList!$B$47,CntyQuery!$A$118:$FZ$144,BD$1) -> 0 | BE20: =VLOOKUP(DropDownList!$B$47,CntyQuery!$A$118:$FZ$144,BE$1) -> 11 | BF20: =VLOOKUP(DropDownList!$B$47,CntyQuery!$A$118:$FZ$144,BF$1) -> 5 | BG20: =VLOOKUP(DropDownList!$B$47,CntyQuery!$A$118:$FZ$144,BG$1) -> 0 | BH20: =VLOOKUP(DropDownList!$B$47,CntyQuery!$A$118:$FZ$144,BH$1) -> 18 | BI20: =VLOOKUP(DropDownList!$B$47,CntyQuery!$A$118:$FZ$144,BI$1) -> 2 | BJ20: =VLOOKUP(DropDownList!$B$47,CntyQuery!$A$118:$FZ$144,BJ$1) -> 0 | BK20: =VLOOKUP(DropDownList!$B$47,CntyQuery!$A$118:$FZ$144,BK$1) -> 40 | BL20: =VLOOKUP(DropDownList!$B$47,CntyQuery!$A$118:$FZ$144,BL$1) -> 2 | BM20: =VLOOKUP(DropDownList!$B$47,CntyQuery!$A$118:$FZ$144,BM$1) -> 0 | BN20: =VLOOKUP(DropDownList!$B$47,CntyQuery!$A$118:$FZ$144,BN$1) -> 15 | BO20: =VLOOKUP(DropDownList!$B$47,CntyQuery!$A$118:$FZ$144,BO$1) -> 10 | BP20: =VLOOKUP(DropDownList!$B$47,CntyQuery!$A$118:$FZ$144,BP$1) -> 7 | BQ20: =VLOOKUP(DropDownList!$B$47,CntyQuery!$A$118:$FZ$144,BQ$1) -> 38 | BR20: =VLOOKUP(DropDownList!$B$47,CntyQuery!$A$118:$FZ$144,BR$1) -> 9 | BS20: =VLOOKUP(DropDownList!$B$47,CntyQuery!$A$118:$FZ$144,BS$1) -> 1 | BT20: =VLOOKUP(DropDownList!$B$47,CntyQuery!$A$118:$FZ$144,BT$1) -> 30 | BU20: =VLOOKUP(DropDownList!$B$47,CntyQuery!$A$118:$FZ$144,BU$1) -> 3 | BV20: =VLOOKUP(DropDownList!$B$47,CntyQuery!$A$118:$FZ$144,BV$1) -> 0 | BW20: =VLOOKUP(DropDownList!$B$47,CntyQuery!$A$118:$FZ$144,BW$1) -> 24 | BX20: =VLOOKUP(DropDownList!$B$47,CntyQuery!$A$118:$FZ$144,BX$1) -> 8 | BY20: =VLOOKUP(DropDownList!$B$47,CntyQuery!$A$118:$FZ$144,BY$1) -> 2 | BZ20: =VLOOKUP(DropDownList!$B$47,CntyQuery!$A$118:$FZ$144,BZ$1) -> 17 | CA20: =VLOOKUP(DropDownList!$B$47,CntyQuery!$A$118:$FZ$144,CA$1) -> 7 | CB20: =VLOOKUP(DropDownList!$B$47,CntyQuery!$A$118:$FZ$144,CB$1) -> 1 | CC20: =VLOOKUP(DropDownList!$B$47,CntyQuery!$A$118:$FZ$144,CC$1) -> 14 | CD20: =VLOOKUP(DropDownList!$B$47,CntyQuery!$A$118:$FZ$144,CD$1) -> 1 | CE20: =VLOOKUP(DropDownList!$B$47,CntyQuery!$A$118:$FZ$144,CE$1) -> 2 | CF20: =VLOOKUP(DropDownList!$B$47,CntyQuery!$A$118:$FZ$144,CF$1) -> 7 | CG20: =VLOOKUP(DropDownList!$B$47,CntyQuery!$A$118:$FZ$144,CG$1) -> 9 | CH20: =VLOOKUP(DropDownList!$B$47,CntyQuery!$A$118:$FZ$144,CH$1) -> 0 | CI20: =VLOOKUP(DropDownList!$B$47,CntyQuery!$A$118:$FZ$144,CI$1) -> 7 | CJ20: =VLOOKUP(DropDownList!$B$47,CntyQuery!$A$118:$FZ$144,CJ$1) -> 9 | CK20: =VLOOKUP(DropDownList!$B$47,CntyQuery!$A$118:$FZ$144,CK$1) -> 0 | CL20: =VLOOKUP(DropDownList!$B$47,CntyQuery!$A$118:$FZ$144,CL$1) -> 0 | CM20: =VLOOKUP(DropDownList!$B$47,CntyQuery!$A$118:$FZ$144,CM$1) -> 16 | CN20: =VLOOKUP(DropDownList!$B$47,CntyQuery!$A$118:$FZ$144,CN$1) -> 0 | CO20: =VLOOKUP(DropDownList!$B$47,CntyQuery!$A$118:$FZ$144,CO$1) -> 11 | CP20: =VLOOKUP(DropDownList!$B$47,CntyQuery!$A$118:$FZ$144,CP$1) -> 9 | CQ20: =VLOOKUP(DropDownList!$B$47,CntyQuery!$A$118:$FZ$144,CQ$1) -> 0 | CR20: =VLOOKUP(DropDownList!$B$47,CntyQuery!$A$118:$FZ$144,CR$1) -> 14 | CS20: =VLOOKUP(DropDownList!$B$47,CntyQuery!$A$118:$FZ$144,CS$1) -> -3 | CT20: =VLOOKUP(DropDownList!$B$47,CntyQuery!$A$118:$FZ$144,CT$1) -> 0 | CU20: =VLOOKUP(DropDownList!$B$47,CntyQuery!$A$118:$FZ$144,CU$1) -> 11 | CV20: =VLOOKUP(DropDownList!$B$47,CntyQuery!$A$118:$FZ$144,CV$1) -> 4 | CW20: =VLOOKUP(DropDownList!$B$47,CntyQuery!$A$118:$FZ$144,CW$1) -> 0 | CX20: =VLOOKUP(DropDownList!$B$47,CntyQuery!$A$118:$FZ$144,CX$1) -> 5 | CY20: =VLOOKUP(DropDownList!$B$47,CntyQuery!$A$118:$FZ$144,CY$1) -> 3 | CZ20: =VLOOKUP(DropDownList!$B$47,CntyQuery!$A$118:$FZ$144,CZ$1) -> 0 | DA20: =VLOOKUP(DropDownList!$B$47,CntyQuery!$A$118:$FZ$144,DA$1) -> 3 | DB20: =VLOOKUP(DropDownList!$B$47,CntyQuery!$A$118:$FZ$144,DB$1) -> -1 | DC20: =VLOOKUP(DropDownList!$B$47,CntyQuery!$A$118:$FZ$144,DC$1) -> 2 | DD20: =VLOOKUP(DropDownList!$B$47,CntyQuery!$A$118:$FZ$144,DD$1) -> 3 | DE20: =VLOOKUP(DropDownList!$B$47,CntyQuery!$A$118:$FZ$144,DE$1) -> 1 | DF20: =VLOOKUP(DropDownList!$B$47,CntyQuery!$A$118:$FZ$144,DF$1) -> 0 | DG20: =VLOOKUP(DropDownList!$B$47,CntyQuery!$A$118:$FZ$144,DG$1) -> 1 | DH20: =VLOOKUP(DropDownList!$B$47,CntyQuery!$A$118:$FZ$144,DH$1) -> 3 | DI20: =VLOOKUP(DropDownList!$B$47,CntyQuery!$A$118:$FZ$144,DI$1) -> -6 | DJ20: =VLOOKUP(DropDownList!$B$47,CntyQuery!$A$118:$FZ$144,DJ$1) -> 0 | DK20: =VLOOKUP(DropDownList!$B$47,CntyQuery!$A$118:$FZ$144,DK$1) -> 0 | DL20: =VLOOKUP(DropDownList!$B$47,CntyQuery!$A$118:$FZ$144,DL$1) -> 0 | DM20: =VLOOKUP(DropDownList!$B$47,CntyQuery!$A$118:$FZ$144,DM$1) -> 2 | DN20: =VLOOKUP(DropDownList!$B$47,CntyQuery!$A$118:$FZ$144,DN$1) -> 1 | DO20: =VLOOKUP(DropDownList!$B$47,CntyQuery!$A$118:$FZ$144,DO$1) -> 8 | DP20: =VLOOKUP(DropDownList!$B$47,CntyQuery!$A$118:$FZ$144,DP$1) -> -1 | DQ20: =VLOOKUP(DropDownList!$B$47,CntyQuery!$A$118:$FZ$144,DQ$1) -> 1 | DR20: =VLOOKUP(DropDownList!$B$47,CntyQuery!$A$118:$FZ$144,DR$1) -> 0 | DS20: =VLOOKUP(DropDownList!$B$47,CntyQuery!$A$118:$FZ$144,DS$1) -> 9 | DT20: =VLOOKUP(DropDownList!$B$47,CntyQuery!$A$118:$FZ$144,DT$1) -> 9 | DU20: =VLOOKUP(DropDownList!$B$47,CntyQuery!$A$118:$FZ$144,DU$1) -> 0 | DV20: =VLOOKUP(DropDownList!$B$47,CntyQuery!$A$118:$FZ$144,DV$1) -> -3 | DW20: =VLOOKUP(DropDownList!$B$47,CntyQuery!$A$118:$FZ$144,DW$1) -> 8 | DX20: =VLOOKUP(DropDownList!$B$47,CntyQuery!$A$118:$FZ$144,DX$1) -> 0 | DY20: =VLOOKUP(DropDownList!$B$47,CntyQuery!$A$118:$FZ$144,DY$1) -> 0 | DZ20: =VLOOKUP(DropDownList!$B$47,CntyQuery!$A$118:$FZ$144,DZ$1) -> 5 | EA20: =VLOOKUP(DropDownList!$B$47,CntyQuery!$A$118:$FZ$144,EA$1) -> 0 | EB20: =VLOOKUP(DropDownList!$B$47,CntyQuery!$A$118:$FZ$144,EB$1) -> 2 | EC20: =VLOOKUP(DropDownList!$B$47,CntyQuery!$A$118:$FZ$144,EC$1) -> 3 | ED20: =VLOOKUP(DropDownList!$B$47,CntyQuery!$A$118:$FZ$144,ED$1) -> 39 | EE20: =VLOOKUP(DropDownList!$B$47,CntyQuery!$A$118:$FZ$144,EE$1) -> 7 | EF20: =VLOOKUP(DropDownList!$B$47,CntyQuery!$A$118:$FZ$144,EF$1) -> 0 | EG20: =VLOOKUP(DropDownList!$B$47,CntyQuery!$A$118:$FZ$144,EG$1) -> 0 | EH20: =VLOOKUP(DropDownList!$B$47,CntyQuery!$A$118:$FZ$144,EH$1) -> 0 | EI20: =VLOOKUP(DropDownList!$B$47,CntyQuery!$A$118:$FZ$144,EI$1) -> 3 | EJ20: =VLOOKUP(DropDownList!$B$47,CntyQuery!$A$118:$FZ$144,EJ$1) -> 0 | EK20: =VLOOKUP(DropDownList!$B$47,CntyQuery!$A$118:$FZ$144,EK$1) -> 8 | EL20: =VLOOKUP(DropDownList!$B$47,CntyQuery!$A$118:$FZ$144,EL$1) ->  | EM20: =VLOOKUP(DropDownList!$B$47,CntyQuery!$A$118:$FZ$144,EM$1) -> 7
A23: NH Employment Data | B23: Query Name: DPQryEmploymentByCnty
A24: AreaName | B24: COUNTYCODE | C24: TOTP & G2001 | D24: TOT2001 | E24: GOODPRO2001 | F24: SERVICEPROMAN2001 | G24: WAGEP & G2001 | H24: WAGETOT2001 | I24: WAGEGOODPRO2001 | J24: WAGESERVICEPRO2001 | K24: TOTP & G2002 | L24: TOT2002 | M24: GOODPRO2002 | N24: SERVICEPROMAN2002 | O24: WAGEP & G2002 | P24: WAGETOT2002 | Q24: WAGEGOODPRO2002 | R24: WAGESERVICEPRO2002 | S24: TOTP & G2003 | T24: TOT2003 | U24: GOODPRO2003 | V24: SERVICEPROMAN2003 | W24: WAGEP & G2003 | X24: WAGETOT2003 | Y24: WAGEGOODPRO2003 | Z24: WAGESERVICEPRO2003 | AA24: TOTP & G2004 | AB24: TOT2004 | AC24: GOODPRO2004 | AD24: SERVICEPROMAN2004 | AE24: WAGEP & G2004 | AF24: WAGETOT2004 | AG24: WAGEGOODPRO2004 | AH24: WAGESERVICEPRO2004 | AI24: TOTP & G2005 | AJ24: TOT2005 | AK24: GOODPRO2005 | AL24: SERVICEPROMAN2005 | AM24: WAGEP & G2005 | AN24: WAGETOT2005 | AO24: WAGEGOODPRO2005 | AP24: WAGESERVICEPRO2005 | AQ24: TOTP & G2006 | AR24: TOT2006 | AS24: GOODPRO2006 | AT24: SERVICEPROMAN2006 | AU24: WAGEP & G2006 | AV24: WAGETOT2006 | AW24: WAGEGOODPRO2006 | AX24: WAGESERVICEPRO2006 | AY24: TOTP & G2007 | AZ24: TOT2007 | BA24: GOODPRO2007 | BB24: SERVICEPROMAN2007 | BC24: WAGEP & G2007 | BD24: WAGETOT2007 | BE24: WAGEGOODPRO2007 | BF24: WAGESERVICEPRO2007 | BG24: TOTP & G2008 | BH24: TOT2008 | BI24: GOODPRO2008 | BJ24: SERVICEPROMAN2008 | BK24: WAGEP & G2008 | BL24: WAGETOT2008 | BM24: WAGEGOODPRO2008 | BN24: WAGESERVICEPRO2008 | BO24: TOTP & G2009 | BP24: TOT2009 | BQ24: GOODPRO2009 | BR24: SERVICEPROMAN2009 | BS24: WAGEP & G2009 | BT24: WAGETOT2009 | BU24: WAGEGOODPRO2009 | BV24: WAGESERVICEPRO2009 | BW24: TOTP & G2010 | BX24: TOT2010 | BY24: GOODPRO2010 | BZ24: SERVICEPROMAN2010 | CA24: WAGEP & G2010 | CB24: WAGETOT2010 | CC24: WAGEGOODPRO2010 | CD24: WAGESERVICEPRO2010 | CE24: TOTP & G2011 | CF24: TOT2011 | CG24: GOODPRO2011 | CH24: SERVICEPROMAN2011 | CI24: WAGEP & G2011 | CJ24: WAGETOT2011 | CK24: WAGEGOODPRO2011 | CL24: WAGESERVICEPRO2011 | CM24: TOTP & G2012 | CN24: TOT2012 | CO24: GOODPRO2012 | CP24: SERVICEPROMAN2012 | CQ24: WAGEP & G2012 | CR24: WAGETOT2012 | CS24: WAGEGOODPRO2012 | CT24: WAGESERVICEPRO2012 | CU24: TOTP & G2013 | CV24: TOT2013 | CW24: GOODPRO2013 | CX24: SERVICEPROMAN2013 | CY24: WAGEP & G2013 | CZ24: WAGETOT2013 | DA24: WAGEGOODPRO2013 | DB24: WAGESERVICEPRO2013 | DC24: TOTP & G2014 | DD24: TOT2014 | DE24: GOODPRO2014 | DF24: SERVICEPROMAN2014 | DG24: WAGEP & G2014 | DH24: WAGETOT2014 | DI24: WAGEGOODPRO2014 | DJ24: WAGESERVICEPRO2014 | DK24: TOTP & G2015 | DL24: TOT2015 | DM24: GOODPRO2015 | DN24: SERVICEPROMAN2015 | DO24: WAGEP & G2015 | DP24: WAGETOT2015 | DQ24: WAGEGOODPRO2015 | DR24: WAGESERVICEPRO2015 | DS24: TOTP & G2016 | DT24: TOT2016 | DU24: GOODPRO2016 | DV24: SERVICEPROMAN2016 | DW24: WAGEP & G2016 | DX24: WAGETOT2016 | DY24: WAGEGOODPRO2016 | DZ24: WAGESERVICEPRO2016 | EA24: TOTP & G2017 | EB24: TOT2017 | EC24: GOODPRO2017 | ED24: SERVICEPROMAN2017 | EE24: WAGEP & G2017 | EF24: WAGETOT2017 | EG24: WAGEGOODPRO2017 | EH24: WAGESERVICEPRO2017 | EI24: TOTP & G2018 | EJ24: TOT2018 | EK24: GOODPRO2018 | EL24: SERVICEPROMAN2018 | EM24: WAGEP & G2018 | EN24: WAGETOT2018 | EO24: WAGEGOODPRO2018 | EP24: WAGESERVICEPRO2018 | EQ24: TOTP & G2019 | ER24: TOT2019 | ES24: TOTGov2019 | ET24: GOODPRO2019 | EU24: SERVICEPROMAN2019 | EV24: WAGEP & G2019 | EW24: WAGETOT2019 | EX24: WAGEGov2019 | EY24: WAGEGOODPRO2019 | EZ24: WAGESERVICEPRO2019 | FA24: TOTP & G2020 | FB24: TOT2020 | FC24: TOTGov2020 | FD24: GOODPRO2020 | FE24: SERVICEPROMAN2020 | FF24: WAGEP & G2020 | FG24: WAGETOT2020 | FH24: WAGEGov2020 | FI24: WAGEGOODPRO2020 | FJ24: WAGESERVICEPRO2020 | FK24: TOTP & G2021 | FL24: TOT2021 | FM24: TOTGov2021 | FN24: GOODPRO2021 | FO24: SERVICEPROMAN2021 | FP24: WAGEP & G2021 | FQ24: WAGETOT2021 | FR24: WAGEGov2021 | FS24: WAGEGOODPRO2021 | FT24: WAGESERVICEPRO2021 | FU24: TOTP & G2022 | FV24: TOT2022 | FW24: TOTGov2022 | FX24: GOODPRO2022 | FY24: SERVICEPROMAN2022 | FZ24: WAGEP & G2022 | GA24: WAGETOT2022 | GB24: WAGEGov2022 | GC24: WAGEGOODPRO2022 | GD24: WAGESERVICEPRO2022 | GE24: COUNTYCODE
A25: =VLOOKUP(DropDownList!$B$47,CntyQuery!$A$171:$GZ$197,A$1) -> Allenstown | B25: =VLOOKUP(DropDownList!$B$47,CntyQuery!$A$171:$GZ$197,B$1) -> 7 | C25: =VLOOKUP(DropDownList!$B$47,CntyQuery!$A$171:$GZ$197,C$1) -> 567 | D25: =VLOOKUP(DropDownList!$B$47,CntyQuery!$A$171:$GZ$197,D$1) -> 420 | E25: =VLOOKUP(DropDownList!$B$47,CntyQuery!$A$171:$GZ$197,E$1) -> 75 | F25: =VLOOKUP(DropDownList!$B$47,CntyQuery!$A$171:$GZ$197,F$1) -> 345 | G25: =VLOOKUP(DropDownList!$B$47,CntyQuery!$A$171:$GZ$197,G$1) -> 458.23 | H25: =VLOOKUP(DropDownList!$B$47,CntyQuery!$A$171:$GZ$197,H$1) -> 450.68 | I25: =VLOOKUP(DropDownList!$B$47,CntyQuery!$A$171:$GZ$197,I$1) -> 690.66 | J25: =VLOOKUP(DropDownList!$B$47,CntyQuery!$A$171:$GZ$197,J$1) -> 398.54 | K25: =VLOOKUP(DropDownList!$B$47,CntyQuery!$A$171:$GZ$197,K$1) -> 547 | L25: =VLOOKUP(DropDownList!$B$47,CntyQuery!$A$171:$GZ$197,L$1) -> 394 | M25: =VLOOKUP(DropDownList!$B$47,CntyQuery!$A$171:$GZ$197,M$1) -> 75 | N25: =VLOOKUP(DropDownList!$B$47,CntyQuery!$A$171:$GZ$197,N$1) -> 319 | O25: =VLOOKUP(DropDownList!$B$47,CntyQuery!$A$171:$GZ$197,O$1) -> 467.99 | P25: =VLOOKUP(DropDownList!$B$47,CntyQuery!$A$171:$GZ$197,P$1) -> 451.45 | Q25: =VLOOKUP(DropDownList!$B$47,CntyQuery!$A$171:$GZ$197,Q$1) -> 650.45 | R25: =VLOOKUP(DropDownList!$B$47,CntyQuery!$A$171:$GZ$197,R$1) -> 404.38 | S25: =VLOOKUP(DropDownList!$B$47,CntyQuery!$A$171:$GZ$197,S$1) -> 575 | T25: =VLOOKUP(DropDownList!$B$47,CntyQuery!$A$171:$GZ$197,T$1) -> 417 | U25: =VLOOKUP(DropDownList!$B$47,CntyQuery!$A$171:$GZ$197,U$1) -> 85 | V25: =VLOOKUP(DropDownList!$B$47,CntyQuery!$A$171:$GZ$197,V$1) -> 332 | W25: =VLOOKUP(DropDownList!$B$47,CntyQuery!$A$171:$GZ$197,W$1) -> 481.57 | X25: =VLOOKUP(DropDownList!$B$47,CntyQuery!$A$171:$GZ$197,X$1) -> 465.16 | Y25: =VLOOKUP(DropDownList!$B$47,CntyQuery!$A$171:$GZ$197,Y$1) -> 625.3 | Z25: =VLOOKUP(DropDownList!$B$47,CntyQuery!$A$171:$GZ$197,Z$1) -> 424.06 | AA25: =VLOOKUP(DropDownList!$B$47,CntyQuery!$A$171:$GZ$197,AA$1) -> 580 | AB25: =VLOOKUP(DropDownList!$B$47,CntyQuery!$A$171:$GZ$197,AB$1) -> 414 | AC25: =VLOOKUP(DropDownList!$B$47,CntyQuery!$A$171:$GZ$197,AC$1) -> 79 | AD25: =VLOOKUP(DropDownList!$B$47,CntyQuery!$A$171:$GZ$197,AD$1) -> 335 | AE25: =VLOOKUP(DropDownList!$B$47,CntyQuery!$A$171:$GZ$197,AE$1) -> 559.34 | AF25: =VLOOKUP(DropDownList!$B$47,CntyQuery!$A$171:$GZ$197,AF$1) -> 570.74 | AG25: =VLOOKUP(DropDownList!$B$47,CntyQuery!$A$171:$GZ$197,AG$1) -> 713.84 | AH25: =VLOOKUP(DropDownList!$B$47,CntyQuery!$A$171:$GZ$197,AH$1) -> 536.88 | AI25: =VLOOKUP(DropDownList!$B$47,CntyQuery!$A$171:$GZ$197,AI$1) -> 783 | AJ25: =VLOOKUP(DropDownList!$B$47,CntyQuery!$A$171:$GZ$197,AJ$1) -> 609 | AK25: =VLOOKUP(DropDownList!$B$47,CntyQuery!$A$171:$GZ$197,AK$1) -> n | AL25: =VLOOKUP(DropDownList!$B$47,CntyQuery!$A$171:$GZ$197,AL$1) -> n | AM25: =VLOOKUP(DropDownList!$B$47,CntyQuery!$A$171:$GZ$197,AM$1) -> 541.73 | AN25: =VLOOKUP(DropDownList!$B$47,CntyQuery!$A$171:$GZ$197,AN$1) -> 541.84 | AO25: =VLOOKUP(DropDownList!$B$47,CntyQuery!$A$171:$GZ$197,AO$1) -> n | AP25: =VLOOKUP(DropDownList!$B$47,CntyQuery!$A$171:$GZ$197,AP$1) -> n | AQ25: =VLOOKUP(DropDownList!$B$47,CntyQuery!$A$171:$GZ$197,AQ$1) -> 722 | AR25: =VLOOKUP(DropDownList!$B$47,CntyQuery!$A$171:$GZ$197,AR$1) -> 535 | AS25: =VLOOKUP(DropDownList!$B$47,CntyQuery!$A$171:$GZ$197,AS$1) -> 165 | AT25: =VLOOKUP(DropDownList!$B$47,CntyQuery!$A$171:$GZ$197,AT$1) -> 370 | AU25: =VLOOKUP(DropDownList!$B$47,CntyQuery!$A$171:$GZ$197,AU$1) -> 542.58 | AV25: =VLOOKUP(DropDownList!$B$47,CntyQuery!$A$171:$GZ$197,AV$1) -> 544.84 | AW25: =VLOOKUP(DropDownList!$B$47,CntyQuery!$A$171:$GZ$197,AW$1) -> 526.5 | AX25: =VLOOKUP(DropDownList!$B$47,CntyQuery!$A$171:$GZ$197,AX$1) -> 553 | AY25: =VLOOKUP(DropDownList!$B$47,CntyQuery!$A$171:$GZ$197,AY$1) -> 709 | AZ25: =VLOOKUP(DropDownList!$B$47,CntyQuery!$A$171:$GZ$197,AZ$1) -> 516 | BA25: =VLOOKUP(DropDownList!$B$47,CntyQuery!$A$171:$GZ$197,BA$1) -> 120 | BB25: =VLOOKUP(DropDownList!$B$47,CntyQuery!$A$171:$GZ$197,BB$1) -> 395 | BC25: =VLOOKUP(DropDownList!$B$47,CntyQuery!$A$171:$GZ$197,BC$1) -> 566.6 | BD25: =VLOOKUP(DropDownList!$B$47,CntyQuery!$A$171:$GZ$197,BD$1) -> 574.7 | BE25: =VLOOKUP(DropDownList!$B$47,CntyQuery!$A$171:$GZ$197,BE$1) -> 577.93 | BF25: =VLOOKUP(DropDownList!$B$47,CntyQuery!$A$171:$GZ$197,BF$1) -> 573.71 | BG25: =VLOOKUP(DropDownList!$B$47,CntyQuery!$A$171:$GZ$197,BG$1) -> 720 | BH25: =VLOOKUP(DropDownList!$B$47,CntyQuery!$A$171:$GZ$197,BH$1) -> 525 | BI25: =VLOOKUP(DropDownList!$B$47,CntyQuery!$A$171:$GZ$197,BI$1) -> 141 | BJ25: =VLOOKUP(DropDownList!$B$47,CntyQuery!$A$171:$GZ$197,BJ$1) -> 385 | BK25: =VLOOKUP(DropDownList!$B$47,CntyQuery!$A$171:$GZ$197,BK$1) -> 603.02 | BL25: =VLOOKUP(DropDownList!$B$47,CntyQuery!$A$171:$GZ$197,BL$1) -> 610.47 | BM25: =VLOOKUP(DropDownList!$B$47,CntyQuery!$A$171:$GZ$197,BM$1) -> 623.51 | BN25: =VLOOKUP(DropDownList!$B$47,CntyQuery!$A$171:$GZ$197,BN$1) -> 605.7 | BO25: =VLOOKUP(DropDownList!$B$47,CntyQuery!$A$171:$GZ$197,BO$1) -> 630 | BP25: =VLOOKUP(DropDownList!$B$47,CntyQuery!$A$171:$GZ$197,BP$1) -> 466 | BQ25: =VLOOKUP(DropDownList!$B$47,CntyQuery!$A$171:$GZ$197,BQ$1) -> 137 | BR25: =VLOOKUP(DropDownList!$B$47,CntyQuery!$A$171:$GZ$197,BR$1) -> 329 | BS25: =VLOOKUP(DropDownList!$B$47,CntyQuery!$A$171:$GZ$197,BS$1) -> 632.93 | BT25: =VLOOKUP(DropDownList!$B$47,CntyQuery!$A$171:$GZ$197,BT$1) -> 611.42 | BU25: =VLOOKUP(DropDownList!$B$47,CntyQuery!$A$171:$GZ$197,BU$1) -> 615.42 | BV25: =VLOOKUP(DropDownList!$B$47,CntyQuery!$A$171:$GZ$197,BV$1) -> 609.76 | BW25: =VLOOKUP(DropDownList!$B$47,CntyQuery!$A$171:$GZ$197,BW$1) -> 646 | BX25: =VLOOKUP(DropDownList!$B$47,CntyQuery!$A$171:$GZ$197,BX$1) -> 472 | BY25: =VLOOKUP(DropDownList!$B$47,CntyQuery!$A$171:$GZ$197,BY$1) -> 147 | BZ25: =VLOOKUP(DropDownList!$B$47,CntyQuery!$A$171:$GZ$197,BZ$1) -> 325 | CA25: =VLOOKUP(DropDownList!$B$47,CntyQuery!$A$171:$GZ$197,CA$1) -> 628.93 | CB25: =VLOOKUP(DropDownList!$B$47,CntyQuery!$A$171:$GZ$197,CB$1) -> 628.46 | CC25: =VLOOKUP(DropDownList!$B$47,CntyQuery!$A$171:$GZ$197,CC$1) -> 630.44 | CD25: =VLOOKUP(DropDownList!$B$47,CntyQuery!$A$171:$GZ$197,CD$1) -> 627.57 | CE25: =VLOOKUP(DropDownList!$B$47,CntyQuery!$A$171:$GZ$197,CE$1) -> 669 | CF25: =VLOOKUP(DropDownList!$B$47,CntyQuery!$A$171:$GZ$197,CF$1) -> 487 | CG25: =VLOOKUP(DropDownList!$B$47,CntyQuery!$A$171:$GZ$197,CG$1) -> 147 | CH25: =VLOOKUP(DropDownList!$B$47,CntyQuery!$A$171:$GZ$197,CH$1) -> 341 | CI25: =VLOOKUP(DropDownList!$B$47,CntyQuery!$A$171:$GZ$197,CI$1) -> 644.14 | CJ25: =VLOOKUP(DropDownList!$B$47,CntyQuery!$A$171:$GZ$197,CJ$1) -> 648.05 | CK25: =VLOOKUP(DropDownList!$B$47,CntyQuery!$A$171:$GZ$197,CK$1) -> 628.24 | CL25: =VLOOKUP(DropDownList!$B$47,CntyQuery!$A$171:$GZ$197,CL$1) -> 656.56 | CM25: =VLOOKUP(DropDownList!$B$47,CntyQuery!$A$171:$GZ$197,CM$1) -> 708 | CN25: =VLOOKUP(DropDownList!$B$47,CntyQuery!$A$171:$GZ$197,CN$1) -> 528 | CO25: =VLOOKUP(DropDownList!$B$47,CntyQuery!$A$171:$GZ$197,CO$1) -> 157 | CP25: =VLOOKUP(DropDownList!$B$47,CntyQuery!$A$171:$GZ$197,CP$1) -> 372 | CQ25: =VLOOKUP(DropDownList!$B$47,CntyQuery!$A$171:$GZ$197,CQ$1) -> 648.84 | CR25: =VLOOKUP(DropDownList!$B$47,CntyQuery!$A$171:$GZ$197,CR$1) -> 660.75 | CS25: =VLOOKUP(DropDownList!$B$47,CntyQuery!$A$171:$GZ$197,CS$1) -> 653.44 | CT25: =VLOOKUP(DropDownList!$B$47,CntyQuery!$A$171:$GZ$197,CT$1) -> 663.82 | CU25: =VLOOKUP(DropDownList!$B$47,CntyQuery!$A$171:$GZ$197,CU$1) -> 735 | CV25: =VLOOKUP(DropDownList!$B$47,CntyQuery!$A$171:$GZ$197,CV$1) -> 576 | CW25: =VLOOKUP(DropDownList!$B$47,CntyQuery!$A$171:$GZ$197,CW$1) -> 197 | CX25: =VLOOKUP(DropDownList!$B$47,CntyQuery!$A$171:$GZ$197,CX$1) -> 379 | CY25: =VLOOKUP(DropDownList!$B$47,CntyQuery!$A$171:$GZ$197,CY$1) -> 681.85 | CZ25: =VLOOKUP(DropDownList!$B$47,CntyQuery!$A$171:$GZ$197,CZ$1) -> 676.87 | DA25: =VLOOKUP(DropDownList!$B$47,CntyQuery!$A$171:$GZ$197,DA$1) -> 655.93 | DB25: =VLOOKUP(DropDownList!$B$47,CntyQuery!$A$171:$GZ$197,DB$1) -> 687.74 | DC25: =VLOOKUP(DropDownList!$B$47,CntyQuery!$A$171:$GZ$197,DC$1) -> 719 | DD25: =VLOOKUP(DropDownList!$B$47,CntyQuery!$A$171:$GZ$197,DD$1) -> 555 | DE25: =VLOOKUP(DropDownList!$B$47,CntyQuery!$A$171:$GZ$197,DE$1) -> 182 | DF25: =VLOOKUP(DropDownList!$B$47,CntyQuery!$A$171:$GZ$197,DF$1) -> 373 | DG25: =VLOOKUP(DropDownList!$B$47,CntyQuery!$A$171:$GZ$197,DG$1) -> 697.28 | DH25: =VLOOKUP(DropDownList!$B$47,CntyQuery!$A$171:$GZ$197,DH$1) -> 696.05 | DI25: =VLOOKUP(DropDownList!$B$47,CntyQuery!$A$171:$GZ$197,DI$1) -> 730.28 | DJ25: =VLOOKUP(DropDownList!$B$47,CntyQuery!$A$171:$GZ$197,DJ$1) -> 679.41 | DK25: =VLOOKUP(DropDownList!$B$47,CntyQuery!$A$171:$GZ$197,DK$1) -> 649 | DL25: =VLOOKUP(DropDownList!$B$47,CntyQuery!$A$171:$GZ$197,DL$1) -> 480 | DM25: =VLOOKUP(DropDownList!$B$47,CntyQuery!$A$171:$GZ$197,DM$1) -> 170 | DN25: =VLOOKUP(DropDownList!$B$47,CntyQuery!$A$171:$GZ$197,DN$1) -> 310 | DO25: =VLOOKUP(DropDownList!$B$47,CntyQuery!$A$171:$GZ$197,DO$1) -> 714.69 | DP25: =VLOOKUP(DropDownList!$B$47,CntyQuery!$A$171:$GZ$197,DP$1) -> 707.52 | DQ25: =VLOOKUP(DropDownList!$B$47,CntyQuery!$A$171:$GZ$197,DQ$1) -> 809.33 | DR25: =VLOOKUP(DropDownList!$B$47,CntyQuery!$A$171:$GZ$197,DR$1) -> 651.65 | DS25: =VLOOKUP(DropDownList!$B$47,CntyQuery!$A$171:$GZ$197,DS$1) -> 618 | DT25: =VLOOKUP(DropDownList!$B$47,CntyQuery!$A$171:$GZ$197,DT$1) -> 447 | DU25: =VLOOKUP(DropDownList!$B$47,CntyQuery!$A$171:$GZ$197,DU$1) -> 127 | DV25: =VLOOKUP(DropDownList!$B$47,CntyQuery!$A$171:$GZ$197,DV$1) -> 320 | DW25: =VLOOKUP(DropDownList!$B$47,CntyQuery!$A$171:$GZ$197,DW$1) -> 744.13 | DX25: =VLOOKUP(DropDownList!$B$47,CntyQuery!$A$171:$GZ$197,DX$1) -> 758.48 | DY25: =VLOOKUP(DropDownList!$B$47,CntyQuery!$A$171:$GZ$197,DY$1) -> 998.41 | DZ25: =VLOOKUP(DropDownList!$B$47,CntyQuery!$A$171:$GZ$197,DZ$1) -> 662.94 | EA25: =VLOOKUP(DropDownList!$B$47,CntyQuery!$A$171:$GZ$197,EA$1) -> 555 | EB25: =VLOOKUP(DropDownList!$B$47,CntyQuery!$A$171:$GZ$197,EB$1) -> 390 | EC25: =VLOOKUP(DropDownList!$B$47,CntyQuery!$A$171:$GZ$197,EC$1) -> 126 | ED25: =VLOOKUP(DropDownList!$B$47,CntyQuery!$A$171:$GZ$197,ED$1) -> 264 | EE25: =VLOOKUP(DropDownList!$B$47,CntyQuery!$A$171:$GZ$197,EE$1) -> 787.98 | EF25: =VLOOKUP(DropDownList!$B$47,CntyQuery!$A$171:$GZ$197,EF$1) -> 810.13 | EG25: =VLOOKUP(DropDownList!$B$47,CntyQuery!$A$171:$GZ$197,EG$1) -> 985.01 | EH25: =VLOOKUP(DropDownList!$B$47,CntyQuery!$A$171:$GZ$197,EH$1) -> 726.91 | EI25: =VLOOKUP(DropDownList!$B$47,CntyQuery!$A$171:$GZ$197,EI$1) -> 704 | EJ25: =VLOOKUP(DropDownList!$B$47,CntyQuery!$A$171:$GZ$197,EJ$1) -> 370 | EK25: =VLOOKUP(DropDownList!$B$47,CntyQuery!$A$171:$GZ$197,EK$1) -> 114 | EL25: =VLOOKUP(DropDownList!$B$47,CntyQuery!$A$171:$GZ$197,EL$1) -> 256 | EM25: =VLOOKUP(DropDownList!$B$47,CntyQuery!$A$171:$GZ$197,EM$1) -> 881.97 | EN25: =VLOOKUP(DropDownList!$B$47,CntyQuery!$A$171:$GZ$197,EN$1) -> 877.59 | EO25: =VLOOKUP(DropDownList!$B$47,CntyQuery!$A$171:$GZ$197,EO$1) -> 1084.36 | EP25: =VLOOKUP(DropDownList!$B$47,CntyQuery!$A$171:$GZ$197,EP$1) -> 785.18 | EQ25: =VLOOKUP(DropDownList!$B$47,CntyQuery!$A$171:$GZ$197,EQ$1) -> 741 | ER25: =VLOOKUP(DropDownList!$B$47,CntyQuery!$A$171:$GZ$197,ER$1) -> 394 | ES25: =VLOOKUP(DropDownList!$B$47,CntyQuery!$A$171:$GZ$197,ES$1) -> 348 | ET25: =VLOOKUP(DropDownList!$B$47,CntyQuery!$A$171:$GZ$197,ET$1) -> 117 | EU25: =VLOOKUP(DropDownList!$B$47,CntyQuery!$A$171:$GZ$197,EU$1) -> 277 | EV25: =VLOOKUP(DropDownList!$B$47,CntyQuery!$A$171:$GZ$197,EV$1) -> 851.29 | EW25: =VLOOKUP(DropDownList!$B$47,CntyQuery!$A$171:$GZ$197,EW$1) -> 836.77 | EX25: =VLOOKUP(DropDownList!$B$47,CntyQuery!$A$171:$GZ$197,EX$1) -> 867.73 | EY25: =VLOOKUP(DropDownList!$B$47,CntyQuery!$A$171:$GZ$197,EY$1) -> 1054.58 | EZ25: =VLOOKUP(DropDownList!$B$47,CntyQuery!$A$171:$GZ$197,EZ$1) -> 744.63 | FA25: =VLOOKUP(DropDownList!$B$47,CntyQuery!$A$171:$GZ$197,FA$1) -> 716 | FB25: =VLOOKUP(DropDownList!$B$47,CntyQuery!$A$171:$GZ$197,FB$1) -> 391 | FC25: =VLOOKUP(DropDownList!$B$47,CntyQuery!$A$171:$GZ$197,FC$1) -> 325 | FD25: =VLOOKUP(DropDownList!$B$47,CntyQuery!$A$171:$GZ$197,FD$1) -> 120 | FE25: =VLOOKUP(DropDownList!$B$47,CntyQuery!$A$171:$GZ$197,FE$1) -> 271 | FF25: =VLOOKUP(DropDownList!$B$47,CntyQuery!$A$171:$GZ$197,FF$1) -> 951.37 | FG25: =VLOOKUP(DropDownList!$B$47,CntyQuery!$A$171:$GZ$197,FG$1) -> 943.55 | FH25: =VLOOKUP(DropDownList!$B$47,CntyQuery!$A$171:$GZ$197,FH$1) -> 960.79 | FI25: =VLOOKUP(DropDownList!$B$47,CntyQuery!$A$171:$GZ$197,FI$1) -> 1133.03 | FJ25: =VLOOKUP(DropDownList!$B$47,CntyQuery!$A$171:$GZ$197,FJ$1) -> 859.35 | FK25: =VLOOKUP(DropDownList!$B$47,CntyQuery!$A$171:$GZ$197,FK$1) -> 792 | FL25: =VLOOKUP(DropDownList!$B$47,CntyQuery!$A$171:$GZ$197,FL$1) -> 460 | FM25: =VLOOKUP(DropDownList!$B$47,CntyQuery!$A$171:$GZ$197,FM$1) -> 333 | FN25: =VLOOKUP(DropDownList!$B$47,CntyQuery!$A$171:$GZ$197,FN$1) -> 123 | FO25: =VLOOKUP(DropDownList!$B$47,CntyQuery!$A$171:$GZ$197,FO$1) -> 337 | FP25: =VLOOKUP(DropDownList!$B$47,CntyQuery!$A$171:$GZ$197,FP$1) -> 909.17 | FQ25: =VLOOKUP(DropDownList!$B$47,CntyQuery!$A$171:$GZ$197,FQ$1) -> 895.01 | FR25: =VLOOKUP(DropDownList!$B$47,CntyQuery!$A$171:$GZ$197,FR$1) -> 928.76 | FS25: =VLOOKUP(DropDownList!$B$47,CntyQuery!$A$171:$GZ$197,FS$1) -> 1184.06 | FT25: =VLOOKUP(DropDownList!$B$47,CntyQuery!$A$171:$GZ$197,FT$1) -> 789.1 | FU25: =VLOOKUP(DropDownList!$B$47,CntyQuery!$A$171:$GZ$197,FU$1) -> 842 | FV25: =VLOOKUP(DropDownList!$B$47,CntyQuery!$A$171:$GZ$197,FV$1) -> 503 | FW25: =VLOOKUP(DropDownList!$B$47,CntyQuery!$A$171:$GZ$197,FW$1) -> 339 | FX25: =VLOOKUP(DropDownList!$B$47,CntyQuery!$A$171:$GZ$197,FX$1) -> 125 | FY25: =VLOOKUP(DropDownList!$B$47,CntyQuery!$A$171:$GZ$197,FY$1) -> 378 | FZ25: =VLOOKUP(DropDownList!$B$47,CntyQuery!$A$171:$GZ$197,FZ$1) -> 930 | GA25: =VLOOKUP(DropDownList!$B$47,CntyQuery!$A$171:$GZ$197,GA$1) -> 939 | GB25: =VLOOKUP(DropDownList!$B$47,CntyQuery!$A$171:$GZ$197,GB$1) -> 916 | GC25: =VLOOKUP(DropDownList!$B$47,CntyQuery!$A$171:$GZ$197,GC$1) -> 1343 | GD25: =VLOOKUP(DropDownList!$B$47,CntyQuery!$A$171:$GZ$197,GD$1) -> 806 | GE25: =VLOOKUP(DropDownList!$B$47,CntyQuery!$A$171:$GZ$197,GE$1) -> 7
B29: LaborForce1990 | C29: LaborForce1991 | D29: LaborForce1992 | E29: LaborForce1993 | F29: LaborForce1994 | G29: LaborForce1995 | H29: LaborForce1996 | I29: LaborForce1997 | J29: LaborForce1998 | K29: LaborForce1999 | L29: LaborForce2000 | M29: LaborForce2001 | N29: LaborForce2002 | O29: LaborForce2003 | P29: NumberEmployed1990 | Q29: NumberEmployed1991 | R29: NumberEmployed1992 | S29: NumberEmployed1993 | T29: NumberEmployed1994 | U29: NumberEmployed1995 | V29: NumberEmployed1996 | W29: NumberEmployed1997 | X29: NumberEmployed1998 | Y29: NumberEmployed1999 | Z29: NumberEmployed2000 | AA29: NumberEmployed2001 | AB29: NumberEmployed2002 | AC29: NumberEmployed2003 | AD29: UnempRate1990 | AE29: UnempRate1991 | AF29: UnempRate1992 | AG29: UnempRate1993 | AH29: UnempRate1994 | AI29: UnempRate1995 | AJ29: UnempRate1996 | AK29: UnempRate1997 | AL29: UnempRate1998 | AM29: UnempRate1999 | AN29: UnempRate2000 | AO29: UnempRate2001 | AP29: UnempRate2002 | AQ29: UnempRate2003 | AR29: NumbUnEmployed1990 | AS29: NumbUnEmployed1991 | AT29: NumbUnEmployed1992 | AU29: NumbUnEmployed1993 | AV29: NumbUnEmployed1994 | AW29: NumbUnEmployed1995 | AX29: NumbUnEmployed1996 | AY29: NumbUnEmployed1997 | AZ29: NumbUnEmployed1998 | BA29: NumbUnEmployed1999 | BB29: NumbUnEmployed2000 | BC29: NumbUnEmployed2001 | BD29: NumbUnEmployed2002 | BE29: NumbUnEmployed2003 | BF29: LaborForce2004 | BG29: NumberEmployed2004 | BH29: UnempRate2004 | BI29: NumbUnEmployed2004 | BJ29: LaborForce2005 | BK29: NumberEmployed2005 | BL29: NumbUnEmp2005 | BM29: UnempRate2005 | BN29: LaborForce2006 | BO29: NumberEmployed2006 | BP29: NumbUnEmp2006 | BQ29: UnempRate2006 | BR29: LaborForce2007 | BS29: NumberEmployed2007 | BT29: NumbUnEmp2007 | BU29: UnempRate2007 | BV29: LaborForce2008 | BW29: NumberEmployed2008 | BX29: NumbUnEmp2008 | BY29: UnempRate2008 | BZ29: LaborForce2009 | CA29: NumberEmployed2009 | CB29: NumbUnEmp2009 | CC29: UnempRate2009 | CD29: LaborForce2010 | CE29: NumbEmployed2010 | CF29: NumbUnEmp2010 | CG29: UnempRate2010 | CH29: LaborForce2011 | CI29: NumbEmployed2011 | CJ29: NumbUnEmp2011 | CK29: UnempRate2011 | CL29: LaborForce2012 | CM29: NumbEmployed2012 | CN29: NumbUnEmp2012 | CO29: UnempRate2012 | CP29: LaborForce2013 | CQ29: NumbEmployed2013 | CR29: NumbUnEmp2013 | CS29: UnempRate2013 | CT29: LaborForce2014 | CU29: NumbEmployed2014 | CV29: NumbUnEmp2014 | CW29: UnempRate2014 | CX29: LaborForce2015 | CY29: NumbEmployed2015 | CZ29: NumbUnEmp2015 | DA29: UnempRate2015 | DB29: LaborForce2016 | DC29: NumbEmployed2016 | DD29: NumbUnEmp2016 | DE29: UnempRate2016 | DF29: LaborForce2017 | DG29: NumbEmployed2017 | DH29: NumbUnEmp2017 | DI29: UnempRate2017 | DJ29: LaborForce2018 | DK29: NumbEmployed2018 | DL29: NumbUnEmp2018 | DM29: UnempRate2018 | DN29: LaborForce2019 | DO29: NumbEmployed2019 | DP29: NumbUnEmp2019 | DQ29: UnempRate2019 | DR29: LaborForce2020 | DS29: NumbEmployed2020 | DT29: NumbUnEmp2020 | DU29: UnempRate2020 | DV29: LaborForce2021 | DW29: NumbEmployed2021 | DX29: NumbUnEmp2021 | DY29: UnempRate2021
A30: =VLOOKUP(DropDownList!$B$47,CntyQryCensus!$A$4:$EF$46,A$1) -> Allenstown | B30: =VLOOKUP(DropDownList!$B$47,CntyQuery!$A$220:$EF$229,B$1) ->  | C30: =VLOOKUP(DropDownList!$B$47,CntyQuery!$A$220:$EF$229,C$1) ->  | D30: =VLOOKUP(DropDownList!$B$47,CntyQuery!$A$220:$EF$229,D$1) ->  | E30: =VLOOKUP(DropDownList!$B$47,CntyQuery!$A$220:$EF$229,E$1) ->  | F30: =VLOOKUP(DropDownList!$B$47,CntyQuery!$A$220:$EF$229,F$1) ->  | G30: =VLOOKUP(DropDownList!$B$47,CntyQuery!$A$220:$EF$229,G$1) ->  | H30: =VLOOKUP(DropDownList!$B$47,CntyQuery!$A$220:$EF$229,H$1) ->  | I30: =VLOOKUP(DropDownList!$B$47,CntyQuery!$A$220:$EF$229,I$1) ->  | J30: =VLOOKUP(DropDownList!$B$47,CntyQuery!$A$220:$EF$229,J$1) ->  | K30: =VLOOKUP(DropDownList!$B$47,CntyQuery!$A$220:$EF$229,K$1) ->  | L30: =VLOOKUP(DropDownList!$B$47,CntyQuery!$A$220:$EF$229,L$1) ->  | M30: =VLOOKUP(DropDownList!$B$47,CntyQuery!$A$220:$EF$229,M$1) ->  | N30: =VLOOKUP(DropDownList!$B$47,CntyQuery!$A$220:$EF$229,N$1) ->  | O30: =VLOOKUP(DropDownList!$B$47,CntyQuery!$A$220:$EF$229,O$1) ->  | P30: =VLOOKUP(DropDownList!$B$47,CntyQuery!$A$220:$EF$229,P$1) ->  | Q30: =VLOOKUP(DropDownList!$B$47,CntyQuery!$A$220:$EF$229,Q$1) ->  | R30: =VLOOKUP(DropDownList!$B$47,CntyQuery!$A$220:$EF$229,R$1) ->  | S30: =VLOOKUP(DropDownList!$B$47,CntyQuery!$A$220:$EF$229,S$1) ->  | T30: =VLOOKUP(DropDownList!$B$47,CntyQuery!$A$220:$EF$229,T$1) ->  | U30: =VLOOKUP(DropDownList!$B$47,CntyQuery!$A$220:$EF$229,U$1) ->  | V30: =VLOOKUP(DropDownList!$B$47,CntyQuery!$A$220:$EF$229,V$1) ->  | W30: =VLOOKUP(DropDownList!$B$47,CntyQuery!$A$220:$EF$229,W$1) ->  | X30: =VLOOKUP(DropDownList!$B$47,CntyQuery!$A$220:$EF$229,X$1) ->  | Y30: =VLOOKUP(DropDownList!$B$47,CntyQuery!$A$220:$EF$229,Y$1) ->  | Z30: =VLOOKUP(DropDownList!$B$47,CntyQuery!$A$220:$EF$229,Z$1) ->  | AA30: =VLOOKUP(DropDownList!$B$47,CntyQuery!$A$220:$EF$229,AA$1) ->  | AB30: =VLOOKUP(DropDownList!$B$47,CntyQuery!$A$220:$EF$229,AB$1) ->  | AC30: =VLOOKUP(DropDownList!$B$47,CntyQuery!$A$220:$EF$229,AC$1) ->  | AD30: =VLOOKUP(DropDownList!$B$47,CntyQuery!$A$220:$EF$229,AD$1) ->  | AE30: =VLOOKUP(DropDownList!$B$47,CntyQuery!$A$220:$EF$229,AE$1) ->  | AF30: =VLOOKUP(DropDownList!$B$47,CntyQuery!$A$220:$EF$229,AF$1) ->  | AG30: =VLOOKUP(DropDownList!$B$47,CntyQuery!$A$220:$EF$229,AG$1) ->  | AH30: =VLOOKUP(DropDownList!$B$47,CntyQuery!$A$220:$EF$229,AH$1) ->  | AI30: =VLOOKUP(DropDownList!$B$47,CntyQuery!$A$220:$EF$229,AI$1) ->  | AJ30: =VLOOKUP(DropDownList!$B$47,CntyQuery!$A$220:$EF$229,AJ$1) ->  | AK30: =VLOOKUP(DropDownList!$B$47,CntyQuery!$A$220:$EF$229,AK$1) ->  | AL30: =VLOOKUP(DropDownList!$B$47,CntyQuery!$A$220:$EF$229,AL$1) ->  | AM30: =VLOOKUP(DropDownList!$B$47,CntyQuery!$A$220:$EF$229,AM$1) ->  | AN30: =VLOOKUP(DropDownList!$B$47,CntyQuery!$A$220:$EF$229,AN$1) ->  | AO30: =VLOOKUP(DropDownList!$B$47,CntyQuery!$A$220:$EF$229,AO$1) ->  | AP30: =VLOOKUP(DropDownList!$B$47,CntyQuery!$A$220:$EF$229,AP$1) ->  | AQ30: =VLOOKUP(DropDownList!$B$47,CntyQuery!$A$220:$EF$229,AQ$1) ->  | AR30: =VLOOKUP(DropDownList!$B$47,CntyQuery!$A$220:$EF$229,AR$1) ->  | AS30: =VLOOKUP(DropDownList!$B$47,CntyQuery!$A$220:$EF$229,AS$1) ->  | AT30: =VLOOKUP(DropDownList!$B$47,CntyQuery!$A$220:$EF$229,AT$1) ->  | AU30: =VLOOKUP(DropDownList!$B$47,CntyQuery!$A$220:$EF$229,AU$1) ->  | AV30: =VLOOKUP(DropDownList!$B$47,CntyQuery!$A$220:$EF$229,AV$1) ->  | AW30: =VLOOKUP(DropDownList!$B$47,CntyQuery!$A$220:$EF$229,AW$1) ->  | AX30: =VLOOKUP(DropDownList!$B$47,CntyQuery!$A$220:$EF$229,AX$1) ->  | AY30: =VLOOKUP(DropDownList!$B$47,CntyQuery!$A$220:$EF$229,AY$1) ->  | AZ30: =VLOOKUP(DropDownList!$B$47,CntyQuery!$A$220:$EF$229,AZ$1) ->  | BA30: =VLOOKUP(DropDownList!$B$47,CntyQuery!$A$220:$EF$229,BA$1) ->  | BB30: =VLOOKUP(DropDownList!$B$47,CntyQuery!$A$220:$EF$229,BB$1) ->  | BC30: =VLOOKUP(DropDownList!$B$47,CntyQuery!$A$220:$EF$229,BC$1) ->  | BD30: =VLOOKUP(DropDownList!$B$47,CntyQuery!$A$220:$EF$229,BD$1) ->  | BE30: =VLOOKUP(DropDownList!$B$47,CntyQuery!$A$220:$EF$229,BE$1) ->  | BF30: =VLOOKUP(DropDownList!$B$47,CntyQuery!$A$220:$EF$229,BF$1) ->  | BG30: =VLOOKUP(DropDownList!$B$47,CntyQuery!$A$220:$EF$229,BG$1) ->  | BH30: =VLOOKUP(DropDownList!$B$47,CntyQuery!$A$220:$EF$229,BH$1) ->  | BI30: =VLOOKUP(DropDownList!$B$47,CntyQuery!$A$220:$EF$229,BI$1) ->  | BJ30: =VLOOKUP(DropDownList!$B$47,CntyQuery!$A$220:$EF$229,BJ$1) ->  | BK30: =VLOOKUP(DropDownList!$B$47,CntyQuery!$A$220:$EF$229,BK$1) ->  | BL30: =VLOOKUP(DropDownList!$B$47,CntyQuery!$A$220:$EF$229,BL$1) ->  | BM30: =VLOOKUP(DropDownList!$B$47,CntyQuery!$A$220:$EF$229,BM$1) ->  | BN30: =VLOOKUP(DropDownList!$B$47,CntyQuery!$A$220:$EF$229,BN$1) ->  | BO30: =VLOOKUP(DropDownList!$B$47,CntyQuery!$A$220:$EF$229,BO$1) ->  | BP30: =VLOOKUP(DropDownList!$B$47,CntyQuery!$A$220:$EF$229,BP$1) ->  | BQ30: =VLOOKUP(DropDownList!$B$47,CntyQuery!$A$220:$EF$229,BQ$1) ->  | BR30: =VLOOKUP(DropDownList!$B$47,CntyQuery!$A$220:$EF$229,BR$1) ->  | BS30: =VLOOKUP(DropDownList!$B$47,CntyQuery!$A$220:$EF$229,BS$1) ->  | BT30: =VLOOKUP(DropDownList!$B$47,CntyQuery!$A$220:$EF$229,BT$1) ->  | BU30: =VLOOKUP(DropDownList!$B$47,CntyQuery!$A$220:$EF$229,BU$1) ->  | BV30: =VLOOKUP(DropDownList!$B$47,CntyQuery!$A$220:$EF$229,BV$1) ->  | BW30: =VLOOKUP(DropDownList!$B$47,CntyQuery!$A$220:$EF$229,BW$1) ->  | BX30: =VLOOKUP(DropDownList!$B$47,CntyQuery!$A$220:$EF$229,BX$1) ->  | BY30: =VLOOKUP(DropDownList!$B$47,CntyQuery!$A$220:$EF$229,BY$1) ->  | BZ30: =VLOOKUP(DropDownList!$B$47,CntyQuery!$A$220:$EF$229,BZ$1) ->  | CA30: =VLOOKUP(DropDownList!$B$47,CntyQuery!$A$220:$EF$229,CA$1) ->  | CB30: =VLOOKUP(DropDownList!$B$47,CntyQuery!$A$220:$EF$229,CB$1) ->  | CC30: =VLOOKUP(DropDownList!$B$47,CntyQuery!$A$220:$EF$229,CC$1) ->  | CD30: =VLOOKUP(DropDownList!$B$47,CntyQuery!$A$220:$EF$229,CD$1) ->  | CE30: =VLOOKUP(DropDownList!$B$47,CntyQuery!$A$220:$EF$229,CE$1) ->  | CF30: =VLOOKUP(DropDownList!$B$47,CntyQuery!$A$220:$EF$229,CF$1) ->  | CG30: =VLOOKUP(DropDownList!$B$47,CntyQuery!$A$220:$EF$229,CG$1) ->  | CH30: =VLOOKUP(DropDownList!$B$47,CntyQuery!$A$220:$EF$229,CH$1) ->  | CI30: =VLOOKUP(DropDownList!$B$47,CntyQuery!$A$220:$EF$229,CI$1) ->  | CJ30: =VLOOKUP(DropDownList!$B$47,CntyQuery!$A$220:$EF$229,CJ$1) ->  | CK30: =VLOOKUP(DropDownList!$B$47,CntyQuery!$A$220:$EF$229,CK$1) ->  | CL30: =VLOOKUP(DropDownList!$B$47,CntyQuery!$A$220:$EF$229,CL$1) ->  | CM30: =VLOOKUP(DropDownList!$B$47,CntyQuery!$A$220:$EF$229,CM$1) ->  | CN30: =VLOOKUP(DropDownList!$B$47,CntyQuery!$A$220:$EF$229,CN$1) ->  | CO30: =VLOOKUP(DropDownList!$B$47,CntyQuery!$A$220:$EF$229,CO$1) ->  | CP30: =VLOOKUP(DropDownList!$B$47,CntyQuery!$A$220:$EF$229,CP$1) ->  | CQ30: =VLOOKUP(DropDownList!$B$47,CntyQuery!$A$220:$EF$229,CQ$1) ->  | CR30: =VLOOKUP(DropDownList!$B$47,CntyQuery!$A$220:$EF$229,CR$1) ->  | CS30: =VLOOKUP(DropDownList!$B$47,CntyQuery!$A$220:$EF$229,CS$1) ->  | CT30: =VLOOKUP(DropDownList!$B$47,CntyQuery!$A$220:$EF$229,CT$1) ->  | CU30: =VLOOKUP(DropDownList!$B$47,CntyQuery!$A$220:$EF$229,CU$1) ->  | CV30: =VLOOKUP(DropDownList!$B$47,CntyQuery!$A$220:$EF$229,CV$1) ->  | CW30: =VLOOKUP(DropDownList!$B$47,CntyQuery!$A$220:$EF$229,CW$1) ->  | CX30: =VLOOKUP(DropDownList!$B$47,CntyQuery!$A$220:$EF$229,CX$1) ->  | CY30: =VLOOKUP(DropDownList!$B$47,CntyQuery!$A$220:$EF$229,CY$1) ->  | CZ30: =VLOOKUP(DropDownList!$B$47,CntyQuery!$A$220:$EF$229,CZ$1) ->  | DA30: =VLOOKUP(DropDownList!$B$47,CntyQuery!$A$220:$EF$229,DA$1) ->  | DB30: =VLOOKUP(DropDownList!$B$47,CntyQuery!$A$220:$EF$229,DB$1) ->  | DC30: =VLOOKUP(DropDownList!$B$47,CntyQuery!$A$220:$EF$229,DC$1) ->  | DD30: =VLOOKUP(DropDownList!$B$47,CntyQuery!$A$220:$EF$229,DD$1) ->  | DE30: =VLOOKUP(DropDownList!$B$47,CntyQuery!$A$220:$EF$229,DE$1) ->  | DF30: =VLOOKUP(DropDownList!$B$47,CntyQuery!$A$220:$EF$229,DF$1) ->  | DG30: =VLOOKUP(DropDownList!$B$47,CntyQuery!$A$220:$EF$229,DG$1) ->  | DH30: =VLOOKUP(DropDownList!$B$47,CntyQuery!$A$220:$EF$229,DH$1) ->  | DI30: =VLOOKUP(DropDownList!$B$47,CntyQuery!$A$220:$EF$229,DI$1) ->  | DJ30: =VLOOKUP(DropDownList!$B$47,CntyQuery!$A$220:$EF$229,DJ$1) ->  | DK30: =VLOOKUP(DropDownList!$B$47,CntyQuery!$A$220:$EF$229,DK$1) ->  | DL30: =VLOOKUP(DropDownList!$B$47,CntyQuery!$A$220:$EF$229,DL$1) ->  | DM30: =VLOOKUP(DropDownList!$B$47,CntyQuery!$A$220:$EF$229,DM$1) ->  | DN30: =VLOOKUP(DropDownList!$B$47,CntyQuery!$A$220:$EF$229,DN$1) ->  | DO30: =VLOOKUP(DropDownList!$B$47,CntyQuery!$A$220:$EF$229,DO$1) ->  | DP30: =VLOOKUP(DropDownList!$B$47,CntyQuery!$A$220:$EF$229,DP$1) ->  | DQ30: =VLOOKUP(DropDownList!$B$47,CntyQuery!$A$220:$EF$229,DQ$1) ->  | DR30: =VLOOKUP(DropDownList!$B$47,CntyQuery!$A$220:$EF$229,DR$1) ->  | DS30: =VLOOKUP(DropDownList!$B$47,CntyQuery!$A$220:$EF$229,DS$1) ->  | DT30: =VLOOKUP(DropDownList!$B$47,CntyQuery!$A$220:$EF$229,DT$1) ->  | DU30: =VLOOKUP(DropDownList!$B$47,CntyQuery!$A$220:$EF$229,DU$1) ->  | DV30: =VLOOKUP(DropDownList!$B$47,CntyQuery!$A$220:$EF$229,DV$1) ->  | DW30: =VLOOKUP(DropDownList!$B$47,CntyQuery!$A$220:$EF$229,DW$1) ->  | DX30: =VLOOKUP(DropDownList!$B$47,CntyQuery!$A$220:$EF$229,DX$1) ->  | DY30: =VLOOKUP(DropDownList!$B$47,CntyQuery!$A$220:$EF$229,DY$1) -> 
M32: =IF((CntyDataLink!$BL$25)="n",NA(),IF(VALUE(CntyDataLink!$BL$25)="",NA(),VALUE(CntyDataLink!$BL$25))) -> 610.47
A33: Census 2000 - Query Name: TownAllQuery3 | B33: 2 | C33: =B33+1 -> 3 | D33: =C33+1 -> 4 | E33: 5 | F33: 6 | G33: 7 | H33: 8 | I33: 9 | J33: 10 | K33: 11 | L33: 12 | M33: 13 | N33: 14 | O33: 15 | P33: 16 | Q33: 17 | R33: 18 | S33: 19 | T33: 20 | U33: 21 | V33: 22 | W33: 23 | X33: 24 | Y33: 25 | Z33: 26 | AA33: 27 | AB33: 28 | AC33: 29 | AD33: 30 | AE33: 31 | AF33: 32 | AG33: 33 | AH33: 34 | AI33: 35 | AJ33: 36 | AK33: 37 | AL33: 38 | AM33: 39 | AN33: 40 | AO33: 41 | AP33: 42 | AQ33: 43 | AR33: 44 | AS33: 45 | AT33: 46 | AU33: 47 | AV33: 48 | AW33: 49 | AX33: 50 | AY33: 51 | AZ33: 52 | BA33: 53 | BB33: 54 | BC33: 55 | BD33: 56 | BE33: 57 | BF33: 58 | BG33: 59 | BH33: 60 | BI33: 61 | BJ33: 62 | BK33: 63 | BL33: 64 | BM33: 65 | BN33: 66 | BO33: 67 | BP33: =BO33+1 -> 68 | BQ33: 69 | BR33: 70 | BS33: 71 | BT33: 72 | BU33: 73 | BV33: 74 | BW33: 75 | BX33: 76 | BY33: 77 | BZ33: 78 | CA33: 79 | CB33: 80 | CC33: 81 | CD33: 82 | CE33: 83 | CF33: 84 | CG33: 85 | CH33: 86 | CI33: 87 | CJ33: 88 | CK33: 89 | CL33: 90 | CM33: 91 | CN33: 92 | CO33: 93 | CP33: 94 | CQ33: 95 | CR33: 96 | CS33: 97 | CT33: 98 | CU33: 99 | CV33: 100 | CW33: 101 | CX33: 102
A34: NAME | B34: COUNTY | C34: LOGRECNO | D34: COUSUB | E34: TRACT | F34: AREALAND | G34: AREAWATR | H34: POP100 | I34: HU100 | J34: 2000Population | K34: PopOfOneRace | L34: PopWhite | M34: PopBlack | N34: PopAmIndian | O34: PopAsian | P34: PopHawaiian | Q34: PopOtherRace | R34: Pop2orMoreRaces | S34: PopHispanicLatino | T34: PopNotHispanicLatino | U34: PopMale | V34: PopMale<15 | W34: PopMale15to24 | X34: PopMale25to34 | Y34: PopMale35to44 | Z34: PopMale45to54 | AA34: PopMale55to64 | AB34: PopMale65to74 | AC34: PopMale75to84 | AD34: PopMale85andOver | AE34: PopFemale | AF34: PopFemale<15 | AG34: PopFemale15to24 | AH34: PopFemale25to34 | AI34: PopFemale35t44 | AJ34: PopFemale45to54 | AK34: PopFemale55to64 | AL34: PopFemale65to74 | AM34: PopFemale75to84 | AN34: PopFemale85andOver | AO34: Households2000 | AP34: PopInHH | AQ34: AvgHHSize | AR34: HHs1Person | AS34: HHs2orMorePerson | AT34: HHsFamily | AU34: HHMarriedCoupleFam | AV34: HHSingleParentFam | AW34: HHsNonFamily | AX34: Families | AY34: PopInFam | AZ34: AvgFamSize | BA34: TotHsUnits | BB34: OccHsUnits | BC34: OwnerOccHU | BD34: RenterOccHU | BE34: VctHsUnits | BF34: VctHUForRent | BG34: VctHUForSale | BH34: VctHUSeasonal | BI34: PopInOccHU | BJ34: PopInOwnOccHU | BK34: PopInRntOccHU | BL34: AvgHHSize2 | BM34: AvgHHSizOwnOcc | BN34: AvgHHSizRntOcc | BO34: OwnOccWhtHsHldr | BP34: OwnOccBlkHsHldr | BQ34: OwnOccAmIHsHldr | BR34: OwnOccAsnHsHldr | BS34: OwnOccPIsHsHldr | BT34: OwnOccORHsHldr | BU34: OwnOcc2RcHsHldr | BV34: RntOccWhtHsHldr | BW34: RntOccBlkHsHldr | BX34: RntOccAmIHsHldr | BY34: RntOccAsnHsHldr | BZ34: RntOccPIsHsHldr | CA34: RntOccORHsHldr | CB34: RntOcc2RcHsHldr | CC34: OwnOccHH15to24 | CD34: OwnOccHH25to34 | CE34: OwnOccHH35to44 | CF34: OwnOccHH45to54 | CG34: OwnOccHH55to64 | CH34: OwnOccHH65to74 | CI34: OwnOccHH75to84 | CJ34: OwnOccHH85Over | CK34: RntOccHH15to24 | CL34: RntOccHH25to34 | CM34: RntOccHH35to44 | CN34: RntOccHH45to54 | CO34: RntOccHH55to64 | CP34: RntOccHH65to74 | CQ34: RntOccHH75to84 | CR34: RntOccHH85Over | CS34: P27TotalPop | CT34: P27PopInHseHlds | CU34: P27PopInGrpQtrs | CV34: Median Age Total | CW34: Median Age (Male) | CX34: Median Age (Female)
A35: =VLOOKUP(DropDownList!$B$47,CntyQryCensus!$A$4:$CW$46,A$1) -> Allenstown | B35: =VLOOKUP(DropDownList!$B$47,CntyQryCensus!$A$4:$CW$46,B$1) -> 013 | C35: =VLOOKUP(DropDownList!$B$47,CntyQryCensus!$A$4:$CW$46,C$1) -> 0022469 | D35: =VLOOKUP(DropDownList!$B$47,CntyQryCensus!$A$4:$CW$46,D$1) -> 00660 | E35: =VLOOKUP(DropDownList!$B$47,CntyQryCensus!$A$4:$CW$46,E$1) ->  | F35: =VLOOKUP(DropDownList!$B$47,CntyQryCensus!$A$4:$CW$46,F$1) -> 53161407 | G35: =VLOOKUP(DropDownList!$B$47,CntyQryCensus!$A$4:$CW$46,G$1) -> 277792 | H35: =VLOOKUP(DropDownList!$B$47,CntyQryCensus!$A$4:$CW$46,H$1) -> 4843 | I35: =VLOOKUP(DropDownList!$B$47,CntyQryCensus!$A$4:$CW$46,I$1) -> 1962 | J35: =VLOOKUP(DropDownList!$B$47,CntyQryCensus!$A$4:$CW$46,J$1) -> 4843 | K35: =VLOOKUP(DropDownList!$B$47,CntyQryCensus!$A$4:$CW$46,K$1) -> 4804 | L35: =VLOOKUP(DropDownList!$B$47,CntyQryCensus!$A$4:$CW$46,L$1) -> 4738 | M35: =VLOOKUP(DropDownList!$B$47,CntyQryCensus!$A$4:$CW$46,M$1) -> 24 | N35: =VLOOKUP(DropDownList!$B$47,CntyQryCensus!$A$4:$CW$46,N$1) -> 11 | O35: =VLOOKUP(DropDownList!$B$47,CntyQryCensus!$A$4:$CW$46,O$1) -> 18 | P35: =VLOOKUP(DropDownList!$B$47,CntyQryCensus!$A$4:$CW$46,P$1) -> 0 | Q35: =VLOOKUP(DropDownList!$B$47,CntyQryCensus!$A$4:$CW$46,Q$1) -> 13 | R35: =VLOOKUP(DropDownList!$B$47,CntyQryCensus!$A$4:$CW$46,R$1) -> 39 | S35: =VLOOKUP(DropDownList!$B$47,CntyQryCensus!$A$4:$CW$46,S$1) -> 57 | T35: =VLOOKUP(DropDownList!$B$47,CntyQryCensus!$A$4:$CW$46,T$1) -> 4786 | U35: =VLOOKUP(DropDownList!$B$47,CntyQryCensus!$A$4:$CW$46,U$1) -> 2343 | V35: =VLOOKUP(DropDownList!$B$47,CntyQryCensus!$A$4:$CW$46,V$1) -> 565 | W35: =VLOOKUP(DropDownList!$B$47,CntyQryCensus!$A$4:$CW$46,W$1) -> 266 | X35: =VLOOKUP(DropDownList!$B$47,CntyQryCensus!$A$4:$CW$46,X$1) -> 347 | Y35: =VLOOKUP(DropDownList!$B$47,CntyQryCensus!$A$4:$CW$46,Y$1) -> 477 | Z35: =VLOOKUP(DropDownList!$B$47,CntyQryCensus!$A$4:$CW$46,Z$1) -> 318 | AA35: =VLOOKUP(DropDownList!$B$47,CntyQryCensus!$A$4:$CW$46,AA$1) -> 192 | AB35: =VLOOKUP(DropDownList!$B$47,CntyQryCensus!$A$4:$CW$46,AB$1) -> 109 | AC35: =VLOOKUP(DropDownList!$B$47,CntyQryCensus!$A$4:$CW$46,AC$1) -> 62 | AD35: =VLOOKUP(DropDownList!$B$47,CntyQryCensus!$A$4:$CW$46,AD$1) -> 7 | AE35: =VLOOKUP(DropDownList!$B$47,CntyQryCensus!$A$4:$CW$46,AE$1) -> 2500 | AF35: =VLOOKUP(DropDownList!$B$47,CntyQryCensus!$A$4:$CW$46,AF$1) -> 563 | AG35: =VLOOKUP(DropDownList!$B$47,CntyQryCensus!$A$4:$CW$46,AG$1) -> 251 | AH35: =VLOOKUP(DropDownList!$B$47,CntyQryCensus!$A$4:$CW$46,AH$1) -> 387 | AI35: =VLOOKUP(DropDownList!$B$47,CntyQryCensus!$A$4:$CW$46,AI$1) -> 450 | AJ35: =VLOOKUP(DropDownList!$B$47,CntyQryCensus!$A$4:$CW$46,AJ$1) -> 313 | AK35: =VLOOKUP(DropDownList!$B$47,CntyQryCensus!$A$4:$CW$46,AK$1) -> 201 | AL35: =VLOOKUP(DropDownList!$B$47,CntyQryCensus!$A$4:$CW$46,AL$1) -> 153 | AM35: =VLOOKUP(DropDownList!$B$47,CntyQryCensus!$A$4:$CW$46,AM$1) -> 127 | AN35: =VLOOKUP(DropDownList!$B$47,CntyQryCensus!$A$4:$CW$46,AN$1) -> 55 | AO35: =VLOOKUP(DropDownList!$B$47,CntyQryCensus!$A$4:$CW$46,AO$1) -> 1902 | AP35: =VLOOKUP(DropDownList!$B$47,CntyQryCensus!$A$4:$CW$46,AP$1) -> 4808 | AQ35: =VLOOKUP(DropDownList!$B$47,CntyQryCensus!$A$4:$CW$46,AQ$1) -> 2.53 | AR35: =VLOOKUP(DropDownList!$B$47,CntyQryCensus!$A$4:$CW$46,AR$1) -> 517 | AS35: =VLOOKUP(DropDownList!$B$47,CntyQryCensus!$A$4:$CW$46,AS$1) -> 1385 | AT35: =VLOOKUP(DropDownList!$B$47,CntyQryCensus!$A$4:$CW$46,AT$1) -> 1254 | AU35: =VLOOKUP(DropDownList!$B$47,CntyQryCensus!$A$4:$CW$46,AU$1) -> 965 | AV35: =VLOOKUP(DropDownList!$B$47,CntyQryCensus!$A$4:$CW$46,AV$1) -> 289 | AW35: =VLOOKUP(DropDownList!$B$47,CntyQryCensus!$A$4:$CW$46,AW$1) -> 131 | AX35: =VLOOKUP(DropDownList!$B$47,CntyQryCensus!$A$4:$CW$46,AX$1) -> 1254 | AY35: =VLOOKUP(DropDownList!$B$47,CntyQryCensus!$A$4:$CW$46,AY$1) -> 3831 | AZ35: =VLOOKUP(DropDownList!$B$47,CntyQryCensus!$A$4:$CW$46,AZ$1) -> 3.06 | BA35: =VLOOKUP(DropDownList!$B$47,CntyQryCensus!$A$4:$CW$46,BA$1) -> 1962 | BB35: =VLOOKUP(DropDownList!$B$47,CntyQryCensus!$A$4:$CW$46,BB$1) -> 1902 | BC35: =VLOOKUP(DropDownList!$B$47,CntyQryCensus!$A$4:$CW$46,BC$1) -> 1356 | BD35: =VLOOKUP(DropDownList!$B$47,CntyQryCensus!$A$4:$CW$46,BD$1) -> 546 | BE35: =VLOOKUP(DropDownList!$B$47,CntyQryCensus!$A$4:$CW$46,BE$1) -> 60 | BF35: =VLOOKUP(DropDownList!$B$47,CntyQryCensus!$A$4:$CW$46,BF$1) -> 6 | BG35: =VLOOKUP(DropDownList!$B$47,CntyQryCensus!$A$4:$CW$46,BG$1) -> 7 | BH35: =VLOOKUP(DropDownList!$B$47,CntyQryCensus!$A$4:$CW$46,BH$1) -> 23 | BI35: =VLOOKUP(DropDownList!$B$47,CntyQryCensus!$A$4:$CW$46,BI$1) -> 4808 | BJ35: =VLOOKUP(DropDownList!$B$47,CntyQryCensus!$A$4:$CW$46,BJ$1) -> 3736 | BK35: =VLOOKUP(DropDownList!$B$47,CntyQryCensus!$A$4:$CW$46,BK$1) -> 1072 | BL35: =VLOOKUP(DropDownList!$B$47,CntyQryCensus!$A$4:$CW$46,BL$1) -> 2.53 | BM35: =VLOOKUP(DropDownList!$B$47,CntyQryCensus!$A$4:$CW$46,BM$1) -> 2.76 | BN35: =VLOOKUP(DropDownList!$B$47,CntyQryCensus!$A$4:$CW$46,BN$1) -> 1.96 | BO35: =VLOOKUP(DropDownList!$B$47,CntyQryCensus!$A$4:$CW$46,BO$1) -> 1335 | BP35: =VLOOKUP(DropDownList!$B$47,CntyQryCensus!$A$4:$CW$46,BP$1) -> 2 | BQ35: =VLOOKUP(DropDownList!$B$47,CntyQryCensus!$A$4:$CW$46,BQ$1) -> 3 | BR35: =VLOOKUP(DropDownList!$B$47,CntyQryCensus!$A$4:$CW$46,BR$1) -> 4 | BS35: =VLOOKUP(DropDownList!$B$47,CntyQryCensus!$A$4:$CW$46,BS$1) -> 0 | BT35: =VLOOKUP(DropDownList!$B$47,CntyQryCensus!$A$4:$CW$46,BT$1) -> 3 | BU35: =VLOOKUP(DropDownList!$B$47,CntyQryCensus!$A$4:$CW$46,BU$1) -> 9 | BV35: =VLOOKUP(DropDownList!$B$47,CntyQryCensus!$A$4:$CW$46,BV$1) -> 532 | BW35: =VLOOKUP(DropDownList!$B$47,CntyQryCensus!$A$4:$CW$46,BW$1) -> 4 | BX35: =VLOOKUP(DropDownList!$B$47,CntyQryCensus!$A$4:$CW$46,BX$1) -> 2 | BY35: =VLOOKUP(DropDownList!$B$47,CntyQryCensus!$A$4:$CW$46,BY$1) -> 4 | BZ35: =VLOOKUP(DropDownList!$B$47,CntyQryCensus!$A$4:$CW$46,BZ$1) -> 0 | CA35: =VLOOKUP(DropDownList!$B$47,CntyQryCensus!$A$4:$CW$46,CA$1) -> 0 | CB35: =VLOOKUP(DropDownList!$B$47,CntyQryCensus!$A$4:$CW$46,CB$1) -> 4 | CC35: =VLOOKUP(DropDownList!$B$47,CntyQryCensus!$A$4:$CW$46,CC$1) -> 27 | CD35: =VLOOKUP(DropDownList!$B$47,CntyQryCensus!$A$4:$CW$46,CD$1) -> 225 | CE35: =VLOOKUP(DropDownList!$B$47,CntyQryCensus!$A$4:$CW$46,CE$1) -> 393 | CF35: =VLOOKUP(DropDownList!$B$47,CntyQryCensus!$A$4:$CW$46,CF$1) -> 294 | CG35: =VLOOKUP(DropDownList!$B$47,CntyQryCensus!$A$4:$CW$46,CG$1) -> 188 | CH35: =VLOOKUP(DropDownList!$B$47,CntyQryCensus!$A$4:$CW$46,CH$1) -> 143 | CI35: =VLOOKUP(DropDownList!$B$47,CntyQryCensus!$A$4:$CW$46,CI$1) -> 68 | CJ35: =VLOOKUP(DropDownList!$B$47,CntyQryCensus!$A$4:$CW$46,CJ$1) -> 18 | CK35: =VLOOKUP(DropDownList!$B$47,CntyQryCensus!$A$4:$CW$46,CK$1) -> 37 | CL35: =VLOOKUP(DropDownList!$B$47,CntyQryCensus!$A$4:$CW$46,CL$1) -> 133 | CM35: =VLOOKUP(DropDownList!$B$47,CntyQryCensus!$A$4:$CW$46,CM$1) -> 127 | CN35: =VLOOKUP(DropDownList!$B$47,CntyQryCensus!$A$4:$CW$46,CN$1) -> 66 | CO35: =VLOOKUP(DropDownList!$B$47,CntyQryCensus!$A$4:$CW$46,CO$1) -> 43 | CP35: =VLOOKUP(DropDownList!$B$47,CntyQryCensus!$A$4:$CW$46,CP$1) -> 40 | CQ35: =VLOOKUP(DropDownList!$B$47,CntyQryCensus!$A$4:$CW$46,CQ$1) -> 76 | CR35: =VLOOKUP(DropDownList!$B$47,CntyQryCensus!$A$4:$CW$46,CR$1) -> 24 | CS35: =VLOOKUP(DropDownList!$B$47,CntyQryCensus!$A$4:$CW$46,CS$1) -> 4843 | CT35: =VLOOKUP(DropDownList!$B$47,CntyQryCensus!$A$4:$CW$46,CT$1) -> 4808 | CU35: =VLOOKUP(DropDownList!$B$47,CntyQryCensus!$A$4:$CW$46,CU$1) -> 35 | CV35: =VLOOKUP(DropDownList!$B$47,CntyQryCensus!$A$4:$CW$46,CV$1) -> 35.5 | CW35: =VLOOKUP(DropDownList!$B$47,CntyQryCensus!$A$4:$CW$46,CW$1) -> 34.9 | CX35: =VLOOKUP(DropDownList!$B$47,CntyQryCensus!$A$4:$CW$46,CX$1) -> 
A38: Census 2000 DemoProfile Sample Data Tables 2&3 - DPTab23TownQry
A39: NAME | B39: COUSUB | C39: AREANAME | D39: PopInSchool | E39: Preschool | F39: Kindergarten | G39: Elementary | H39: HighSchool | I39: College | J39: Pop25andOver | K39: HighSchoolGrad | L39: SomeCollege | M39: AssocDegree | N39: BachelDegree | O39: GradDegree | P39: HSGradorHigher | Q39: CollegeGradorHigher | R39: Pop5to20yrs | S39: Pop5to20wDis | T39: Pop21to64 | U39: Pop21to64wDis | V39: Pop65over | W39: Pop65overwDis | X39: Pop5yrsOver | Y39: SameHUin95 | Z39: DiffHUinUSin95 | AA39: HUinSameCountyin95 | AB39: HUinSameStatein95 | AC39: TotalPop | AD39: NativePop | AE39: NatPopBornUS | AF39: NatPopBornInStatRes | AG39: NatPopBornDiffState | AH39: NatPopBornOutUS | AI39: FornBornPop | AJ39: FornPopEnt90to00 | AK39: FornPopNatCit | AL39: FornPopNotCit | AM39: Households | AN39: HHIncLessThn10k | AO39: HHInc10to15K | AP39: HHInc15to25K | AQ39: HHInc25to35K | AR39: HHInc35to50K | AS39: HHInc50to75K | AT39: HHInc75to100K | AU39: HHInc100to150K | AV39: HHInc150to200K | AW39: HHIncOver200K | AX39: MedianHHInc | AY39: HHwithPubAssistInc | AZ39: MeanPubAssist | BA39: FamilyHH | BB39: FHHIncLessThn10k | BC39: FHHInc10to15K | BD39: FHHInc15to25K | BE39: FHHInc25to35K | BF39: FHHInc35to50K | BG39: FHHInc50to75K | BH39: FHHInc75to100K | BI39: FHHInc100to150K | BJ39: FHHInc150to200K | BK39: FHHIncOver200K | BL39: MedianFHHInc | BM39: PerCapitaInc | BN39: PovStatFamilies | BO39: PovStatFHHwChilUnd18 | BP39: PovStatFHHwChilUnd5 | BQ39: PovStFmalHH | BR39: DP3088 | BS39: DP3089 | BT39: PovStatIndiv | BU39: PovStatIndiv18yrOver | BV39: PovStatIndiv65yrOver | BW39: DP3093 | BX39: DP3094 | BY39: DP3095
A40: =VLOOKUP(DropDownList!$B$47,CntyQryCensus!$A$53:$BY$96,A$1) -> Allenstown | B40: =VLOOKUP(DropDownList!$B$47,CntyQryCensus!$A$53:$BY$96,B$1) -> 00660 | C40: =VLOOKUP(DropDownList!$B$47,CntyQryCensus!$A$53:$BY$96,C$1) -> Allenstown town, Merrimack County, New Hampshire | D40: =VLOOKUP(DropDownList!$B$47,CntyQryCensus!$A$53:$BY$96,D$1) -> 1228 | E40: =VLOOKUP(DropDownList!$B$47,CntyQryCensus!$A$53:$BY$96,E$1) -> 89 | F40: =VLOOKUP(DropDownList!$B$47,CntyQryCensus!$A$53:$BY$96,F$1) -> 44 | G40: =VLOOKUP(DropDownList!$B$47,CntyQryCensus!$A$53:$BY$96,G$1) -> 682 | H40: =VLOOKUP(DropDownList!$B$47,CntyQryCensus!$A$53:$BY$96,H$1) -> 302 | I40: =VLOOKUP(DropDownList!$B$47,CntyQryCensus!$A$53:$BY$96,I$1) -> 111 | J40: =VLOOKUP(DropDownList!$B$47,CntyQryCensus!$A$53:$BY$96,J$1) -> 3202 | K40: =VLOOKUP(DropDownList!$B$47,CntyQryCensus!$A$53:$BY$96,K$1) -> 1283 | L40: =VLOOKUP(DropDownList!$B$47,CntyQryCensus!$A$53:$BY$96,L$1) -> 755 | M40: =VLOOKUP(DropDownList!$B$47,CntyQryCensus!$A$53:$BY$96,M$1) -> 207 | N40: =VLOOKUP(DropDownList!$B$47,CntyQryCensus!$A$53:$BY$96,N$1) -> 219 | O40: =VLOOKUP(DropDownList!$B$47,CntyQryCensus!$A$53:$BY$96,O$1) -> 92 | P40: =VLOOKUP(DropDownList!$B$47,CntyQryCensus!$A$53:$BY$96,P$1) -> 2556 | Q40: =VLOOKUP(DropDownList!$B$47,CntyQryCensus!$A$53:$BY$96,Q$1) -> 311 | R40: =VLOOKUP(DropDownList!$B$47,CntyQryCensus!$A$53:$BY$96,R$1) -> 1138 | S40: =VLOOKUP(DropDownList!$B$47,CntyQryCensus!$A$53:$BY$96,S$1) -> 140 | T40: =VLOOKUP(DropDownList!$B$47,CntyQryCensus!$A$53:$BY$96,T$1) -> 2853 | U40: =VLOOKUP(DropDownList!$B$47,CntyQryCensus!$A$53:$BY$96,U$1) -> 577 | V40: =VLOOKUP(DropDownList!$B$47,CntyQryCensus!$A$53:$BY$96,V$1) -> 506 | W40: =VLOOKUP(DropDownList!$B$47,CntyQryCensus!$A$53:$BY$96,W$1) -> 219 | X40: =VLOOKUP(DropDownList!$B$47,CntyQryCensus!$A$53:$BY$96,X$1) -> 4524 | Y40: =VLOOKUP(DropDownList!$B$47,CntyQryCensus!$A$53:$BY$96,Y$1) -> 2494 | Z40: =VLOOKUP(DropDownList!$B$47,CntyQryCensus!$A$53:$BY$96,Z$1) -> 1996 | AA40: =VLOOKUP(DropDownList!$B$47,CntyQryCensus!$A$53:$BY$96,AA$1) -> 875 | AB40: =VLOOKUP(DropDownList!$B$47,CntyQryCensus!$A$53:$BY$96,AB$1) -> 1121 | AC40: =VLOOKUP(DropDownList!$B$47,CntyQryCensus!$A$53:$BY$96,AC$1) -> 4843 | AD40: =VLOOKUP(DropDownList!$B$47,CntyQryCensus!$A$53:$BY$96,AD$1) -> 4727 | AE40: =VLOOKUP(DropDownList!$B$47,CntyQryCensus!$A$53:$BY$96,AE$1) -> 4689 | AF40: =VLOOKUP(DropDownList!$B$47,CntyQryCensus!$A$53:$BY$96,AF$1) -> 2983 | AG40: =VLOOKUP(DropDownList!$B$47,CntyQryCensus!$A$53:$BY$96,AG$1) -> 1706 | AH40: =VLOOKUP(DropDownList!$B$47,CntyQryCensus!$A$53:$BY$96,AH$1) -> 38 | AI40: =VLOOKUP(DropDownList!$B$47,CntyQryCensus!$A$53:$BY$96,AI$1) -> 116 | AJ40: =VLOOKUP(DropDownList!$B$47,CntyQryCensus!$A$53:$BY$96,AJ$1) -> 24 | AK40: =VLOOKUP(DropDownList!$B$47,CntyQryCensus!$A$53:$BY$96,AK$1) -> 72 | AL40: =VLOOKUP(DropDownList!$B$47,CntyQryCensus!$A$53:$BY$96,AL$1) -> 44 | AM40: =VLOOKUP(DropDownList!$B$47,CntyQryCensus!$A$53:$BY$96,AM$1) -> 1901 | AN40: =VLOOKUP(DropDownList!$B$47,CntyQryCensus!$A$53:$BY$96,AN$1) -> 121 | AO40: =VLOOKUP(DropDownList!$B$47,CntyQryCensus!$A$53:$BY$96,AO$1) -> 100 | AP40: =VLOOKUP(DropDownList!$B$47,CntyQryCensus!$A$53:$BY$96,AP$1) -> 208 | AQ40: =VLOOKUP(DropDownList!$B$47,CntyQryCensus!$A$53:$BY$96,AQ$1) -> 292 | AR40: =VLOOKUP(DropDownList!$B$47,CntyQryCensus!$A$53:$BY$96,AR$1) -> 381 | AS40: =VLOOKUP(DropDownList!$B$47,CntyQryCensus!$A$53:$BY$96,AS$1) -> 497 | AT40: =VLOOKUP(DropDownList!$B$47,CntyQryCensus!$A$53:$BY$96,AT$1) -> 182 | AU40: =VLOOKUP(DropDownList!$B$47,CntyQryCensus!$A$53:$BY$96,AU$1) -> 114 | AV40: =VLOOKUP(DropDownList!$B$47,CntyQryCensus!$A$53:$BY$96,AV$1) -> 6 | AW40: =VLOOKUP(DropDownList!$B$47,CntyQryCensus!$A$53:$BY$96,AW$1) -> 0 | AX40: =VLOOKUP(DropDownList!$B$47,CntyQryCensus!$A$53:$BY$96,AX$1) -> 41958 | AY40: =VLOOKUP(DropDownList!$B$47,CntyQryCensus!$A$53:$BY$96,AY$1) -> 61 | AZ40: =VLOOKUP(DropDownList!$B$47,CntyQryCensus!$A$53:$BY$96,AZ$1) -> 1997 | BA40: =VLOOKUP(DropDownList!$B$47,CntyQryCensus!$A$53:$BY$96,BA$1) -> 1277 | BB40: =VLOOKUP(DropDownList!$B$47,CntyQryCensus!$A$53:$BY$96,BB$1) -> 5 | BC40: =VLOOKUP(DropDownList!$B$47,CntyQryCensus!$A$53:$BY$96,BC$1) -> 48 | BD40: =VLOOKUP(DropDownList!$B$47,CntyQryCensus!$A$53:$BY$96,BD$1) -> 116 | BE40: =VLOOKUP(DropDownList!$B$47,CntyQryCensus!$A$53:$BY$96,BE$1) -> 195 | BF40: =VLOOKUP(DropDownList!$B$47,CntyQryCensus!$A$53:$BY$96,BF$1) -> 240 | BG40: =VLOOKUP(DropDownList!$B$47,CntyQryCensus!$A$53:$BY$96,BG$1) -> 413 | BH40: =VLOOKUP(DropDownList!$B$47,CntyQryCensus!$A$53:$BY$96,BH$1) -> 165 | BI40: =VLOOKUP(DropDownList!$B$47,CntyQryCensus!$A$53:$BY$96,BI$1) -> 89 | BJ40: =VLOOKUP(DropDownList!$B$47,CntyQryCensus!$A$53:$BY$96,BJ$1) -> 6 | BK40: =VLOOKUP(DropDownList!$B$47,CntyQryCensus!$A$53:$BY$96,BK$1) -> 0 | BL40: =VLOOKUP(DropDownList!$B$47,CntyQryCensus!$A$53:$BY$96,BL$1) -> 51659 | BM40: =VLOOKUP(DropDownList!$B$47,CntyQryCensus!$A$53:$BY$96,BM$1) -> 18851 | BN40: =VLOOKUP(DropDownList!$B$47,CntyQryCensus!$A$53:$BY$96,BN$1) -> 28 | BO40: =VLOOKUP(DropDownList!$B$47,CntyQryCensus!$A$53:$BY$96,BO$1) -> 28 | BP40: =VLOOKUP(DropDownList!$B$47,CntyQryCensus!$A$53:$BY$96,BP$1) -> 8 | BQ40: =VLOOKUP(DropDownList!$B$47,CntyQryCensus!$A$53:$BY$96,BQ$1) -> 11 | BR40: =VLOOKUP(DropDownList!$B$47,CntyQryCensus!$A$53:$BY$96,BR$1) -> 11 | BS40: =VLOOKUP(DropDownList!$B$47,CntyQryCensus!$A$53:$BY$96,BS$1) -> 0 | BT40: =VLOOKUP(DropDownList!$B$47,CntyQryCensus!$A$53:$BY$96,BT$1) -> 184 | BU40: =VLOOKUP(DropDownList!$B$47,CntyQryCensus!$A$53:$BY$96,BU$1) -> 129 | BV40: =VLOOKUP(DropDownList!$B$47,CntyQryCensus!$A$53:$BY$96,BV$1) -> 24 | BW40: =VLOOKUP(DropDownList!$B$47,CntyQryCensus!$A$53:$BY$96,BW$1) -> 47 | BX40: =VLOOKUP(DropDownList!$B$47,CntyQryCensus!$A$53:$BY$96,BX$1) -> 40 | BY40: =VLOOKUP(DropDownList!$B$47,CntyQryCensus!$A$53:$BY$96,BY$1) -> 94
A43: Census 2000 DemoProfile Sample Data Table 4 - DPTab4TownQry
A44: NAME | B44: COUSUB | C44: TotHousingUnits | D44: 1UnitDet | E44: 1UnitAtt | F44: 2Units | G44: 3to4Units | H44: 5to9Units | I44: 10to19Units | J44: 20orMoreUnits | K44: MobileHomes | L44: BoatRvVan | M44: SingleFamilyUnits | N44: MultiFamUnits | O44: MobileHomeUnits | P44: YearBuilt99to00 | Q44: YearBuilt95to98 | R44: YearBUilt90to94 | S44: YearBuilt80to89 | T44: YearBuilt70to79 | U44: YearBuilt60to69 | V44: YearBuilt40to59 | W44: YearBuilt39orEarlier | X44: Rooms1 | Y44: Rooms2 | Z44: Rooms3 | AA44: Rooms4 | AB44: Rooms5 | AC44: Rooms6 | AD44: Rooms7 | AE44: Rooms8 | AF44: Rooms9orMore | AG44: MedianRooms | AH44: OccHU1 | AI44: YrHHMvdIn99to00 | AJ44: YrHHMvdIn95to98 | AK44: YrHHMvdIn90to94 | AL44: YrHHMvdIn80to89 | AM44: YrHHMvdIn70to79 | AN44: YrHHMvdIn69orBefore | AO44: HeatFuelNatGas | AP44: HeatFuelBotGas | AQ44: HeatFuelElectric | AR44: HeatFuelOil | AS44: HeatFuelCoal | AT44: HeatFuelWood | AU44: HeatFuelSolar | AV44: HeatFuelOther | AW44: HeatFuelNone | AX44: LackCompPlumb | AY44: LackCompKit | AZ44: NoTelephone | BA44: OccHU | BB44: OccPerRm1orLess | BC44: OccPerRm1to1_5 | BD44: OccPerRm1_5orMore | BE44: SpecOwnOccUnits | BF44: Value<50K | BG44: Value50to100K | BH44: Value100to150K | BI44: Value150to200K | BJ44: Value200to300K | BK44: Value300to500K | BL44: Value500Kto1mil | BM44: Value1MilorMore | BN44: MedianValue | BO44: WithMortg | BP44: MnthOwnCst<300 | BQ44: MnthOwnCst300to500 | BR44: MnthOwnCst500to700 | BS44: MnthOwnCst700to1000 | BT44: MnthOwnCst1000to1500 | BU44: MnthOwnCst1500to2000 | BV44: MnthOwnCst2000orMore | BW44: MediMnthOwnCst | BX44: NotMrtg | BY44: NotMrtgMediMnthOwnCst | BZ44: OwnCst%HHInc<15 | CA44: OwnCst%HHInc15to20 | CB44: OwnCst%HHInc20to25 | CC44: OwnCst%HHInc25to30 | CD44: OwnCst%HHInc30to35 | CE44: OwnCst%HHInc35orMor | CF44: NotComputed | CG44: SpecRntOccUnits | CH44: Rnt<200 | CI44: Rnt200to300 | CJ44: Rnt300to500 | CK44: Rnt500to750 | CL44: Rnt750to1000 | CM44: Rnt1000to1500 | CN44: Rnt1500orMore | CO44: NoRent | CP44: MedianRent | CQ44: Rnt%HHInc<15 | CR44: Rnt%HHInc15to20 | CS44: Rnt%HHInc20to25 | CT44: Rnt%HHInc25to30 | CU44: Rnt%HHInc30to35 | CV44: Rnt%HHInc35orMore | CW44: Rnt%NotCompute
A45: =VLOOKUP(DropDownList!$B$47,CntyQryCensus!$A$103:$CX$146,A$1) -> Allenstown | B45: =VLOOKUP(DropDownList!$B$47,CntyQryCensus!$A$103:$CX$146,B$1) -> 00660 | C45: =VLOOKUP(DropDownList!$B$47,CntyQryCensus!$A$103:$CX$146,C$1) -> 1962 | D45: =VLOOKUP(DropDownList!$B$47,CntyQryCensus!$A$103:$CX$146,D$1) -> 829 | E45: =VLOOKUP(DropDownList!$B$47,CntyQryCensus!$A$103:$CX$146,E$1) -> 42 | F45: =VLOOKUP(DropDownList!$B$47,CntyQryCensus!$A$103:$CX$146,F$1) -> 136 | G45: =VLOOKUP(DropDownList!$B$47,CntyQryCensus!$A$103:$CX$146,G$1) -> 116 | H45: =VLOOKUP(DropDownList!$B$47,CntyQryCensus!$A$103:$CX$146,H$1) -> 193 | I45: =VLOOKUP(DropDownList!$B$47,CntyQryCensus!$A$103:$CX$146,I$1) -> 6 | J45: =VLOOKUP(DropDownList!$B$47,CntyQryCensus!$A$103:$CX$146,J$1) -> 14 | K45: =VLOOKUP(DropDownList!$B$47,CntyQryCensus!$A$103:$CX$146,K$1) -> 626 | L45: =VLOOKUP(DropDownList!$B$47,CntyQryCensus!$A$103:$CX$146,L$1) -> 0 | M45: =VLOOKUP(DropDownList!$B$47,CntyQryCensus!$A$103:$CX$146,M$1) -> 829 | N45: =VLOOKUP(DropDownList!$B$47,CntyQryCensus!$A$103:$CX$146,N$1) -> 507 | O45: =VLOOKUP(DropDownList!$B$47,CntyQryCensus!$A$103:$CX$146,O$1) -> 626 | P45: =VLOOKUP(DropDownList!$B$47,CntyQryCensus!$A$103:$CX$146,P$1) -> 81 | Q45: =VLOOKUP(DropDownList!$B$47,CntyQryCensus!$A$103:$CX$146,Q$1) -> 159 | R45: =VLOOKUP(DropDownList!$B$47,CntyQryCensus!$A$103:$CX$146,R$1) -> 75 | S45: =VLOOKUP(DropDownList!$B$47,CntyQryCensus!$A$103:$CX$146,S$1) -> 338 | T45: =VLOOKUP(DropDownList!$B$47,CntyQryCensus!$A$103:$CX$146,T$1) -> 596 | U45: =VLOOKUP(DropDownList!$B$47,CntyQryCensus!$A$103:$CX$146,U$1) -> 258 | V45: =VLOOKUP(DropDownList!$B$47,CntyQryCensus!$A$103:$CX$146,V$1) -> 196 | W45: =VLOOKUP(DropDownList!$B$47,CntyQryCensus!$A$103:$CX$146,W$1) -> 259 | X45: =VLOOKUP(DropDownList!$B$47,CntyQryCensus!$A$103:$CX$146,X$1) -> 0 | Y45: =VLOOKUP(DropDownList!$B$47,CntyQryCensus!$A$103:$CX$146,Y$1) -> 73 | Z45: =VLOOKUP(DropDownList!$B$47,CntyQryCensus!$A$103:$CX$146,Z$1) -> 162 | AA45: =VLOOKUP(DropDownList!$B$47,CntyQryCensus!$A$103:$CX$146,AA$1) -> 419 | AB45: =VLOOKUP(DropDownList!$B$47,CntyQryCensus!$A$103:$CX$146,AB$1) -> 634 | AC45: =VLOOKUP(DropDownList!$B$47,CntyQryCensus!$A$103:$CX$146,AC$1) -> 336 | AD45: =VLOOKUP(DropDownList!$B$47,CntyQryCensus!$A$103:$CX$146,AD$1) -> 197 | AE45: =VLOOKUP(DropDownList!$B$47,CntyQryCensus!$A$103:$CX$146,AE$1) -> 51 | AF45: =VLOOKUP(DropDownList!$B$47,CntyQryCensus!$A$103:$CX$146,AF$1) -> 90 | AG45: =VLOOKUP(DropDownList!$B$47,CntyQryCensus!$A$103:$CX$146,AG$1) -> 5 | AH45: =VLOOKUP(DropDownList!$B$47,CntyQryCensus!$A$103:$CX$146,AH$1) -> 1902 | AI45: =VLOOKUP(DropDownList!$B$47,CntyQryCensus!$A$103:$CX$146,AI$1) -> 432 | AJ45: =VLOOKUP(DropDownList!$B$47,CntyQryCensus!$A$103:$CX$146,AJ$1) -> 448 | AK45: =VLOOKUP(DropDownList!$B$47,CntyQryCensus!$A$103:$CX$146,AK$1) -> 247 | AL45: =VLOOKUP(DropDownList!$B$47,CntyQryCensus!$A$103:$CX$146,AL$1) -> 389 | AM45: =VLOOKUP(DropDownList!$B$47,CntyQryCensus!$A$103:$CX$146,AM$1) -> 213 | AN45: =VLOOKUP(DropDownList!$B$47,CntyQryCensus!$A$103:$CX$146,AN$1) -> 173 | AO45: =VLOOKUP(DropDownList!$B$47,CntyQryCensus!$A$103:$CX$146,AO$1) -> 254 | AP45: =VLOOKUP(DropDownList!$B$47,CntyQryCensus!$A$103:$CX$146,AP$1) -> 192 | AQ45: =VLOOKUP(DropDownList!$B$47,CntyQryCensus!$A$103:$CX$146,AQ$1) -> 161 | AR45: =VLOOKUP(DropDownList!$B$47,CntyQryCensus!$A$103:$CX$146,AR$1) -> 1233 | AS45: =VLOOKUP(DropDownList!$B$47,CntyQryCensus!$A$103:$CX$146,AS$1) -> 6 | AT45: =VLOOKUP(DropDownList!$B$47,CntyQryCensus!$A$103:$CX$146,AT$1) -> 56 | AU45: =VLOOKUP(DropDownList!$B$47,CntyQryCensus!$A$103:$CX$146,AU$1) -> 0 | AV45: =VLOOKUP(DropDownList!$B$47,CntyQryCensus!$A$103:$CX$146,AV$1) -> 0 | AW45: =VLOOKUP(DropDownList!$B$47,CntyQryCensus!$A$103:$CX$146,AW$1) -> 0 | AX45: =VLOOKUP(DropDownList!$B$47,CntyQryCensus!$A$103:$CX$146,AX$1) -> 15 | AY45: =VLOOKUP(DropDownList!$B$47,CntyQryCensus!$A$103:$CX$146,AY$1) -> 8 | AZ45: =VLOOKUP(DropDownList!$B$47,CntyQryCensus!$A$103:$CX$146,AZ$1) -> 15 | BA45: =VLOOKUP(DropDownList!$B$47,CntyQryCensus!$A$103:$CX$146,BA$1) -> 1902 | BB45: =VLOOKUP(DropDownList!$B$47,CntyQryCensus!$A$103:$CX$146,BB$1) -> 1850 | BC45: =VLOOKUP(DropDownList!$B$47,CntyQryCensus!$A$103:$CX$146,BC$1) -> 45 | BD45: =VLOOKUP(DropDownList!$B$47,CntyQryCensus!$A$103:$CX$146,BD$1) -> 7 | BE45: =VLOOKUP(DropDownList!$B$47,CntyQryCensus!$A$103:$CX$146,BE$1) -> 735 | BF45: =VLOOKUP(DropDownList!$B$47,CntyQryCensus!$A$103:$CX$146,BF$1) -> 14 | BG45: =VLOOKUP(DropDownList!$B$47,CntyQryCensus!$A$103:$CX$146,BG$1) -> 390 | BH45: =VLOOKUP(DropDownList!$B$47,CntyQryCensus!$A$103:$CX$146,BH$1) -> 247 | BI45: =VLOOKUP(DropDownList!$B$47,CntyQryCensus!$A$103:$CX$146,BI$1) -> 63 | BJ45: =VLOOKUP(DropDownList!$B$47,CntyQryCensus!$A$103:$CX$146,BJ$1) -> 21 | BK45: =VLOOKUP(DropDownList!$B$47,CntyQryCensus!$A$103:$CX$146,BK$1) -> 0 | BL45: =VLOOKUP(DropDownList!$B$47,CntyQryCensus!$A$103:$CX$146,BL$1) -> 0 | BM45: =VLOOKUP(DropDownList!$B$47,CntyQryCensus!$A$103:$CX$146,BM$1) -> 0 | BN45: =VLOOKUP(DropDownList!$B$47,CntyQryCensus!$A$103:$CX$146,BN$1) -> 97900 | BO45: =VLOOKUP(DropDownList!$B$47,CntyQryCensus!$A$103:$CX$146,BO$1) -> 510 | BP45: =VLOOKUP(DropDownList!$B$47,CntyQryCensus!$A$103:$CX$146,BP$1) -> 0 | BQ45: =VLOOKUP(DropDownList!$B$47,CntyQryCensus!$A$103:$CX$146,BQ$1) -> 7 | BR45: =VLOOKUP(DropDownList!$B$47,CntyQryCensus!$A$103:$CX$146,BR$1) -> 41 | BS45: =VLOOKUP(DropDownList!$B$47,CntyQryCensus!$A$103:$CX$146,BS$1) -> 179 | BT45: =VLOOKUP(DropDownList!$B$47,CntyQryCensus!$A$103:$CX$146,BT$1) -> 250 | BU45: =VLOOKUP(DropDownList!$B$47,CntyQryCensus!$A$103:$CX$146,BU$1) -> 26 | BV45: =VLOOKUP(DropDownList!$B$47,CntyQryCensus!$A$103:$CX$146,BV$1) -> 7 | BW45: =VLOOKUP(DropDownList!$B$47,CntyQryCensus!$A$103:$CX$146,BW$1) -> 1041 | BX45: =VLOOKUP(DropDownList!$B$47,CntyQryCensus!$A$103:$CX$146,BX$1) -> 225 | BY45: =VLOOKUP(DropDownList!$B$47,CntyQryCensus!$A$103:$CX$146,BY$1) -> 409 | BZ45: =VLOOKUP(DropDownList!$B$47,CntyQryCensus!$A$103:$CX$146,BZ$1) -> 201 | CA45: =VLOOKUP(DropDownList!$B$47,CntyQryCensus!$A$103:$CX$146,CA$1) -> 214 | CB45: =VLOOKUP(DropDownList!$B$47,CntyQryCensus!$A$103:$CX$146,CB$1) -> 125 | CC45: =VLOOKUP(DropDownList!$B$47,CntyQryCensus!$A$103:$CX$146,CC$1) -> 63 | CD45: =VLOOKUP(DropDownList!$B$47,CntyQryCensus!$A$103:$CX$146,CD$1) -> 48 | CE45: =VLOOKUP(DropDownList!$B$47,CntyQryCensus!$A$103:$CX$146,CE$1) -> 84 | CF45: =VLOOKUP(DropDownList!$B$47,CntyQryCensus!$A$103:$CX$146,CF$1) -> 0 | CG45: =VLOOKUP(DropDownList!$B$47,CntyQryCensus!$A$103:$CX$146,CG$1) -> 536 | CH45: =VLOOKUP(DropDownList!$B$47,CntyQryCensus!$A$103:$CX$146,CH$1) -> 33 | CI45: =VLOOKUP(DropDownList!$B$47,CntyQryCensus!$A$103:$CX$146,CI$1) -> 14 | CJ45: =VLOOKUP(DropDownList!$B$47,CntyQryCensus!$A$103:$CX$146,CJ$1) -> 101 | CK45: =VLOOKUP(DropDownList!$B$47,CntyQryCensus!$A$103:$CX$146,CK$1) -> 232 | CL45: =VLOOKUP(DropDownList!$B$47,CntyQryCensus!$A$103:$CX$146,CL$1) -> 91 | CM45: =VLOOKUP(DropDownList!$B$47,CntyQryCensus!$A$103:$CX$146,CM$1) -> 43 | CN45: =VLOOKUP(DropDownList!$B$47,CntyQryCensus!$A$103:$CX$146,CN$1) -> 0 | CO45: =VLOOKUP(DropDownList!$B$47,CntyQryCensus!$A$103:$CX$146,CO$1) -> 22 | CP45: =VLOOKUP(DropDownList!$B$47,CntyQryCensus!$A$103:$CX$146,CP$1) -> 597 | CQ45: =VLOOKUP(DropDownList!$B$47,CntyQryCensus!$A$103:$CX$146,CQ$1) -> 88 | CR45: =VLOOKUP(DropDownList!$B$47,CntyQryCensus!$A$103:$CX$146,CR$1) -> 89 | CS45: =VLOOKUP(DropDownList!$B$47,CntyQryCensus!$A$103:$CX$146,CS$1) -> 91 | CT45: =VLOOKUP(DropDownList!$B$47,CntyQryCensus!$A$103:$CX$146,CT$1) -> 36 | CU45: =VLOOKUP(DropDownList!$B$47,CntyQryCensus!$A$103:$CX$146,CU$1) -> 69 | CV45: =VLOOKUP(DropDownList!$B$47,CntyQryCensus!$A$103:$CX$146,CV$1) -> 141 | CW45: =VLOOKUP(DropDownList!$B$47,CntyQryCensus!$A$103:$CX$146,CW$1) -> 22
A48: Census 2000 SummaryFile3 Sample Data - SF3TownQry1SocialChar
A49: NAME | B49: LOGRECNO | C49: COUNTY | D49: P01TotalPopulation | E49: P02SampleCountOfPop | F49: P03Pop100pctCount | G49: P05UrbanPopulation | H49: P05RuralPopulation | I49: P06WhiteAlone | J49: P06BlackOrAfAm | K49: P06AmIndAlone | L49: P06AsianAlone | M49: P06HawaiianOrPI | N49: P06OtherRace | O49: P06TwoPlusRaces | P49: P07NotHispanicOrLatino | Q49: P07HispanicOrLatino | R49: P08MalePop | S49: P08FemalePop | T49: P09PopInHouseholds | U49: P09PopInFamHH | V49: P09PopInNonFamHH | W49: P09PopInGroupQtr | X49: P13TotalHH | Y49: P13FamilyHH | Z49: P13FamHHolder15to24yrs | AA49: P13FamHHolder25to34yrs | AB49: P13FamHHolder35to44yrs | AC49: P13FamHHolder45to54yrs | AD49: P13FamHHolder55to64yrs | AE49: P13FamHHolder65to74yrs | AF49: P13FamHHolder75to84yrs | AG49: P13FamHHolder85yrsOver | AH49: P13NonFamilyHH | AI49: P13NonFamHHolder15to24yrs | AJ49: P13NonFamHHolder25to34yrs | AK49: P13NonFamHHolder35to44yrs | AL49: P13NonFamHHolder45to54yrs | AM49: P13NonFamHHolder55to64yrs | AN49: P13NonFamHHolder65to74yrs | AO49: P13NonFamHHolder75to84yrs | AP49: P13NonFamHHolder85yrsOver | AQ49: P18Pop15yrsOver | AR49: P18MaritalStatNeverMarried | AS49: P18MaritalStatNowMarried | AT49: P18MaritalStatSeparated | AU49: P18MaritalStatWidowed | AV49: P18MaritalStatWidowFemale | AW49: P18MaritalStatDivorced | AX49: P18MaritalStatDivorcedFemale | AY49: P21NativeBornPop | AZ49: P21NatPopBornInState | BA49: P21NatPopBornOtherState | BB49: P021005 | BC49: P021006 | BD49: P021007 | BE49: P021008 | BF49: P21NatPopBornOutUS | BG49: P21ForeignBornPop | BH49: P021014 | BI49: P021015 | BJ49: P24Pop5YrsPlus | BK49: P24ResSameHouseIn95 | BL49: P24ResDiffHouseIn95 | BM49: P24ResDiffHouseInUSIn95 | BN49: P24ResDiffHouseSameCountyIn95 | BO49: P24ResDiffHouseDiffCountyIn95 | BP49: P24ResDiffHouseDiffCntySamStIn95 | BQ49: P24ResDiffHouseDiffCntyDifStIn95 | BR49: P24ResDiffHouseDiffCntyNEStIn95 | BS49: P24ResDiffHouseDiffCntyMWStIn95 | BT49: P24ResDiffHouseDiffCntySoStIn95 | BU49: P24ResDiffHouseDiffCntyWstStIn95 | BV49: P24ResDiffInPR | BW49: P24ResDiffElsewhereIn95 | BX49: P26Workers16yrsOver | BY49: P26WorkedInState | BZ49: P26WorkedInCnty | CA49: P26WorkedOutsideCnty | CB49: P26WorkedOutsideState | CC49: P30Workers16Over | CD49: P30TranspToWrkCar | CE49: P30TranspToWrkPublic | CF49: P30TranspToWrkOther | CG49: P30WrkdAtHome | CH49: P31WrkrsNotWrkAtHom | CI49: P31TravTim<5min | CJ49: P31TravTim5to9Min | CK49: P31TravTim10to14Min | CL49: P31TravTim15to19Min | CM49: P31TravTim20to24Min | CN49: P31TravTim25to29Min | CO49: P31TravTim30to34Min | CP49: P31TravTim35to39Min | CQ49: P31TravTim40to44Min | CR49: P31TravTim45to59Min | CS49: P31TravTim60to89Min | CT49: P31TravTim90MinMore | CU49: P31WorkAtHome | CV49: P36SchEnrlPop3yrOver | CW49: P36NurserSchEnrl | CX49: P36KinderSchEnrl | CY49: P36ElemSchEnrl | CZ49: P36HighSchEnrl | DA49: P36CollGradSchEnrl | DB49: P37Pop25yrsOver | DC49: P37EduAtain<9grd | DD49: P37EduAtainHSnoDip | DE49: P37EduAtainHSgrad | DF49: P37EduAtainCollNoDeg | DG49: P37EduAtainAssocDeg | DH49: P37EduAtainBachDeg | DI49: P37EduAtainGradProfDeg | DJ49: P42NIPop5to15 | DK49: P42NIPop5to15wDisabl | DL49: P42NIPop16to20 | DM49: P42NIPop16to20wDisab | DN49: P42NIPop16to20wDisEmp | DO49: P42NIPop16to21NoDis | DP49: P42NIPop16to21NoDisEmpl | DQ49: P42NIPop21to64 | DR49: P42NIPop21to64wDis | DS49: P42NIPop21to64wDisEmp | DT49: P42NIPop21to64NoDis | DU49: P42NIPop21to64NoDisEmp | DV49: P42NIPop65to74 | DW49: P42NIPop65to74wDis | DX49: P42NIPop75Over | DY49: P42NIPop75OverwDis | DZ49: P43Pop16YrsOver | EA49: P43Pop16OvrInLaborForce | EB49: P43Pop16OvrCivlLabFrc | EC49: P43Pop16OvrCivlLbrFrcEmp | ED49: P48Families | EE49: P48MarriedFam | EF49: P48MarrFamNoWorkers | EG49: P48MarrFam1Worker | EH49: P48MarrFam2Worker | EI49: P48MarrFamHusbWifeWorked | EJ49: P48MarrFamOther | EK49: P48MarrFam3PlusWorker | EL49: P48MarrFam3WorkHsbWif | EM49: P48MarrFam3PlsWrkOther | EN49: P48OtherFam | EO49: P48MaleHHNoWif | EP49: P48MaleHHNoWifNoWorker | EQ49: P48MaleHHNoWif1Worker | ER49: P48MaleHHNoWif2Worker | ES49: P48MaleHHNoWif3PlusWorker | ET49: P48FemaleHHNoHsb | EU49: P48FemaleHHNoHsbNoWorker | EV49: P48FemaleHHNoHsb1Worker | EW49: P48FemaleHHNoHsb2Worker | EX49: P48FemaleHHNoHsb3Worker | EY49: P49EmpCivPop16YrOver | EZ49: P49IndustAgricult | FA49: P49IndustConst | FB49: P49IndustMnftg | FC49: P49IndustWhlslTrd | FD49: P49IndustRtlTrd | FE49: P49IndustTrspWrhsUtlt | FF49: P49IndustInfrm | FG49: P49IndustFinInsRE | FH49: P49IndustPrfsScntfMngmt | FI49: P49IndustEduHlthSocSrv | FJ49: P49IndustArtsEntRec | FK49: P49IndustOthrSrvc | FL49: P49IndustPubAdm | FM49: P50OccupMngmtProfs | FN49: P50OccupService | FO49: P50OccupSalesOff | FP49: P50OccupFarmFishForest | FQ49: P50OccupConstExtrctMaint | FR49: P50OccupPrdctTrnspMatMv
A50: =VLOOKUP(DropDownList!$B$47,CntyQryCensus!$A$156:$FR$198,A$1) -> Allenstown | B50: =VLOOKUP(DropDownList!$B$47,CntyQryCensus!$A$156:$FR$198,B$1) -> 0002575 | C50: =VLOOKUP(DropDownList!$B$47,CntyQryCensus!$A$156:$FR$198,C$1) -> 00660 | D50: =VLOOKUP(DropDownList!$B$47,CntyQryCensus!$A$156:$FR$198,D$1) -> 4843 | E50: =VLOOKUP(DropDownList!$B$47,CntyQryCensus!$A$156:$FR$198,E$1) -> 707 | F50: =VLOOKUP(DropDownList!$B$47,CntyQryCensus!$A$156:$FR$198,F$1) -> 4843 | G50: =VLOOKUP(DropDownList!$B$47,CntyQryCensus!$A$156:$FR$198,G$1) -> 2951 | H50: =VLOOKUP(DropDownList!$B$47,CntyQryCensus!$A$156:$FR$198,H$1) -> 1892 | I50: =VLOOKUP(DropDownList!$B$47,CntyQryCensus!$A$156:$FR$198,I$1) -> 4695 | J50: =VLOOKUP(DropDownList!$B$47,CntyQryCensus!$A$156:$FR$198,J$1) -> 44 | K50: =VLOOKUP(DropDownList!$B$47,CntyQryCensus!$A$156:$FR$198,K$1) -> 7 | L50: =VLOOKUP(DropDownList!$B$47,CntyQryCensus!$A$156:$FR$198,L$1) -> 0 | M50: =VLOOKUP(DropDownList!$B$47,CntyQryCensus!$A$156:$FR$198,M$1) -> 0 | N50: =VLOOKUP(DropDownList!$B$47,CntyQryCensus!$A$156:$FR$198,N$1) -> 16 | O50: =VLOOKUP(DropDownList!$B$47,CntyQryCensus!$A$156:$FR$198,O$1) -> 81 | P50: =VLOOKUP(DropDownList!$B$47,CntyQryCensus!$A$156:$FR$198,P$1) -> 4812 | Q50: =VLOOKUP(DropDownList!$B$47,CntyQryCensus!$A$156:$FR$198,Q$1) -> 31 | R50: =VLOOKUP(DropDownList!$B$47,CntyQryCensus!$A$156:$FR$198,R$1) -> 2344 | S50: =VLOOKUP(DropDownList!$B$47,CntyQryCensus!$A$156:$FR$198,S$1) -> 2499 | T50: =VLOOKUP(DropDownList!$B$47,CntyQryCensus!$A$156:$FR$198,T$1) -> 4808 | U50: =VLOOKUP(DropDownList!$B$47,CntyQryCensus!$A$156:$FR$198,U$1) -> 4014 | V50: =VLOOKUP(DropDownList!$B$47,CntyQryCensus!$A$156:$FR$198,V$1) -> 794 | W50: =VLOOKUP(DropDownList!$B$47,CntyQryCensus!$A$156:$FR$198,W$1) -> 35 | X50: =VLOOKUP(DropDownList!$B$47,CntyQryCensus!$A$156:$FR$198,X$1) -> 1901 | Y50: =VLOOKUP(DropDownList!$B$47,CntyQryCensus!$A$156:$FR$198,Y$1) -> 1277 | Z50: =VLOOKUP(DropDownList!$B$47,CntyQryCensus!$A$156:$FR$198,Z$1) -> 29 | AA50: =VLOOKUP(DropDownList!$B$47,CntyQryCensus!$A$156:$FR$198,AA$1) -> 259 | AB50: =VLOOKUP(DropDownList!$B$47,CntyQryCensus!$A$156:$FR$198,AB$1) -> 413 | AC50: =VLOOKUP(DropDownList!$B$47,CntyQryCensus!$A$156:$FR$198,AC$1) -> 305 | AD50: =VLOOKUP(DropDownList!$B$47,CntyQryCensus!$A$156:$FR$198,AD$1) -> 121 | AE50: =VLOOKUP(DropDownList!$B$47,CntyQryCensus!$A$156:$FR$198,AE$1) -> 105 | AF50: =VLOOKUP(DropDownList!$B$47,CntyQryCensus!$A$156:$FR$198,AF$1) -> 36 | AG50: =VLOOKUP(DropDownList!$B$47,CntyQryCensus!$A$156:$FR$198,AG$1) -> 9 | AH50: =VLOOKUP(DropDownList!$B$47,CntyQryCensus!$A$156:$FR$198,AH$1) -> 624 | AI50: =VLOOKUP(DropDownList!$B$47,CntyQryCensus!$A$156:$FR$198,AI$1) -> 17 | AJ50: =VLOOKUP(DropDownList!$B$47,CntyQryCensus!$A$156:$FR$198,AJ$1) -> 99 | AK50: =VLOOKUP(DropDownList!$B$47,CntyQryCensus!$A$156:$FR$198,AK$1) -> 89 | AL50: =VLOOKUP(DropDownList!$B$47,CntyQryCensus!$A$156:$FR$198,AL$1) -> 91 | AM50: =VLOOKUP(DropDownList!$B$47,CntyQryCensus!$A$156:$FR$198,AM$1) -> 101 | AN50: =VLOOKUP(DropDownList!$B$47,CntyQryCensus!$A$156:$FR$198,AN$1) -> 96 | AO50: =VLOOKUP(DropDownList!$B$47,CntyQryCensus!$A$156:$FR$198,AO$1) -> 83 | AP50: =VLOOKUP(DropDownList!$B$47,CntyQryCensus!$A$156:$FR$198,AP$1) -> 48 | AQ50: =VLOOKUP(DropDownList!$B$47,CntyQryCensus!$A$156:$FR$198,AQ$1) -> 3705 | AR50: =VLOOKUP(DropDownList!$B$47,CntyQryCensus!$A$156:$FR$198,AR$1) -> 820 | AS50: =VLOOKUP(DropDownList!$B$47,CntyQryCensus!$A$156:$FR$198,AS$1) -> 2029 | AT50: =VLOOKUP(DropDownList!$B$47,CntyQryCensus!$A$156:$FR$198,AT$1) -> 66 | AU50: =VLOOKUP(DropDownList!$B$47,CntyQryCensus!$A$156:$FR$198,AU$1) -> 311 | AV50: =VLOOKUP(DropDownList!$B$47,CntyQryCensus!$A$156:$FR$198,AV$1) -> 275 | AW50: =VLOOKUP(DropDownList!$B$47,CntyQryCensus!$A$156:$FR$198,AW$1) -> 479 | AX50: =VLOOKUP(DropDownList!$B$47,CntyQryCensus!$A$156:$FR$198,AX$1) -> 245 | AY50: =VLOOKUP(DropDownList!$B$47,CntyQryCensus!$A$156:$FR$198,AY$1) -> 4727 | AZ50: =VLOOKUP(DropDownList!$B$47,CntyQryCensus!$A$156:$FR$198,AZ$1) -> 2983 | BA50: =VLOOKUP(DropDownList!$B$47,CntyQryCensus!$A$156:$FR$198,BA$1) -> 1706 | BB50: =VLOOKUP(DropDownList!$B$47,CntyQryCensus!$A$156:$FR$198,BB$1) -> 1484 | BC50: =VLOOKUP(DropDownList!$B$47,CntyQryCensus!$A$156:$FR$198,BC$1) -> 89 | BD50: =VLOOKUP(DropDownList!$B$47,CntyQryCensus!$A$156:$FR$198,BD$1) -> 62 | BE50: =VLOOKUP(DropDownList!$B$47,CntyQryCensus!$A$156:$FR$198,BE$1) -> 71 | BF50: =VLOOKUP(DropDownList!$B$47,CntyQryCensus!$A$156:$FR$198,BF$1) -> 38 | BG50: =VLOOKUP(DropDownList!$B$47,CntyQryCensus!$A$156:$FR$198,BG$1) -> 116 | BH50: =VLOOKUP(DropDownList!$B$47,CntyQryCensus!$A$156:$FR$198,BH$1) -> 72 | BI50: =VLOOKUP(DropDownList!$B$47,CntyQryCensus!$A$156:$FR$198,BI$1) -> 44 | BJ50: =VLOOKUP(DropDownList!$B$47,CntyQryCensus!$A$156:$FR$198,BJ$1) -> 4524 | BK50: =VLOOKUP(DropDownList!$B$47,CntyQryCensus!$A$156:$FR$198,BK$1) -> 2494 | BL50: =VLOOKUP(DropDownList!$B$47,CntyQryCensus!$A$156:$FR$198,BL$1) -> 2030 | BM50: =VLOOKUP(DropDownList!$B$47,CntyQryCensus!$A$156:$FR$198,BM$1) -> 1996 | BN50: =VLOOKUP(DropDownList!$B$47,CntyQryCensus!$A$156:$FR$198,BN$1) -> 875 | BO50: =VLOOKUP(DropDownList!$B$47,CntyQryCensus!$A$156:$FR$198,BO$1) -> 1121 | BP50: =VLOOKUP(DropDownList!$B$47,CntyQryCensus!$A$156:$FR$198,BP$1) -> 900 | BQ50: =VLOOKUP(DropDownList!$B$47,CntyQryCensus!$A$156:$FR$198,BQ$1) -> 221 | BR50: =VLOOKUP(DropDownList!$B$47,CntyQryCensus!$A$156:$FR$198,BR$1) -> 121 | BS50: =VLOOKUP(DropDownList!$B$47,CntyQryCensus!$A$156:$FR$198,BS$1) -> 16 | BT50: =VLOOKUP(DropDownList!$B$47,CntyQryCensus!$A$156:$FR$198,BT$1) -> 63 | BU50: =VLOOKUP(DropDownList!$B$47,CntyQryCensus!$A$156:$FR$198,BU$1) -> 21 | BV50: =VLOOKUP(DropDownList!$B$47,CntyQryCensus!$A$156:$FR$198,BV$1) -> 0 | BW50: =VLOOKUP(DropDownList!$B$47,CntyQryCensus!$A$156:$FR$198,BW$1) -> 34 | BX50: =VLOOKUP(DropDownList!$B$47,CntyQryCensus!$A$156:$FR$198,BX$1) -> 2647 | BY50: =VLOOKUP(DropDownList!$B$47,CntyQryCensus!$A$156:$FR$198,BY$1) -> 2582 | BZ50: =VLOOKUP(DropDownList!$B$47,CntyQryCensus!$A$156:$FR$198,BZ$1) -> 1592 | CA50: =VLOOKUP(DropDownList!$B$47,CntyQryCensus!$A$156:$FR$198,CA$1) -> 990 | CB50: =VLOOKUP(DropDownList!$B$47,CntyQryCensus!$A$156:$FR$198,CB$1) -> 65 | CC50: =VLOOKUP(DropDownList!$B$47,CntyQryCensus!$A$156:$FR$198,CC$1) -> 2647 | CD50: =VLOOKUP(DropDownList!$B$47,CntyQryCensus!$A$156:$FR$198,CD$1) -> 2537 | CE50: =VLOOKUP(DropDownList!$B$47,CntyQryCensus!$A$156:$FR$198,CE$1) -> 0 | CF50: =VLOOKUP(DropDownList!$B$47,CntyQryCensus!$A$156:$FR$198,CF$1) -> 642 | CG50: =VLOOKUP(DropDownList!$B$47,CntyQryCensus!$A$156:$FR$198,CG$1) -> 74 | CH50: =VLOOKUP(DropDownList!$B$47,CntyQryCensus!$A$156:$FR$198,CH$1) -> 2573 | CI50: =VLOOKUP(DropDownList!$B$47,CntyQryCensus!$A$156:$FR$198,CI$1) -> 65 | CJ50: =VLOOKUP(DropDownList!$B$47,CntyQryCensus!$A$156:$FR$198,CJ$1) -> 113 | CK50: =VLOOKUP(DropDownList!$B$47,CntyQryCensus!$A$156:$FR$198,CK$1) -> 213 | CL50: =VLOOKUP(DropDownList!$B$47,CntyQryCensus!$A$156:$FR$198,CL$1) -> 366 | CM50: =VLOOKUP(DropDownList!$B$47,CntyQryCensus!$A$156:$FR$198,CM$1) -> 591 | CN50: =VLOOKUP(DropDownList!$B$47,CntyQryCensus!$A$156:$FR$198,CN$1) -> 167 | CO50: =VLOOKUP(DropDownList!$B$47,CntyQryCensus!$A$156:$FR$198,CO$1) -> 486 | CP50: =VLOOKUP(DropDownList!$B$47,CntyQryCensus!$A$156:$FR$198,CP$1) -> 80 | CQ50: =VLOOKUP(DropDownList!$B$47,CntyQryCensus!$A$156:$FR$198,CQ$1) -> 63 | CR50: =VLOOKUP(DropDownList!$B$47,CntyQryCensus!$A$156:$FR$198,CR$1) -> 226 | CS50: =VLOOKUP(DropDownList!$B$47,CntyQryCensus!$A$156:$FR$198,CS$1) -> 144 | CT50: =VLOOKUP(DropDownList!$B$47,CntyQryCensus!$A$156:$FR$198,CT$1) -> 59 | CU50: =VLOOKUP(DropDownList!$B$47,CntyQryCensus!$A$156:$FR$198,CU$1) -> 74 | CV50: =VLOOKUP(DropDownList!$B$47,CntyQryCensus!$A$156:$FR$198,CV$1) -> 4676 | CW50: =VLOOKUP(DropDownList!$B$47,CntyQryCensus!$A$156:$FR$198,CW$1) -> 89 | CX50: =VLOOKUP(DropDownList!$B$47,CntyQryCensus!$A$156:$FR$198,CX$1) -> 44 | CY50: =VLOOKUP(DropDownList!$B$47,CntyQryCensus!$A$156:$FR$198,CY$1) -> 682 | CZ50: =VLOOKUP(DropDownList!$B$47,CntyQryCensus!$A$156:$FR$198,CZ$1) -> 302 | DA50: =VLOOKUP(DropDownList!$B$47,CntyQryCensus!$A$156:$FR$198,DA$1) -> 111 | DB50: =VLOOKUP(DropDownList!$B$47,CntyQryCensus!$A$156:$FR$198,DB$1) -> 3202 | DC50: =VLOOKUP(DropDownList!$B$47,CntyQryCensus!$A$156:$FR$198,DC$1) -> 323 | DD50: =VLOOKUP(DropDownList!$B$47,CntyQryCensus!$A$156:$FR$198,DD$1) -> 323 | DE50: =VLOOKUP(DropDownList!$B$47,CntyQryCensus!$A$156:$FR$198,DE$1) -> 1283 | DF50: =VLOOKUP(DropDownList!$B$47,CntyQryCensus!$A$156:$FR$198,DF$1) -> 755 | DG50: =VLOOKUP(DropDownList!$B$47,CntyQryCensus!$A$156:$FR$198,DG$1) -> 207 | DH50: =VLOOKUP(DropDownList!$B$47,CntyQryCensus!$A$156:$FR$198,DH$1) -> 219 | DI50: =VLOOKUP(DropDownList!$B$47,CntyQryCensus!$A$156:$FR$198,DI$1) -> 92 | DJ50: =VLOOKUP(DropDownList!$B$47,CntyQryCensus!$A$156:$FR$198,DJ$1) -> 882 | DK50: =VLOOKUP(DropDownList!$B$47,CntyQryCensus!$A$156:$FR$198,DK$1) -> 115 | DL50: =VLOOKUP(DropDownList!$B$47,CntyQryCensus!$A$156:$FR$198,DL$1) -> 256 | DM50: =VLOOKUP(DropDownList!$B$47,CntyQryCensus!$A$156:$FR$198,DM$1) -> 25 | DN50: =VLOOKUP(DropDownList!$B$47,CntyQryCensus!$A$156:$FR$198,DN$1) -> 25 | DO50: =VLOOKUP(DropDownList!$B$47,CntyQryCensus!$A$156:$FR$198,DO$1) -> 231 | DP50: =VLOOKUP(DropDownList!$B$47,CntyQryCensus!$A$156:$FR$198,DP$1) -> 190 | DQ50: =VLOOKUP(DropDownList!$B$47,CntyQryCensus!$A$156:$FR$198,DQ$1) -> 2853 | DR50: =VLOOKUP(DropDownList!$B$47,CntyQryCensus!$A$156:$FR$198,DR$1) -> 577 | DS50: =VLOOKUP(DropDownList!$B$47,CntyQryCensus!$A$156:$FR$198,DS$1) -> 425 | DT50: =VLOOKUP(DropDownList!$B$47,CntyQryCensus!$A$156:$FR$198,DT$1) -> 2276 | DU50: =VLOOKUP(DropDownList!$B$47,CntyQryCensus!$A$156:$FR$198,DU$1) -> 1964 | DV50: =VLOOKUP(DropDownList!$B$47,CntyQryCensus!$A$156:$FR$198,DV$1) -> 267 | DW50: =VLOOKUP(DropDownList!$B$47,CntyQryCensus!$A$156:$FR$198,DW$1) -> 99 | DX50: =VLOOKUP(DropDownList!$B$47,CntyQryCensus!$A$156:$FR$198,DX$1) -> 239 | DY50: =VLOOKUP(DropDownList!$B$47,CntyQryCensus!$A$156:$FR$198,DY$1) -> 120 | DZ50: =VLOOKUP(DropDownList!$B$47,CntyQryCensus!$A$156:$FR$198,DZ$1) -> 3615 | EA50: =VLOOKUP(DropDownList!$B$47,CntyQryCensus!$A$156:$FR$198,EA$1) -> 2731 | EB50: =VLOOKUP(DropDownList!$B$47,CntyQryCensus!$A$156:$FR$198,EB$1) -> 2731 | EC50: =VLOOKUP(DropDownList!$B$47,CntyQryCensus!$A$156:$FR$198,EC$1) -> 2664 | ED50: =VLOOKUP(DropDownList!$B$47,CntyQryCensus!$A$156:$FR$198,ED$1) -> 1277 | EE50: =VLOOKUP(DropDownList!$B$47,CntyQryCensus!$A$156:$FR$198,EE$1) -> 998 | EF50: =VLOOKUP(DropDownList!$B$47,CntyQryCensus!$A$156:$FR$198,EF$1) -> 107 | EG50: =VLOOKUP(DropDownList!$B$47,CntyQryCensus!$A$156:$FR$198,EG$1) -> 197 | EH50: =VLOOKUP(DropDownList!$B$47,CntyQryCensus!$A$156:$FR$198,EH$1) -> 552 | EI50: =VLOOKUP(DropDownList!$B$47,CntyQryCensus!$A$156:$FR$198,EI$1) -> 533 | EJ50: =VLOOKUP(DropDownList!$B$47,CntyQryCensus!$A$156:$FR$198,EJ$1) -> 19 | EK50: =VLOOKUP(DropDownList!$B$47,CntyQryCensus!$A$156:$FR$198,EK$1) -> 142 | EL50: =VLOOKUP(DropDownList!$B$47,CntyQryCensus!$A$156:$FR$198,EL$1) -> 124 | EM50: =VLOOKUP(DropDownList!$B$47,CntyQryCensus!$A$156:$FR$198,EM$1) -> 18 | EN50: =VLOOKUP(DropDownList!$B$47,CntyQryCensus!$A$156:$FR$198,EN$1) -> 279 | EO50: =VLOOKUP(DropDownList!$B$47,CntyQryCensus!$A$156:$FR$198,EO$1) -> 102 | EP50: =VLOOKUP(DropDownList!$B$47,CntyQryCensus!$A$156:$FR$198,EP$1) -> 0 | EQ50: =VLOOKUP(DropDownList!$B$47,CntyQryCensus!$A$156:$FR$198,EQ$1) -> 72 | ER50: =VLOOKUP(DropDownList!$B$47,CntyQryCensus!$A$156:$FR$198,ER$1) -> 27 | ES50: =VLOOKUP(DropDownList!$B$47,CntyQryCensus!$A$156:$FR$198,ES$1) -> 3 | ET50: =VLOOKUP(DropDownList!$B$47,CntyQryCensus!$A$156:$FR$198,ET$1) -> 177 | EU50: =VLOOKUP(DropDownList!$B$47,CntyQryCensus!$A$156:$FR$198,EU$1) -> 4 | EV50: =VLOOKUP(DropDownList!$B$47,CntyQryCensus!$A$156:$FR$198,EV$1) -> 97 | EW50: =VLOOKUP(DropDownList!$B$47,CntyQryCensus!$A$156:$FR$198,EW$1) -> 37 | EX50: =VLOOKUP(DropDownList!$B$47,CntyQryCensus!$A$156:$FR$198,EX$1) -> 39 | EY50: =VLOOKUP(DropDownList!$B$47,CntyQryCensus!$A$156:$FR$198,EY$1) -> 2664 | EZ50: =VLOOKUP(DropDownList!$B$47,CntyQryCensus!$A$156:$FR$198,EZ$1) -> 21 | FA50: =VLOOKUP(DropDownList!$B$47,CntyQryCensus!$A$156:$FR$198,FA$1) -> 327 | FB50: =VLOOKUP(DropDownList!$B$47,CntyQryCensus!$A$156:$FR$198,FB$1) -> 506 | FC50: =VLOOKUP(DropDownList!$B$47,CntyQryCensus!$A$156:$FR$198,FC$1) -> 71 | FD50: =VLOOKUP(DropDownList!$B$47,CntyQryCensus!$A$156:$FR$198,FD$1) -> 470 | FE50: =VLOOKUP(DropDownList!$B$47,CntyQryCensus!$A$156:$FR$198,FE$1) -> 46 | FF50: =VLOOKUP(DropDownList!$B$47,CntyQryCensus!$A$156:$FR$198,FF$1) -> 52 | FG50: =VLOOKUP(DropDownList!$B$47,CntyQryCensus!$A$156:$FR$198,FG$1) -> 227 | FH50: =VLOOKUP(DropDownList!$B$47,CntyQryCensus!$A$156:$FR$198,FH$1) -> 191 | FI50: =VLOOKUP(DropDownList!$B$47,CntyQryCensus!$A$156:$FR$198,FI$1) -> 362 | FJ50: =VLOOKUP(DropDownList!$B$47,CntyQryCensus!$A$156:$FR$198,FJ$1) -> 112 | FK50: =VLOOKUP(DropDownList!$B$47,CntyQryCensus!$A$156:$FR$198,FK$1) -> 90 | FL50: =VLOOKUP(DropDownList!$B$47,CntyQryCensus!$A$156:$FR$198,FL$1) -> 189 | FM50: =VLOOKUP(DropDownList!$B$47,CntyQryCensus!$A$156:$FR$198,FM$1) -> 581 | FN50: =VLOOKUP(DropDownList!$B$47,CntyQryCensus!$A$156:$FR$198,FN$1) -> 376 | FO50: =VLOOKUP(DropDownList!$B$47,CntyQryCensus!$A$156:$FR$198,FO$1) -> 794 | FP50: =VLOOKUP(DropDownList!$B$47,CntyQryCensus!$A$156:$FR$198,FP$1) -> 8 | FQ50: =VLOOKUP(DropDownList!$B$47,CntyQryCensus!$A$156:$FR$198,FQ$1) -> 417 | FR50: =VLOOKUP(DropDownList!$B$47,CntyQryCensus!$A$156:$FR$198,FR$1) -> 488
A53: Census 2000 SummaryFile3 Sample Data - SF3TownQry2aIncomeChar
A54: NAME | B54: LOGRECNO | C54: COUNTY | D54: TotalPop | E54: P52Households1 | F54: P52HHInc<10K | G54: P52HHInc10to15K | H54: P52HHInc15to20K | I54: P52HHInc20to25K | J54: P52HHInc25to30K | K54: P52HHInc30to35K | L54: P52HHInc35to40K | M54: P52HHInc40to45K | N54: P52HHInc45to50K | O54: P52HHInc50to60K | P54: P52HHInc60to75K | Q54: P52HHInc75to100K | R54: P52HHInc100to125K | S54: P52HHInc125to150K | T54: P52HHInc150to200K | U54: P52HHInc>200K | V54: P53MedianHHInc | W54: P54AggregHHInc | X54: P55Households2 | Y54: P55HHUnder25yrs | Z54: P55HH<25HHInc<10K | AA54: P55HH<25HHInc10to15K | AB54: P55HH<25HHInc15to20K | AC54: P55HH<25HHInc20to25K | AD54: P55HH<25HHInc25to30K | AE54: P55HH<25HHInc30to35K | AF54: P55HH<25HHInc35to40K | AG54: P55HH<25HHInc40to45K | AH54: P55HH<25HHInc45to50K | AI54: P55HH<25HHInc50to60K | AJ54: P55HH<25HHInc60to75K | AK54: P55HH<25HHInc75to100K | AL54: P55HH<25HHInc100to125K | AM54: P55HH<25HHInc125to150K | AN54: P55HH<25HHInc150to200K | AO54: P55HH<25HHInc>200K | AP54: P55HH25to34yrs | AQ54: P55HH25to34HHInc<10K | AR54: P55HH25to34HHInc10to15K | AS54: P55HH25to34HHInc15to20K | AT54: P55HH25to34HHInc20to25K | AU54: P55HH25to34HHInc25to30K | AV54: P55HH25to34HHInc30to35K | AW54: P55HH25to34HHInc35to40K | AX54: P55HH25to34HHInc40to45K | AY54: P55HH25to34HHInc45to50K | AZ54: P55HH25to34HHInc50to60K | BA54: P55HH25to34HHInc60to75K | BB54: P55HH25to34HHInc75to100K | BC54: P55HH25to34HHInc100to125K | BD54: P55HH25to34HHInc125to150K | BE54: P55HH25to34HHInc150to200K | BF54: P55HH25to34HHInc>200K | BG54: P55HH35to44yrs | BH54: P55HH35to44HHInc<10K | BI54: P55HH35to44HHInc10to15K | BJ54: P55HH35to44HHInc15to20K | BK54: P55HH35to44HHInc20to25K | BL54: P55HH35to44HHInc25to30K | BM54: P55HH35to44HHInc30to35K | BN54: P55HH35to44HHInc35to40K | BO54: P55HH35to44HHInc40to45K | BP54: P55HH35to44HHInc45to50K | BQ54: P55HH35to44HHInc50to60K | BR54: P55HH35to44HHInc60to75K | BS54: P55HH35to44HHInc75to100K | BT54: P55HH35to44HHInc100to125K | BU54: P55HH35to44HHInc125to150K | BV54: P55HH35to44HHInc150to200K | BW54: P55HH35to44HHInc>200K | BX54: P55HH45to54yrs | BY54: P55HH45to55HHInc<10K | BZ54: P55HH45to55HHInc10to15K | CA54: P55HH45to55HHInc15to20K | CB54: P55HH45to55HHInc20to25K | CC54: P55HH45to55HHInc25to30K | CD54: P55HH45to55HHInc30to35K | CE54: P55HH45to55HHInc35to40K | CF54: P55HH45to55HHInc40to45K | CG54: P55HH45to55HHInc45to50K | CH54: P55HH45to55HHInc50to60K | CI54: P55HH45to55HHInc60to75K | CJ54: P55HH45to55HHInc75to100K | CK54: P55HH45to55HHInc100to125K | CL54: P55HH45to55HHInc125to150K | CM54: P55HH45to55HHInc150to200K | CN54: P55HH45to55HHInc>200K | CO54: P55HH55to64yrs | CP54: P55HH55to64HHInc<10K | CQ54: P55HH55to64HHInc10to15K | CR54: P55HH55to64HHInc15to20K | CS54: P55HH55to64HHInc20to25K | CT54: P55HH55to64HHInc25to30K | CU54: P55HH55to64HHInc30to35K | CV54: P55HH55to64HHInc35to40K | CW54: P55HH55to64HHInc40to45K | CX54: P55HH55to64HHInc45to50K | CY54: P55HH55to64HHInc50to60K | CZ54: P55HH55to64HHInc60to75K | DA54: P55HH55to64HHInc75to100K | DB54: P55HH55to64HHInc100to125K | DC54: P55HH55to64HHInc125to150K | DD54: P55HH55to64HHInc150to200K | DE54: P55HH55to64HHInc>200K | DF54: P55HH65to74yrs | DG54: P55HH65to74HHInc<10K | DH54: P55HH65to74HHInc10to15K | DI54: P55HH65to74HHInc15to20K | DJ54: P55HH65to74HHInc20to25K | DK54: P55HH65to74HHInc25to30K | DL54: P55HH65to74HHInc30to35K | DM54: P55HH65to74HHInc35to40K | DN54: P55HH65to74HHInc40to45K | DO54: P55HH65to74HHInc45to50K | DP54: P55HH65to74HHInc50to60K | DQ54: P55HH65to74HHInc60to75K | DR54: P55HH65to74HHInc75to100K | DS54: P55HH65to74HHInc100to125K | DT54: P55HH65to74HHInc125to150K | DU54: P55HH65to74HHInc150to200K | DV54: P55HH65to74HHInc>200K | DW54: P55HH>75yrs | DX54: P55HH>75HHInc<10K | DY54: P55HH>75HHInc10to15K | DZ54: P55HH>75HHInc15to20K | EA54: P55HH>75HHInc20to25K | EB54: P55HH>75HHInc25to30K | EC54: P55HH>75HHInc30to35K | ED54: P55HH>75HHInc35to40K | EE54: P55HH>75HHInc40to45K | EF54: P55HH>75HHInc45to50K | EG54: P55HH>75HHInc50to60K | EH54: P55HH>75HHInc60to75K | EI54: P55HH>75HHInc75to100K | EJ54: P55HH>75HHInc100to125K | EK54: P55HH>75HHInc125to150K | EL54: P55HH>75HHInc150to200K | EM54: P55HH>75HHInc>200K | EN54: P56MedHHInc | EO54: P56MedHHIncHH<25y | EP54: P56MedHHIncHH25to34y | EQ54: P56MedHHIncHH35to44y | ER54: P56MedHHIncHH45to54y | ES54: P56MedHHIncHH55to64y | ET54: P56MedHHIncHH65to74y | EU54: P56MedHHIncHH>75y | EV54: P58Households3 | EW54: P58HHwithEarnings | EX54: P58HHNoEarnings | EY54: P59HHwWageSalInc | EZ54: P59HHNoWageSalInc | FA54: P60HHwSelfEmpInc | FB54: P60HHNoSelfEmpInc | FC54: P61HHwIndDivInc | FD54: P61HHNoIndDivInc | FE54: P62HHwSocSecInc | FF54: P62HHNoSocSecInc | FG54: P63HHwSSI | FH54: P63HHNoSSI | FI54: P64HHwPubAssInc | FJ54: P64HHNoPubAssInc | FK54: P65HHwRetInc | FL54: P65HHNoRetInc | FM54: P66HHwOtherTypInc | FN54: P66HHNoOtherTypInc | FO54: P67AggregEarnings | FP54: P68AggregWageSalInc | FQ54: P69AggregSelfEmpInc | FR54: P70AggregIntDivInc | FS54: P71AggregSocSecInc | FT54: P72AggregSSIInc | FU54: P73AggregPublicAssInc | FV54: P74AggregRetireInc | FW54: P76Families1 | FX54: P76FamInc<10K | FY54: P76FamInc10to15K | FZ54: P76FamInc15to20K | GA54: P76FamInc20to25K | GB54: P76FamInc25to30K | GC54: P76FamInc30to35K | GD54: P76FamInc35to40K | GE54: P76FamInc40to45K | GF54: P76FamInc45to50K | GG54: P76FamInc50to60K | GH54: P76FamInc60to75K | GI54: P76FamInc75to100K | GJ54: P76FamInc100to125K | GK54: P76FamInc125to150K | GL54: P76FamInc150to200K | GM54: P76FamInc>200K | GN54: P77MedFamInc | GO54: P78AggregFamInc | GP54: P79NonFamHH | GQ54: P79NonFamHHwInc<10K | GR54: P79NonFamHHwInc10to15K | GS54: P79NonFamHHwInc15to20K | GT54: P79NonFamHHwInc20to25K | GU54: P79NonFamHHwInc25to30K | GV54: P79NonFamHHwInc30to35K | GW54: P79NonFamHHwInc35to40K | GX54: P79NonFamHHwInc40to45K | GY54: P79NonFamHHwInc45to50K | GZ54: P79NonFamHHwInc50to60K | HA54: P79NonFamHHwInc60to75K | HB54: P79NonFamHHwInc75to100K | HC54: P79NonFamHHwInc100to125K | HD54: P79NonFamHHwInc125to150K | HE54: P79NonFamHHwInc150to200K | HF54: P79NonFamHHwInc200KorMore | HG54: P80MedNonFamInc | HH54: P82PerCapitaInc
A55: =VLOOKUP(DropDownList!$B$47,CntyQryCensus!$A$206:$HH$248,A$1) -> Allenstown | B55: =VLOOKUP(DropDownList!$B$47,CntyQryCensus!$A$206:$HH$248,B$1) -> 0002575 | C55: =VLOOKUP(DropDownList!$B$47,CntyQryCensus!$A$206:$HH$248,C$1) -> 00660 | D55: =VLOOKUP(DropDownList!$B$47,CntyQryCensus!$A$206:$HH$248,D$1) -> 4843 | E55: =VLOOKUP(DropDownList!$B$47,CntyQryCensus!$A$206:$HH$248,E$1) -> 1901 | F55: =VLOOKUP(DropDownList!$B$47,CntyQryCensus!$A$206:$HH$248,F$1) -> 121 | G55: =VLOOKUP(DropDownList!$B$47,CntyQryCensus!$A$206:$HH$248,G$1) -> 100 | H55: =VLOOKUP(DropDownList!$B$47,CntyQryCensus!$A$206:$HH$248,H$1) -> 91 | I55: =VLOOKUP(DropDownList!$B$47,CntyQryCensus!$A$206:$HH$248,I$1) -> 117 | J55: =VLOOKUP(DropDownList!$B$47,CntyQryCensus!$A$206:$HH$248,J$1) -> 174 | K55: =VLOOKUP(DropDownList!$B$47,CntyQryCensus!$A$206:$HH$248,K$1) -> 118 | L55: =VLOOKUP(DropDownList!$B$47,CntyQryCensus!$A$206:$HH$248,L$1) -> 159 | M55: =VLOOKUP(DropDownList!$B$47,CntyQryCensus!$A$206:$HH$248,M$1) -> 146 | N55: =VLOOKUP(DropDownList!$B$47,CntyQryCensus!$A$206:$HH$248,N$1) -> 76 | O55: =VLOOKUP(DropDownList!$B$47,CntyQryCensus!$A$206:$HH$248,O$1) -> 234 | P55: =VLOOKUP(DropDownList!$B$47,CntyQryCensus!$A$206:$HH$248,P$1) -> 263 | Q55: =VLOOKUP(DropDownList!$B$47,CntyQryCensus!$A$206:$HH$248,Q$1) -> 182 | R55: =VLOOKUP(DropDownList!$B$47,CntyQryCensus!$A$206:$HH$248,R$1) -> 81 | S55: =VLOOKUP(DropDownList!$B$47,CntyQryCensus!$A$206:$HH$248,S$1) -> 33 | T55: =VLOOKUP(DropDownList!$B$47,CntyQryCensus!$A$206:$HH$248,T$1) -> 6 | U55: =VLOOKUP(DropDownList!$B$47,CntyQryCensus!$A$206:$HH$248,U$1) -> 0 | V55: =VLOOKUP(DropDownList!$B$47,CntyQryCensus!$A$206:$HH$248,V$1) -> 41958 | W55: =VLOOKUP(DropDownList!$B$47,CntyQryCensus!$A$206:$HH$248,W$1) -> 90891700 | X55: =VLOOKUP(DropDownList!$B$47,CntyQryCensus!$A$206:$HH$248,X$1) -> 1901 | Y55: =VLOOKUP(DropDownList!$B$47,CntyQryCensus!$A$206:$HH$248,Y$1) -> 46 | Z55: =VLOOKUP(DropDownList!$B$47,CntyQryCensus!$A$206:$HH$248,Z$1) -> 0 | AA55: =VLOOKUP(DropDownList!$B$47,CntyQryCensus!$A$206:$HH$248,AA$1) -> 0 | AB55: =VLOOKUP(DropDownList!$B$47,CntyQryCensus!$A$206:$HH$248,AB$1) -> 16 | AC55: =VLOOKUP(DropDownList!$B$47,CntyQryCensus!$A$206:$HH$248,AC$1) -> 8 | AD55: =VLOOKUP(DropDownList!$B$47,CntyQryCensus!$A$206:$HH$248,AD$1) -> 0 | AE55: =VLOOKUP(DropDownList!$B$47,CntyQryCensus!$A$206:$HH$248,AE$1) -> 0 | AF55: =VLOOKUP(DropDownList!$B$47,CntyQryCensus!$A$206:$HH$248,AF$1) -> 10 | AG55: =VLOOKUP(DropDownList!$B$47,CntyQryCensus!$A$206:$HH$248,AG$1) -> 0 | AH55: =VLOOKUP(DropDownList!$B$47,CntyQryCensus!$A$206:$HH$248,AH$1) -> 0 | AI55: =VLOOKUP(DropDownList!$B$47,CntyQryCensus!$A$206:$HH$248,AI$1) -> 12 | AJ55: =VLOOKUP(DropDownList!$B$47,CntyQryCensus!$A$206:$HH$248,AJ$1) -> 0 | AK55: =VLOOKUP(DropDownList!$B$47,CntyQryCensus!$A$206:$HH$248,AK$1) -> 0 | AL55: =VLOOKUP(DropDownList!$B$47,CntyQryCensus!$A$206:$HH$248,AL$1) -> 0 | AM55: =VLOOKUP(DropDownList!$B$47,CntyQryCensus!$A$206:$HH$248,AM$1) -> 0 | AN55: =VLOOKUP(DropDownList!$B$47,CntyQryCensus!$A$206:$HH$248,AN$1) -> 0 | AO55: =VLOOKUP(DropDownList!$B$47,CntyQryCensus!$A$206:$HH$248,AO$1) -> 0 | AP55: =VLOOKUP(DropDownList!$B$47,CntyQryCensus!$A$206:$HH$248,AP$1) -> 358 | AQ55: =VLOOKUP(DropDownList!$B$47,CntyQryCensus!$A$206:$HH$248,AQ$1) -> 8 | AR55: =VLOOKUP(DropDownList!$B$47,CntyQryCensus!$A$206:$HH$248,AR$1) -> 8 | AS55: =VLOOKUP(DropDownList!$B$47,CntyQryCensus!$A$206:$HH$248,AS$1) -> 0 | AT55: =VLOOKUP(DropDownList!$B$47,CntyQryCensus!$A$206:$HH$248,AT$1) -> 27 | AU55: =VLOOKUP(DropDownList!$B$47,CntyQryCensus!$A$206:$HH$248,AU$1) -> 46 | AV55: =VLOOKUP(DropDownList!$B$47,CntyQryCensus!$A$206:$HH$248,AV$1) -> 19 | AW55: =VLOOKUP(DropDownList!$B$47,CntyQryCensus!$A$206:$HH$248,AW$1) -> 44 | AX55: =VLOOKUP(DropDownList!$B$47,CntyQryCensus!$A$206:$HH$248,AX$1) -> 57 | AY55: =VLOOKUP(DropDownList!$B$47,CntyQryCensus!$A$206:$HH$248,AY$1) -> 10 | AZ55: =VLOOKUP(DropDownList!$B$47,CntyQryCensus!$A$206:$HH$248,AZ$1) -> 48 | BA55: =VLOOKUP(DropDownList!$B$47,CntyQryCensus!$A$206:$HH$248,BA$1) -> 40 | BB55: =VLOOKUP(DropDownList!$B$47,CntyQryCensus!$A$206:$HH$248,BB$1) -> 51 | BC55: =VLOOKUP(DropDownList!$B$47,CntyQryCensus!$A$206:$HH$248,BC$1) -> 0 | BD55: =VLOOKUP(DropDownList!$B$47,CntyQryCensus!$A$206:$HH$248,BD$1) -> 0 | BE55: =VLOOKUP(DropDownList!$B$47,CntyQryCensus!$A$206:$HH$248,BE$1) -> 0 | BF55: =VLOOKUP(DropDownList!$B$47,CntyQryCensus!$A$206:$HH$248,BF$1) -> 0 | BG55: =VLOOKUP(DropDownList!$B$47,CntyQryCensus!$A$206:$HH$248,BG$1) -> 502 | BH55: =VLOOKUP(DropDownList!$B$47,CntyQryCensus!$A$206:$HH$248,BH$1) -> 17 | BI55: =VLOOKUP(DropDownList!$B$47,CntyQryCensus!$A$206:$HH$248,BI$1) -> 21 | BJ55: =VLOOKUP(DropDownList!$B$47,CntyQryCensus!$A$206:$HH$248,BJ$1) -> 0 | BK55: =VLOOKUP(DropDownList!$B$47,CntyQryCensus!$A$206:$HH$248,BK$1) -> 24 | BL55: =VLOOKUP(DropDownList!$B$47,CntyQryCensus!$A$206:$HH$248,BL$1) -> 19 | BM55: =VLOOKUP(DropDownList!$B$47,CntyQryCensus!$A$206:$HH$248,BM$1) -> 24 | BN55: =VLOOKUP(DropDownList!$B$47,CntyQryCensus!$A$206:$HH$248,BN$1) -> 55 | BO55: =VLOOKUP(DropDownList!$B$47,CntyQryCensus!$A$206:$HH$248,BO$1) -> 24 | BP55: =VLOOKUP(DropDownList!$B$47,CntyQryCensus!$A$206:$HH$248,BP$1) -> 34 | BQ55: =VLOOKUP(DropDownList!$B$47,CntyQryCensus!$A$206:$HH$248,BQ$1) -> 91 | BR55: =VLOOKUP(DropDownList!$B$47,CntyQryCensus!$A$206:$HH$248,BR$1) -> 111 | BS55: =VLOOKUP(DropDownList!$B$47,CntyQryCensus!$A$206:$HH$248,BS$1) -> 41 | BT55: =VLOOKUP(DropDownList!$B$47,CntyQryCensus!$A$206:$HH$248,BT$1) -> 35 | BU55: =VLOOKUP(DropDownList!$B$47,CntyQryCensus!$A$206:$HH$248,BU$1) -> 6 | BV55: =VLOOKUP(DropDownList!$B$47,CntyQryCensus!$A$206:$HH$248,BV$1) -> 0 | BW55: =VLOOKUP(DropDownList!$B$47,CntyQryCensus!$A$206:$HH$248,BW$1) -> 0 | BX55: =VLOOKUP(DropDownList!$B$47,CntyQryCensus!$A$206:$HH$248,BX$1) -> 396 | BY55: =VLOOKUP(DropDownList!$B$47,CntyQryCensus!$A$206:$HH$248,BY$1) -> 13 | BZ55: =VLOOKUP(DropDownList!$B$47,CntyQryCensus!$A$206:$HH$248,BZ$1) -> 7 | CA55: =VLOOKUP(DropDownList!$B$47,CntyQryCensus!$A$206:$HH$248,CA$1) -> 9 | CB55: =VLOOKUP(DropDownList!$B$47,CntyQryCensus!$A$206:$HH$248,CB$1) -> 12 | CC55: =VLOOKUP(DropDownList!$B$47,CntyQryCensus!$A$206:$HH$248,CC$1) -> 37 | CD55: =VLOOKUP(DropDownList!$B$47,CntyQryCensus!$A$206:$HH$248,CD$1) -> 44 | CE55: =VLOOKUP(DropDownList!$B$47,CntyQryCensus!$A$206:$HH$248,CE$1) -> 21 | CF55: =VLOOKUP(DropDownList!$B$47,CntyQryCensus!$A$206:$HH$248,CF$1) -> 37 | CG55: =VLOOKUP(DropDownList!$B$47,CntyQryCensus!$A$206:$HH$248,CG$1) -> 15 | CH55: =VLOOKUP(DropDownList!$B$47,CntyQryCensus!$A$206:$HH$248,CH$1) -> 69 | CI55: =VLOOKUP(DropDownList!$B$47,CntyQryCensus!$A$206:$HH$248,CI$1) -> 48 | CJ55: =VLOOKUP(DropDownList!$B$47,CntyQryCensus!$A$206:$HH$248,CJ$1) -> 49 | CK55: =VLOOKUP(DropDownList!$B$47,CntyQryCensus!$A$206:$HH$248,CK$1) -> 35 | CL55: =VLOOKUP(DropDownList!$B$47,CntyQryCensus!$A$206:$HH$248,CL$1) -> 0 | CM55: =VLOOKUP(DropDownList!$B$47,CntyQryCensus!$A$206:$HH$248,CM$1) -> 0 | CN55: =VLOOKUP(DropDownList!$B$47,CntyQryCensus!$A$206:$HH$248,CN$1) -> 0 | CO55: =VLOOKUP(DropDownList!$B$47,CntyQryCensus!$A$206:$HH$248,CO$1) -> 222 | CP55: =VLOOKUP(DropDownList!$B$47,CntyQryCensus!$A$206:$HH$248,CP$1) -> 0 | CQ55: =VLOOKUP(DropDownList!$B$47,CntyQryCensus!$A$206:$HH$248,CQ$1) -> 7 | CR55: =VLOOKUP(DropDownList!$B$47,CntyQryCensus!$A$206:$HH$248,CR$1) -> 0 | CS55: =VLOOKUP(DropDownList!$B$47,CntyQryCensus!$A$206:$HH$248,CS$1) -> 14 | CT55: =VLOOKUP(DropDownList!$B$47,CntyQryCensus!$A$206:$HH$248,CT$1) -> 27 | CU55: =VLOOKUP(DropDownList!$B$47,CntyQryCensus!$A$206:$HH$248,CU$1) -> 23 | CV55: =VLOOKUP(DropDownList!$B$47,CntyQryCensus!$A$206:$HH$248,CV$1) -> 20 | CW55: =VLOOKUP(DropDownList!$B$47,CntyQryCensus!$A$206:$HH$248,CW$1) -> 28 | CX55: =VLOOKUP(DropDownList!$B$47,CntyQryCensus!$A$206:$HH$248,CX$1) -> 4 | CY55: =VLOOKUP(DropDownList!$B$47,CntyQryCensus!$A$206:$HH$248,CY$1) -> 14 | CZ55: =VLOOKUP(DropDownList!$B$47,CntyQryCensus!$A$206:$HH$248,CZ$1) -> 36 | DA55: =VLOOKUP(DropDownList!$B$47,CntyQryCensus!$A$206:$HH$248,DA$1) -> 20 | DB55: =VLOOKUP(DropDownList!$B$47,CntyQryCensus!$A$206:$HH$248,DB$1) -> 11 | DC55: =VLOOKUP(DropDownList!$B$47,CntyQryCensus!$A$206:$HH$248,DC$1) -> 12 | DD55: =VLOOKUP(DropDownList!$B$47,CntyQryCensus!$A$206:$HH$248,DD$1) -> 6 | DE55: =VLOOKUP(DropDownList!$B$47,CntyQryCensus!$A$206:$HH$248,DE$1) -> 0 | DF55: =VLOOKUP(DropDownList!$B$47,CntyQryCensus!$A$206:$HH$248,DF$1) -> 201 | DG55: =VLOOKUP(DropDownList!$B$47,CntyQryCensus!$A$206:$HH$248,DG$1) -> 12 | DH55: =VLOOKUP(DropDownList!$B$47,CntyQryCensus!$A$206:$HH$248,DH$1) -> 30 | DI55: =VLOOKUP(DropDownList!$B$47,CntyQryCensus!$A$206:$HH$248,DI$1) -> 41 | DJ55: =VLOOKUP(DropDownList!$B$47,CntyQryCensus!$A$206:$HH$248,DJ$1) -> 20 | DK55: =VLOOKUP(DropDownList!$B$47,CntyQryCensus!$A$206:$HH$248,DK$1) -> 33 | DL55: =VLOOKUP(DropDownList!$B$47,CntyQryCensus!$A$206:$HH$248,DL$1) -> 8 | DM55: =VLOOKUP(DropDownList!$B$47,CntyQryCensus!$A$206:$HH$248,DM$1) -> 9 | DN55: =VLOOKUP(DropDownList!$B$47,CntyQryCensus!$A$206:$HH$248,DN$1) -> 0 | DO55: =VLOOKUP(DropDownList!$B$47,CntyQryCensus!$A$206:$HH$248,DO$1) -> 6 | DP55: =VLOOKUP(DropDownList!$B$47,CntyQryCensus!$A$206:$HH$248,DP$1) -> 0 | DQ55: =VLOOKUP(DropDownList!$B$47,CntyQryCensus!$A$206:$HH$248,DQ$1) -> 19 | DR55: =VLOOKUP(DropDownList!$B$47,CntyQryCensus!$A$206:$HH$248,DR$1) -> 15 | DS55: =VLOOKUP(DropDownList!$B$47,CntyQryCensus!$A$206:$HH$248,DS$1) -> 0 | DT55: =VLOOKUP(DropDownList!$B$47,CntyQryCensus!$A$206:$HH$248,DT$1) -> 8 | DU55: =VLOOKUP(DropDownList!$B$47,CntyQryCensus!$A$206:$HH$248,DU$1) -> 0 | DV55: =VLOOKUP(DropDownList!$B$47,CntyQryCensus!$A$206:$HH$248,DV$1) -> 0 | DW55: =VLOOKUP(DropDownList!$B$47,CntyQryCensus!$A$206:$HH$248,DW$1) -> 176 | DX55: =VLOOKUP(DropDownList!$B$47,CntyQryCensus!$A$206:$HH$248,DX$1) -> 71 | DY55: =VLOOKUP(DropDownList!$B$47,CntyQryCensus!$A$206:$HH$248,DY$1) -> 27 | DZ55: =VLOOKUP(DropDownList!$B$47,CntyQryCensus!$A$206:$HH$248,DZ$1) -> 25 | EA55: =VLOOKUP(DropDownList!$B$47,CntyQryCensus!$A$206:$HH$248,EA$1) -> 12 | EB55: =VLOOKUP(DropDownList!$B$47,CntyQryCensus!$A$206:$HH$248,EB$1) -> 12 | EC55: =VLOOKUP(DropDownList!$B$47,CntyQryCensus!$A$206:$HH$248,EC$1) -> 0 | ED55: =VLOOKUP(DropDownList!$B$47,CntyQryCensus!$A$206:$HH$248,ED$1) -> 0 | EE55: =VLOOKUP(DropDownList!$B$47,CntyQryCensus!$A$206:$HH$248,EE$1) -> 0 | EF55: =VLOOKUP(DropDownList!$B$47,CntyQryCensus!$A$206:$HH$248,EF$1) -> 7 | EG55: =VLOOKUP(DropDownList!$B$47,CntyQryCensus!$A$206:$HH$248,EG$1) -> 0 | EH55: =VLOOKUP(DropDownList!$B$47,CntyQryCensus!$A$206:$HH$248,EH$1) -> 9 | EI55: =VLOOKUP(DropDownList!$B$47,CntyQryCensus!$A$206:$HH$248,EI$1) -> 6 | EJ55: =VLOOKUP(DropDownList!$B$47,CntyQryCensus!$A$206:$HH$248,EJ$1) -> 0 | EK55: =VLOOKUP(DropDownList!$B$47,CntyQryCensus!$A$206:$HH$248,EK$1) -> 7 | EL55: =VLOOKUP(DropDownList!$B$47,CntyQryCensus!$A$206:$HH$248,EL$1) -> 0 | EM55: =VLOOKUP(DropDownList!$B$47,CntyQryCensus!$A$206:$HH$248,EM$1) -> 0 | EN55: =VLOOKUP(DropDownList!$B$47,CntyQryCensus!$A$206:$HH$248,EN$1) -> 41958 | EO55: =VLOOKUP(DropDownList!$B$47,CntyQryCensus!$A$206:$HH$248,EO$1) -> 22188 | EP55: =VLOOKUP(DropDownList!$B$47,CntyQryCensus!$A$206:$HH$248,EP$1) -> 41378 | EQ55: =VLOOKUP(DropDownList!$B$47,CntyQryCensus!$A$206:$HH$248,EQ$1) -> 52292 | ER55: =VLOOKUP(DropDownList!$B$47,CntyQryCensus!$A$206:$HH$248,ER$1) -> 50395 | ES55: =VLOOKUP(DropDownList!$B$47,CntyQryCensus!$A$206:$HH$248,ES$1) -> 44091 | ET55: =VLOOKUP(DropDownList!$B$47,CntyQryCensus!$A$206:$HH$248,ET$1) -> 24583 | EU55: =VLOOKUP(DropDownList!$B$47,CntyQryCensus!$A$206:$HH$248,EU$1) -> 12917 | EV55: =VLOOKUP(DropDownList!$B$47,CntyQryCensus!$A$206:$HH$248,EV$1) -> 1901 | EW55: =VLOOKUP(DropDownList!$B$47,CntyQryCensus!$A$206:$HH$248,EW$1) -> 1564 | EX55: =VLOOKUP(DropDownList!$B$47,CntyQryCensus!$A$206:$HH$248,EX$1) -> 337 | EY55: =VLOOKUP(DropDownList!$B$47,CntyQryCensus!$A$206:$HH$248,EY$1) -> 1512 | EZ55: =VLOOKUP(DropDownList!$B$47,CntyQryCensus!$A$206:$HH$248,EZ$1) -> 389 | FA55: =VLOOKUP(DropDownList!$B$47,CntyQryCensus!$A$206:$HH$248,FA$1) -> 198 | FB55: =VLOOKUP(DropDownList!$B$47,CntyQryCensus!$A$206:$HH$248,FB$1) -> 1703 | FC55: =VLOOKUP(DropDownList!$B$47,CntyQryCensus!$A$206:$HH$248,FC$1) -> 534 | FD55: =VLOOKUP(DropDownList!$B$47,CntyQryCensus!$A$206:$HH$248,FD$1) -> 1367 | FE55: =VLOOKUP(DropDownList!$B$47,CntyQryCensus!$A$206:$HH$248,FE$1) -> 514 | FF55: =VLOOKUP(DropDownList!$B$47,CntyQryCensus!$A$206:$HH$248,FF$1) -> 1387 | FG55: =VLOOKUP(DropDownList!$B$47,CntyQryCensus!$A$206:$HH$248,FG$1) -> 27 | FH55: =VLOOKUP(DropDownList!$B$47,CntyQryCensus!$A$206:$HH$248,FH$1) -> 1874 | FI55: =VLOOKUP(DropDownList!$B$47,CntyQryCensus!$A$206:$HH$248,FI$1) -> 61 | FJ55: =VLOOKUP(DropDownList!$B$47,CntyQryCensus!$A$206:$HH$248,FJ$1) -> 1840 | FK55: =VLOOKUP(DropDownList!$B$47,CntyQryCensus!$A$206:$HH$248,FK$1) -> 270 | FL55: =VLOOKUP(DropDownList!$B$47,CntyQryCensus!$A$206:$HH$248,FL$1) -> 1631 | FM55: =VLOOKUP(DropDownList!$B$47,CntyQryCensus!$A$206:$HH$248,FM$1) -> 243 | FN55: =VLOOKUP(DropDownList!$B$47,CntyQryCensus!$A$206:$HH$248,FN$1) -> 1658 | FO55: =VLOOKUP(DropDownList!$B$47,CntyQryCensus!$A$206:$HH$248,FO$1) -> 76573000 | FP55: =VLOOKUP(DropDownList!$B$47,CntyQryCensus!$A$206:$HH$248,FP$1) -> 70553900 | FQ55: =VLOOKUP(DropDownList!$B$47,CntyQryCensus!$A$206:$HH$248,FQ$1) -> 6019100 | FR55: =VLOOKUP(DropDownList!$B$47,CntyQryCensus!$A$206:$HH$248,FR$1) -> 1634700 | FS55: =VLOOKUP(DropDownList!$B$47,CntyQryCensus!$A$206:$HH$248,FS$1) -> 5806400 | FT55: =VLOOKUP(DropDownList!$B$47,CntyQryCensus!$A$206:$HH$248,FT$1) -> 156000 | FU55: =VLOOKUP(DropDownList!$B$47,CntyQryCensus!$A$206:$HH$248,FU$1) -> 121800 | FV55: =VLOOKUP(DropDownList!$B$47,CntyQryCensus!$A$206:$HH$248,FV$1) -> 4808300 | FW55: =VLOOKUP(DropDownList!$B$47,CntyQryCensus!$A$206:$HH$248,FW$1) -> 1277 | FX55: =VLOOKUP(DropDownList!$B$47,CntyQryCensus!$A$206:$HH$248,FX$1) -> 5 | FY55: =VLOOKUP(DropDownList!$B$47,CntyQryCensus!$A$206:$HH$248,FY$1) -> 48 | FZ55: =VLOOKUP(DropDownList!$B$47,CntyQryCensus!$A$206:$HH$248,FZ$1) -> 44 | GA55: =VLOOKUP(DropDownList!$B$47,CntyQryCensus!$A$206:$HH$248,GA$1) -> 72 | GB55: =VLOOKUP(DropDownList!$B$47,CntyQryCensus!$A$206:$HH$248,GB$1) -> 101 | GC55: =VLOOKUP(DropDownList!$B$47,CntyQryCensus!$A$206:$HH$248,GC$1) -> 94 | GD55: =VLOOKUP(DropDownList!$B$47,CntyQryCensus!$A$206:$HH$248,GD$1) -> 92 | GE55: =VLOOKUP(DropDownList!$B$47,CntyQryCensus!$A$206:$HH$248,GE$1) -> 78 | GF55: =VLOOKUP(DropDownList!$B$47,CntyQryCensus!$A$206:$HH$248,GF$1) -> 70 | GG55: =VLOOKUP(DropDownList!$B$47,CntyQryCensus!$A$206:$HH$248,GG$1) -> 196 | GH55: =VLOOKUP(DropDownList!$B$47,CntyQryCensus!$A$206:$HH$248,GH$1) -> 217 | GI55: =VLOOKUP(DropDownList!$B$47,CntyQryCensus!$A$206:$HH$248,GI$1) -> 165 | GJ55: =VLOOKUP(DropDownList!$B$47,CntyQryCensus!$A$206:$HH$248,GJ$1) -> 56 | GK55: =VLOOKUP(DropDownList!$B$47,CntyQryCensus!$A$206:$HH$248,GK$1) -> 33 | GL55: =VLOOKUP(DropDownList!$B$47,CntyQryCensus!$A$206:$HH$248,GL$1) -> 6 | GM55: =VLOOKUP(DropDownList!$B$47,CntyQryCensus!$A$206:$HH$248,GM$1) -> 0 | GN55: =VLOOKUP(DropDownList!$B$47,CntyQryCensus!$A$206:$HH$248,GN$1) -> 51659 | GO55: =VLOOKUP(DropDownList!$B$47,CntyQryCensus!$A$206:$HH$248,GO$1) -> 69787400 | GP55: =VLOOKUP(DropDownList!$B$47,CntyQryCensus!$A$206:$HH$248,GP$1) -> 624 | GQ55: =VLOOKUP(DropDownList!$B$47,CntyQryCensus!$A$206:$HH$248,GQ$1) -> 116 | GR55: =VLOOKUP(DropDownList!$B$47,CntyQryCensus!$A$206:$HH$248,GR$1) -> 62 | GS55: =VLOOKUP(DropDownList!$B$47,CntyQryCensus!$A$206:$HH$248,GS$1) -> 53 | GT55: =VLOOKUP(DropDownList!$B$47,CntyQryCensus!$A$206:$HH$248,GT$1) -> 59 | GU55: =VLOOKUP(DropDownList!$B$47,CntyQryCensus!$A$206:$HH$248,GU$1) -> 85 | GV55: =VLOOKUP(DropDownList!$B$47,CntyQryCensus!$A$206:$HH$248,GV$1) -> 30 | GW55: =VLOOKUP(DropDownList!$B$47,CntyQryCensus!$A$206:$HH$248,GW$1) -> 62 | GX55: =VLOOKUP(DropDownList!$B$47,CntyQryCensus!$A$206:$HH$248,GX$1) -> 40 | GY55: =VLOOKUP(DropDownList!$B$47,CntyQryCensus!$A$206:$HH$248,GY$1) -> 6 | GZ55: =VLOOKUP(DropDownList!$B$47,CntyQryCensus!$A$206:$HH$248,GZ$1) -> 42 | HA55: =VLOOKUP(DropDownList!$B$47,CntyQryCensus!$A$206:$HH$248,HA$1) -> 47 | HB55: =VLOOKUP(DropDownList!$B$47,CntyQryCensus!$A$206:$HH$248,HB$1) -> 15 | HC55: =VLOOKUP(DropDownList!$B$47,CntyQryCensus!$A$206:$HH$248,HC$1) -> 7 | HD55: =VLOOKUP(DropDownList!$B$47,CntyQryCensus!$A$206:$HH$248,HD$1) -> 0 | HE55: =VLOOKUP(DropDownList!$B$47,CntyQryCensus!$A$206:$HH$248,HE$1) -> 0 | HF55: =VLOOKUP(DropDownList!$B$47,CntyQryCensus!$A$206:$HH$248,HF$1) -> 0 | HG55: =VLOOKUP(DropDownList!$B$47,CntyQryCensus!$A$206:$HH$248,HG$1) -> 26375 | HH55: =VLOOKUP(DropDownList!$B$47,CntyQryCensus!$A$206:$HH$248,HH$1) -> 18851
A58: Census 2000 SummaryFile3 Sample Data - SF3TownQry2bPovertyChar
A59: NAME | B59: LOGRECNO | C59: COUNTY | D59: TotalPop | E59: P52Households1 | F59: P82PerCapitaInc | G59: P87PopForPovStatus | H59: P87PopWIncBelowPovStatus | I59: P87PopUnder5yrBelowPoverty | J59: P87Pop5yrBelowPoverty | K59: P87Pop5to11yrBelowPoverty | L59: P87Pop12to17yrBelowPoverty | M59: P87Pop18to64yrBelowPoverty | N59: P87Pop65to74yrBelowPoverty | O59: P87PopOver75yrBelowPoverty | P59: P87PopWIncAbovePovStatus | Q59: P87PopUnder5yrAbovePoverty | R59: P87Pop5yrAbovePoverty | S59: P87Pop5to11yrAbovePoverty | T59: P87Pop12to17yrAbovePoverty | U59: P87Pop18to64yrAbovePoverty | V59: P87Pop65to74yrAbovePoverty | W59: P87PopOver75yrAbovePoverty | X59: P90Families | Y59: P90FamWIncBelowPov | Z59: P90MarCupFamWIncBelowPov | AA59: P90MCFamWRltdChld<18WIncBelowPov | AB59: P90MCFamWRltdChld<5WIncBelowPov | AC59: P90MaleHhlrWIncBelowPov | AD59: P90MaleHhlrWRltdChld<18yrWIncBelowPov | AE59: P90MaleHhlrWRltdChld<5yrWIncBelowPov | AF59: P90FemaleHhlrWIncBelowPov | AG59: P90FemaleHhlrWRltdChld<18yWIncBelowPov | AH59: P90FemaleHhlrWRltdChld<5yWIncBelowPov | AI59: P90FamWIncAbovePov | AJ59: P90MarCupFamWIncAbovePov | AK59: P90MCFamWRltdChld<18WIncAbovePov | AL59: P90MCFamWRltdChld<5WIncAbovePov | AM59: P90MaleHhlrWIncAbovePov | AN59: P90MaleHhlrWRltdChld<18yrWIncAbovePov | AO59: P90MaleHhlrWRltdChld<5yrWIncAbovePov | AP59: P90FemaleHhlrWIncAbovePov | AQ59: P90FemaleHhlrWRltdChld<18yWIncAbovePov | AR59: P90FemaleHhlrWRltdChld<5yWIncAbovePov | AS59: P92Households | AT59: P92HHwIncBelowPov | AU59: P92FamHHwIncBelowPov | AV59: P92MCFamHHwIncBelowPov | AW59: P92MaleFamHHwIncBelowPov | AX59: P92FemaleFamHHwIncBelowPov | AY59: P92NonFamHHwIncBelowPov | AZ59: P92NonFamMaleHHwIncBelowPov | BA59: P92NonFamFemaleHHwIncBelowPov | BB59: P92HHwIncAbovePov | BC59: P92FamHHwIncAbovePov | BD59: P92MCFamHHwIncAbovePov | BE59: P92MaleFamHHwIncAbovePov | BF59: P92FemaleFamHHwIncAbovePov | BG59: P92NonFamHHwIncAbovePov | BH59: P92NonFamMaleHHwIncAbovePov | BI59: P92NonFamFemaleHHwIncAbovePov
A60: =VLOOKUP(DropDownList!$B$47,CntyQryCensus!$A$256:$BI$298,A$1) -> Allenstown | B60: =VLOOKUP(DropDownList!$B$47,CntyQryCensus!$A$256:$BI$298,B$1) -> 0002575 | C60: =VLOOKUP(DropDownList!$B$47,CntyQryCensus!$A$256:$BI$298,C$1) -> 00660 | D60: =VLOOKUP(DropDownList!$B$47,CntyQryCensus!$A$256:$BI$298,D$1) -> 4843 | E60: =VLOOKUP(DropDownList!$B$47,CntyQryCensus!$A$256:$BI$298,E$1) -> 1901 | F60: =VLOOKUP(DropDownList!$B$47,CntyQryCensus!$A$256:$BI$298,F$1) -> 18851 | G60: =VLOOKUP(DropDownList!$B$47,CntyQryCensus!$A$256:$BI$298,G$1) -> 4772 | H60: =VLOOKUP(DropDownList!$B$47,CntyQryCensus!$A$256:$BI$298,H$1) -> 184 | I60: =VLOOKUP(DropDownList!$B$47,CntyQryCensus!$A$256:$BI$298,I$1) -> 7 | J60: =VLOOKUP(DropDownList!$B$47,CntyQryCensus!$A$256:$BI$298,J$1) -> 8 | K60: =VLOOKUP(DropDownList!$B$47,CntyQryCensus!$A$256:$BI$298,K$1) -> 19 | L60: =VLOOKUP(DropDownList!$B$47,CntyQryCensus!$A$256:$BI$298,L$1) -> 21 | M60: =VLOOKUP(DropDownList!$B$47,CntyQryCensus!$A$256:$BI$298,M$1) -> 105 | N60: =VLOOKUP(DropDownList!$B$47,CntyQryCensus!$A$256:$BI$298,N$1) -> 12 | O60: =VLOOKUP(DropDownList!$B$47,CntyQryCensus!$A$256:$BI$298,O$1) -> 12 | P60: =VLOOKUP(DropDownList!$B$47,CntyQryCensus!$A$256:$BI$298,P$1) -> 4588 | Q60: =VLOOKUP(DropDownList!$B$47,CntyQryCensus!$A$256:$BI$298,Q$1) -> 312 | R60: =VLOOKUP(DropDownList!$B$47,CntyQryCensus!$A$256:$BI$298,R$1) -> 55 | S60: =VLOOKUP(DropDownList!$B$47,CntyQryCensus!$A$256:$BI$298,S$1) -> 392 | T60: =VLOOKUP(DropDownList!$B$47,CntyQryCensus!$A$256:$BI$298,T$1) -> 443 | U60: =VLOOKUP(DropDownList!$B$47,CntyQryCensus!$A$256:$BI$298,U$1) -> 2904 | V60: =VLOOKUP(DropDownList!$B$47,CntyQryCensus!$A$256:$BI$298,V$1) -> 255 | W60: =VLOOKUP(DropDownList!$B$47,CntyQryCensus!$A$256:$BI$298,W$1) -> 227 | X60: =VLOOKUP(DropDownList!$B$47,CntyQryCensus!$A$256:$BI$298,X$1) -> 1277 | Y60: =VLOOKUP(DropDownList!$B$47,CntyQryCensus!$A$256:$BI$298,Y$1) -> 28 | Z60: =VLOOKUP(DropDownList!$B$47,CntyQryCensus!$A$256:$BI$298,Z$1) -> 17 | AA60: =VLOOKUP(DropDownList!$B$47,CntyQryCensus!$A$256:$BI$298,AA$1) -> 17 | AB60: =VLOOKUP(DropDownList!$B$47,CntyQryCensus!$A$256:$BI$298,AB$1) -> 0 | AC60: =VLOOKUP(DropDownList!$B$47,CntyQryCensus!$A$256:$BI$298,AC$1) -> 0 | AD60: =VLOOKUP(DropDownList!$B$47,CntyQryCensus!$A$256:$BI$298,AD$1) -> 0 | AE60: =VLOOKUP(DropDownList!$B$47,CntyQryCensus!$A$256:$BI$298,AE$1) -> 0 | AF60: =VLOOKUP(DropDownList!$B$47,CntyQryCensus!$A$256:$BI$298,AF$1) -> 11 | AG60: =VLOOKUP(DropDownList!$B$47,CntyQryCensus!$A$256:$BI$298,AG$1) -> 11 | AH60: =VLOOKUP(DropDownList!$B$47,CntyQryCensus!$A$256:$BI$298,AH$1) -> 0 | AI60: =VLOOKUP(DropDownList!$B$47,CntyQryCensus!$A$256:$BI$298,AI$1) -> 1249 | AJ60: =VLOOKUP(DropDownList!$B$47,CntyQryCensus!$A$256:$BI$298,AJ$1) -> 981 | AK60: =VLOOKUP(DropDownList!$B$47,CntyQryCensus!$A$256:$BI$298,AK$1) -> 475 | AL60: =VLOOKUP(DropDownList!$B$47,CntyQryCensus!$A$256:$BI$298,AL$1) -> 82 | AM60: =VLOOKUP(DropDownList!$B$47,CntyQryCensus!$A$256:$BI$298,AM$1) -> 102 | AN60: =VLOOKUP(DropDownList!$B$47,CntyQryCensus!$A$256:$BI$298,AN$1) -> 75 | AO60: =VLOOKUP(DropDownList!$B$47,CntyQryCensus!$A$256:$BI$298,AO$1) -> 23 | AP60: =VLOOKUP(DropDownList!$B$47,CntyQryCensus!$A$256:$BI$298,AP$1) -> 166 | AQ60: =VLOOKUP(DropDownList!$B$47,CntyQryCensus!$A$256:$BI$298,AQ$1) -> 114 | AR60: =VLOOKUP(DropDownList!$B$47,CntyQryCensus!$A$256:$BI$298,AR$1) -> 12 | AS60: =VLOOKUP(DropDownList!$B$47,CntyQryCensus!$A$256:$BI$298,AS$1) -> 1901 | AT60: =VLOOKUP(DropDownList!$B$47,CntyQryCensus!$A$256:$BI$298,AT$1) -> 80 | AU60: =VLOOKUP(DropDownList!$B$47,CntyQryCensus!$A$256:$BI$298,AU$1) -> 28 | AV60: =VLOOKUP(DropDownList!$B$47,CntyQryCensus!$A$256:$BI$298,AV$1) -> 17 | AW60: =VLOOKUP(DropDownList!$B$47,CntyQryCensus!$A$256:$BI$298,AW$1) -> 0 | AX60: =VLOOKUP(DropDownList!$B$47,CntyQryCensus!$A$256:$BI$298,AX$1) -> 11 | AY60: =VLOOKUP(DropDownList!$B$47,CntyQryCensus!$A$256:$BI$298,AY$1) -> 52 | AZ60: =VLOOKUP(DropDownList!$B$47,CntyQryCensus!$A$256:$BI$298,AZ$1) -> 8 | BA60: =VLOOKUP(DropDownList!$B$47,CntyQryCensus!$A$256:$BI$298,BA$1) -> 44 | BB60: =VLOOKUP(DropDownList!$B$47,CntyQryCensus!$A$256:$BI$298,BB$1) -> 1821 | BC60: =VLOOKUP(DropDownList!$B$47,CntyQryCensus!$A$256:$BI$298,BC$1) -> 1249 | BD60: =VLOOKUP(DropDownList!$B$47,CntyQryCensus!$A$256:$BI$298,BD$1) -> 981 | BE60: =VLOOKUP(DropDownList!$B$47,CntyQryCensus!$A$256:$BI$298,BE$1) -> 102 | BF60: =VLOOKUP(DropDownList!$B$47,CntyQryCensus!$A$256:$BI$298,BF$1) -> 166 | BG60: =VLOOKUP(DropDownList!$B$47,CntyQryCensus!$A$256:$BI$298,BG$1) -> 572 | BH60: =VLOOKUP(DropDownList!$B$47,CntyQryCensus!$A$256:$BI$298,BH$1) -> 232 | BI60: =VLOOKUP(DropDownList!$B$47,CntyQryCensus!$A$256:$BI$298,BI$1) -> 340
S61: =SUM(R60:T60) -> 890
A63: Census 2000 SummaryFile3 Sample Data - SF3TownQry7HousingA
A64: NAME | B64: LOGRECNO | C64: COUNTY | D64: TotalPop | E64: H1HousingUnitsTotal | F64: H2SampleHU | G64: H2SampleOccHU | H64: H2SampleVacHU | I64: H3HU100pctCount | J64: H5HUTotal | K64: H5HUUrban | L64: H5HUUrbanInUrbanAreas | M64: H5HUUrbanInUrbanClusters | N64: H5HURural | O64: H5HURuralFarm | P64: H5HURuralNonFarm | Q64: H7HUOcc | R64: H7HUOwnrOcc | S64: H7HURentrOcc | T64: H8HUVacant | U64: H8HUVacantForRent | V64: H8HUVacantForSale | W64: H8HUVacRentedorSold | X64: H8HUVacSeasonal | Y64: H8HUVacForMigrantWrkrs | Z64: H8HUOtherVacant | AA64: H14OccHUa | AB64: H14OwnerOccHU | AC64: H14OwnOccHuHh15to24 | AD64: H14OwnOccHuHh25to34 | AE64: H14OwnOccHuHh35to44 | AF64: H14OwnOccHuHh45to54 | AG64: H14OwnOccHuHh55to59 | AH64: H14OwnOccHuHh60to64 | AI64: H14OwnOccHuHh65to74 | AJ64: H14OwnOccHuHh75to84 | AK64: H14OwnOccHuHh85Over | AL64: H14RenterOccHU1 | AM64: H14RntrOccHuHh15to24 | AN64: H14RntrOccHuHh25to34 | AO64: H14RntrOccHuHh35to44 | AP64: H14RntrOccHuHh45to54 | AQ64: H14RntrOccHuHh55to59 | AR64: H14RntrOccHuHh60to64 | AS64: H14RntrOccHuHh65to74 | AT64: H14RntrOccHuHh75to84 | AU64: H14RntrOccHuHh85Over | AV64: H15PopInOccHU | AW64: H15PopInOwnOccHU1 | AX64: H15PopInRentOccHU1 | AY64: H17OccupHUb | AZ64: H17OwnOccHU2 | BA64: H17OwnOccHU1PersonHH | BB64: H17OwnOccHU2PersonHH | BC64: H17OwnOccHU3PersonHH | BD64: H17OwnOccHU4PersonHH | BE64: H17OwnOccHU5PersonHH | BF64: H17OwnOccHU6PersonHH | BG64: H17OwnOccHU7PlusPersonHH | BH64: H17RentOccHU2 | BI64: H17RntOccHU1PersonHH | BJ64: H17RntOccHU2PersonHH | BK64: H17RntOccHU3PersonHH | BL64: H17RntOccHU4PersonHH | BM64: H17RntOccHU5PersonHH | BN64: H17RntOccHU6PersonHH | BO64: H17RntOccHU7PlusPersonHH | BP64: H18AvgHHSize | BQ64: H18AvgHHSizeOwnOcc | BR64: H18AvgHHSizeRentOcc | BS64: H23TotHU | BT64: H23HU1Room | BU64: H23HU2Room | BV64: H23HU3Room | BW64: H23HU4Room | BX64: H23HU5Room | BY64: H23HU6Room | BZ64: H23HU7Room | CA64: H23HU8Room | CB64: H23HU9orMoreRoom | CC64: H24MedianNumRooms | CD64: H25AggregNumRooms | CE64: H30TotalHU | CF64: H30Det1HU | CG64: H30Att1HU | CH64: H30Units2 | CI64: H30Units3or4 | CJ64: H30Units5to9 | CK64: H30Units10to19 | CL64: H30Units20to49 | CM64: H30Units50orMore | CN64: H30UnitsMobileHome | CO64: H30UnitsBoatRv | CP64: H32OccHUcTotal | CQ64: H32OwnerOccHU3 | CR64: H32OwnOccHU1Det | CS64: H32OwnOccHU1Att | CT64: H32OwnOccHU2Unit | CU64: H32OwnOccHU3to4Unit | CV64: H32OwnOccHU5to9Unit | CW64: H32OwnOccHU10to19Unit | CX64: H32OwnOccHU20to49Unit | CY64: H32OwnOccHU50plusUnit | CZ64: H32OwnOccHUMobHom | DA64: H32OwnOccHUBoatRVOth | DB64: H32RentrOccHU3 | DC64: H32RntrOccHU1Det | DD64: H32RntrOccHU1Att | DE64: H32RntrOccHU2Unit | DF64: H32RntrOccHU3to4Unit | DG64: H32RntrOccHU5to9Unit | DH64: H32RntrOccHU10to19Unit | DI64: H32RntrOccHU20to49Unit | DJ64: H32RntrOccHU50PlusUnit | DK64: H32RntrOccHUMobHom | DL64: H32RntrOccHUBoatRVOth | DM64: H33TotPopInOccHU | DN64: H33PopInOwnOccHU2 | DO64: H33PopInOOHU1Det | DP64: H33PopInOOHU1Att | DQ64: H33PopInOOHU2unit | DR64: H33PopInOOHU3to4Unit | DS64: H33PopInOOHU5to9Unit | DT64: H33PopInOOHU10to19Unit | DU64: H33PopInOOHU20to49Unit | DV64: H33PopInOOHU50PlusUnit | DW64: H33PopInOOHUMobilHome | DX64: H33PopInOOHUOtherUnit | DY64: H33PopInRentOccHU2 | DZ64: H33PopInROHU1Det | EA64: H33PopInROHU1Att | EB64: H33PopInROHU2Unit | EC64: H33PopInROHU3to4Unit | ED64: H33PopInROHU5to9Unit | EE64: H33PopInROHU10to19Unit | EF64: H33PopInROHU20to49Unit | EG64: H33PopInROHU50PlusUnit | EH64: H33PopInROHUMobilHome | EI64: H33PopInROHUOtherUnit | EJ64: H36OccHousingUnitsdTotal | EK64: H36OwnerOccHU4 | EL64: H36OOHUBuilt99to0300 | EM64: H36OOHUBuilt95to98 | EN64: H36OOHUBuilt90to94 | EO64: H36OOHUBuilt80to89 | EP64: H36OOHUBuilt70to79 | EQ64: H36OOHUBuilt60to69 | ER64: H36OOHUBuilt50to59 | ES64: H36OOHUBuilt40to49 | ET64: H36OOHUBuilt39Earlier | EU64: H36RentOccHU4 | EV64: H36ROHUBuilt99to0300 | EW64: H36ROHUBuilt95to98 | EX64: H36ROHUBuilt90to94 | EY64: H36ROHUBuilt80to89 | EZ64: H36ROHUBuilt70to79 | FA64: H36ROHUBuilt60to69 | FB64: H36ROHUBuilt50to59 | FC64: H36ROHUBuilt40to49 | FD64: H36ROHUBuilt39Earlier | FE64: H40OccupHousUnitse | FF64: H40HeatFuelUtilGas | FG64: H40HeatFuelBotGas | FH64: H40HeatFuelElect | FI64: H40HeatFuelOilKero | FJ64: H40HeatFuelCoal | FK64: H40HeatFuelWood | FL64: H40HeatFuelSolar | FM64: H40HeatFuelOther | FN64: H40HeatFuelNone | FO64: H41TotalHU | FP64: H41HUNoBdrm | FQ64: H41HU1Bdrm | FR64: H41HU2Bdrm | FS64: H41HU3Bdrm | FT64: H41HU4Bdrm | FU64: H41HU5MoreBdrm | FV64: H42OccuHousUnitf | FW64: H42OwnerOccHU5 | FX64: H42OOHUNoBdrm | FY64: H42OOHU1Bdrm | FZ64: H42OOHU2Bdrm | GA64: H42OOHU3Bdrm | GB64: H42OOHU4Bdrm | GC64: H42OOHU5PlusBdrm | GD64: H42RentOccHU5 | GE64: H42ROHUNoBdrm | GF64: H42ROHU1Bdrm | GG64: H42ROHU2Bdrm | GH64: H42ROHU3Bdrm | GI64: H42ROHU4Bdrm | GJ64: H42ROHU5PlusBdrm | GK64: H48OccupHousUnitsg | GL64: H48OwnerOccHU6 | GM64: H48OOHUwCompltPlumFacil | GN64: H48OOHULackCompltPlumFacil | GO64: H48RentOccHU6 | GP64: H48ROHUwCompltPlumFacil | GQ64: H48ROHULackCompltPlumFacil | GR64: H51OccupHousUnitf | GS64: H51OwnerOccHU7 | GT64: H51OOHUwCompleteKitFacil | GU64: H51OOHULackCompleteKitFacil | GV64: H51RenterOccHU7 | GW64: H51ROHUwCompleteKitFacil | GX64: H51ROHULackCompleteKitFacil
A65: =VLOOKUP(DropDownList!$B47,CntyQryCensus!$A$306:$GX$348,A$1) -> Allenstown | B65: =VLOOKUP(DropDownList!$B47,CntyQryCensus!$A$306:$GX$348,B$1) -> 0002575 | C65: =VLOOKUP(DropDownList!$B47,CntyQryCensus!$A$306:$GX$348,C$1) -> 00660 | D65: =VLOOKUP(DropDownList!$B47,CntyQryCensus!$A$306:$GX$348,D$1) -> 4843 | E65: =VLOOKUP(DropDownList!$B47,CntyQryCensus!$A$306:$GX$348,E$1) -> 1962 | F65: =VLOOKUP(DropDownList!$B47,CntyQryCensus!$A$306:$GX$348,F$1) -> 278 | G65: =VLOOKUP(DropDownList!$B47,CntyQryCensus!$A$306:$GX$348,G$1) -> 274 | H65: =VLOOKUP(DropDownList!$B47,CntyQryCensus!$A$306:$GX$348,H$1) -> 4 | I65: =VLOOKUP(DropDownList!$B47,CntyQryCensus!$A$306:$GX$348,I$1) -> 1962 | J65: =VLOOKUP(DropDownList!$B47,CntyQryCensus!$A$306:$GX$348,J$1) -> 1962 | K65: =VLOOKUP(DropDownList!$B47,CntyQryCensus!$A$306:$GX$348,K$1) -> 1277 | L65: =VLOOKUP(DropDownList!$B47,CntyQryCensus!$A$306:$GX$348,L$1) -> 0 | M65: =VLOOKUP(DropDownList!$B47,CntyQryCensus!$A$306:$GX$348,M$1) -> 1277 | N65: =VLOOKUP(DropDownList!$B47,CntyQryCensus!$A$306:$GX$348,N$1) -> 685 | O65: =VLOOKUP(DropDownList!$B47,CntyQryCensus!$A$306:$GX$348,O$1) -> 0 | P65: =VLOOKUP(DropDownList!$B47,CntyQryCensus!$A$306:$GX$348,P$1) -> 685 | Q65: =VLOOKUP(DropDownList!$B47,CntyQryCensus!$A$306:$GX$348,Q$1) -> 1902 | R65: =VLOOKUP(DropDownList!$B47,CntyQryCensus!$A$306:$GX$348,R$1) -> 1356 | S65: =VLOOKUP(DropDownList!$B47,CntyQryCensus!$A$306:$GX$348,S$1) -> 546 | T65: =VLOOKUP(DropDownList!$B47,CntyQryCensus!$A$306:$GX$348,T$1) -> 60 | U65: =VLOOKUP(DropDownList!$B47,CntyQryCensus!$A$306:$GX$348,U$1) -> 0 | V65: =VLOOKUP(DropDownList!$B47,CntyQryCensus!$A$306:$GX$348,V$1) -> 15 | W65: =VLOOKUP(DropDownList!$B47,CntyQryCensus!$A$306:$GX$348,W$1) -> 15 | X65: =VLOOKUP(DropDownList!$B47,CntyQryCensus!$A$306:$GX$348,X$1) -> 0 | Y65: =VLOOKUP(DropDownList!$B47,CntyQryCensus!$A$306:$GX$348,Y$1) -> 0 | Z65: =VLOOKUP(DropDownList!$B47,CntyQryCensus!$A$306:$GX$348,Z$1) -> 30 | AA65: =VLOOKUP(DropDownList!$B47,CntyQryCensus!$A$306:$GX$348,AA$1) -> 1902 | AB65: =VLOOKUP(DropDownList!$B47,CntyQryCensus!$A$306:$GX$348,AB$1) -> 1356 | AC65: =VLOOKUP(DropDownList!$B47,CntyQryCensus!$A$306:$GX$348,AC$1) -> 34 | AD65: =VLOOKUP(DropDownList!$B47,CntyQryCensus!$A$306:$GX$348,AD$1) -> 204 | AE65: =VLOOKUP(DropDownList!$B47,CntyQryCensus!$A$306:$GX$348,AE$1) -> 386 | AF65: =VLOOKUP(DropDownList!$B47,CntyQryCensus!$A$306:$GX$348,AF$1) -> 297 | AG65: =VLOOKUP(DropDownList!$B47,CntyQryCensus!$A$306:$GX$348,AG$1) -> 86 | AH65: =VLOOKUP(DropDownList!$B47,CntyQryCensus!$A$306:$GX$348,AH$1) -> 90 | AI65: =VLOOKUP(DropDownList!$B47,CntyQryCensus!$A$306:$GX$348,AI$1) -> 180 | AJ65: =VLOOKUP(DropDownList!$B47,CntyQryCensus!$A$306:$GX$348,AJ$1) -> 60 | AK65: =VLOOKUP(DropDownList!$B47,CntyQryCensus!$A$306:$GX$348,AK$1) -> 19 | AL65: =VLOOKUP(DropDownList!$B47,CntyQryCensus!$A$306:$GX$348,AL$1) -> 546 | AM65: =VLOOKUP(DropDownList!$B47,CntyQryCensus!$A$306:$GX$348,AM$1) -> 10 | AN65: =VLOOKUP(DropDownList!$B47,CntyQryCensus!$A$306:$GX$348,AN$1) -> 116 | AO65: =VLOOKUP(DropDownList!$B47,CntyQryCensus!$A$306:$GX$348,AO$1) -> 144 | AP65: =VLOOKUP(DropDownList!$B47,CntyQryCensus!$A$306:$GX$348,AP$1) -> 87 | AQ65: =VLOOKUP(DropDownList!$B47,CntyQryCensus!$A$306:$GX$348,AQ$1) -> 32 | AR65: =VLOOKUP(DropDownList!$B47,CntyQryCensus!$A$306:$GX$348,AR$1) -> 29 | AS65: =VLOOKUP(DropDownList!$B47,CntyQryCensus!$A$306:$GX$348,AS$1) -> 28 | AT65: =VLOOKUP(DropDownList!$B47,CntyQryCensus!$A$306:$GX$348,AT$1) -> 60 | AU65: =VLOOKUP(DropDownList!$B47,CntyQryCensus!$A$306:$GX$348,AU$1) -> 40 | AV65: =VLOOKUP(DropDownList!$B47,CntyQryCensus!$A$306:$GX$348,AV$1) -> 4808 | AW65: =VLOOKUP(DropDownList!$B47,CntyQryCensus!$A$306:$GX$348,AW$1) -> 3709 | AX65: =VLOOKUP(DropDownList!$B47,CntyQryCensus!$A$306:$GX$348,AX$1) -> 1099 | AY65: =VLOOKUP(DropDownList!$B47,CntyQryCensus!$A$306:$GX$348,AY$1) -> 1902 | AZ65: =VLOOKUP(DropDownList!$B47,CntyQryCensus!$A$306:$GX$348,AZ$1) -> 1356 | BA65: =VLOOKUP(DropDownList!$B47,CntyQryCensus!$A$306:$GX$348,BA$1) -> 276 | BB65: =VLOOKUP(DropDownList!$B47,CntyQryCensus!$A$306:$GX$348,BB$1) -> 383 | BC65: =VLOOKUP(DropDownList!$B47,CntyQryCensus!$A$306:$GX$348,BC$1) -> 301 | BD65: =VLOOKUP(DropDownList!$B47,CntyQryCensus!$A$306:$GX$348,BD$1) -> 288 | BE65: =VLOOKUP(DropDownList!$B47,CntyQryCensus!$A$306:$GX$348,BE$1) -> 84 | BF65: =VLOOKUP(DropDownList!$B47,CntyQryCensus!$A$306:$GX$348,BF$1) -> 18 | BG65: =VLOOKUP(DropDownList!$B47,CntyQryCensus!$A$306:$GX$348,BG$1) -> 6 | BH65: =VLOOKUP(DropDownList!$B47,CntyQryCensus!$A$306:$GX$348,BH$1) -> 546 | BI65: =VLOOKUP(DropDownList!$B47,CntyQryCensus!$A$306:$GX$348,BI$1) -> 243 | BJ65: =VLOOKUP(DropDownList!$B47,CntyQryCensus!$A$306:$GX$348,BJ$1) -> 176 | BK65: =VLOOKUP(DropDownList!$B47,CntyQryCensus!$A$306:$GX$348,BK$1) -> 31 | BL65: =VLOOKUP(DropDownList!$B47,CntyQryCensus!$A$306:$GX$348,BL$1) -> 50 | BM65: =VLOOKUP(DropDownList!$B47,CntyQryCensus!$A$306:$GX$348,BM$1) -> 28 | BN65: =VLOOKUP(DropDownList!$B47,CntyQryCensus!$A$306:$GX$348,BN$1) -> 18 | BO65: =VLOOKUP(DropDownList!$B47,CntyQryCensus!$A$306:$GX$348,BO$1) -> 0 | BP65: =VLOOKUP(DropDownList!$B47,CntyQryCensus!$A$306:$GX$348,BP$1) -> 3 | BQ65: =VLOOKUP(DropDownList!$B47,CntyQryCensus!$A$306:$GX$348,BQ$1) -> 3 | BR65: =VLOOKUP(DropDownList!$B47,CntyQryCensus!$A$306:$GX$348,BR$1) -> 2 | BS65: =VLOOKUP(DropDownList!$B47,CntyQryCensus!$A$306:$GX$348,BS$1) -> 1962 | BT65: =VLOOKUP(DropDownList!$B47,CntyQryCensus!$A$306:$GX$348,BT$1) -> 0 | BU65: =VLOOKUP(DropDownList!$B47,CntyQryCensus!$A$306:$GX$348,BU$1) -> 73 | BV65: =VLOOKUP(DropDownList!$B47,CntyQryCensus!$A$306:$GX$348,BV$1) -> 162 | BW65: =VLOOKUP(DropDownList!$B47,CntyQryCensus!$A$306:$GX$348,BW$1) -> 419 | BX65: =VLOOKUP(DropDownList!$B47,CntyQryCensus!$A$306:$GX$348,BX$1) -> 634 | BY65: =VLOOKUP(DropDownList!$B47,CntyQryCensus!$A$306:$GX$348,BY$1) -> 336 | BZ65: =VLOOKUP(DropDownList!$B47,CntyQryCensus!$A$306:$GX$348,BZ$1) -> 197 | CA65: =VLOOKUP(DropDownList!$B47,CntyQryCensus!$A$306:$GX$348,CA$1) -> 51 | CB65: =VLOOKUP(DropDownList!$B47,CntyQryCensus!$A$306:$GX$348,CB$1) -> 90 | CC65: =VLOOKUP(DropDownList!$B47,CntyQryCensus!$A$306:$GX$348,CC$1) -> 5 | CD65: =VLOOKUP(DropDownList!$B47,CntyQryCensus!$A$306:$GX$348,CD$1) -> 10181 | CE65: =VLOOKUP(DropDownList!$B47,CntyQryCensus!$A$306:$GX$348,CE$1) -> 1962 | CF65: =VLOOKUP(DropDownList!$B47,CntyQryCensus!$A$306:$GX$348,CF$1) -> 829 | CG65: =VLOOKUP(DropDownList!$B47,CntyQryCensus!$A$306:$GX$348,CG$1) -> 42 | CH65: =VLOOKUP(DropDownList!$B47,CntyQryCensus!$A$306:$GX$348,CH$1) -> 136 | CI65: =VLOOKUP(DropDownList!$B47,CntyQryCensus!$A$306:$GX$348,CI$1) -> 116 | CJ65: =VLOOKUP(DropDownList!$B47,CntyQryCensus!$A$306:$GX$348,CJ$1) -> 193 | CK65: =VLOOKUP(DropDownList!$B47,CntyQryCensus!$A$306:$GX$348,CK$1) -> 6 | CL65: =VLOOKUP(DropDownList!$B47,CntyQryCensus!$A$306:$GX$348,CL$1) -> 14 | CM65: =VLOOKUP(DropDownList!$B47,CntyQryCensus!$A$306:$GX$348,CM$1) -> 0 | CN65: =VLOOKUP(DropDownList!$B47,CntyQryCensus!$A$306:$GX$348,CN$1) -> 626 | CO65: =VLOOKUP(DropDownList!$B47,CntyQryCensus!$A$306:$GX$348,CO$1) -> 0 | CP65: =VLOOKUP(DropDownList!$B47,CntyQryCensus!$A$306:$GX$348,CP$1) -> 1902 | CQ65: =VLOOKUP(DropDownList!$B47,CntyQryCensus!$A$306:$GX$348,CQ$1) -> 1356 | CR65: =VLOOKUP(DropDownList!$B47,CntyQryCensus!$A$306:$GX$348,CR$1) -> 769 | CS65: =VLOOKUP(DropDownList!$B47,CntyQryCensus!$A$306:$GX$348,CS$1) -> 13 | CT65: =VLOOKUP(DropDownList!$B47,CntyQryCensus!$A$306:$GX$348,CT$1) -> 22 | CU65: =VLOOKUP(DropDownList!$B47,CntyQryCensus!$A$306:$GX$348,CU$1) -> 14 | CV65: =VLOOKUP(DropDownList!$B47,CntyQryCensus!$A$306:$GX$348,CV$1) -> 25 | CW65: =VLOOKUP(DropDownList!$B47,CntyQryCensus!$A$306:$GX$348,CW$1) -> 0 | CX65: =VLOOKUP(DropDownList!$B47,CntyQryCensus!$A$306:$GX$348,CX$1) -> 0 | CY65: =VLOOKUP(DropDownList!$B47,CntyQryCensus!$A$306:$GX$348,CY$1) -> 0 | CZ65: =VLOOKUP(DropDownList!$B47,CntyQryCensus!$A$306:$GX$348,CZ$1) -> 513 | DA65: =VLOOKUP(DropDownList!$B47,CntyQryCensus!$A$306:$GX$348,DA$1) -> 0 | DB65: =VLOOKUP(DropDownList!$B47,CntyQryCensus!$A$306:$GX$348,DB$1) -> 546 | DC65: =VLOOKUP(DropDownList!$B47,CntyQryCensus!$A$306:$GX$348,DC$1) -> 60 | DD65: =VLOOKUP(DropDownList!$B47,CntyQryCensus!$A$306:$GX$348,DD$1) -> 29 | DE65: =VLOOKUP(DropDownList!$B47,CntyQryCensus!$A$306:$GX$348,DE$1) -> 114 | DF65: =VLOOKUP(DropDownList!$B47,CntyQryCensus!$A$306:$GX$348,DF$1) -> 102 | DG65: =VLOOKUP(DropDownList!$B47,CntyQryCensus!$A$306:$GX$348,DG$1) -> 153 | DH65: =VLOOKUP(DropDownList!$B47,CntyQryCensus!$A$306:$GX$348,DH$1) -> 6 | DI65: =VLOOKUP(DropDownList!$B47,CntyQryCensus!$A$306:$GX$348,DI$1) -> 14 | DJ65: =VLOOKUP(DropDownList!$B47,CntyQryCensus!$A$306:$GX$348,DJ$1) -> 0 | DK65: =VLOOKUP(DropDownList!$B47,CntyQryCensus!$A$306:$GX$348,DK$1) -> 68 | DL65: =VLOOKUP(DropDownList!$B47,CntyQryCensus!$A$306:$GX$348,DL$1) -> 0 | DM65: =VLOOKUP(DropDownList!$B47,CntyQryCensus!$A$306:$GX$348,DM$1) -> 4808 | DN65: =VLOOKUP(DropDownList!$B47,CntyQryCensus!$A$306:$GX$348,DN$1) -> 3709 | DO65: =VLOOKUP(DropDownList!$B47,CntyQryCensus!$A$306:$GX$348,DO$1) -> 2157 | DP65: =VLOOKUP(DropDownList!$B47,CntyQryCensus!$A$306:$GX$348,DP$1) -> 36 | DQ65: =VLOOKUP(DropDownList!$B47,CntyQryCensus!$A$306:$GX$348,DQ$1) -> 56 | DR65: =VLOOKUP(DropDownList!$B47,CntyQryCensus!$A$306:$GX$348,DR$1) -> 20 | DS65: =VLOOKUP(DropDownList!$B47,CntyQryCensus!$A$306:$GX$348,DS$1) -> 25 | DT65: =VLOOKUP(DropDownList!$B47,CntyQryCensus!$A$306:$GX$348,DT$1) -> 0 | DU65: =VLOOKUP(DropDownList!$B47,CntyQryCensus!$A$306:$GX$348,DU$1) -> 0 | DV65: =VLOOKUP(DropDownList!$B47,CntyQryCensus!$A$306:$GX$348,DV$1) -> 0 | DW65: =VLOOKUP(DropDownList!$B47,CntyQryCensus!$A$306:$GX$348,DW$1) -> 1415 | DX65: =VLOOKUP(DropDownList!$B47,CntyQryCensus!$A$306:$GX$348,DX$1) -> 0 | DY65: =VLOOKUP(DropDownList!$B47,CntyQryCensus!$A$306:$GX$348,DY$1) -> 1099 | DZ65: =VLOOKUP(DropDownList!$B47,CntyQryCensus!$A$306:$GX$348,DZ$1) -> 178 | EA65: =VLOOKUP(DropDownList!$B47,CntyQryCensus!$A$306:$GX$348,EA$1) -> 60 | EB65: =VLOOKUP(DropDownList!$B47,CntyQryCensus!$A$306:$GX$348,EB$1) -> 223 | EC65: =VLOOKUP(DropDownList!$B47,CntyQryCensus!$A$306:$GX$348,EC$1) -> 257 | ED65: =VLOOKUP(DropDownList!$B47,CntyQryCensus!$A$306:$GX$348,ED$1) -> 239 | EE65: =VLOOKUP(DropDownList!$B47,CntyQryCensus!$A$306:$GX$348,EE$1) -> 6 | EF65: =VLOOKUP(DropDownList!$B47,CntyQryCensus!$A$306:$GX$348,EF$1) -> 13 | EG65: =VLOOKUP(DropDownList!$B47,CntyQryCensus!$A$306:$GX$348,EG$1) -> 0 | EH65: =VLOOKUP(DropDownList!$B47,CntyQryCensus!$A$306:$GX$348,EH$1) -> 123 | EI65: =VLOOKUP(DropDownList!$B47,CntyQryCensus!$A$306:$GX$348,EI$1) -> 0 | EJ65: =VLOOKUP(DropDownList!$B47,CntyQryCensus!$A$306:$GX$348,EJ$1) -> 1902 | EK65: =VLOOKUP(DropDownList!$B47,CntyQryCensus!$A$306:$GX$348,EK$1) -> 1356 | EL65: =VLOOKUP(DropDownList!$B47,CntyQryCensus!$A$306:$GX$348,EL$1) -> 66 | EM65: =VLOOKUP(DropDownList!$B47,CntyQryCensus!$A$306:$GX$348,EM$1) -> 114 | EN65: =VLOOKUP(DropDownList!$B47,CntyQryCensus!$A$306:$GX$348,EN$1) -> 54 | EO65: =VLOOKUP(DropDownList!$B47,CntyQryCensus!$A$306:$GX$348,EO$1) -> 200 | EP65: =VLOOKUP(DropDownList!$B47,CntyQryCensus!$A$306:$GX$348,EP$1) -> 417 | EQ65: =VLOOKUP(DropDownList!$B47,CntyQryCensus!$A$306:$GX$348,EQ$1) -> 209 | ER65: =VLOOKUP(DropDownList!$B47,CntyQryCensus!$A$306:$GX$348,ER$1) -> 91 | ES65: =VLOOKUP(DropDownList!$B47,CntyQryCensus!$A$306:$GX$348,ES$1) -> 52 | ET65: =VLOOKUP(DropDownList!$B47,CntyQryCensus!$A$306:$GX$348,ET$1) -> 153 | EU65: =VLOOKUP(DropDownList!$B47,CntyQryCensus!$A$306:$GX$348,EU$1) -> 546 | EV65: =VLOOKUP(DropDownList!$B47,CntyQryCensus!$A$306:$GX$348,EV$1) -> 0 | EW65: =VLOOKUP(DropDownList!$B47,CntyQryCensus!$A$306:$GX$348,EW$1) -> 30 | EX65: =VLOOKUP(DropDownList!$B47,CntyQryCensus!$A$306:$GX$348,EX$1) -> 21 | EY65: =VLOOKUP(DropDownList!$B47,CntyQryCensus!$A$306:$GX$348,EY$1) -> 138 | EZ65: =VLOOKUP(DropDownList!$B47,CntyQryCensus!$A$306:$GX$348,EZ$1) -> 164 | FA65: =VLOOKUP(DropDownList!$B47,CntyQryCensus!$A$306:$GX$348,FA$1) -> 49 | FB65: =VLOOKUP(DropDownList!$B47,CntyQryCensus!$A$306:$GX$348,FB$1) -> 24 | FC65: =VLOOKUP(DropDownList!$B47,CntyQryCensus!$A$306:$GX$348,FC$1) -> 14 | FD65: =VLOOKUP(DropDownList!$B47,CntyQryCensus!$A$306:$GX$348,FD$1) -> 106 | FE65: =VLOOKUP(DropDownList!$B47,CntyQryCensus!$A$306:$GX$348,FE$1) -> 1902 | FF65: =VLOOKUP(DropDownList!$B47,CntyQryCensus!$A$306:$GX$348,FF$1) -> 254 | FG65: =VLOOKUP(DropDownList!$B47,CntyQryCensus!$A$306:$GX$348,FG$1) -> 192 | FH65: =VLOOKUP(DropDownList!$B47,CntyQryCensus!$A$306:$GX$348,FH$1) -> 161 | FI65: =VLOOKUP(DropDownList!$B47,CntyQryCensus!$A$306:$GX$348,FI$1) -> 1233 | FJ65: =VLOOKUP(DropDownList!$B47,CntyQryCensus!$A$306:$GX$348,FJ$1) -> 6 | FK65: =VLOOKUP(DropDownList!$B47,CntyQryCensus!$A$306:$GX$348,FK$1) -> 56 | FL65: =VLOOKUP(DropDownList!$B47,CntyQryCensus!$A$306:$GX$348,FL$1) -> 0 | FM65: =VLOOKUP(DropDownList!$B47,CntyQryCensus!$A$306:$GX$348,FM$1) -> 0 | FN65: =VLOOKUP(DropDownList!$B47,CntyQryCensus!$A$306:$GX$348,FN$1) -> 0 | FO65: =VLOOKUP(DropDownList!$B47,CntyQryCensus!$A$306:$GX$348,FO$1) -> 1962 | FP65: =VLOOKUP(DropDownList!$B47,CntyQryCensus!$A$306:$GX$348,FP$1) -> 0 | FQ65: =VLOOKUP(DropDownList!$B47,CntyQryCensus!$A$306:$GX$348,FQ$1) -> 245 | FR65: =VLOOKUP(DropDownList!$B47,CntyQryCensus!$A$306:$GX$348,FR$1) -> 674 | FS65: =VLOOKUP(DropDownList!$B47,CntyQryCensus!$A$306:$GX$348,FS$1) -> 854 | FT65: =VLOOKUP(DropDownList!$B47,CntyQryCensus!$A$306:$GX$348,FT$1) -> 163 | FU65: =VLOOKUP(DropDownList!$B47,CntyQryCensus!$A$306:$GX$348,FU$1) -> 26 | FV65: =VLOOKUP(DropDownList!$B47,CntyQryCensus!$A$306:$GX$348,FV$1) -> 1902 | FW65: =VLOOKUP(DropDownList!$B47,CntyQryCensus!$A$306:$GX$348,FW$1) -> 1356 | FX65: =VLOOKUP(DropDownList!$B47,CntyQryCensus!$A$306:$GX$348,FX$1) -> 0 | FY65: =VLOOKUP(DropDownList!$B47,CntyQryCensus!$A$306:$GX$348,FY$1) -> 34 | FZ65: =VLOOKUP(DropDownList!$B47,CntyQryCensus!$A$306:$GX$348,FZ$1) -> 401 | GA65: =VLOOKUP(DropDownList!$B47,CntyQryCensus!$A$306:$GX$348,GA$1) -> 753 | GB65: =VLOOKUP(DropDownList!$B47,CntyQryCensus!$A$306:$GX$348,GB$1) -> 142 | GC65: =VLOOKUP(DropDownList!$B47,CntyQryCensus!$A$306:$GX$348,GC$1) -> 26 | GD65: =VLOOKUP(DropDownList!$B47,CntyQryCensus!$A$306:$GX$348,GD$1) -> 546 | GE65: =VLOOKUP(DropDownList!$B47,CntyQryCensus!$A$306:$GX$348,GE$1) -> 0 | GF65: =VLOOKUP(DropDownList!$B47,CntyQryCensus!$A$306:$GX$348,GF$1) -> 211 | GG65: =VLOOKUP(DropDownList!$B47,CntyQryCensus!$A$306:$GX$348,GG$1) -> 228 | GH65: =VLOOKUP(DropDownList!$B47,CntyQryCensus!$A$306:$GX$348,GH$1) -> 86 | GI65: =VLOOKUP(DropDownList!$B47,CntyQryCensus!$A$306:$GX$348,GI$1) -> 21 | GJ65: =VLOOKUP(DropDownList!$B47,CntyQryCensus!$A$306:$GX$348,GJ$1) -> 0 | GK65: =VLOOKUP(DropDownList!$B47,CntyQryCensus!$A$306:$GX$348,GK$1) -> 1902 | GL65: =VLOOKUP(DropDownList!$B47,CntyQryCensus!$A$306:$GX$348,GL$1) -> 1356 | GM65: =VLOOKUP(DropDownList!$B47,CntyQryCensus!$A$306:$GX$348,GM$1) -> 1349 | GN65: =VLOOKUP(DropDownList!$B47,CntyQryCensus!$A$306:$GX$348,GN$1) -> 7 | GO65: =VLOOKUP(DropDownList!$B47,CntyQryCensus!$A$306:$GX$348,GO$1) -> 546 | GP65: =VLOOKUP(DropDownList!$B47,CntyQryCensus!$A$306:$GX$348,GP$1) -> 538 | GQ65: =VLOOKUP(DropDownList!$B47,CntyQryCensus!$A$306:$GX$348,GQ$1) -> 8 | GR65: =VLOOKUP(DropDownList!$B47,CntyQryCensus!$A$306:$GX$348,GR$1) -> 1902 | GS65: =VLOOKUP(DropDownList!$B47,CntyQryCensus!$A$306:$GX$348,GS$1) -> 1356 | GT65: =VLOOKUP(DropDownList!$B47,CntyQryCensus!$A$306:$GX$348,GT$1) -> 1356 | GU65: =VLOOKUP(DropDownList!$B47,CntyQryCensus!$A$306:$GX$348,GU$1) -> 0 | GV65: =VLOOKUP(DropDownList!$B47,CntyQryCensus!$A$306:$GX$348,GV$1) -> 546 | GW65: =VLOOKUP(DropDownList!$B47,CntyQryCensus!$A$306:$GX$348,GW$1) -> 538 | GX65: =VLOOKUP(DropDownList!$B47,CntyQryCensus!$A$306:$GX$348,GX$1) -> 8
A68: Census 2000 SummaryFile3 Sample Data - SF3TownQry8HousingCostA
A69: NAME | B69: LOGRECNO | C69: COUNTY | D69: TotalPop | E69: H62RntrOccHU | F69: H62RntrOccHUwRent | G69: H62ROHUGRent<100 | H69: H62ROHUGRent100to149 | I69: H62ROHUGRent150to199 | J69: H62ROHUGRent200to249 | K69: H62ROHUGRent250to299 | L69: H62ROHUGRent300to349 | M69: H62ROHUGRent350to399 | N69: H62ROHUGRent400to449 | O69: H62ROHUGRent450to499 | P69: H62ROHUGRent500to549 | Q69: H62ROHUGRent550to599 | R69: H62ROHUGRent600to649 | S69: H62ROHUGRent650to699 | T69: H62ROHUGRent700to749 | U69: H62ROHUGRent750to799 | V69: H62ROHUGRent800to899 | W69: H62ROHUGRent900to999 | X69: H62ROHUGRent1000to1249 | Y69: H62ROHUGRent1250to1499 | Z69: H62ROHUGRent1500to1999 | AA69: H62ROHUGRent2000> | AB69: H62ROHUNoGRent | AC69: H63MedianGrossRnt | AD69: H69RenterOccHsU | AE69: H69GRnt<10PctHHInc | AF69: H69GRnt10to15PctHHInc | AG69: H69GRnt15to20PctHHInc | AH69: H69GRnt20to25PctHHInc | AI69: H69GRnt25to30PctHHInc | AJ69: H69GRnt30to35PctHHInc | AK69: H69GRnt35to40PctHHInc | AL69: H69GRnt40to50PctHHInc | AM69: H69GRnt>50PctHHInc | AN69: H69GRntPctNotcomputed | AO69: H73RenterOccHU | AP69: H73ROHUHhInc<10k | AQ69: H73ROHUHhInc<10kRnt<20pct | AR69: H73ROHUHhInc<10kRnt20to25pct | AS69: H73ROHUHhInc<10kRnt25to30pct | AT69: H73ROHUHhInc<10kRnt30to35pct | AU69: H73ROHUHhInc<10kRnt>35pct | AV69: H73ROHUHhInc<10kPctNotComput | AW69: H73ROHUHhInc10to20k | AX69: H73ROHUHhInc10to20kRnt<20pct | AY69: H73ROHUHhInc10to20kRnt20to25pct | AZ69: H73ROHUHhInc10to20kRnt25to30pct | BA69: H73ROHUHhInc10to20kRnt30to35pct | BB69: H73ROHUHhInc10to20kRnt>35pct | BC69: H73ROHUHhInc10to20kRntPctNC | BD69: H73ROHUHhInc20to35k | BE69: H73ROHUHhInc20to35kRnt<20pct | BF69: H73ROHUHhInc20to35kRnt20to25pct | BG69: H73ROHUHhInc20to35kRnt25to30pct | BH69: H73ROHUHhInc20to35kRnt30to35pct | BI69: H73ROHUHhInc20to35kRnt>35pct | BJ69: H73ROHUHhInc20to35kRntPctNC | BK69: H73ROHUHhInc35to40k | BL69: H73ROHUHhInc35to40kRnt<20pct | BM69: H73ROHUHhInc35to40kRnt20to25pct | BN69: H73ROHUHhInc35to40kRnt25to30pct | BO69: H73ROHUHhInc35to40kRnt30to35pct | BP69: H73ROHUHhInc35to40kRnt>35pct | BQ69: H73ROHUHhInc35to40kRntPctNC | BR69: H73ROHUHhInc50to75k | BS69: H73ROHUHhInc50to75kRnt<20pct | BT69: H73ROHUHhInc50to75kRnt20to25pct | BU69: H73ROHUHhInc50to75kRnt25to30pct | BV69: H73ROHUHhInc50to75kRnt30to35pct | BW69: H73ROHUHhInc50to75kRnt>35pct | BX69: H73ROHUHhInc50to75kRntPctNC | BY69: H73ROHUHhInc75to100k | BZ69: H73ROHUHhInc75to100kRnt<20pct | CA69: H73ROHUHhInc75to100kRnt20to25pct | CB69: H73ROHUHhInc75to100kRnt25to30pct | CC69: H73ROHUHhInc75to100kRnt30to35pct | CD69: H73ROHUHhInc75to100kRnt>35pct | CE69: H73ROHUHhInc75to100kRntPctNC | CF69: H73ROHUHhInc>100k | CG69: H73ROHUHhInc>100kRnt<20pct | CH69: H73ROHUHhInc>100kRnt20to25pct | CI69: H73ROHUHhInc>100kRnt25to30pct | CJ69: H73ROHUHhInc>100kRnt30to35pct | CK69: H73ROHUHhInc>100kRnt>35pct | CL69: H73ROHUHhInc>100kRntPctNC | CM69: H73ROHUHhInc>100kRntPctNC
A70: =VLOOKUP(DropDownList!$B$47,CntyQryCensus!$A$357:$CM$399,A$1) -> Allenstown | B70: =VLOOKUP(DropDownList!$B$47,CntyQryCensus!$A$357:$CM$399,B$1) -> 0002575 | C70: =VLOOKUP(DropDownList!$B$47,CntyQryCensus!$A$357:$CM$399,C$1) -> 00660 | D70: =VLOOKUP(DropDownList!$B$47,CntyQryCensus!$A$357:$CM$399,D$1) -> 4843 | E70: =VLOOKUP(DropDownList!$B$47,CntyQryCensus!$A$357:$CM$399,E$1) -> 536 | F70: =VLOOKUP(DropDownList!$B$47,CntyQryCensus!$A$357:$CM$399,F$1) -> 514 | G70: =VLOOKUP(DropDownList!$B$47,CntyQryCensus!$A$357:$CM$399,G$1) -> 12 | H70: =VLOOKUP(DropDownList!$B$47,CntyQryCensus!$A$357:$CM$399,H$1) -> 14 | I70: =VLOOKUP(DropDownList!$B$47,CntyQryCensus!$A$357:$CM$399,I$1) -> 7 | J70: =VLOOKUP(DropDownList!$B$47,CntyQryCensus!$A$357:$CM$399,J$1) -> 8 | K70: =VLOOKUP(DropDownList!$B$47,CntyQryCensus!$A$357:$CM$399,K$1) -> 6 | L70: =VLOOKUP(DropDownList!$B$47,CntyQryCensus!$A$357:$CM$399,L$1) -> 0 | M70: =VLOOKUP(DropDownList!$B$47,CntyQryCensus!$A$357:$CM$399,M$1) -> 24 | N70: =VLOOKUP(DropDownList!$B$47,CntyQryCensus!$A$357:$CM$399,N$1) -> 42 | O70: =VLOOKUP(DropDownList!$B$47,CntyQryCensus!$A$357:$CM$399,O$1) -> 35 | P70: =VLOOKUP(DropDownList!$B$47,CntyQryCensus!$A$357:$CM$399,P$1) -> 54 | Q70: =VLOOKUP(DropDownList!$B$47,CntyQryCensus!$A$357:$CM$399,Q$1) -> 58 | R70: =VLOOKUP(DropDownList!$B$47,CntyQryCensus!$A$357:$CM$399,R$1) -> 49 | S70: =VLOOKUP(DropDownList!$B$47,CntyQryCensus!$A$357:$CM$399,S$1) -> 18 | T70: =VLOOKUP(DropDownList!$B$47,CntyQryCensus!$A$357:$CM$399,T$1) -> 53 | U70: =VLOOKUP(DropDownList!$B$47,CntyQryCensus!$A$357:$CM$399,U$1) -> 46 | V70: =VLOOKUP(DropDownList!$B$47,CntyQryCensus!$A$357:$CM$399,V$1) -> 12 | W70: =VLOOKUP(DropDownList!$B$47,CntyQryCensus!$A$357:$CM$399,W$1) -> 33 | X70: =VLOOKUP(DropDownList!$B$47,CntyQryCensus!$A$357:$CM$399,X$1) -> 36 | Y70: =VLOOKUP(DropDownList!$B$47,CntyQryCensus!$A$357:$CM$399,Y$1) -> 7 | Z70: =VLOOKUP(DropDownList!$B$47,CntyQryCensus!$A$357:$CM$399,Z$1) -> 0 | AA70: =VLOOKUP(DropDownList!$B$47,CntyQryCensus!$A$357:$CM$399,AA$1) -> 0 | AB70: =VLOOKUP(DropDownList!$B$47,CntyQryCensus!$A$357:$CM$399,AB$1) -> 22 | AC70: =VLOOKUP(DropDownList!$B$47,CntyQryCensus!$A$357:$CM$399,AC$1) -> 597 | AD70: =VLOOKUP(DropDownList!$B$47,CntyQryCensus!$A$357:$CM$399,AD$1) -> 536 | AE70: =VLOOKUP(DropDownList!$B$47,CntyQryCensus!$A$357:$CM$399,AE$1) -> 35 | AF70: =VLOOKUP(DropDownList!$B$47,CntyQryCensus!$A$357:$CM$399,AF$1) -> 53 | AG70: =VLOOKUP(DropDownList!$B$47,CntyQryCensus!$A$357:$CM$399,AG$1) -> 89 | AH70: =VLOOKUP(DropDownList!$B$47,CntyQryCensus!$A$357:$CM$399,AH$1) -> 91 | AI70: =VLOOKUP(DropDownList!$B$47,CntyQryCensus!$A$357:$CM$399,AI$1) -> 36 | AJ70: =VLOOKUP(DropDownList!$B$47,CntyQryCensus!$A$357:$CM$399,AJ$1) -> 69 | AK70: =VLOOKUP(DropDownList!$B$47,CntyQryCensus!$A$357:$CM$399,AK$1) -> 36 | AL70: =VLOOKUP(DropDownList!$B$47,CntyQryCensus!$A$357:$CM$399,AL$1) -> 55 | AM70: =VLOOKUP(DropDownList!$B$47,CntyQryCensus!$A$357:$CM$399,AM$1) -> 50 | AN70: =VLOOKUP(DropDownList!$B$47,CntyQryCensus!$A$357:$CM$399,AN$1) -> 22 | AO70: =VLOOKUP(DropDownList!$B$47,CntyQryCensus!$A$357:$CM$399,AO$1) -> 536 | AP70: =VLOOKUP(DropDownList!$B$47,CntyQryCensus!$A$357:$CM$399,AP$1) -> 82 | AQ70: =VLOOKUP(DropDownList!$B$47,CntyQryCensus!$A$357:$CM$399,AQ$1) -> 12 | AR70: =VLOOKUP(DropDownList!$B$47,CntyQryCensus!$A$357:$CM$399,AR$1) -> 14 | AS70: =VLOOKUP(DropDownList!$B$47,CntyQryCensus!$A$357:$CM$399,AS$1) -> 0 | AT70: =VLOOKUP(DropDownList!$B$47,CntyQryCensus!$A$357:$CM$399,AT$1) -> 21 | AU70: =VLOOKUP(DropDownList!$B$47,CntyQryCensus!$A$357:$CM$399,AU$1) -> 28 | AV70: =VLOOKUP(DropDownList!$B$47,CntyQryCensus!$A$357:$CM$399,AV$1) -> 7 | AW70: =VLOOKUP(DropDownList!$B$47,CntyQryCensus!$A$357:$CM$399,AW$1) -> 70 | AX70: =VLOOKUP(DropDownList!$B$47,CntyQryCensus!$A$357:$CM$399,AX$1) -> 0 | AY70: =VLOOKUP(DropDownList!$B$47,CntyQryCensus!$A$357:$CM$399,AY$1) -> 0 | AZ70: =VLOOKUP(DropDownList!$B$47,CntyQryCensus!$A$357:$CM$399,AZ$1) -> 0 | BA70: =VLOOKUP(DropDownList!$B$47,CntyQryCensus!$A$357:$CM$399,BA$1) -> 6 | BB70: =VLOOKUP(DropDownList!$B$47,CntyQryCensus!$A$357:$CM$399,BB$1) -> 64 | BC70: =VLOOKUP(DropDownList!$B$47,CntyQryCensus!$A$357:$CM$399,BC$1) -> 0 | BD70: =VLOOKUP(DropDownList!$B$47,CntyQryCensus!$A$357:$CM$399,BD$1) -> 163 | BE70: =VLOOKUP(DropDownList!$B$47,CntyQryCensus!$A$357:$CM$399,BE$1) -> 17 | BF70: =VLOOKUP(DropDownList!$B$47,CntyQryCensus!$A$357:$CM$399,BF$1) -> 26 | BG70: =VLOOKUP(DropDownList!$B$47,CntyQryCensus!$A$357:$CM$399,BG$1) -> 36 | BH70: =VLOOKUP(DropDownList!$B$47,CntyQryCensus!$A$357:$CM$399,BH$1) -> 35 | BI70: =VLOOKUP(DropDownList!$B$47,CntyQryCensus!$A$357:$CM$399,BI$1) -> 49 | BJ70: =VLOOKUP(DropDownList!$B$47,CntyQryCensus!$A$357:$CM$399,BJ$1) -> 0 | BK70: =VLOOKUP(DropDownList!$B$47,CntyQryCensus!$A$357:$CM$399,BK$1) -> 104 | BL70: =VLOOKUP(DropDownList!$B$47,CntyQryCensus!$A$357:$CM$399,BL$1) -> 50 | BM70: =VLOOKUP(DropDownList!$B$47,CntyQryCensus!$A$357:$CM$399,BM$1) -> 32 | BN70: =VLOOKUP(DropDownList!$B$47,CntyQryCensus!$A$357:$CM$399,BN$1) -> 0 | BO70: =VLOOKUP(DropDownList!$B$47,CntyQryCensus!$A$357:$CM$399,BO$1) -> 7 | BP70: =VLOOKUP(DropDownList!$B$47,CntyQryCensus!$A$357:$CM$399,BP$1) -> 0 | BQ70: =VLOOKUP(DropDownList!$B$47,CntyQryCensus!$A$357:$CM$399,BQ$1) -> 15 | BR70: =VLOOKUP(DropDownList!$B$47,CntyQryCensus!$A$357:$CM$399,BR$1) -> 80 | BS70: =VLOOKUP(DropDownList!$B$47,CntyQryCensus!$A$357:$CM$399,BS$1) -> 61 | BT70: =VLOOKUP(DropDownList!$B$47,CntyQryCensus!$A$357:$CM$399,BT$1) -> 19 | BU70: =VLOOKUP(DropDownList!$B$47,CntyQryCensus!$A$357:$CM$399,BU$1) -> 0 | BV70: =VLOOKUP(DropDownList!$B$47,CntyQryCensus!$A$357:$CM$399,BV$1) -> 0 | BW70: =VLOOKUP(DropDownList!$B$47,CntyQryCensus!$A$357:$CM$399,BW$1) -> 0 | BX70: =VLOOKUP(DropDownList!$B$47,CntyQryCensus!$A$357:$CM$399,BX$1) -> 0 | BY70: =VLOOKUP(DropDownList!$B$47,CntyQryCensus!$A$357:$CM$399,BY$1) -> 21 | BZ70: =VLOOKUP(DropDownList!$B$47,CntyQryCensus!$A$357:$CM$399,BZ$1) -> 21 | CA70: =VLOOKUP(DropDownList!$B$47,CntyQryCensus!$A$357:$CM$399,CA$1) -> 0 | CB70: =VLOOKUP(DropDownList!$B$47,CntyQryCensus!$A$357:$CM$399,CB$1) -> 0 | CC70: =VLOOKUP(DropDownList!$B$47,CntyQryCensus!$A$357:$CM$399,CC$1) -> 0 | CD70: =VLOOKUP(DropDownList!$B$47,CntyQryCensus!$A$357:$CM$399,CD$1) -> 0 | CE70: =VLOOKUP(DropDownList!$B$47,CntyQryCensus!$A$357:$CM$399,CE$1) -> 0 | CF70: =VLOOKUP(DropDownList!$B$47,CntyQryCensus!$A$357:$CM$399,CF$1) -> 16 | CG70: =VLOOKUP(DropDownList!$B$47,CntyQryCensus!$A$357:$CM$399,CG$1) -> 16 | CH70: =VLOOKUP(DropDownList!$B$47,CntyQryCensus!$A$357:$CM$399,CH$1) -> 0 | CI70: =VLOOKUP(DropDownList!$B$47,CntyQryCensus!$A$357:$CM$399,CI$1) -> 0 | CJ70: =VLOOKUP(DropDownList!$B$47,CntyQryCensus!$A$357:$CM$399,CJ$1) -> 0 | CK70: =VLOOKUP(DropDownList!$B$47,CntyQryCensus!$A$357:$CM$399,CK$1) -> 0 | CL70: =VLOOKUP(DropDownList!$B$47,CntyQryCensus!$A$357:$CM$399,CL$1) -> 0 | CM70: =VLOOKUP(DropDownList!$B$47,CntyQryCensus!$A$357:$CM$399,CM$1) -> 0
A73: Census 2000 SummaryFile3 Sample Data - SF3TownQry8HousingCostB
A74: NAME | B74: LOGRECNO | C74: COUNTY | D74: TotalPop | E74: H74SpecOwnerOccHU | F74: H74OOHU<10k | G74: H74OOHU10to15k | H74: H74OOHU15to20k | I74: H74OOHU20to25k | J74: H74OOHU25to30k | K74: H74OOHU30to35k | L74: H74OOHU35to40k | M74: H74OOHU40to50k | N74: H74OOHU50to60k | O74: H74OOHU60to70k | P74: H74OOHU70to80k | Q74: H74OOHU80to90k | R74: H74OOHU90to100k | S74: H74OOHU100to125k | T74: H74OOHU125to150k | U74: H74OOHU150to175k | V74: H74OOHU175to200k | W74: H74OOHU200to250k | X74: H74OOHU250to300k | Y74: H74OOHU300to400k | Z74: H74OOHU400to500k | AA74: H74OOHU500to750k | AB74: H74OOHU750to1000k | AC74: H74OOHU1000kmore | AD74: H76OOHUMedianVal | AE74: H84OwnerOccHU | AF74: H84AllOOHU<10k | AG74: H84AllOOHU10to15k | AH74: H84AllOOHU15to20k | AI74: H84AllOOHU20to25k | AJ74: H84AllOOHU25to30k | AK74: H84AllOOHU30to35k | AL74: H84AllOOHU35to40k | AM74: H84AllOOHU40to50k | AN74: H84AllOOHU50to60k | AO74: H84AllOOHU60to70k | AP74: H84AllOOHU70to80k | AQ74: H84AllOOHU80to90k | AR74: H84AllOOHU90to100k | AS74: H84AllOOHU100to125k | AT74: H84AllOOHU125to150k | AU74: H84AllOOHU150to175k | AV74: H84AllOOHU175to200k | AW74: H84AllOOHU200to250k | AX74: H84AllOOHU250to300k | AY74: H84AllOOHU300to400k | AZ74: H84AllOOHU400to500k | BA74: H84AllOOHU500to750k | BB74: H84AllOOHU750to1000k | BC74: H84AllOOHU1000kmore | BD74: H85OOHUMedVal | BE74: H90SOOHU | BF74: H90HUwMorgt | BG74: H90HUwMtgHC<200 | BH74: H90HUwMtgHC200to300 | BI74: H90HUwMtgHC300to400 | BJ74: H90HUwMtgHC400to500 | BK74: H90HUwMtgHC500to600 | BL74: H90HUwMtgHC600to700 | BM74: H90HUwMtgHC700to800 | BN74: H90HUwMtgHC800to900 | BO74: H90HUwMtgHC900to1000 | BP74: H90HUwMtgHC1000to1250 | BQ74: H90HUwMtgHC1250to1500 | BR74: H90HUwMtgHC1500to2000 | BS74: H90HUwMtgHC2000to2500 | BT74: H90HUwMtgHC2500to3000 | BU74: H90HUwMtgHC3000orMore | BV74: H90HUwOutMorgt | BW74: H90HUwOutMtgHC<100 | BX74: H90HUwOutMtgHC100to150 | BY74: H90HUwOutMtgHC150to200 | BZ74: H90HUwOutMtgHC200to250 | CA74: H90HUwOutMtgHC250to300 | CB74: H90HUwOutMtgHC300to350 | CC74: H90HUwOutMtgHC350to400 | CD74: H90HUwOutMtgHC400to500 | CE74: H90HUwOutMtgHC500to600 | CF74: H90HUwOutMtgHC600to700 | CG74: H90HUwOutMtgHC700to800 | CH74: H90HUwOutMtgHC800to900 | CI74: H90HUwOutMtgHC900to1000 | CJ74: H90HUwOutMtgHC1000orMore | CK74: H91MedianOCHUwMtg | CL74: H91MedianOCHUwOutMtg | CM74: H94SpecOOHU | CN74: H94HUwMortg | CO74: H94HUwMtgHC<10pct | CP74: H94HUwMtgHC10to15pct | CQ74: H94HUwMtgHC15to20pct | CR74: H94HUwMtgHC20to25pct | CS74: H94HUwMtgHC25to30pct | CT74: H94HUwMtgHC30to35pct | CU74: H94HUwMtgHC35to40pct | CV74: H94HUwMtgHC40to50pct | CW74: H94HUwMtgHC50pctOrMore | CX74: H94HUwMtgHCpctNotComp | CY74: H94HUWOutMortg | CZ74: H94HUWOutMortgHC<10pct | DA74: H94HUWOutMortgHC10to15pct | DB74: H94HUWOutMortgHC15to20pct | DC74: H94HUWOutMortgHC20to25pct | DD74: H94HUWOutMortgHC25to30pct | DE74: H94HUWOutMortgHC30to35pct | DF74: H94HUWOutMortgHC35to40pct | DG74: H94HUWOutMortgHC40to50pct | DH74: H94HUWOutMortgHC50pctOrMore | DI74: H94HUWOutMortgHCpctNotComp | DJ74: H97SpecifOwnOccHU | DK74: H97SOOHUInc<10k | DL74: H97SOOHUInc<10kHC<20pct | DM74: H97SOOHUInc<10kHC20to25pct | DN74: H97SOOHUInc<10kHC25to30pct | DO74: H97SOOHUInc<10kHC30to35pct | DP74: H97SOOHUInc<10kHC>35pct | DQ74: H97SOOHUInc<10kHCpctNotComput | DR74: H97SOOHUInc10to20k | DS74: H97SOOHUInc10to20kHC<20pct | DT74: H97SOOHUInc10to20kHC20to25pct | DU74: H97SOOHUInc10to20kHC25to30pct | DV74: H97SOOHUInc10to20kHC30to35pct | DW74: H97SOOHUInc10to20kHC>35pct | DX74: H97SOOHUInc10to20kHCpctNotComput | DY74: H97SOOHUInc20to35k | DZ74: H97SOOHUInc20to35kRC<20pct | EA74: H97SOOHUInc20to35kRC20to25pct | EB74: H97SOOHUInc20to35kRC25to30pct | EC74: H97SOOHUInc20to35kRC30to35pct | ED74: H97SOOHUInc20to35kRC>35pct | EE74: H97SOOHUInc20to35kRCpctNotComput | EF74: H97SOOHUInc35to50k | EG74: H97SOOHUInc35to50kRC<20pct | EH74: H97SOOHUInc35to50kRC20to25pct | EI74: H97SOOHUInc35to50kRC25to30pct | EJ74: H97SOOHUInc35to50kRC30to35pct | EK74: H97SOOHUInc35to50kRC>35pct | EL74: H97SOOHUInc35to50kRCpctNotCompute | EM74: H97SOOHUInc50to75k | EN74: H97SOOHUInc50to75kRC<20pct | EO74: H97SOOHUInc50to75kRC20to25pct | EP74: H97SOOHUInc50to75kRC25to30pct | EQ74: H97SOOHUInc50to75kRC30to35pct | ER74: H97SOOHUInc50to75kRC>35pct | ES74: H97SOOHUInc50to75kRCpctNotComput | ET74: H97SOOHUInc75to100k | EU74: H97SOOHUInc75to100kRC<20pct | EV74: H97SOOHUInc75to100kRC20to25pct | EW74: H97SOOHUInc75to100kRC25to30pct | EX74: H97SOOHUInc75to100kRC30to35pct | EY74: H97SOOHUInc75to100kRC>35pct | EZ74: H97SOOHUInc75to100kRCpctNotCompute | FA74: H97SOOHUInc100to150k | FB74: H97SOOHUInc100to150kRC<20pct | FC74: H97SOOHUInc100to150kRC20to25pct | FD74: H97SOOHUInc100to150kRC25to30pct | FE74: H97SOOHUInc100to150kRC30to35pct | FF74: H97SOOHUInc100to150kRC>35pct | FG74: H97SOOHUInc100to150kRCpctNotCompute | FH74: H97SOOHUInc>150k | FI74: H97SOOHUInc>150kRC<20pct | FJ74: H97SOOHUInc>150kRC20to25pct | FK74: H97SOOHUInc>150kRC25to30pct | FL74: H97SOOHUInc>150kRC30to35pct | FM74: H97SOOHUInc>150kRC>35pct | FN74: H97SOOHUInc>150kRCpctNotCompute
A75: =VLOOKUP(DropDownList!$B$47,CntyQryCensus!$A$408:$FN$450,A$1) -> Allenstown | B75: =VLOOKUP(DropDownList!$B$47,CntyQryCensus!$A$408:$FN$450,B$1) -> 0002575 | C75: =VLOOKUP(DropDownList!$B$47,CntyQryCensus!$A$408:$FN$450,C$1) -> 00660 | D75: =VLOOKUP(DropDownList!$B$47,CntyQryCensus!$A$408:$FN$450,D$1) -> 4843 | E75: =VLOOKUP(DropDownList!$B$47,CntyQryCensus!$A$408:$FN$450,E$1) -> 735 | F75: =VLOOKUP(DropDownList!$B$47,CntyQryCensus!$A$408:$FN$450,F$1) -> 0 | G75: =VLOOKUP(DropDownList!$B$47,CntyQryCensus!$A$408:$FN$450,G$1) -> 7 | H75: =VLOOKUP(DropDownList!$B$47,CntyQryCensus!$A$408:$FN$450,H$1) -> 0 | I75: =VLOOKUP(DropDownList!$B$47,CntyQryCensus!$A$408:$FN$450,I$1) -> 0 | J75: =VLOOKUP(DropDownList!$B$47,CntyQryCensus!$A$408:$FN$450,J$1) -> 0 | K75: =VLOOKUP(DropDownList!$B$47,CntyQryCensus!$A$408:$FN$450,K$1) -> 0 | L75: =VLOOKUP(DropDownList!$B$47,CntyQryCensus!$A$408:$FN$450,L$1) -> 0 | M75: =VLOOKUP(DropDownList!$B$47,CntyQryCensus!$A$408:$FN$450,M$1) -> 7 | N75: =VLOOKUP(DropDownList!$B$47,CntyQryCensus!$A$408:$FN$450,N$1) -> 7 | O75: =VLOOKUP(DropDownList!$B$47,CntyQryCensus!$A$408:$FN$450,O$1) -> 33 | P75: =VLOOKUP(DropDownList!$B$47,CntyQryCensus!$A$408:$FN$450,P$1) -> 84 | Q75: =VLOOKUP(DropDownList!$B$47,CntyQryCensus!$A$408:$FN$450,Q$1) -> 94 | R75: =VLOOKUP(DropDownList!$B$47,CntyQryCensus!$A$408:$FN$450,R$1) -> 172 | S75: =VLOOKUP(DropDownList!$B$47,CntyQryCensus!$A$408:$FN$450,S$1) -> 225 | T75: =VLOOKUP(DropDownList!$B$47,CntyQryCensus!$A$408:$FN$450,T$1) -> 22 | U75: =VLOOKUP(DropDownList!$B$47,CntyQryCensus!$A$408:$FN$450,U$1) -> 28 | V75: =VLOOKUP(DropDownList!$B$47,CntyQryCensus!$A$408:$FN$450,V$1) -> 35 | W75: =VLOOKUP(DropDownList!$B$47,CntyQryCensus!$A$408:$FN$450,W$1) -> 15 | X75: =VLOOKUP(DropDownList!$B$47,CntyQryCensus!$A$408:$FN$450,X$1) -> 6 | Y75: =VLOOKUP(DropDownList!$B$47,CntyQryCensus!$A$408:$FN$450,Y$1) -> 0 | Z75: =VLOOKUP(DropDownList!$B$47,CntyQryCensus!$A$408:$FN$450,Z$1) -> 0 | AA75: =VLOOKUP(DropDownList!$B$47,CntyQryCensus!$A$408:$FN$450,AA$1) -> 0 | AB75: =VLOOKUP(DropDownList!$B$47,CntyQryCensus!$A$408:$FN$450,AB$1) -> 0 | AC75: =VLOOKUP(DropDownList!$B$47,CntyQryCensus!$A$408:$FN$450,AC$1) -> 0 | AD75: =VLOOKUP(DropDownList!$B$47,CntyQryCensus!$A$408:$FN$450,AD$1) -> 97900 | AE75: =VLOOKUP(DropDownList!$B$47,CntyQryCensus!$A$408:$FN$450,AE$1) -> 1356 | AF75: =VLOOKUP(DropDownList!$B$47,CntyQryCensus!$A$408:$FN$450,AF$1) -> 92 | AG75: =VLOOKUP(DropDownList!$B$47,CntyQryCensus!$A$408:$FN$450,AG$1) -> 62 | AH75: =VLOOKUP(DropDownList!$B$47,CntyQryCensus!$A$408:$FN$450,AH$1) -> 109 | AI75: =VLOOKUP(DropDownList!$B$47,CntyQryCensus!$A$408:$FN$450,AI$1) -> 66 | AJ75: =VLOOKUP(DropDownList!$B$47,CntyQryCensus!$A$408:$FN$450,AJ$1) -> 57 | AK75: =VLOOKUP(DropDownList!$B$47,CntyQryCensus!$A$408:$FN$450,AK$1) -> 59 | AL75: =VLOOKUP(DropDownList!$B$47,CntyQryCensus!$A$408:$FN$450,AL$1) -> 43 | AM75: =VLOOKUP(DropDownList!$B$47,CntyQryCensus!$A$408:$FN$450,AM$1) -> 17 | AN75: =VLOOKUP(DropDownList!$B$47,CntyQryCensus!$A$408:$FN$450,AN$1) -> 27 | AO75: =VLOOKUP(DropDownList!$B$47,CntyQryCensus!$A$408:$FN$450,AO$1) -> 73 | AP75: =VLOOKUP(DropDownList!$B$47,CntyQryCensus!$A$408:$FN$450,AP$1) -> 93 | AQ75: =VLOOKUP(DropDownList!$B$47,CntyQryCensus!$A$408:$FN$450,AQ$1) -> 94 | AR75: =VLOOKUP(DropDownList!$B$47,CntyQryCensus!$A$408:$FN$450,AR$1) -> 172 | AS75: =VLOOKUP(DropDownList!$B$47,CntyQryCensus!$A$408:$FN$450,AS$1) -> 264 | AT75: =VLOOKUP(DropDownList!$B$47,CntyQryCensus!$A$408:$FN$450,AT$1) -> 36 | AU75: =VLOOKUP(DropDownList!$B$47,CntyQryCensus!$A$408:$FN$450,AU$1) -> 36 | AV75: =VLOOKUP(DropDownList!$B$47,CntyQryCensus!$A$408:$FN$450,AV$1) -> 35 | AW75: =VLOOKUP(DropDownList!$B$47,CntyQryCensus!$A$408:$FN$450,AW$1) -> 15 | AX75: =VLOOKUP(DropDownList!$B$47,CntyQryCensus!$A$408:$FN$450,AX$1) -> 6 | AY75: =VLOOKUP(DropDownList!$B$47,CntyQryCensus!$A$408:$FN$450,AY$1) -> 0 | AZ75: =VLOOKUP(DropDownList!$B$47,CntyQryCensus!$A$408:$FN$450,AZ$1) -> 0 | BA75: =VLOOKUP(DropDownList!$B$47,CntyQryCensus!$A$408:$FN$450,BA$1) -> 0 | BB75: =VLOOKUP(DropDownList!$B$47,CntyQryCensus!$A$408:$FN$450,BB$1) -> 0 | BC75: =VLOOKUP(DropDownList!$B$47,CntyQryCensus!$A$408:$FN$450,BC$1) -> 0 | BD75: =VLOOKUP(DropDownList!$B$47,CntyQryCensus!$A$408:$FN$450,BD$1) -> 77800 | BE75: =VLOOKUP(DropDownList!$B$47,CntyQryCensus!$A$408:$FN$450,BE$1) -> 735 | BF75: =VLOOKUP(DropDownList!$B$47,CntyQryCensus!$A$408:$FN$450,BF$1) -> 510 | BG75: =VLOOKUP(DropDownList!$B$47,CntyQryCensus!$A$408:$FN$450,BG$1) -> 0 | BH75: =VLOOKUP(DropDownList!$B$47,CntyQryCensus!$A$408:$FN$450,BH$1) -> 0 | BI75: =VLOOKUP(DropDownList!$B$47,CntyQryCensus!$A$408:$FN$450,BI$1) -> 0 | BJ75: =VLOOKUP(DropDownList!$B$47,CntyQryCensus!$A$408:$FN$450,BJ$1) -> 7 | BK75: =VLOOKUP(DropDownList!$B$47,CntyQryCensus!$A$408:$FN$450,BK$1) -> 13 | BL75: =VLOOKUP(DropDownList!$B$47,CntyQryCensus!$A$408:$FN$450,BL$1) -> 28 | BM75: =VLOOKUP(DropDownList!$B$47,CntyQryCensus!$A$408:$FN$450,BM$1) -> 70 | BN75: =VLOOKUP(DropDownList!$B$47,CntyQryCensus!$A$408:$FN$450,BN$1) -> 60 | BO75: =VLOOKUP(DropDownList!$B$47,CntyQryCensus!$A$408:$FN$450,BO$1) -> 49 | BP75: =VLOOKUP(DropDownList!$B$47,CntyQryCensus!$A$408:$FN$450,BP$1) -> 170 | BQ75: =VLOOKUP(DropDownList!$B$47,CntyQryCensus!$A$408:$FN$450,BQ$1) -> 80 | BR75: =VLOOKUP(DropDownList!$B$47,CntyQryCensus!$A$408:$FN$450,BR$1) -> 26 | BS75: =VLOOKUP(DropDownList!$B$47,CntyQryCensus!$A$408:$FN$450,BS$1) -> 0 | BT75: =VLOOKUP(DropDownList!$B$47,CntyQryCensus!$A$408:$FN$450,BT$1) -> 7 | BU75: =VLOOKUP(DropDownList!$B$47,CntyQryCensus!$A$408:$FN$450,BU$1) -> 0 | BV75: =VLOOKUP(DropDownList!$B$47,CntyQryCensus!$A$408:$FN$450,BV$1) -> 225 | BW75: =VLOOKUP(DropDownList!$B$47,CntyQryCensus!$A$408:$FN$450,BW$1) -> 0 | BX75: =VLOOKUP(DropDownList!$B$47,CntyQryCensus!$A$408:$FN$450,BX$1) -> 0 | BY75: =VLOOKUP(DropDownList!$B$47,CntyQryCensus!$A$408:$FN$450,BY$1) -> 0 | BZ75: =VLOOKUP(DropDownList!$B$47,CntyQryCensus!$A$408:$FN$450,BZ$1) -> 0 | CA75: =VLOOKUP(DropDownList!$B$47,CntyQryCensus!$A$408:$FN$450,CA$1) -> 18 | CB75: =VLOOKUP(DropDownList!$B$47,CntyQryCensus!$A$408:$FN$450,CB$1) -> 33 | CC75: =VLOOKUP(DropDownList!$B$47,CntyQryCensus!$A$408:$FN$450,CC$1) -> 57 | CD75: =VLOOKUP(DropDownList!$B$47,CntyQryCensus!$A$408:$FN$450,CD$1) -> 48 | CE75: =VLOOKUP(DropDownList!$B$47,CntyQryCensus!$A$408:$FN$450,CE$1) -> 42 | CF75: =VLOOKUP(DropDownList!$B$47,CntyQryCensus!$A$408:$FN$450,CF$1) -> 15 | CG75: =VLOOKUP(DropDownList!$B$47,CntyQryCensus!$A$408:$FN$450,CG$1) -> 6 | CH75: =VLOOKUP(DropDownList!$B$47,CntyQryCensus!$A$408:$FN$450,CH$1) -> 6 | CI75: =VLOOKUP(DropDownList!$B$47,CntyQryCensus!$A$408:$FN$450,CI$1) -> 0 | CJ75: =VLOOKUP(DropDownList!$B$47,CntyQryCensus!$A$408:$FN$450,CJ$1) -> 0 | CK75: =VLOOKUP(DropDownList!$B$47,CntyQryCensus!$A$408:$FN$450,CK$1) -> 1041 | CL75: =VLOOKUP(DropDownList!$B$47,CntyQryCensus!$A$408:$FN$450,CL$1) -> 409 | CM75: =VLOOKUP(DropDownList!$B$47,CntyQryCensus!$A$408:$FN$450,CM$1) -> 735 | CN75: =VLOOKUP(DropDownList!$B$47,CntyQryCensus!$A$408:$FN$450,CN$1) -> 510 | CO75: =VLOOKUP(DropDownList!$B$47,CntyQryCensus!$A$408:$FN$450,CO$1) -> 13 | CP75: =VLOOKUP(DropDownList!$B$47,CntyQryCensus!$A$408:$FN$450,CP$1) -> 70 | CQ75: =VLOOKUP(DropDownList!$B$47,CntyQryCensus!$A$408:$FN$450,CQ$1) -> 166 | CR75: =VLOOKUP(DropDownList!$B$47,CntyQryCensus!$A$408:$FN$450,CR$1) -> 98 | CS75: =VLOOKUP(DropDownList!$B$47,CntyQryCensus!$A$408:$FN$450,CS$1) -> 57 | CT75: =VLOOKUP(DropDownList!$B$47,CntyQryCensus!$A$408:$FN$450,CT$1) -> 35 | CU75: =VLOOKUP(DropDownList!$B$47,CntyQryCensus!$A$408:$FN$450,CU$1) -> 14 | CV75: =VLOOKUP(DropDownList!$B$47,CntyQryCensus!$A$408:$FN$450,CV$1) -> 19 | CW75: =VLOOKUP(DropDownList!$B$47,CntyQryCensus!$A$408:$FN$450,CW$1) -> 38 | CX75: =VLOOKUP(DropDownList!$B$47,CntyQryCensus!$A$408:$FN$450,CX$1) -> 0 | CY75: =VLOOKUP(DropDownList!$B$47,CntyQryCensus!$A$408:$FN$450,CY$1) -> 225 | CZ75: =VLOOKUP(DropDownList!$B$47,CntyQryCensus!$A$408:$FN$450,CZ$1) -> 77 | DA75: =VLOOKUP(DropDownList!$B$47,CntyQryCensus!$A$408:$FN$450,DA$1) -> 41 | DB75: =VLOOKUP(DropDownList!$B$47,CntyQryCensus!$A$408:$FN$450,DB$1) -> 48 | DC75: =VLOOKUP(DropDownList!$B$47,CntyQryCensus!$A$408:$FN$450,DC$1) -> 27 | DD75: =VLOOKUP(DropDownList!$B$47,CntyQryCensus!$A$408:$FN$450,DD$1) -> 6 | DE75: =VLOOKUP(DropDownList!$B$47,CntyQryCensus!$A$408:$FN$450,DE$1) -> 13 | DF75: =VLOOKUP(DropDownList!$B$47,CntyQryCensus!$A$408:$FN$450,DF$1) -> 6 | DG75: =VLOOKUP(DropDownList!$B$47,CntyQryCensus!$A$408:$FN$450,DG$1) -> 0 | DH75: =VLOOKUP(DropDownList!$B$47,CntyQryCensus!$A$408:$FN$450,DH$1) -> 7 | DI75: =VLOOKUP(DropDownList!$B$47,CntyQryCensus!$A$408:$FN$450,DI$1) -> 0 | DJ75: =VLOOKUP(DropDownList!$B$47,CntyQryCensus!$A$408:$FN$450,DJ$1) -> 735 | DK75: =VLOOKUP(DropDownList!$B$47,CntyQryCensus!$A$408:$FN$450,DK$1) -> 9 | DL75: =VLOOKUP(DropDownList!$B$47,CntyQryCensus!$A$408:$FN$450,DL$1) -> 0 | DM75: =VLOOKUP(DropDownList!$B$47,CntyQryCensus!$A$408:$FN$450,DM$1) -> 0 | DN75: =VLOOKUP(DropDownList!$B$47,CntyQryCensus!$A$408:$FN$450,DN$1) -> 0 | DO75: =VLOOKUP(DropDownList!$B$47,CntyQryCensus!$A$408:$FN$450,DO$1) -> 0 | DP75: =VLOOKUP(DropDownList!$B$47,CntyQryCensus!$A$408:$FN$450,DP$1) -> 9 | DQ75: =VLOOKUP(DropDownList!$B$47,CntyQryCensus!$A$408:$FN$450,DQ$1) -> 0 | DR75: =VLOOKUP(DropDownList!$B$47,CntyQryCensus!$A$408:$FN$450,DR$1) -> 45 | DS75: =VLOOKUP(DropDownList!$B$47,CntyQryCensus!$A$408:$FN$450,DS$1) -> 0 | DT75: =VLOOKUP(DropDownList!$B$47,CntyQryCensus!$A$408:$FN$450,DT$1) -> 13 | DU75: =VLOOKUP(DropDownList!$B$47,CntyQryCensus!$A$408:$FN$450,DU$1) -> 6 | DV75: =VLOOKUP(DropDownList!$B$47,CntyQryCensus!$A$408:$FN$450,DV$1) -> 13 | DW75: =VLOOKUP(DropDownList!$B$47,CntyQryCensus!$A$408:$FN$450,DW$1) -> 13 | DX75: =VLOOKUP(DropDownList!$B$47,CntyQryCensus!$A$408:$FN$450,DX$1) -> 0 | DY75: =VLOOKUP(DropDownList!$B$47,CntyQryCensus!$A$408:$FN$450,DY$1) -> 116 | DZ75: =VLOOKUP(DropDownList!$B$47,CntyQryCensus!$A$408:$FN$450,DZ$1) -> 52 | EA75: =VLOOKUP(DropDownList!$B$47,CntyQryCensus!$A$408:$FN$450,EA$1) -> 8 | EB75: =VLOOKUP(DropDownList!$B$47,CntyQryCensus!$A$408:$FN$450,EB$1) -> 7 | EC75: =VLOOKUP(DropDownList!$B$47,CntyQryCensus!$A$408:$FN$450,EC$1) -> 0 | ED75: =VLOOKUP(DropDownList!$B$47,CntyQryCensus!$A$408:$FN$450,ED$1) -> 49 | EE75: =VLOOKUP(DropDownList!$B$47,CntyQryCensus!$A$408:$FN$450,EE$1) -> 0 | EF75: =VLOOKUP(DropDownList!$B$47,CntyQryCensus!$A$408:$FN$450,EF$1) -> 124 | EG75: =VLOOKUP(DropDownList!$B$47,CntyQryCensus!$A$408:$FN$450,EG$1) -> 41 | EH75: =VLOOKUP(DropDownList!$B$47,CntyQryCensus!$A$408:$FN$450,EH$1) -> 24 | EI75: =VLOOKUP(DropDownList!$B$47,CntyQryCensus!$A$408:$FN$450,EI$1) -> 18 | EJ75: =VLOOKUP(DropDownList!$B$47,CntyQryCensus!$A$408:$FN$450,EJ$1) -> 28 | EK75: =VLOOKUP(DropDownList!$B$47,CntyQryCensus!$A$408:$FN$450,EK$1) -> 13 | EL75: =VLOOKUP(DropDownList!$B$47,CntyQryCensus!$A$408:$FN$450,EL$1) -> 0 | EM75: =VLOOKUP(DropDownList!$B$47,CntyQryCensus!$A$408:$FN$450,EM$1) -> 247 | EN75: =VLOOKUP(DropDownList!$B$47,CntyQryCensus!$A$408:$FN$450,EN$1) -> 149 | EO75: =VLOOKUP(DropDownList!$B$47,CntyQryCensus!$A$408:$FN$450,EO$1) -> 66 | EP75: =VLOOKUP(DropDownList!$B$47,CntyQryCensus!$A$408:$FN$450,EP$1) -> 32 | EQ75: =VLOOKUP(DropDownList!$B$47,CntyQryCensus!$A$408:$FN$450,EQ$1) -> 0 | ER75: =VLOOKUP(DropDownList!$B$47,CntyQryCensus!$A$408:$FN$450,ER$1) -> 0 | ES75: =VLOOKUP(DropDownList!$B$47,CntyQryCensus!$A$408:$FN$450,ES$1) -> 0 | ET75: =VLOOKUP(DropDownList!$B$47,CntyQryCensus!$A$408:$FN$450,ET$1) -> 105 | EU75: =VLOOKUP(DropDownList!$B$47,CntyQryCensus!$A$408:$FN$450,EU$1) -> 91 | EV75: =VLOOKUP(DropDownList!$B$47,CntyQryCensus!$A$408:$FN$450,EV$1) -> 14 | EW75: =VLOOKUP(DropDownList!$B$47,CntyQryCensus!$A$408:$FN$450,EW$1) -> 0 | EX75: =VLOOKUP(DropDownList!$B$47,CntyQryCensus!$A$408:$FN$450,EX$1) -> 0 | EY75: =VLOOKUP(DropDownList!$B$47,CntyQryCensus!$A$408:$FN$450,EY$1) -> 0 | EZ75: =VLOOKUP(DropDownList!$B$47,CntyQryCensus!$A$408:$FN$450,EZ$1) -> 0 | FA75: =VLOOKUP(DropDownList!$B$47,CntyQryCensus!$A$408:$FN$450,FA$1) -> 89 | FB75: =VLOOKUP(DropDownList!$B$47,CntyQryCensus!$A$408:$FN$450,FB$1) -> 82 | FC75: =VLOOKUP(DropDownList!$B$47,CntyQryCensus!$A$408:$FN$450,FC$1) -> 0 | FD75: =VLOOKUP(DropDownList!$B$47,CntyQryCensus!$A$408:$FN$450,FD$1) -> 0 | FE75: =VLOOKUP(DropDownList!$B$47,CntyQryCensus!$A$408:$FN$450,FE$1) -> 7 | FF75: =VLOOKUP(DropDownList!$B$47,CntyQryCensus!$A$408:$FN$450,FF$1) -> 0 | FG75: =VLOOKUP(DropDownList!$B$47,CntyQryCensus!$A$408:$FN$450,FG$1) -> 0 | FH75: =VLOOKUP(DropDownList!$B$47,CntyQryCensus!$A$408:$FN$450,FH$1) -> 0 | FI75: =VLOOKUP(DropDownList!$B$47,CntyQryCensus!$A$408:$FN$450,FI$1) -> 0 | FJ75: =VLOOKUP(DropDownList!$B$47,CntyQryCensus!$A$408:$FN$450,FJ$1) -> 0 | FK75: =VLOOKUP(DropDownList!$B$47,CntyQryCensus!$A$408:$FN$450,FK$1) -> 0 | FL75: =VLOOKUP(DropDownList!$B$47,CntyQryCensus!$A$408:$FN$450,FL$1) -> 0 | FM75: =VLOOKUP(DropDownList!$B$47,CntyQryCensus!$A$408:$FN$450,FM$1) -> 0 | FN75: =VLOOKUP(DropDownList!$B$47,CntyQryCensus!$A$408:$FN$450,FN$1) -> 0
A78: Census 2000 SummaryFile3 Sample Data - SF3TownQry9HHIncomeByTenure
A79: NAME | B79: LOGRECNO | C79: COUNTY | D79: TotalPop | E79: HCT11OccHU | F79: HCT11OwnOccHU | G79: HCT11OOHUInc<5K | H79: HCT11OOHUInc5to10K | I79: HCT11OOHUInc10to15K | J79: HCT11OOHUInc15to20K | K79: HCT11OOHUInc20to25K | L79: HCT11OOHUInc25to35K | M79: HCT11OOHUInc35to50K | N79: HCT11OOHUInc50to75K | O79: HCT11OOHUInc75to100K | P79: HCT11OOHUInc100to150K | Q79: HCT11OOHUInc>150K | R79: HCT11RentOccHU | S79: HCT11ROHUInc<5K | T79: HCT11ROHUInc5to10K | U79: HCT11ROHUInc10to15K | V79: HCT11ROHUInc15to20K | W79: HCT11ROHUInc20to25K | X79: HCT11ROHUInc25to35K | Y79: HCT11ROHUInc35to50K | Z79: HCT11ROHUInc50to75K | AA79: HCT11ROHUInc75to100K | AB79: HCT11ROHUInc100to150K | AC79: HCT11ROHUInc>150K | AD79: HCT12MedHHInc | AE79: HCT12MedOwnOccHHInc | AF79: HCT12MedRentOccHHInc | AG79: Summary Level
A80: =VLOOKUP(DropDownList!$B$47,CntyQryCensus!$A$459:$AG$501,A$1) -> Allenstown | B80: =VLOOKUP(DropDownList!$B$47,CntyQryCensus!$A$459:$AG$501,B$1) -> 0002575 | C80: =VLOOKUP(DropDownList!$B$47,CntyQryCensus!$A$459:$AG$501,C$1) -> 00660 | D80: =VLOOKUP(DropDownList!$B$47,CntyQryCensus!$A$459:$AG$501,D$1) -> Allenstown town | E80: =VLOOKUP(DropDownList!$B$47,CntyQryCensus!$A$459:$AG$501,E$1) -> 013 | F80: =VLOOKUP(DropDownList!$B$47,CntyQryCensus!$A$459:$AG$501,F$1) -> 4843 | G80: =VLOOKUP(DropDownList!$B$47,CntyQryCensus!$A$459:$AG$501,G$1) -> 1902 | H80: =VLOOKUP(DropDownList!$B$47,CntyQryCensus!$A$459:$AG$501,H$1) -> 1356 | I80: =VLOOKUP(DropDownList!$B$47,CntyQryCensus!$A$459:$AG$501,I$1) -> 6 | J80: =VLOOKUP(DropDownList!$B$47,CntyQryCensus!$A$459:$AG$501,J$1) -> 41 | K80: =VLOOKUP(DropDownList!$B$47,CntyQryCensus!$A$459:$AG$501,K$1) -> 59 | L80: =VLOOKUP(DropDownList!$B$47,CntyQryCensus!$A$459:$AG$501,L$1) -> 61 | M80: =VLOOKUP(DropDownList!$B$47,CntyQryCensus!$A$459:$AG$501,M$1) -> 57 | N80: =VLOOKUP(DropDownList!$B$47,CntyQryCensus!$A$459:$AG$501,N$1) -> 186 | O80: =VLOOKUP(DropDownList!$B$47,CntyQryCensus!$A$459:$AG$501,O$1) -> 278 | P80: =VLOOKUP(DropDownList!$B$47,CntyQryCensus!$A$459:$AG$501,P$1) -> 416 | Q80: =VLOOKUP(DropDownList!$B$47,CntyQryCensus!$A$459:$AG$501,Q$1) -> 141 | R80: =VLOOKUP(DropDownList!$B$47,CntyQryCensus!$A$459:$AG$501,R$1) -> 103 | S80: =VLOOKUP(DropDownList!$B$47,CntyQryCensus!$A$459:$AG$501,S$1) -> 8 | T80: =VLOOKUP(DropDownList!$B$47,CntyQryCensus!$A$459:$AG$501,T$1) -> 546 | U80: =VLOOKUP(DropDownList!$B$47,CntyQryCensus!$A$459:$AG$501,U$1) -> 7 | V80: =VLOOKUP(DropDownList!$B$47,CntyQryCensus!$A$459:$AG$501,V$1) -> 75 | W80: =VLOOKUP(DropDownList!$B$47,CntyQryCensus!$A$459:$AG$501,W$1) -> 44 | X80: =VLOOKUP(DropDownList!$B$47,CntyQryCensus!$A$459:$AG$501,X$1) -> 26 | Y80: =VLOOKUP(DropDownList!$B$47,CntyQryCensus!$A$459:$AG$501,Y$1) -> 64 | Z80: =VLOOKUP(DropDownList!$B$47,CntyQryCensus!$A$459:$AG$501,Z$1) -> 109 | AA80: =VLOOKUP(DropDownList!$B$47,CntyQryCensus!$A$459:$AG$501,AA$1) -> 104 | AB80: =VLOOKUP(DropDownList!$B$47,CntyQryCensus!$A$459:$AG$501,AB$1) -> 80 | AC80: =VLOOKUP(DropDownList!$B$47,CntyQryCensus!$A$459:$AG$501,AC$1) -> 21 | AD80: =VLOOKUP(DropDownList!$B$47,CntyQryCensus!$A$459:$AG$501,AD$1) -> 16 | AE80: =VLOOKUP(DropDownList!$B$47,CntyQryCensus!$A$459:$AG$501,AE$1) -> 0 | AF80: =VLOOKUP(DropDownList!$B$47,CntyQryCensus!$A$459:$AG$501,AF$1) -> 41875 | AG80: =VLOOKUP(DropDownList!$B$47,CntyQryCensus!$A$459:$AG$501,AG$1) -> 49138
A86: =VLOOKUP(DropDownList!$B$47,CntyQryCensus!$A$510:$DA$552,A$1) -> Allenstown
A94: Census 2000 SummaryFile3 Sample Data - SF3TownQry10Disabil
A95: NAME | B95: LOGRECNO | C95: COUNTY | D95: TotalPop | E95: PCT026001-NonInstPop5yrs+ | F95: PCT026002-MaleNonInstPop5yrs+ | G95: PCT026003 | H95: PCT026004 | I95: PCT026005 | J95: PCT026006 | K95: PCT026007 | L95: PCT026008 | M95: PCT026009 | N95: PCT026010 | O95: PCT026011 | P95: PCT026012 | Q95: PCT026013 | R95: PCT026014 | S95: PCT026015 | T95: PCT026016 | U95: PCT026017 | V95: PCT026018 | W95: PCT026019 | X95: PCT026020 | Y95: PCT026021 | Z95: PCT026022 | AA95: PCT026023 | AB95: PCT026024 | AC95: PCT026025 | AD95: PCT026026 | AE95: PCT026027 | AF95: PCT026028 | AG95: PCT026029 | AH95: PCT026030 | AI95: PCT026031 | AJ95: PCT026032 | AK95: PCT026033 | AL95: PCT026034 | AM95: PCT026035 | AN95: PCT026036 | AO95: PCT026037 | AP95: PCT026038 | AQ95: PCT026039 | AR95: PCT026040 | AS95: PCT026041 | AT95: PCT026042 | AU95: PCT026043 | AV95: PCT026044 | AW95: PCT026045 | AX95: PCT026046 | AY95: PCT026047 | AZ95: PCT026048 | BA95: PCT026049 | BB95: PCT026050 | BC95: PCT026051 | BD95: PCT026052 | BE95: PCT026053 | BF95: PCT026054 | BG95: PCT026055 | BH95: PCT026056 | BI95: PCT026057 | BJ95: PCT026058 | BK95: PCT026059 | BL95: PCT026060 | BM95: PCT026061 | BN95: PCT026062 | BO95: PCT026063 | BP95: PCT026064 | BQ95: PCT026065 | BR95: PCT026066 | BS95: PCT026067 | BT95: PCT026068 | BU95: PCT026069 | BV95: PCT026070 | BW95: PCT026071 | BX95: PCT026072 | BY95: PCT026073 | BZ95: PCT026074 | CA95: PCT026075 | CB95: PCT026076 | CC95: PCT026077 | CD95: PCT026078 | CE95: PCT026079 | CF95: PCT026080 | CG95: PCT026081 | CH95: PCT026082 | CI95: PCT026083 | CJ95: PCT026084 | CK95: PCT026085 | CL95: PCT026086 | CM95: PCT026087 | CN95: PCT026088 | CO95: PCT026089 | CP95: PCT026090 | CQ95: PCT026091 | CR95: PCT026092 | CS95: PCT026093 | CT95: PCT026094 | CU95: PCT026095 | CV95: PCT026096 | CW95: PCT026097 | CX95: PCT026098 | CY95: PCT026099 | CZ95: PCT026100 | DA95: PCT026101
A96: =VLOOKUP(DropDownList!$B$47,CntyQryCensus!$A$510:$DA$552,A$1) -> Allenstown | B96: =VLOOKUP(DropDownList!$B$47,CntyQryCensus!$A$510:$DA$552,B$1) -> 0002575 | C96: =VLOOKUP(DropDownList!$B$47,CntyQryCensus!$A$510:$DA$552,C$1) -> 00660 | D96: =VLOOKUP(DropDownList!$B$47,CntyQryCensus!$A$510:$DA$552,D$1) -> 4843 | E96: =VLOOKUP(DropDownList!$B$47,CntyQryCensus!$A$510:$DA$552,E$1) -> 4497 | F96: =VLOOKUP(DropDownList!$B$47,CntyQryCensus!$A$510:$DA$552,F$1) -> 2142 | G96: =VLOOKUP(DropDownList!$B$47,CntyQryCensus!$A$510:$DA$552,G$1) -> 429 | H96: =VLOOKUP(DropDownList!$B$47,CntyQryCensus!$A$510:$DA$552,H$1) -> 52 | I96: =VLOOKUP(DropDownList!$B$47,CntyQryCensus!$A$510:$DA$552,I$1) -> 9 | J96: =VLOOKUP(DropDownList!$B$47,CntyQryCensus!$A$510:$DA$552,J$1) -> 0 | K96: =VLOOKUP(DropDownList!$B$47,CntyQryCensus!$A$510:$DA$552,K$1) -> 43 | L96: =VLOOKUP(DropDownList!$B$47,CntyQryCensus!$A$510:$DA$552,L$1) -> 0 | M96: =VLOOKUP(DropDownList!$B$47,CntyQryCensus!$A$510:$DA$552,M$1) -> 13 | N96: =VLOOKUP(DropDownList!$B$47,CntyQryCensus!$A$510:$DA$552,N$1) -> 7 | O96: =VLOOKUP(DropDownList!$B$47,CntyQryCensus!$A$510:$DA$552,O$1) -> 6 | P96: =VLOOKUP(DropDownList!$B$47,CntyQryCensus!$A$510:$DA$552,P$1) -> 364 | Q96: =VLOOKUP(DropDownList!$B$47,CntyQryCensus!$A$510:$DA$552,Q$1) -> 133 | R96: =VLOOKUP(DropDownList!$B$47,CntyQryCensus!$A$510:$DA$552,R$1) -> 8 | S96: =VLOOKUP(DropDownList!$B$47,CntyQryCensus!$A$510:$DA$552,S$1) -> 5 | T96: =VLOOKUP(DropDownList!$B$47,CntyQryCensus!$A$510:$DA$552,T$1) -> 0 | U96: =VLOOKUP(DropDownList!$B$47,CntyQryCensus!$A$510:$DA$552,U$1) -> 0 | V96: =VLOOKUP(DropDownList!$B$47,CntyQryCensus!$A$510:$DA$552,V$1) -> 0 | W96: =VLOOKUP(DropDownList!$B$47,CntyQryCensus!$A$510:$DA$552,W$1) -> 0 | X96: =VLOOKUP(DropDownList!$B$47,CntyQryCensus!$A$510:$DA$552,X$1) -> 3 | Y96: =VLOOKUP(DropDownList!$B$47,CntyQryCensus!$A$510:$DA$552,Y$1) -> 0 | Z96: =VLOOKUP(DropDownList!$B$47,CntyQryCensus!$A$510:$DA$552,Z$1) -> 0 | AA96: =VLOOKUP(DropDownList!$B$47,CntyQryCensus!$A$510:$DA$552,AA$1) -> 0 | AB96: =VLOOKUP(DropDownList!$B$47,CntyQryCensus!$A$510:$DA$552,AB$1) -> 0 | AC96: =VLOOKUP(DropDownList!$B$47,CntyQryCensus!$A$510:$DA$552,AC$1) -> 0 | AD96: =VLOOKUP(DropDownList!$B$47,CntyQryCensus!$A$510:$DA$552,AD$1) -> 125 | AE96: =VLOOKUP(DropDownList!$B$47,CntyQryCensus!$A$510:$DA$552,AE$1) -> 1401 | AF96: =VLOOKUP(DropDownList!$B$47,CntyQryCensus!$A$510:$DA$552,AF$1) -> 129 | AG96: =VLOOKUP(DropDownList!$B$47,CntyQryCensus!$A$510:$DA$552,AG$1) -> 30 | AH96: =VLOOKUP(DropDownList!$B$47,CntyQryCensus!$A$510:$DA$552,AH$1) -> 18 | AI96: =VLOOKUP(DropDownList!$B$47,CntyQryCensus!$A$510:$DA$552,AI$1) -> 0 | AJ96: =VLOOKUP(DropDownList!$B$47,CntyQryCensus!$A$510:$DA$552,AJ$1) -> 0 | AK96: =VLOOKUP(DropDownList!$B$47,CntyQryCensus!$A$510:$DA$552,AK$1) -> 0 | AL96: =VLOOKUP(DropDownList!$B$47,CntyQryCensus!$A$510:$DA$552,AL$1) -> 81 | AM96: =VLOOKUP(DropDownList!$B$47,CntyQryCensus!$A$510:$DA$552,AM$1) -> 165 | AN96: =VLOOKUP(DropDownList!$B$47,CntyQryCensus!$A$510:$DA$552,AN$1) -> 3 | AO96: =VLOOKUP(DropDownList!$B$47,CntyQryCensus!$A$510:$DA$552,AO$1) -> 162 | AP96: =VLOOKUP(DropDownList!$B$47,CntyQryCensus!$A$510:$DA$552,AP$1) -> 46 | AQ96: =VLOOKUP(DropDownList!$B$47,CntyQryCensus!$A$510:$DA$552,AQ$1) -> 116 | AR96: =VLOOKUP(DropDownList!$B$47,CntyQryCensus!$A$510:$DA$552,AR$1) -> 1107 | AS96: =VLOOKUP(DropDownList!$B$47,CntyQryCensus!$A$510:$DA$552,AS$1) -> 179 | AT96: =VLOOKUP(DropDownList!$B$47,CntyQryCensus!$A$510:$DA$552,AT$1) -> 7 | AU96: =VLOOKUP(DropDownList!$B$47,CntyQryCensus!$A$510:$DA$552,AU$1) -> 0 | AV96: =VLOOKUP(DropDownList!$B$47,CntyQryCensus!$A$510:$DA$552,AV$1) -> 7 | AW96: =VLOOKUP(DropDownList!$B$47,CntyQryCensus!$A$510:$DA$552,AW$1) -> 0 | AX96: =VLOOKUP(DropDownList!$B$47,CntyQryCensus!$A$510:$DA$552,AX$1) -> 0 | AY96: =VLOOKUP(DropDownList!$B$47,CntyQryCensus!$A$510:$DA$552,AY$1) -> 0 | AZ96: =VLOOKUP(DropDownList!$B$47,CntyQryCensus!$A$510:$DA$552,AZ$1) -> 57 | BA96: =VLOOKUP(DropDownList!$B$47,CntyQryCensus!$A$510:$DA$552,BA$1) -> 41 | BB96: =VLOOKUP(DropDownList!$B$47,CntyQryCensus!$A$510:$DA$552,BB$1) -> 16 | BC96: =VLOOKUP(DropDownList!$B$47,CntyQryCensus!$A$510:$DA$552,BC$1) -> 115 | BD96: =VLOOKUP(DropDownList!$B$47,CntyQryCensus!$A$510:$DA$552,BD$1) -> 2355 | BE96: =VLOOKUP(DropDownList!$B$47,CntyQryCensus!$A$510:$DA$552,BE$1) -> 453 | BF96: =VLOOKUP(DropDownList!$B$47,CntyQryCensus!$A$510:$DA$552,BF$1) -> 39 | BG96: =VLOOKUP(DropDownList!$B$47,CntyQryCensus!$A$510:$DA$552,BG$1) -> 7 | BH96: =VLOOKUP(DropDownList!$B$47,CntyQryCensus!$A$510:$DA$552,BH$1) -> 0 | BI96: =VLOOKUP(DropDownList!$B$47,CntyQryCensus!$A$510:$DA$552,BI$1) -> 32 | BJ96: =VLOOKUP(DropDownList!$B$47,CntyQryCensus!$A$510:$DA$552,BJ$1) -> 0 | BK96: =VLOOKUP(DropDownList!$B$47,CntyQryCensus!$A$510:$DA$552,BK$1) -> 11 | BL96: =VLOOKUP(DropDownList!$B$47,CntyQryCensus!$A$510:$DA$552,BL$1) -> 5 | BM96: =VLOOKUP(DropDownList!$B$47,CntyQryCensus!$A$510:$DA$552,BM$1) -> 6 | BN96: =VLOOKUP(DropDownList!$B$47,CntyQryCensus!$A$510:$DA$552,BN$1) -> 403 | BO96: =VLOOKUP(DropDownList!$B$47,CntyQryCensus!$A$510:$DA$552,BO$1) -> 123 | BP96: =VLOOKUP(DropDownList!$B$47,CntyQryCensus!$A$510:$DA$552,BP$1) -> 17 | BQ96: =VLOOKUP(DropDownList!$B$47,CntyQryCensus!$A$510:$DA$552,BQ$1) -> 0 | BR96: =VLOOKUP(DropDownList!$B$47,CntyQryCensus!$A$510:$DA$552,BR$1) -> 6 | BS96: =VLOOKUP(DropDownList!$B$47,CntyQryCensus!$A$510:$DA$552,BS$1) -> 0 | BT96: =VLOOKUP(DropDownList!$B$47,CntyQryCensus!$A$510:$DA$552,BT$1) -> 0 | BU96: =VLOOKUP(DropDownList!$B$47,CntyQryCensus!$A$510:$DA$552,BU$1) -> 6 | BV96: =VLOOKUP(DropDownList!$B$47,CntyQryCensus!$A$510:$DA$552,BV$1) -> 5 | BW96: =VLOOKUP(DropDownList!$B$47,CntyQryCensus!$A$510:$DA$552,BW$1) -> 0 | BX96: =VLOOKUP(DropDownList!$B$47,CntyQryCensus!$A$510:$DA$552,BX$1) -> 0 | BY96: =VLOOKUP(DropDownList!$B$47,CntyQryCensus!$A$510:$DA$552,BY$1) -> 0 | BZ96: =VLOOKUP(DropDownList!$B$47,CntyQryCensus!$A$510:$DA$552,BZ$1) -> 0 | CA96: =VLOOKUP(DropDownList!$B$47,CntyQryCensus!$A$510:$DA$552,CA$1) -> 0 | CB96: =VLOOKUP(DropDownList!$B$47,CntyQryCensus!$A$510:$DA$552,CB$1) -> 106 | CC96: =VLOOKUP(DropDownList!$B$47,CntyQryCensus!$A$510:$DA$552,CC$1) -> 1452 | CD96: =VLOOKUP(DropDownList!$B$47,CntyQryCensus!$A$510:$DA$552,CD$1) -> 153 | CE96: =VLOOKUP(DropDownList!$B$47,CntyQryCensus!$A$510:$DA$552,CE$1) -> 8 | CF96: =VLOOKUP(DropDownList!$B$47,CntyQryCensus!$A$510:$DA$552,CF$1) -> 73 | CG96: =VLOOKUP(DropDownList!$B$47,CntyQryCensus!$A$510:$DA$552,CG$1) -> 34 | CH96: =VLOOKUP(DropDownList!$B$47,CntyQryCensus!$A$510:$DA$552,CH$1) -> 0 | CI96: =VLOOKUP(DropDownList!$B$47,CntyQryCensus!$A$510:$DA$552,CI$1) -> 7 | CJ96: =VLOOKUP(DropDownList!$B$47,CntyQryCensus!$A$510:$DA$552,CJ$1) -> 31 | CK96: =VLOOKUP(DropDownList!$B$47,CntyQryCensus!$A$510:$DA$552,CK$1) -> 130 | CL96: =VLOOKUP(DropDownList!$B$47,CntyQryCensus!$A$510:$DA$552,CL$1) -> 29 | CM96: =VLOOKUP(DropDownList!$B$47,CntyQryCensus!$A$510:$DA$552,CM$1) -> 101 | CN96: =VLOOKUP(DropDownList!$B$47,CntyQryCensus!$A$510:$DA$552,CN$1) -> 12 | CO96: =VLOOKUP(DropDownList!$B$47,CntyQryCensus!$A$510:$DA$552,CO$1) -> 89 | CP96: =VLOOKUP(DropDownList!$B$47,CntyQryCensus!$A$510:$DA$552,CP$1) -> 1169 | CQ96: =VLOOKUP(DropDownList!$B$47,CntyQryCensus!$A$510:$DA$552,CQ$1) -> 327 | CR96: =VLOOKUP(DropDownList!$B$47,CntyQryCensus!$A$510:$DA$552,CR$1) -> 52 | CS96: =VLOOKUP(DropDownList!$B$47,CntyQryCensus!$A$510:$DA$552,CS$1) -> 6 | CT96: =VLOOKUP(DropDownList!$B$47,CntyQryCensus!$A$510:$DA$552,CT$1) -> 21 | CU96: =VLOOKUP(DropDownList!$B$47,CntyQryCensus!$A$510:$DA$552,CU$1) -> 0 | CV96: =VLOOKUP(DropDownList!$B$47,CntyQryCensus!$A$510:$DA$552,CV$1) -> 0 | CW96: =VLOOKUP(DropDownList!$B$47,CntyQryCensus!$A$510:$DA$552,CW$1) -> 25 | CX96: =VLOOKUP(DropDownList!$B$47,CntyQryCensus!$A$510:$DA$552,CX$1) -> 103 | CY96: =VLOOKUP(DropDownList!$B$47,CntyQryCensus!$A$510:$DA$552,CY$1) -> 26 | CZ96: =VLOOKUP(DropDownList!$B$47,CntyQryCensus!$A$510:$DA$552,CZ$1) -> 77 | DA96: =VLOOKUP(DropDownList!$B$47,CntyQryCensus!$A$510:$DA$552,DA$1) -> 172
A101: =VLOOKUP(DropDownList!$B$47,CntyQryCensus!$A$510:$DA$552,A$1) -> Allenstown
A105: ACS | B105: 2 | C105: =B105+1 -> 3 | D105: =C105+1 -> 4 | E105: 5 | F105: 6 | G105: 7 | H105: 8 | I105: 9 | J105: 10 | K105: 11 | L105: =K105+1 -> 12 | M105: 13 | N105: 14 | O105: 15 | P105: =O105+1 -> 16 | Q105: 17 | R105: 18 | S105: 19 | T105: 20 | U105: 21 | V105: 22 | W105: 23 | X105: 24 | Y105: 25 | Z105: 26 | AA105: 27 | AB105: 28 | AC105: 29 | AD105: 30 | AE105: 31 | AF105: 32 | AG105: 33 | AH105: 34 | AI105: 35 | AJ105: 36 | AK105: 37 | AL105: 38 | AM105: 39 | AN105: 40 | AO105: 41 | AP105: 42 | AQ105: 43 | AR105: 44 | AS105: 45 | AT105: 46 | AU105: 47 | AV105: 48 | AW105: 49 | AX105: 50 | AY105: 51 | AZ105: 52 | BA105: 53 | BB105: 54 | BC105: 55 | BD105: 56 | BE105: 57 | BF105: 58 | BG105: 59 | BH105: 60 | BI105: 61 | BJ105: 62 | BK105: 63 | BL105: 64 | BM105: 65 | BN105: 66 | BO105: 67 | BP105: =BO105+1 -> 68 | BQ105: 69 | BR105: 70 | BS105: 71 | BT105: 72 | BU105: 73 | BV105: 74 | BW105: 75 | BX105: 76 | BY105: 77 | BZ105: 78 | CA105: 79 | CB105: 80 | CC105: 81 | CD105: 82 | CE105: 83 | CF105: 84 | CG105: 85 | CH105: 86 | CI105: 87 | CJ105: 88 | CK105: 89 | CL105: 90 | CM105: 91 | CN105: 92 | CO105: 93 | CP105: 94 | CQ105: 95 | CR105: 96 | CS105: 97 | CT105: 98 | CU105: 99 | CV105: 100 | CW105: 101 | CX105: 102 | CY105: 103 | CZ105: 104 | DA105: 105 | DB105: 106 | DC105: 107 | DD105: 108 | DE105: 109 | DF105: 110 | DG105: 111 | DH105: 112 | DI105: 113 | DJ105: 114 | DK105: 115 | DL105: 116 | DM105: 117 | DN105: 118 | DO105: 119 | DP105: 120 | DQ105: 121 | DR105: 122 | DS105: 123 | DT105: 124 | DU105: 125
A106: Househould Data (Housing Unit Type)
A107: NAME | B107: TotalHU | C107: ="MOE "&B107 -> MOE TotalHU | D107: TotalOccHU | E107: ="MOE "&D107 -> MOE TotalOccHU | F107: TotalOwnerOccUn | G107: ="MOE "&F107 -> MOE TotalOwnerOccUn | H107: TotalRenterOccn | I107: ="MOE "&H107 -> MOE TotalRenterOccn | J107: TotalVacantUntis | K107: ="MOE "&J107 -> MOE TotalVacantUntis | L107: VacantUnitsForRent | M107: ="MOE "&L107 -> MOE VacantUnitsForRent | N107: VacantUnitRentedNotOcc | O107: ="MOE "&N107 -> MOE VacantUnitRentedNotOcc | P107: VacantUnitForSale | Q107: ="MOE "&P107 -> MOE VacantUnitForSale | R107: VacantUnitSoldNotOcc | S107: ="MOE "&R107 -> MOE VacantUnitSoldNotOcc | T107: VacantUnitSeasonalRec | U107: ="MOE "&T107 -> MOE VacantUnitSeasonalRec | V107: TotalPopInHousingUnits | W107: ="MOE "&V107 -> MOE TotalPopInHousingUnits | X107: OwnerOccPopHousingUnits | Y107: ="MOE "&X107 -> MOE OwnerOccPopHousingUnits | Z107: RenterOccPopHousingUnits | AA107: ="MOE "&Z107 -> MOE RenterOccPopHousingUnits | AB107: TotalUntis | AC107: ="MOE "&AB107 -> MOE TotalUntis | AD107: TotalOwnerOccUnits | AE107: ="MOE "&AD107 -> MOE TotalOwnerOccUnits | AF107: SigFamOwnerOcc | AG107: ="MOE "&AF107 -> MOE SigFamOwnerOcc | AH107: MultiFamOwnerOcc | AI107: ="MOE "&AH107 -> MOE MultiFamOwnerOcc | AJ107: MobileOwnerOcc | AK107: ="MOE "&AJ107 -> MOE MobileOwnerOcc | AL107: TotalRenterOccUnits | AM107: ="MOE "&AL107 -> MOE TotalRenterOccUnits | AN107: SigFamRenterOcc | AO107: ="MOE "&AN107 -> MOE SigFamRenterOcc | AP107: MultiFamRenterOcc | AQ107: ="MOE "&AP107 -> MOE MultiFamRenterOcc | AR107: MobileRenterOcc | AS107: ="MOE "&AR107 -> MOE MobileRenterOcc | AT107: TotalSigFamilyUnits | AU107: ="MOE "&AT107 -> MOE TotalSigFamilyUnits | AV107: TotalMultiFamilyUnits | AW107: ="MOE "&AV107 -> MOE TotalMultiFamilyUnits | AX107: TotalMobileUnits | AY107: ="MOE "&AX107 -> MOE TotalMobileUnits | AZ107: YrHouseBuilt2014Later | BA107: ="MOE "&AZ107 -> MOE YrHouseBuilt2014Later | BB107: YrHouseBuilt2010-2013 | BC107: ="MOE "&BB107 -> MOE YrHouseBuilt2010-2013 | BD107: YrHouseBuilt2000-2009 | BE107: ="MOE "&BD107 -> MOE YrHouseBuilt2000-2009 | BF107: YrHouseBuilt1990-1999 | BG107: ="MOE "&BF107 -> MOE YrHouseBuilt1990-1999 | BH107: YrHouseBuilt1980-1989 | BI107: ="MOE "&BH107 -> MOE YrHouseBuilt1980-1989 | BJ107: YrHouseBuilt1970-1979 | BK107: ="MOE "&BJ107 -> MOE YrHouseBuilt1970-1979 | BL107: YrHouseBuilt1960-1969 | BM107: ="MOE "&BL107 -> MOE YrHouseBuilt1960-1969 | BN107: YrHouseBuilt1950-1959 | BO107: ="MOE "&BN107 -> MOE YrHouseBuilt1950-1959 | BP107: YrHouseBuilt1940-1949 | BQ107: ="MOE "&BP107 -> MOE YrHouseBuilt1940-1949 | BR107: YrHouseBuilt1939orEarlier | BS107: ="MOE "&BR107 -> MOE YrHouseBuilt1939orEarlier | BT107: NoBedrooms | BU107: ="MOE "&BT107 -> MOE NoBedrooms | BV107: 1Bedroom | BW107: ="MOE "&BV107 -> MOE 1Bedroom | BX107: 2Bedroom | BY107: ="MOE "&BX107 -> MOE 2Bedroom | BZ107: 3Bedroom | CA107: ="MOE "&BZ107 -> MOE 3Bedroom | CB107: 4+Bedroom | CC107: ="MOE "&CB107 -> MOE 4+Bedroom
A108: =VLOOKUP(DropDownList!$B$47,CntyQryCensus!$A$510:$DA$552,A$1) -> Allenstown | B108: 1881 | C108: 198 | D108: 1812 | E108: 193 | F108: 1439 | G108: 167 | H108: 373 | I108: 153 | J108: 69 | K108: 71 | L108: 0 | M108: 12 | N108: 9 | O108: 15 | P108: 0 | Q108: 12 | R108: 21 | S108: 36 | T108: 0 | U108: 12 | V108: 4650 | W108: 22 | X108: 3918 | Y108: 324 | Z108: 732 | AA108: 324 | AB108: 1812 | AC108: 193 | AD108: 1439 | AE108: 167 | AF108: 672 | AG108: 127 | AH108: 166 | AI108: 84.10707461 | AJ108: 601 | AK108: 153.4698667 | AL108: 373 | AM108: 153 | AN108: 29 | AO108: 33 | AP108: 344 | AQ108: 141.3329403 | AR108: 0 | AS108: 16.97056275 | AT108: 1241 | AU108: 204.6191584 | AV108: 640 | AW108: 160.449369 | AZ108: 0 | BA108: 12 | BB108: 148 | BC108: 76 | BD108: 251 | BE108: 105 | BF108: 181 | BG108: 94 | BH108: 276 | BI108: 139 | BJ108: 351 | BK108: 117 | BL108: 136 | BM108: 64 | BN108: 94 | BO108: 54 | BP108: 76 | BQ108: 66 | BR108: 368 | BS108: 155 | BT108: 93 | BU108: 92 | BV108: 197 | BW108: 108 | BX108: 618 | BY108: 147 | BZ108: 834 | CA108: 149 | CB108: 139 | CC108: 72.1734023 | CD108: 81 | CE108: 79 | CF108: 36 | CG108: 74 | CH108: 28 | CI108: 76 | CJ108: 114 | CK108: 30 | CL108: 114 | CM108: 142 | CN108: 91 | CO108: 44 | CP108: 40 | CQ108: 134 | CR108: 119 | CS108: 76 | CT108: 105 | CU108: 14 | CV108: 132 | CW108: 142 | CX108: 84 | CY108: 108 | CZ108: 151 | DA108: 154 | DB108: 137 | DC108: 30 | DD108: 701 | DE108: 207.1038387 | DF108: 300 | DG108: 141.0141837 | DH108: 207.2751794 | DI108: 197.813043
A110: Disability Data
A111: NAME | B111: TotalPop | C111: ="MOE "&B111 -> MOE TotalPop | D111: PopUnder 5 years: | E111: ="MOE "&D111 -> MOE PopUnder 5 years: | F111: =D$111&"-WithDisability" -> PopUnder 5 years:-WithDisability | G111: ="MOE "&F111 -> MOE PopUnder 5 years:-WithDisability | H111: =D111&"-NoDisability" -> PopUnder 5 years:-NoDisability | I111: ="MOE "&H111 -> MOE PopUnder 5 years:-NoDisability | J111: PopUnder 5 to 17years: | K111: ="MOE "&J111 -> MOE PopUnder 5 to 17years: | L111: =J$111&"-WithDisability" -> PopUnder 5 to 17years:-WithDisability | M111: ="MOE "&L111 -> MOE PopUnder 5 to 17years:-WithDisability | N111: =J111&"-NoDisability" -> PopUnder 5 to 17years:-NoDisability | O111: ="MOE "&N111 -> MOE PopUnder 5 to 17years:-NoDisability | P111: PopUnder 18 to 34 years: | Q111: ="MOE "&P111 -> MOE PopUnder 18 to 34 years: | R111: =P$111&"-WithDisability" -> PopUnder 18 to 34 years:-WithDisability | S111: ="MOE "&R111 -> MOE PopUnder 18 to 34 years:-WithDisability | T111: =P111&"-NoDisability" -> PopUnder 18 to 34 years:-NoDisability | U111: ="MOE "&T111 -> MOE PopUnder 18 to 34 years:-NoDisability | V111: Pop 35 years to 64: | W111: ="MOE "&V111 -> MOE Pop 35 years to 64: | X111: =$V$111&"-WithDisability" -> Pop 35 years to 64:-WithDisability | Y111: ="MOE "&X111 -> MOE Pop 35 years to 64:-WithDisability | Z111: =$V$111&"-NoDisability" -> Pop 35 years to 64:-NoDisability | AA111: ="MOE "&Z111 -> MOE Pop 35 years to 64:-NoDisability | AB111: Pop 65 years to 74: | AC111: ="MOE "&AB111 -> MOE Pop 65 years to 74: | AD111: =$AB$111&"-WithDisability" -> Pop 65 years to 74:-WithDisability | AE111: ="MOE "&AD111 -> MOE Pop 65 years to 74:-WithDisability | AF111: =$AB$111&"-NoDisability" -> Pop 65 years to 74:-NoDisability | AG111: ="MOE "&AF111 -> MOE Pop 65 years to 74:-NoDisability | AH111: Pop 75 and older: | AI111: ="MOE "&AH111 -> MOE Pop 75 and older: | AJ111: =$AH$111&"-WithDisability" -> Pop 75 and older:-WithDisability | AK111: ="MOE "&AJ111 -> MOE Pop 75 and older:-WithDisability | AL111: =$AH$111&"-NoDisability" -> Pop 75 and older:-NoDisability | AM111: ="MOE "&AL111 -> MOE Pop 75 and older:-NoDisability | AN111: TotalPopUnder5_HearingDisability | AO111: ="MOE "&AN111 -> MOE TotalPopUnder5_HearingDisability | AP111: TotalPopUnder5_HearingDisability | AQ111: ="MOE "&AP111 -> MOE TotalPopUnder5_HearingDisability | AR111: TotalPop18To34_HearingDisability | AS111: ="MOE "&AR111 -> MOE TotalPop18To34_HearingDisability | AT111: TotalPop35To64_HearingDisability | AU111: ="MOE "&AT111 -> MOE TotalPop35To64_HearingDisability | AV111: TotalPop65To74_HearingDisability | AW111: ="MOE "&AV111 -> MOE TotalPop65To74_HearingDisability | AX111: TotalPop75andOlder_HearingDisability | AY111: ="MOE "&AX111 -> MOE TotalPop75andOlder_HearingDisability | AZ111: TotalPopUnder5_VisionDisability | BA111: ="MOE "&AZ111 -> MOE TotalPopUnder5_VisionDisability | BB111: TotalPop5To17_VisionDisability | BC111: ="MOE "&BB111 -> MOE TotalPop5To17_VisionDisability | BD111: TotalPop18To34_VisionDisability | BE111: ="MOE "&BD111 -> MOE TotalPop18To34_VisionDisability | BF111: TotalPop35To64_VisionDisability | BG111: ="MOE "&BF111 -> MOE TotalPop35To64_VisionDisability | BH111: TotalPop65To74_VisionDisability | BI111: ="MOE "&BH111 -> MOE TotalPop65To74_VisionDisability | BJ111: TotalPop75andOlder_VisionDisability | BK111: ="MOE "&BJ111 -> MOE TotalPop75andOlder_VisionDisability | BL111: TotalPop5To17_CongnitiveDisability | BM111: ="MOE "&BL111 -> MOE TotalPop5To17_CongnitiveDisability | BN111: TotalPop18To34_CongnitiveDisability | BO111: ="MOE "&BN111 -> MOE TotalPop18To34_CongnitiveDisability | BP111: TotalPop35To64_CongnitiveDisability | BQ111: ="MOE "&BP111 -> MOE TotalPop35To64_CongnitiveDisability | BR111: TotalPop65To74_CongnitiveDisability | BS111: ="MOE "&BR111 -> MOE TotalPop65To74_CongnitiveDisability | BT111: TotalPop75andOlder_CongnitiveDisability | BU111: ="MOE "&BT111 -> MOE TotalPop75andOlder_CongnitiveDisability | BV111: TotalPop5To17_AmbulatoryDisability | BW111: ="MOE "&BV111 -> MOE TotalPop5To17_AmbulatoryDisability | BX111: TotalPop18To34_AmbulatoryDisability | BY111: ="MOE "&BX111 -> MOE TotalPop18To34_AmbulatoryDisability | BZ111: TotalPop35To64_AmbulatoryDisability | CA111: ="MOE "&BZ111 -> MOE TotalPop35To64_AmbulatoryDisability | CB111: TotalPop65To74_AmbulatoryDisability | CC111: ="MOE "&CB111 -> MOE TotalPop65To74_AmbulatoryDisability | CD111: TotalPop75andOlder_AmbulatoryDisability | CE111: ="MOE "&CD111 -> MOE TotalPop75andOlder_AmbulatoryDisability | CF111: TotalPop5To17_SelfCareDisability | CG111: ="MOE "&CF111 -> MOE TotalPop5To17_SelfCareDisability | CH111: TotalPop18To34_SelfCareDisability | CI111: ="MOE "&CH111 -> MOE TotalPop18To34_SelfCareDisability | CJ111: TotalPop35To64_SelfCareDisability | CK111: ="MOE "&CJ111 -> MOE TotalPop35To64_SelfCareDisability | CL111: TotalPop65To74_SelfCareDisability | CM111: ="MOE "&CL111 -> MOE TotalPop65To74_SelfCareDisability | CN111: TotalPop75andOlder_SelfCareDisability | CO111: ="MOE "&CN111 -> MOE TotalPop75andOlder_SelfCareDisability | CP111: TotalPop18To34_IndependantLivingDisability | CQ111: ="MOE "&CP111 -> MOE TotalPop18To34_IndependantLivingDisability | CR111: TotalPop35To64_IndependantLivingDisability | CS111: ="MOE "&CR111 -> MOE TotalPop35To64_IndependantLivingDisability | CT111: TotalPop65To74_IndependantLivingDisability | CU111: ="MOE "&CT111 -> MOE TotalPop65To74_IndependantLivingDisability | CV111: TotalPop75andOlder_IndependantLivingDisability | CW111: ="MOE "&CV111 -> MOE TotalPop75andOlder_IndependantLivingDisability | CX111: TotalUnder5_HearingorVisionDisability | CY111: ="MOE "&CX111 -> MOE TotalUnder5_HearingorVisionDisability | CZ111: TotalUnder5_HearingandVisionDisability | DA111: ="MOE "&CZ111 -> MOE TotalUnder5_HearingandVisionDisability | DB111: 5to17YearWIthOneDisability | DC111: ="MOE "&DB111 -> MOE 5to17YearWIthOneDisability | DD111: 5to17YearWIthTwoOrMoreDisability | DE111: ="MOE "&DD111 -> MOE 5to17YearWIthTwoOrMoreDisability | DF111: 18to34YearWIthOneDisability | DG111: ="MOE "&DF111 -> MOE 18to34YearWIthOneDisability | DH111: 18to34YearWIthTwoOrMoreDisability | DI111: ="MOE "&DH111 -> MOE 18to34YearWIthTwoOrMoreDisability | DJ111: 35to64YearWIthOneDisability | DK111: ="MOE "&DJ111 -> MOE 35to64YearWIthOneDisability | DL111: 35to64YearWIthTwoOrMoreDisability | DM111: ="MOE "&DL111 -> MOE 35to64YearWIthTwoOrMoreDisability | DN111: 65to74YearWIthOneDisability | DO111: ="MOE "&DN111 -> MOE 65to74YearWIthOneDisability | DP111: 65to74YearWIthTwoOrMoreDisability | DQ111: ="MOE "&DP111 -> MOE 65to74YearWIthTwoOrMoreDisability | DR111: 75AndOlderWIthOneDisability | DS111: ="MOE "&DR111 -> MOE 75AndOlderWIthOneDisability | DT111: 75AndOlderWIthTwoOrMoreDisability | DU111: ="MOE "&DT111 -> MOE 75AndOlderWIthTwoOrMoreDisability
A112: =VLOOKUP(DropDownList!$B$47,CntyQryCensus!$A$510:$DA$552,A$1) -> Allenstown | B112: 4653 | C112: 22 | D112: 242 | E112: 104.2353107 | F112: 35 | G112: 53.36665626 | H112: 207 | I112: 91.35097153 | J112: 716 | K112: 134.3167897 | L112: 30 | M112: 30.6757233 | N112: 686 | O112: 135.7239846 | P112: 1191 | Q112: 206.6349438 | R112: 147 | S112: 82.86132994 | T112: 1044 | U112: 204.8316382 | V112: 1929 | W112: 204.3844417 | X112: 342 | Y112: 134.465609 | Z112: 1587 | AA112: 190.2130385 | AB112: 432 | AC112: 138.4232639 | AD112: 137 | AE112: 86.45229899 | AF112: 295 | AG112: 100.895986 | AH112: 143 | AI112: 71.11961755 | AJ112: 87 | AK112: 63.3245608 | AL112: 56 | AM112: 34.98571137 | AN112: 35 | AO112: 53.36665626 | AP112: 19 | AQ112: 30.46309242 | AR112: 0 | AS112: 16.97056275 | AT112: 46 | AU112: 51.26402247 | AV112: 40 | AW112: 40.80441153 | AX112: 44 | AY112: 42.15447782 | AZ112: 0 | BA112: 16.97056275 | BB112: 19 | BC112: 30.46309242 | BD112: 6 | BE112: 16.2788206 | BF112: 88 | BG112: 76.21679605 | BH112: 38 | BI112: 42.95346319 | BJ112: 10 | BK112: 19.20937271 | BL112: 163 | BM112: 83.95236745 | BN112: 52 | BO112: 37.80211634 | BP112: 184 | BQ112: 85.60373824 | BR112: 41 | BS112: 48.76474136 | BT112: 7 | BU112: 15.55634919 | BV112: 0 | BW112: 16.97056275 | BX112: 0 | BY112: 16.97056275 | BZ112: 185 | CA112: 100.2447006 | CB112: 97 | CC112: 76.65507159 | CD112: 23 | CE112: 23.34523506 | CF112: 19 | CG112: 30.46309242 | CH112: 5 | CI112: 15.62049935 | CJ112: 46 | CK112: 55.54277631 | CL112: 0 | CM112: 16.97056275 | CN112: 11 | CO112: 15.13274595 | CP112: 48 | CQ112: 44.92215489 | CR112: 100 | CS112: 72.01388755 | CT112: 0 | CU112: 16.97056275 | CV112: 50 | CW112: 49.64876635 | CX112: 46 | CY112: 53 | CZ112: 19 | DA112: 28 | DB112: 347 | DC112: 124 | DD112: 142 | DE112: 90 | DF112: 161 | DG112: 111 | DH112: 63 | DI112: 47
A114: Househould Income By Age
